Workbook

Sheet Help
C3: Content (Click on topic to view) | D3: =" "&Indi1 -> Utilisation of Savings | Q3: =COUNTA(R5:R14) -> 8 | R3: Total number of DescriptBox
Q4: 7 | R4: =CHOOSE(Q4,R5,R6,R7,R8,R9,R10,R11,R12,R13,R14) -> Utilisation of Savings
C5: 1. | Q5: 1 | R5: Introduction
Q6: 2 | R6: General workings
Q7: 3 | R7: Cover sheet
C8: 2. | Q8: 4 | R8: Summary sheet
Q9: 5 | R9: Programme sheets
Q10: 6 | R10: Direct Charges against the National Revenue Fund
C11: 3. | Q11: 7 | R11: Utilisation of Savings
Q12: 8 | R12: Checks
C14: 4.
C17: 5.
C20: 6.
C23: 7.
C26: 8.

Sheet Cover
BW1: Econ1 | BX1: Econ2 | BY1: Econ3 | CS1: =COUNTA(CS3:CS50) -> 6 | CT1: 9 | CU1: 7 | CV1: 8 | CW1: 5 | CX1: 6 | CY1: 6 | CZ1: 3 | DA1: 5 | DB1: 5 | DC1: 8 | DD1: 8 | DE1: 8 | DF1: 4
A2: 10 | AA2: 225 | BD2: Year | BE2: CurCap | BF2: EconClass | BG2: Outcomes - fixed | BH2: InfraList1 | BI2: InfraList2 | BJ2: InfraList3 | BK2: InfraList4 | BL2: ODAList1 | BM2: ListedProgs | BO2: =MAX(BO3:BO18) -> 7 | BP2: ProgList | BR2: InfraS dropdown list | BT2: DoR Cat | BW2: Provinces and municipalities | BX2: Provinces | BY2: Provincial Revenue Funds | CS2: Outputs-1 | CT2: Outputs-2 | CU2: Outputs-3 | CV2: Outputs-4 | CW2: Outputs-5 | CX2: Outputs-6 | CY2: Outputs-7 | CZ2: Outputs-8 | DA2: Outputs-9 | DB2: Outputs-10 | DC2: Outputs-11 | DD2: Outputs-12 | DE2: Outputs-13 | DF2: Outputs-14 | DK2: Sheet Names | DL2: Lock | DM2: Hide | DN2: Index | DO2: Range for DF
BD3: 2014/15 | BE3: Current | BF3: Provincial Revenue Funds | BG3: OUTCOME 1: QUALITY BASIC EDUCATION | BH3: Programme | BI3: New | BJ3: Site identification | BK3: Mega | BL3: Long term technical assistance | BM3: =Summary!F31 -> Administration | BN3: 1 | BO3: =IF(BP3<>"",BN3,0) -> 1 | BP3: =IF(BN3>PListed,"",Cover!BM3) -> Administration | BQ3: 1 | BR3: =IF(ISERROR(INDEX(($BP$3:$BP$18),MATCH(BQ3,$BO$3:$BO$18,0))),"",INDEX(($BP$3:$BP$18),MATCH(BQ3,$BO$3:$BO$18,0))) -> Administration | BT3: Provincial equitable share | BU3: =PM!F123 -> Provincial Revenue Funds | BW3: Provinces and municipalities | BX3: Provinces | BY3: Provincial agencies and funds | CS3: Improved quality of teaching and learning through development, supply and effective utilisation of teachers | CT3: Average male and female life expectancy at birth increased to 70 years | CU3: Reduced levels of contact crime | CV3: Productive investment is effectively crowded in through the infrastructure build programme | CW3: Establish a credible institutional mechanism for skills planning | CX3: Regulation, funding and investment improved | CY3: Improved land administration and spatial planning for integrated development in rural areas | CZ3: Adequate housing and improved quality living environments | DA3: Members of society have sustainable and reliable access to basic services. | DB3: Ecosystems are sustained and natural resources are used efficiently | DC3: SA’s national priorities advanced in bilateral engagements | DD3: A stable political-administrative interface | DE3: Current social welfare system reformed to deliver better results for vulnerable groups | DF3: Fostering Constitutional values | DK3: Summary | DL3: 1 | DM3: 0 | DN3: 1 | DO3: A1:BZ10000 | DQ3: No. of sheets in WB | DR3: =COUNTA($DK$3:$DK$55) -> 31
BD4: 2015/16 | BE4: Capital | BF4: Provincial agencies and funds | BG4: OUTCOME 2: A LONG AND HEALTHY LIFE FOR ALL SOUTH AFRICANS | BH4: Project | BI4: Existing | BJ4: Pre-feasibility | BK4: Large | BL4: Short term technical assistance | BM4: =Summary!F32 -> ICT International Relations and Affairs | BN4: 2 | BO4: =IF(BP4<>"",MAX(BO$3:BO3)+1,0) -> 2 | BP4: =IF(BN4>PListed,"",Cover!BM4) -> ICT International Relations and Affairs | BQ4: 2 | BR4: ICT International Relations and Affairs | BT4: Provincial conditional grants (Direct) | BU4: =PM!F123 -> Provincial Revenue Funds | BW4: Provinces and municipalities | BX4: Municipalities | BY4: Municipal bank accounts | CS4: Improve the quality of teaching and learning through provision of Infrastructure and learning materials | CT4: Tuberculosis (TB) prevention and cure progressively improved | CU4: An efficient and effective criminal Justice system | CV4: The productive sectors account for a growing share of production and employment, exports are diversified, African regional development is accelerated, the carbon intensity of growth is reduced, knowledge and technology support increasingly inclusive and dynamic growth, and the organs of the state improve their alignment in support of employment-creating growth | CW4: Increase access to programmes leading to intermediate and high level learning | CX4: Reliable generation, transmission and distribution of energy ensured | CY4: Sustainable Land Reform (agrarian transformation) | CZ4: A functionally equitable residential property market | DA4: Intergovernmental and democratic governance arrangements for a functional system of cooperative governance strengthened. | DB4: An effective climate change mitigation and adaptation response | DC4: An economically integrated Southern Africa | DD4: A public service that is a career of choice | DE4: Improved monitoring, evaluation, accountability and quality assurance | DF4: Equal opportunities, inclusion and redress | DK4: 1 | DL4: 1 | DM4: 0 | DN4: 2 | DO4: A1:BZ10000
B5: Department | BD5: 2016/17 | BF5: Municipal bank accounts | BG5: OUTCOME 3: ALL PEOPLE IN SOUTH AFRICA ARE AND FEEL SAFE | BJ5: Feasibility | BK5: Small | BL5: Conferences / workshops | BM5: =Summary!F33 -> ICT Policy Development and Research | BN5: 3 | BO5: =IF(BP5<>"",MAX(BO$3:BO4)+1,0) -> 3 | BP5: =IF(BN5>PListed,"",Cover!BM5) -> ICT Policy Development and Research | BQ5: 3 | BR5: ICT Policy Development and Research | BT5: Local government equitable share | BU5: =PM!F126 -> Municipal bank accounts | BW5: Provinces and municipalities | BX5: Municipalities | BY5: Municipal agencies and funds | CS5: Regular annual national assessments to track improvements in the quality of teaching and learning (ANA) | CT5: Maternal, Infant and Child Mortality reduced | CU5: South Africa’s borders effectively defended, protected, secured and well-managed | CV5: The elimination of unnecessary regulatory burdens and lower price increases for key inputs and wage goods fosters investment and economic growth | CW5: Increase access to occupationally-directed programmes in needed areas and thereby expand the availability of intermediate level skills (with special focus on artisan skills) | CX5: Maintenance, strategic expansion, operational efficiency, capacity and competitiveness of our logistics and transport infrastructure ensured | CY5: Improved food security | CZ5: Enhanced institutional capabilities for effective coordination of spatial investment decisions | DA5: Sound financial and administrative management. | DB5: An environmentally sustainable, low-carbon economy resulting from a well-managed just transition | DC5: Political cohesion within Southern Africa to ensure a peaceful, secure and stable Southern African region | DD5: Sufficient technical and specialist professional skills | DE5: Development of more sustainable model of funding social development | DF5: Using sport and recreation to promote social cohesion | DK5: 2 | DL5: 1 | DM5: 0 | DN5: 3 | DO5: A1:BZ10000
BD6: 2017/18 | BF6: Municipal agencies and funds | BG6: OUTCOME 4: DECENT EMPLOYMENT THROUGH INCLUSIVE ECONOMIC GROWTH | BJ6: Design | BL6: Study tours | BM6: =Summary!F34 -> ICT Enterprise and Public Entity Oversight | BN6: 4 | BO6: =IF(BP6<>"",MAX(BO$3:BO5)+1,0) -> 4 | BP6: =IF(BN6>PListed,"",Cover!BM6) -> ICT Enterprise and Public Entity Oversight | BQ6: 4 | BR6: ICT Enterprise and Public Entity Oversight | BT6: Local government conditional grants (Direct) | BU6: =PM!F126 -> Municipal bank accounts | BW6: Departmental agencies and accounts | BX6: Departmental agencies and accounts | BY6: Social security funds | CS6: Improved Grade R and planning for extension of ECD | CT6: Prevalence of Non-Communicable Diseases reduced by 28% | CU6: Secure cyber space | CV6: Workers’ education and skills increasingly meet economic needs | CW6: Increase access to high-level occupationally directed programmes in needed areas | CX6: Maintenance and supply availability of our bulk water resources infrastructure ensured | CY6: Smallholder producers' development and support (technical, financial, infrastructure) for agrarian transformation | DA6: Promotion of social and economic development. | DB6: Enhanced governance systems and capacity | DC6: A Peaceful, secure and stable Africa | DD6: Efficient and effective management and operations systems | DE6: Increased human resource capacity in the social development sector | DF6: Promoting active citizenry and leadership | DK6: 3 | DL6: 1 | DM6: 0 | DN6: 4 | DO6: A1:BZ10000
BD7: 2018/19 | BF7: Social security funds | BG7: OUTCOME 5: A SKILLED AND CAPABLE WORKFORCE TO SUPPORT AN INCLUSIVE GROWTH PATH | BJ7: Tender | BL7: Training | BM7: =Summary!F35 -> ICT Infrastructure Development and Support | BN7: 5 | BO7: =IF(BP7<>"",MAX(BO$3:BO6)+1,0) -> 5 | BP7: =IF(BN7>PListed,"",Cover!BM7) -> ICT Infrastructure Development and Support | BQ7: 5 | BR7: ICT Infrastructure Development and Support | BT7: General Fuel Levy Sharing with Metropolitan Municipalities | BU7: =PM!F126 -> Municipal bank accounts | BW7: Departmental agencies and accounts | BX7: Departmental agencies and accounts | BY7: Departmental agencies (non-business entities) | CS7: A credible, outcomes-focused planning and accountability system (building the capacity of the state to intervene and support quality education) | CT7: Injury, accidents and violence reduced by 50% from 2010 levels | CU7: Ensure Domestic Stability | CV7: Macroeconomic conditions support employment-creating growth | CW7: Strengthen the governance, management and student support in post school education and training institutions | CX7: Expansion, modernisation, access and affordability of our Information and communications infrastructure ensured | CY7: Increased access to quality infrastructure and services, particularly in education, healthcare and public transport in rural areas | DA7: Local public employment programmes expanded through the Community Work Programme. | DB7: Sustainable human communities | DC7: A sustainable developed and economically integrated Africa | DD7: Procurement systems that deliver value for money | DE7: Deepening social assistance and expanding access to social security | DK7: 4 | DL7: 1 | DM7: 0 | DN7: 5 | DO7: A1:BZ10000
B8: Enquires: | E8: Department Contact Details: | BD8: 2019/20 | BF8: Departmental agencies (non-business entities) | BG8: OUTCOME 6: AN EFFICIENT, COMPETITIVE AND RESPONSIVE ECONOMIC INFRASTRUCTURE NETWORK | BJ8: Construction | BL8: Equipment | BM8: =Summary!F36 -> ICT Information Society and Capacity Development | BN8: 6 | BO8: =IF(BP8<>"",MAX(BO$3:BO7)+1,0) -> 6 | BP8: =IF(BN8>PListed,"",Cover!BM8) -> ICT Information Society and Capacity Development | BQ8: 6 | BR8: ICT Information Society and Capacity Development | BW8: Higher education institutions | BX8: Higher education institutions | BY8: Higher education institutions | CS8: Partnerships for a Strong Education System | CT8: Health Systems Reforms Completed | CU8: Identity of all persons in South Africa known and secured | CV8: Reduced workplace conflict and improved collaboration between government, organised business and organised labour | CX8: Coordination, planning, integration and monitoring implementation of strategic integrated projects in the National Infrastructure Plan | CY8: Growth of sustainable rural enterprises and industries, characterised by strong rural-urban linkages, increased investment in agro-processing, trade development and access to local markets and financial services – resulting in rural job creation | DC8: An equitable and just System of Global Governance | DD8: Strengthened accountability to citizens | DE8: Early childhood development provision | DK8: 5 | DL8: 1 | DM8: 0 | DN8: 6 | DO8: A1:BZ10000
B9: =+$AF$23 -> Rezah Atcha | E9: Name: | BD9: 2020/21 | BF9: Higher education institutions | BG9: OUTCOME 7: COMPREHENSIVE RURAL DEVELOPMENT AND LAND REFORM | BJ9: Hand over | BL9: Other | BM9: =Summary!F37 -> 0 | BN9: 7 | BO9: =IF(BP9<>"",MAX(BO$3:BO8)+1,0) -> 0 | BP9: =IF(BN9>PListed,"",Cover!BM9) ->  | BQ9: 7 | BR9: Multiple programmes | BW9: Foreign governments and international organisations | BX9: Foreign governments and international organisations | BY9: Foreign governments and international organisations | CT9: Primary health care teams deployed to provide care to families and communities | CU9: Corruption in the public and private sectors reduced | CV9: Expanded economic opportunities for historically excluded and vulnerable groups | DC9: Strong, mutually beneficial South-South cooperation | DD9: Improved inter-departmental coordination and institutionalisation of long-term planning | DE9: Improve household food and nutrition security | DK9: 6 | DL9: 1 | DM9: 0 | DN9: 7 | DO9: A1:BZ10000
B10: =+$AG$23 -> (012) 315 5287 | E10: Email: | BF10: Foreign governments and international organisations | BG10: OUTCOME 8: SUSTAINABLE HUMAN SETTLEMENTS AND IMPROVED QUALITY OF HOUSEHOLD LIFE | BJ10: Handed over | BM10: =Summary!F38 -> 0 | BN10: 8 | BO10: =IF(BP10<>"",MAX(BO$3:BO9)+1,0) -> 0 | BP10: =IF(BN10>PListed,"",Cover!BM10) ->  | BQ10: 8 | BW10: Public corporations and private enterprises | BX10: Public corporations | BY10: Subsidies on products and production (pc) | CT10: Universal health coverage achieved | CV10: Public employment schemes provide short-term relief for the unemployed and build community solidarity and agency | DC10: Beneficial relations with strategic formations of the North | DD10: Improved mechanisms to prevent corruption in the public service (refer to the chapter on Outcome 3 for further elements of fighting corruption effectively) | DE10: Strengthening of community development interventions to strengthen coordination, integration, planning, monitoring and evaluation of services | DK10: 7 | DL10: 1 | DM10: 0 | DN10: 8 | DO10: A1:BZ10000
B11: =+$AH$23 -> Rezah.Atcha@treasury.gov.za | E11: Telephone number: | BF11: Subsidies on products and production (pc) | BG11: OUTCOME 9: RESPONSIVE, ACCOUNTABLE, EFFECTIVE AND EFFICIENT DEVELOPMENTAL LOCAL GOVERNMENT | BJ11: On hold | BM11: =Summary!F39 -> 0 | BN11: 9 | BO11: =IF(BP11<>"",MAX(BO$3:BO10)+1,0) -> 0 | BP11: =IF(BN11>PListed,"",Cover!BM11) ->  | BQ11: 9 | BW11: Public corporations and private enterprises | BX11: Public corporations | BY11: Other transfers to public corporations | CT11: Posts filled with skilled, committed and competent individuals | DK11: 8 | DL11: 1 | DM11: 0 | DN11: 9 | DO11: A1:BZ10000
B12: =IF(B13="","","OR") -> OR | E12: Mobile (optional): | AJ12: =AA13 -> Data file AENE 2020 | BF12: Other transfers to public corporations | BG12: OUTCOME 10: PROTECT AND ENHANCE OUR ENVIRONMENTAL ASSETS AND NATURAL RESOURCES | BJ12: Complete | BM12: =Summary!F40 -> 0 | BN12: 10 | BO12: =IF(BP12<>"",MAX(BO$3:BO11)+1,0) -> 0 | BP12: =IF(BN12>PListed,"",Cover!BM12) ->  | BQ12: 10 | BW12: Public corporations and private enterprises | BX12: Private enterprises | BY12: Subsidies on products and production (pe) | DK12: 9 | DL12: 1 | DM12: 0 | DN12: 10 | DO12: A1:BZ10000
B13: =+$AI$23 -> Keitumetse Motshegwe | AA13: Data file AENE 2020 | BF13: Subsidies on products and production (pe) | BG13: OUTCOME 11: CREATE A BETTER SOUTH AFRICA, A BETTER AFRICA AND A BETTER WORLD | BJ13: On-going | BM13: =Summary!F41 -> 0 | BN13: 11 | BO13: =IF(BP13<>"",MAX(BO$3:BO12)+1,0) -> 0 | BP13: =IF(BN13>PListed,"",Cover!BM13) ->  | BQ13: 11 | BW13: Public corporations and private enterprises | BX13: Private enterprises | BY13: Other transfers to private enterprises | DK13: 10 | DL13: 1 | DM13: 0 | DN13: 11 | DO13: A1:BZ10000
B14: =+$AJ$23 -> (012) 395 6750 | BF14: Other transfers to private enterprises | BG14: OUTCOME 12: AN EFFICIENT, EFFECTIVE AND DEVELOPMENT ORIENTED PUBLIC SERVICE | BM14: =Summary!F42 -> 0 | BN14: 12 | BO14: =IF(BP14<>"",MAX(BO$3:BO13)+1,0) -> 0 | BP14: =IF(BN14>PListed,"",Cover!BM14) ->  | BQ14: 12 | BW14: Non-profit institutions | BX14: Non-profit institutions | BY14: Non-profit institutions | DK14: 11 | DL14: 1 | DM14: 0 | DN14: 12 | DO14: A1:BZ10000
B15: =+$AK$23 -> keitumetse.motshegwe@treasury.gov.za | BF15: Non-profit institutions | BG15: OUTCOME 13: AN INCLUSIVE AND RESPONSIVE SOCIAL PROTECTION SYSTEM | BM15: =Summary!F43 -> 0 | BN15: 13 | BO15: =IF(BP15<>"",MAX(BO$3:BO14)+1,0) -> 0 | BP15: =IF(BN15>PListed,"",Cover!BM15) ->  | BQ15: 13 | BW15: Households | BX15: Households | BY15: Social benefits | DK15: 12 | DL15: 1 | DM15: 0 | DN15: 13 | DO15: A1:BZ10000
BF16: Social benefits | BG16: OUTCOME 14: NATION BUILDING AND SOCIAL COHESION | BM16: =Summary!F44 -> 0 | BN16: 14 | BO16: =IF(BP16<>"",MAX(BO$3:BO15)+1,0) -> 0 | BP16: =IF(BN16>PListed,"",Cover!BM16) ->  | BQ16: 14 | BW16: Households | BX16: Households | BY16: Other transfers to households | DK16: 13 | DL16: 1 | DM16: 0 | DN16: 14 | DO16: A1:BZ10000
BF17: Other transfers to households | BG17: Departmental mandate | BM17: =Summary!F45 -> 0 | BN17: 15 | BO17: =IF(BP17<>"",MAX(BO$3:BO16)+1,0) -> 0 | BP17: =IF(BN17>PListed,"",Cover!BM17) ->  | BQ17: 15 | DK17: 14 | DL17: 1 | DM17: 0 | DN17: 15 | DO17: A1:BZ10000
B18: Data file to be submitted to: | BO18: =IF(BP18<>"",MAX(BO$3:BO17)+1,0) -> 7 | BP18: Multiple programmes | BQ18: 16 | DK18: 15 | DL18: 1 | DM18: 0 | DN18: 16 | DO18: A1:BZ10000
B19: DatafileNAT@treasury.gov.za | DK19: Direct_charges | DL19: 1 | DM19: 0 | DN19: 17 | DO19: A1:BZ10000
DK20: Performance info | DL20: 1 | DM20: 0 | DN20: 18 | DO20: A1:BZ10000
DK21: PM | DL21: 1 | DM21: 1 | DN21: 19 | DO21: A1:A1
AA22: 25 | AB22: =+MATCH(AC22,$AB$25:$AB$71,0) -> 5 | AC22: 30 | DK22: Receipts | DL22: 1 | DM22: 0 | DN22: 20 | DO22: A1:BZ10002
Z23: =IF(AI23="",1,2) -> 2 | AA23: 5 | AB23: =INDEX((AB$25:AB$71),MATCH($AA$23,$AA$25:$AA$71,1)) -> 30 | AC23: =INDEX((AC$25:AC$71),MATCH($AA$23,$AA$25:$AA$71,1)) -> Communications and Digital Technologies | AF23: =INDEX((AF$25:AF$71),MATCH($AA$23,$AA$25:$AA$71,1)) -> Rezah Atcha | AG23: (012) 315 5287 | AH23: Rezah.Atcha@treasury.gov.za | AI23: Keitumetse Motshegwe | AJ23: (012) 395 6750 | AK23: keitumetse.motshegwe@treasury.gov.za | AP23: 0 | AQ23: 0 | AR23: datafileNat@treasury.gov.za | BE23: NDP Indi | BF23: Payments for Financial Assets | DK23: Expenditure | DL23: 1 | DM23: 0 | DN23: 21 | DO23: A1:BZ10003
AA24: Dept Index No. | AB24: Vote No. | AC24: Department | AD24: Category | AE24: ID1 | AF24: Contact Person1 | AG24: Tel | AH24: email | AI24: Contact Person2 | AJ24: Tel | AK24: email | AO24: ID2 | AP24: Contact Person Expenditure Planning | AQ24: Tel | AR24: email | BE24: National Development Plan | BF24: Forex losses | DK24: Utilisation of savings | DL24: 1 | DM24: 0 | DN24: 22 | DO24: A1:BZ10004
Y25: =IF(AA25>8,AA25+1,AA25) -> 1 | AA25: 1 | AB25: 29 | AC25: Agriculture, Land Reform and Rural Development | AF25: Bothwell Deka | AG25: (012) 395 6784 | AH25: Bothwell.Deka@treasury.gov.za | AI25: Humbelani Ramuedzisi | AJ25: (012) 315 5585 | AK25: Humbelani.Ramuedzisi@treasury.gov.za | AR25: datafileNat@treasury.gov.za | BF25: Thefts and losses | DK25: Virements | DL25: 1 | DM25: 0 | DN25: 23 | DO25: A1:BZ10005
Y26: =IF(AA26>8,AA26+1,AA26) -> 2 | AA26: 2 | AB26: 16 | AC26: Basic Education | AF26: Spencer Janari | AG26: (012) 315 5436 | AH26: Spencer.Janari@treasury.gov.za | AI26: Pindi Masiso | AJ26: (012) 315 5722 | AK26: Pindi.Masiso@treasury.gov.za | AR26: datafileNat@treasury.gov.za | BF26: Extension of loans for policy purposes | DK26: MotivPivot | DL26: 0 | DM26: 0 | DN26: 24 | DO26: A1:A1
Y27: 3 | AA27: 3 | AB27: 42 | AC27: Centre for Public Service Innovation | AF27: George Tembo | AG27: (012) 315 5514 | AH27: George.Tembo@treasury.gov.za | AI27: Uvadhya Singh | AJ27: (012) 315 9030 | AK27: Uvadhya.Singh@treasury.gov.za | AR27: datafileNat@treasury.gov.za | BF27: Purchase of equity | DK27: Checks | DL27: 1 | DM27: 0 | DN27: 25 | DO27: A1:BZ10008
Y28: 4 | AA28: 4 | AB28: 21 | AC28: Civilian Secretariat for the Police Service | AF28: Nompumelelo Radebe | AG28: (012) 315 5957 | AH28: Nompumelelo.Radebe@treasury.gov.za | AI28: Mmathapelo Maphangela | AJ28: (012) 406 9013 | AK28: Mmathapelo.Maphangela@treasury.gov.za | AR28: datafileNat@treasury.gov.za | BF28: Debt take overs | DK28: Metadata | DL28: 1 | DM28: 0 | DN28: 26 | DO28: A1:A1
Y29: 5 | AA29: 5 | AB29: 30 | AC29: Communications and Digital Technologies | AF29: Rezah Atcha | AG29: (012) 315 5287 | AH29: Rezah.Atcha@treasury.gov.za | AI29: Keitumetse Motshegwe | AJ29: (012) 395 6750 | AK29: keitumetse.motshegwe@treasury.gov.za | AR29: datafileNat@treasury.gov.za | BF29: Losses on GFECRA | DK29: VPivot | DL29: 0 | DM29: 0 | DN29: 27 | DO29: A1:A1
Y30: 6 | AA30: 6 | AB30: 3 | AC30: Cooperative Governance | AF30: Misaveni Ngobeni | AG30: (012) 315 5305 | AH30: misaveni.ngobeni@treasury.gov.za | AI30: Millicent Mulaudzi | AJ30: (012) 395 6576 | AK30: Millicent.Mulaudzi@treasury.gov.za | AR30: datafileNat@treasury.gov.za | BF30: Premiums on loan transactions | DK30: DataVire | DL30: 1 | DM30: 1 | DN30: 28 | DO30: A1:A1
Y31: 7 | AA31: 7 | AB31: 22 | AC31: Correctional Services | AF31: Elvis Ramafamba | AG31: (012) 315 5204 | AH31: elvis.ramafamba@treasury.gov.za | AI31: Keabetswe Matlwa | AJ31: (012) 395 6678 | AK31: Keabetswe.Matlwa@treasury.gov.za | AR31: datafileNat@treasury.gov.za | BF31: Other | DK31: ShiftsData | DL31: 1 | DM31: 1 | DN31: 29 | DO31: A1:A1
Y32: 8 | AA32: 8 | AB32: 23 | AC32: Defence | AF32: Mashudu Bidzha | AG32: (012) 315 5344 | AH32: Mashudu.Bidzha@treasury.gov.za | AI32: Lesiba Ledwaba | AJ32: (012) 315 6660 | AK32: Lesiba.Ledwaba@treasury.gov.za | AR32: datafileNat@treasury.gov.za | DK32: VirementsData | DL32: 1 | DM32: 1 | DN32: 30 | DO32: A1:BZ10013
Y33: 10 | AA33: 9 | AB33: 31 | AC33: Employment and Labour | AF33: Judy Naidoo | AG33: (012) 315 5269 | AH33: Judy.Naidoo@treasury.gov.za | AI33: Kismore Mangondo | AJ33: (012) 315 5558 | AK33: kismore.mangondo@treasury.gov.za | AR33: datafileNat@treasury.gov.za | DK33: S&E data | DL33: 1 | DM33: 1 | DN33: 31 | DO33: A1:A1
Y34: 11 | AA34: 10 | AB34: 32 | AC34: Environment, Forestry and Fisheries | AF34: Gcobisa Magazi | AG34: (012) 315 5320 | AH34: Gcobisa.Magazi@treasury.gov.za | AI34: Ashley Ramasimu | AJ34: (012) 315 5166 | AK34: Ashley.Ramasimu@treasury.gov.za | AR34: datafileNat@treasury.gov.za | DL34: 0 | DM34: 0 | DN34: 32
Y35: 12 | AA35: 11 | AB35: 4 | AC35: Government Communication and Information System | AF35: Mokgatla Tema | AG35: (012) 315 5948 | AH35: Mokgatla.Tema@treasury.gov.za | AI35: Viwe Sobudula | AJ35: (0)12 315 5015 | AK35: Viwe.Sobudula@treasury.gov.za | AR35: datafileNat@treasury.gov.za | DL35: 0 | DM35: 0 | DN35: 33
Y36: 13 | AA36: 12 | AB36: 18 | AC36: Health | AF36: Refiloe Thokoa | AG36: (012) 395 6559 | AH36: Refiloe.thokoa@treasury.gov.za | AI36: Jonatan Daven | AJ36: (012) 315 6711 | AK36: Jonatan.Daven@treasury.gov.za | AR36: datafileNat@treasury.gov.za | DL36: 0 | DM36: 0 | DN36: 34
Y37: 14 | AA37: 13 | AB37: 17 | AC37: Higher Education and Training | AF37: Letsepa Pakkies | AG37: (012) 315 6656 | AH37: Letsepa.Pakkies@treasury.gov.za | AI37: Barileng Sape | AJ37: (012) 406 9069 | AK37: barileng.sape@treasury.gov.za | AR37: datafileNat@treasury.gov.za | DL37: 0 | DM37: 0 | DN37: 35
Y38: 15 | AA38: 14 | AB38: 5 | AC38: Home Affairs | AF38: Timothy Murwa | AG38: (012) 315 5002 | AH38: Timothy.Murwa@treasury.gov.za | AI38: Isaac Mabena | AJ38: (012) 315 5582 | AK38: Isaac.Mabena@treasury.gov.za | AR38: datafileNat@treasury.gov.za | DL38: 0 | DM38: 0 | DN38: 36
Y39: 16 | AA39: 15 | AB39: 33 | AC39: Human Settlements | AF39: James Archer | AG39: (012) 395 6736 | AH39: James.Archer@treasury.gov.za | AI39: Lindiwe Ngcongwane | AJ39: (012) 315 5357 | AK39: Lindiwe.Ngcongwane@treasury.gov.za | AR39: datafileNat@treasury.gov.za | DL39: 0 | DM39: 0 | DN39: 37
Y40: 17 | AA40: 16 | AB40: 24 | AC40: Independent Police Investigative Directorate | AF40: Nompumelelo Radebe | AG40: (012) 315 5957 | AH40: Nompumelelo.Radebe@treasury.gov.za | AI40: Mmathapelo Maphangela | AJ40: (012) 406 9013 | AK40: Mmathapelo.Maphangela@treasury.gov.za | AR40: datafileNat@treasury.gov.za | DL40: 0 | DM40: 0 | DN40: 38
Y41: 18 | AA41: 17 | AB41: 6 | AC41: International Relations and Cooperation | AF41: George Tembo | AG41: (012) 315 5514 | AH41: George.Tembo@treasury.gov.za | AI41: Mercy Mhlophe | AJ41: (012) 315 5598 | AK41: mercy.mhlope@treasury.gov.za | AR41: datafileNat@treasury.gov.za | DL41: 0 | DM41: 0 | DN41: 39
Y42: 19 | AA42: 18 | AB42: 25 | AC42: Justice and Constitutional Development | AF42: Werner Krause | AG42: (012) 315 5211 | AH42: werner.krause@treasury.gov.za | AI42: Maggy Mokoka | AJ42: (012) 315 5468 | AK42: Maggy.Mokoka@treasury.gov.za | AR42: datafileNat@treasury.gov.za | DL42: 0 | DM42: 0 | DN42: 40
Y43: 20 | AA43: 19 | AB43: 26 | AC43: Military Veterans | AF43: Mashudu Bidzha | AG43: (012) 315 5344 | AH43: Mashudu.Bidzha@treasury.gov.za | AI43: Lesiba Ledwaba | AJ43: (012) 315 6660 | AK43: Lesiba.Ledwaba@treasury.gov.za | AR43: datafileNat@treasury.gov.za | DL43: 0 | DM43: 0 | DN43: 41
Y44: 21 | AA44: 20 | AB44: 34 | AC44: Mineral Resources and Energy | AF44: Rezah Atcha | AG44: (012) 315 5287 | AH44: Rezah.Atcha@treasury.gov.za | AI44: Nomagugu Madikane | AJ44: (012) 315 5312 | AK44: Nomagugu.Madikane@treasury.gov.za | AR44: datafileNat@treasury.gov.za | DL44: 0 | DM44: 0 | DN44: 42
Y45: 22 | AA45: 21 | AB45: 7 | AC45: National School of Government | AF45: George Tembo | AG45: (012) 315 5514 | AH45: George.Tembo@treasury.gov.za | AI45: Uvadhya Singh | AJ45: (012) 315 9030 | AK45: Uvadhya.Singh@treasury.gov.za | AR45: datafileNat@treasury.gov.za | DL45: 0 | DM45: 0 | DN45: 43
Y46: 23 | AA46: 22 | AB46: 8 | AC46: National Treasury | AF46: Mokgatla Tema | AG46: (012) 315 5948 | AH46: Mokgatla.Tema@treasury.gov.za | AI46: Rhoda Marais | AJ46: (012) 315 5906 | AK46: Rhoda.Marais@treasury.gov.za | AR46: datafileNat@treasury.gov.za | DL46: 0 | DM46: 0 | DN46: 44
Y47: 24 | AA47: 23 | AB47: 27 | AC47: Office of the Chief Justice | AF47: Elvis Ramafamba | AG47: (012) 315 5204 | AH47: elvis.ramafamba@treasury.gov.za | AI47: Keabetswe Matlwa | AJ47: (012) 395 6678 | AK47: Keabetswe.Matlwa@treasury.gov.za | AR47: datafileNat@treasury.gov.za | DL47: 0 | DM47: 0 | DN47: 45
Y48: 25 | AA48: 24 | AB48: 2 | AC48: Parliament | AF48: Timothy Murwa | AG48: (012) 315 5002 | AH48: Timothy.Murwa@treasury.gov.za | AI48: Isaac Mabena | AJ48: (012) 315 5582 | AK48: Isaac.Mabena@treasury.gov.za | AR48: datafileNat@treasury.gov.za | DL48: 0 | DM48: 0 | DN48: 46
Y49: 26 | AA49: 25 | AB49: 9 | AC49: Planning, Monitoring and Evaluation | AF49: Mokgatla Tema | AG49: (012) 315 5948 | AH49: Mokgatla.Tema@treasury.gov.za | AI49: Viwe Sobudula | AJ49: (0)12 315 5015 | AK49: Viwe.Sobudula@treasury.gov.za | AR49: datafileNat@treasury.gov.za | BF49: Chapter Tables | DL49: 0 | DM49: 0 | DN49: 47
Y50: 27 | AA50: 26 | AB50: 28 | AC50: Police | AF50: Nompumelelo Radebe | AG50: (012) 315 5957 | AH50: Nompumelelo.Radebe@treasury.gov.za | AI50: Mmathapelo Maphangela | AJ50: (012) 406 9013 | AK50: Mmathapelo.Maphangela@treasury.gov.za | AR50: datafileNat@treasury.gov.za | DL50: 0 | DM50: 0 | DN50: 48
Y51: 28 | AA51: 27 | AB51: 10 | AC51: Public Enterprises | AF51: Isaac Kurasha | AG51: (012) 315 5213 | AH51: isaac.kurasha@treasury.gov.za | AI51: Ntandokazi Makaula | AJ51: (012) 395 6667 | AK51: Ntandokazi.Makaula@treasury.gov.za | AR51: datafileNat@treasury.gov.za | DL51: 0 | DM51: 0 | DN51: 49
Y52: 29 | AA52: 28 | AB52: 11 | AC52: Public Service and Administration | AF52: George Tembo | AG52: (012) 315 5514 | AH52: George.Tembo@treasury.gov.za | AI52: Uvadhya Singh | AJ52: (012) 315 9030 | AK52: Uvadhya.Singh@treasury.gov.za | AR52: datafileNat@treasury.gov.za | DL52: 0 | DM52: 0 | DN52: 50
Y53: 30 | AA53: 29 | AB53: 12 | AC53: Public Service Commission | AF53: George Tembo | AG53: (012) 315 5514 | AH53: George.Tembo@treasury.gov.za | AI53: Uvadhya Singh | AJ53: (012) 315 9030 | AK53: Uvadhya.Singh@treasury.gov.za | AR53: datafileNat@treasury.gov.za | DL53: 0 | DM53: 0 | DN53: 51
Y54: 31 | AA54: 30 | AB54: 13 | AC54: Public Works and Infrastructure | AF54: George Tembo | AG54: (012) 315 5514 | AH54: George.Tembo@treasury.gov.za | AI54: Mercy Mhlophe | AJ54: (012) 315 5598 | AK54: mercy.mhlope@treasury.gov.za | AR54: datafileNat@treasury.gov.za | DL54: 0 | DM54: 0 | DN54: 52
Y55: 32 | AA55: 31 | AB55: 35 | AC55: Science and Innovation | AF55: Gcobisa Magazi | AG55: (012) 315 5320 | AH55: Gcobisa.Magazi@treasury.gov.za | AI55: Thabiso Molewa | AJ55: (012) 395 6780 | AK55: Thabiso.Molewa@treasury.gov.za | AR55: datafileNat@treasury.gov.za | DL55: 0 | DM55: 0 | DN55: 53
Y56: 33 | AA56: 32 | AB56: 36 | AC56: Small Business Development | AF56: Isaac Kurasha | AG56: (012) 315 5213 | AH56: isaac.kurasha@treasury.gov.za | AI56: Rudzani Sikhwari | AJ56: (012) 315 5823 | AK56: rudzani.sikhwari@treasury.gov.za | AR56: datafileNat@treasury.gov.za
Y57: 34 | AA57: 33 | AB57: 19 | AC57: Social Development | AF57: Pebetse Maleka | AG57: (012) 315 5566 | AH57: Pebetse.Maleka@treasury.gov.za | AI57: Yusuf Mayet | AJ57: (012) 315 5189 | AK57: Yusuf.Mayet@treasury.gov.za | AR57: datafileNat@treasury.gov.za
Y58: 35 | AA58: 34 | AB58: 37 | AC58: Sports, Arts and Culture | AF58: Judy Naidoo | AG58: (012) 315 5269 | AH58: Judy.Naidoo@treasury.gov.za | AI58: Spencer Janari | AJ58: (012) 315 5436 | AK58: Spencer.Janari@treasury.gov.za | AR58: datafileNat@treasury.gov.za
Y59: 36 | AA59: 35 | AB59: 14 | AC59: Statistics South Africa | AF59: Mokgatla Tema | AG59: (012) 315 5948 | AH59: Mokgatla.Tema@treasury.gov.za | AI59: Viwe Sobudula | AJ59: (0)12 315 5015 | AK59: Viwe.Sobudula@treasury.gov.za | AR59: datafileNat@treasury.gov.za
Y60: 37 | AA60: 36 | AB60: 1 | AC60: The Presidency | AF60: Timothy Murwa | AG60: (012) 315 5002 | AH60: Timothy.Murwa@treasury.gov.za | AI60: Yamkela Ngewu | AJ60: (012) 406 9078 | AK60: Yamkela.Ngewu@treasury.gov.za | AR60: datafileNat@treasury.gov.za
Y61: 38 | AA61: 37 | AB61: 38 | AC61: Tourism | AF61: Gcobisa Magazi | AG61: (012) 315 5320 | AH61: Gcobisa.Magazi@treasury.gov.za | AI61: Ashley Ramasimu | AJ61: (012) 315 5166 | AK61: Ashley.Ramasimu@treasury.gov.za | AR61: datafileNat@treasury.gov.za
Y62: 39 | AA62: 38 | AB62: 39 | AC62: Trade, Industry and Competition | AF62: Isaac Kurasha | AG62: (012) 315 5213 | AH62: isaac.kurasha@treasury.gov.za | AI62: Rudzani Sikhwari | AJ62: (012) 315 5823 | AK62: rudzani.sikhwari@treasury.gov.za | AR62: datafileNat@treasury.gov.za
Y63: 40 | AA63: 39 | AB63: 15 | AC63: Traditional Affairs | AF63: Misaveni Ngobeni | AG63: (012) 315 5305 | AH63: misaveni.ngobeni@treasury.gov.za | AI63: Millicent Mulaudzi | AJ63: (012) 395 6576 | AK63: Millicent.Mulaudzi@treasury.gov.za | AR63: datafileNat@treasury.gov.za
Y64: 41 | AA64: 40 | AB64: 40 | AC64: Transport | AF64: Dumebi Ubogu | AG64: (012) 315 5077 | AH64: Dumebi.Ubogu@treasury.gov.za | AI64: Luyolo Ntlangula | AJ64: (012) 315-5571 | AK64: luyolo.ntangula@treasury.gov.za | AR64: datafileNat@treasury.gov.za
Y65: 42 | AA65: 41 | AB65: 41 | AC65: Water and Sanitation | AF65: Misaveni Ngobeni | AG65: (012) 315 5305 | AH65: misaveni.ngobeni@treasury.gov.za | AI65: Iqbal Mahomed Alli | AJ65: (012) 315 5809 | AK65: Iqbal.Mahomed-Alli@treasury.gov.za | AR65: datafileNat@treasury.gov.za
Y66: 43 | AA66: 42 | AB66: 20 | AC66: Women, Youth and Persons with Disabilities | AF66: Pebetse Maleka | AG66: (012) 315 5566 | AH66: Pebetse.Maleka@treasury.gov.za | AI66: Lindi Mzankomo | AJ66: (012) 315 5256 | AK66: Lindi.Mzankomo@treasury.gov.za | AR66: datafileNat@treasury.gov.za
Y67: 0 | AR67: datafileNat@treasury.gov.za
Y68: 0 | AR68: datafileNat@treasury.gov.za
Y69: 0 | AR69: datafileNat@treasury.gov.za
Y70: 0 | AR70: datafileNat@treasury.gov.za
Y71: 0 | AR71: datafileNat@treasury.gov.za

Sheet Summary
A1: A | B1: B | C1: C | D1: D | E1: E | F1: F | G1: G | K1: H | L1: I | M1: J | N1: K | O1: L | P1: M | Q1: N | R1: O | S1: P | T1: Q | W1: R | X1: S | Y1: T
A3: P's created | B3: =COUNTIF(B31:B45,"<>0") -> 6 | BW3: SheetList
A4: P's listed | B4: =COUNTIF(C31:C45,"<>0") -> 6 | BW4: 1
A5: P'Var | B5: =B4-B3 -> 0 | F5: =IF(G5="","",IF($B$5>0,"No. of programme units to create","No. of programme units to delete")) ->  | G5: =IF(B4-B3=0,"",IF(B4-B3<0,B3-B4,B4-B3)) ->  | BW5: 2
A6: Check | B6: =B4-MAX(B31:B45) -> 0 | F6: Vote no. | G6: =MyVoteNo -> 30 | BW6: 3
A7: Check2 | B7: =MAX(D58:D62) -> 5 | F7: Department name: | G7: =MyDeptName -> Communications and Digital Technologies | BW7: 4
A8: =COUNTIF(K145:Y145,">0.5")+COUNTIF(K145:Y145,"<-0.49999999999") -> 0 | F8: Executive Authority: | G8: Ms Stella Ndabeni-Abrahams | BW8: 5
A9: 0 | F9: Accounting Officer: | G9: Mr Robert Nkuna | BW9: 6
A10: 0 | BW10: 7
A11: 0 | F11: Purpose: | BW11: 8
A12: 1 | F12: Create an enabling environment for inclusive growth in the ICT sector by developing policies and legislation that promote infrastructure investment and socioeconomic development. | BW12: 9
A13: 0 | BW13: 10
A14: 0 | BW14: 11
A15: 0 | BW15: 12
A16: 0 | BW16: 13
A17: 0 | BW17: 14
A18: 0 | BW18: 15
A19: 0 | BW19: Direct_charges
A20: 0
A21: 0
A22: 0
A23: 0
A24: 0
F26: =SUM(IF(LEN(F30:F59)>1,1,0)) -> 12 | H26: =+MyYearP3 -> 2020/21
K27: Adjustments appropriation | M27: Special Adjustments Appropriation
F28: =IF(COUNTIF(I145:X145,">0.5")+COUNTIF(I145:X145,"<-0.49999")<>0,"Inconsistencies between programmes and economic classification","") ->  | I28: Voted (Main appropriation) | J28: Special appropriation | K28: Roll-overs | L28: Unforeseeable/ unavoidable | M28: Utilisation of unspend funds Virements & Shifts | N28: Significant and unforeseeable economic and financial events | P28: Shifting of funds following function shift | R28: Self-financing | S28: Declared unspent funds | T28: Unforeseeable and unavoidable expenditure | U28: Announced in the budget speech | V28: Section 16 of the PFMA | W28: Total special adjustments appropriation | X28: Adjusted appropriation
C29: =SUM(C58:C62) -> 0 | F29: R thousand | N29: Suspension of funds | O29: Allocation of funds | P29: Within the vote | Q29: Between votes
A30: 1 | B30: Sht format | C30: Name | F30: Programmes and direct charges
A31: 1 | B31: =IF('1'!$F$6<>"",E31,0) -> 1 | C31: =IF(LEN(F31)>2,1,0) -> 1 | D31: =IF(OR(AND(B31=0,C31<>0),AND(B31<>0,C31=0)),1,0) -> 0 | E31: 1 | F31: Administration | G31: =IF(AND(F31="",COUNTA(F31:F$45)>0),"Please fill Subprogrammes from the top","") ->  | I31: =IF(ISERROR('1'!I$72),0,'1'!I$72) -> 313667 | J31: =IF(ISERROR('1'!J$72),0,'1'!J$72) -> 0 | K31: =IF(ISERROR('1'!K$72),0,'1'!K$72) -> 0 | L31: =IF(ISERROR('1'!L$72),0,'1'!L$72) -> 0 | M31: =IF(ISERROR('1'!M$72),0,'1'!M$72) -> 0 | N31: =IF(ISERROR('1'!N$72),0,'1'!N$72) -> 0 | O31: =IF(ISERROR('1'!O$72),0,'1'!O$72) -> 0 | P31: =IF(ISERROR('1'!P$72),0,'1'!P$72) -> 0 | Q31: =IF(ISERROR('1'!Q$72),0,'1'!Q$72) -> 0 | R31: =IF(ISERROR('1'!R$72),0,'1'!R$72) -> 0 | S31: =IF(ISERROR('1'!S$72),0,'1'!S$72) -> 0 | T31: =IF(ISERROR('1'!T$72),0,'1'!T$72) -> 0 | U31: =IF(ISERROR('1'!U$72),0,'1'!U$72) -> 0 | V31: =IF(ISERROR('1'!V$72),0,'1'!V$72) -> 0 | W31: =IF(ISERROR('1'!W$72),0,'1'!W$72) -> 0 | X31: =IF(ISERROR('1'!X$72),0,'1'!X$72) -> 313667
A32: =IF(COUNTA(K32:Y32)-COUNTIF(K32:Y32,"0")<>0,1,0) -> 1 | B32: =IF('2'!$F$6<>"",E32,0) -> 2 | C32: =IF(LEN(F32)>2,1,0) -> 1 | D32: =IF(OR(AND(B32=0,C32<>0),AND(B32<>0,C32=0)),1,0) -> 0 | E32: 2 | F32: ICT International Relations and Affairs | G32: =IF(AND(F32="",COUNTA(F32:F$45)>0),"Please fill Subprogrammes from the top","") ->  | I32: =IF(ISERROR('2'!I$72),0,'2'!I$72) -> 60835 | J32: =IF(ISERROR('2'!J$72),0,'2'!J$72) -> 0 | K32: =IF(ISERROR('2'!K$72),0,'2'!K$72) -> 0 | L32: =IF(ISERROR('2'!L$72),0,'2'!L$72) -> 0 | M32: =IF(ISERROR('2'!M$72),0,'2'!M$72) -> 0 | N32: =IF(ISERROR('2'!N$72),0,'2'!N$72) -> 0 | O32: =IF(ISERROR('2'!O$72),0,'2'!O$72) -> 0 | P32: =IF(ISERROR('2'!P$72),0,'2'!P$72) -> 0 | Q32: =IF(ISERROR('2'!Q$72),0,'2'!Q$72) -> 0 | R32: =IF(ISERROR('2'!R$72),0,'2'!R$72) -> 0 | S32: =IF(ISERROR('2'!S$72),0,'2'!S$72) -> 0 | T32: =IF(ISERROR('2'!T$72),0,'2'!T$72) -> 0 | U32: =IF(ISERROR('2'!U$72),0,'2'!U$72) -> 0 | V32: =IF(ISERROR('2'!V$72),0,'2'!V$72) -> 0 | W32: =IF(ISERROR('2'!W$72),0,'2'!W$72) -> 0 | X32: =IF(ISERROR('2'!X$72),0,'2'!X$72) -> 60835
A33: =IF(COUNTA(K33:Y33)-COUNTIF(K33:Y33,"0")<>0,1,0) -> 1 | B33: =IF('3'!$F$6<>"",E33,0) -> 3 | C33: 1 | D33: 0 | E33: 3 | F33: ICT Policy Development and Research | G33: =IF(AND(F33="",COUNTA(F33:F$45)>0),"Please fill Subprogrammes from the top","") ->  | I33: =IF(ISERROR('3'!I$72),0,'3'!I$72) -> 69792 | J33: =IF(ISERROR('3'!J$72),0,'3'!J$72) -> 0 | K33: =IF(ISERROR('3'!K$72),0,'3'!K$72) -> 0 | L33: =IF(ISERROR('3'!L$72),0,'3'!L$72) -> 0 | M33: =IF(ISERROR('3'!M$72),0,'3'!M$72) -> 0 | N33: =IF(ISERROR('3'!N$72),0,'3'!N$72) -> 0 | O33: =IF(ISERROR('3'!O$72),0,'3'!O$72) -> 0 | P33: =IF(ISERROR('3'!P$72),0,'3'!P$72) -> 0 | Q33: =IF(ISERROR('3'!Q$72),0,'3'!Q$72) -> 0 | R33: =IF(ISERROR('3'!R$72),0,'3'!R$72) -> 0 | S33: =IF(ISERROR('3'!S$72),0,'3'!S$72) -> 0 | T33: =IF(ISERROR('3'!T$72),0,'3'!T$72) -> 0 | U33: =IF(ISERROR('3'!U$72),0,'3'!U$72) -> 0 | V33: =IF(ISERROR('3'!V$72),0,'3'!V$72) -> 0 | W33: =IF(ISERROR('3'!W$72),0,'3'!W$72) -> 0 | X33: =IF(ISERROR('3'!X$72),0,'3'!X$72) -> 69792
A34: 1 | B34: =IF('4'!$F$6<>"",E34,0) -> 4 | C34: 1 | D34: 0 | E34: 4 | F34: ICT Enterprise and Public Entity Oversight | G34: =IF(AND(F34="",COUNTA(F34:F$45)>0),"Please fill Subprogrammes from the top","") ->  | I34: =IF(ISERROR('4'!I$72),0,'4'!I$72) -> 1750178 | J34: =IF(ISERROR('4'!J$72),0,'4'!J$72) -> 0 | K34: =IF(ISERROR('4'!K$72),0,'4'!K$72) -> 0 | L34: =IF(ISERROR('4'!L$72),0,'4'!L$72) -> 0 | M34: =IF(ISERROR('4'!M$72),0,'4'!M$72) -> 0 | N34: =IF(ISERROR('4'!N$72),0,'4'!N$72) -> 0 | O34: =IF(ISERROR('4'!O$72),0,'4'!O$72) -> 0 | P34: =IF(ISERROR('4'!P$72),0,'4'!P$72) -> 0 | Q34: =IF(ISERROR('4'!Q$72),0,'4'!Q$72) -> 0 | R34: =IF(ISERROR('4'!R$72),0,'4'!R$72) -> 0 | S34: =IF(ISERROR('4'!S$72),0,'4'!S$72) -> 0 | T34: =IF(ISERROR('4'!T$72),0,'4'!T$72) -> 0 | U34: =IF(ISERROR('4'!U$72),0,'4'!U$72) -> 0 | V34: =IF(ISERROR('4'!V$72),0,'4'!V$72) -> 0 | W34: =IF(ISERROR('4'!W$72),0,'4'!W$72) -> 0 | X34: =IF(ISERROR('4'!X$72),0,'4'!X$72) -> 1750178
A35: 1 | B35: =IF('5'!$F$6<>"",E35,0) -> 5 | C35: 1 | D35: 0 | E35: 5 | F35: ICT Infrastructure Development and Support | G35: =IF(AND(F35="",COUNTA(F35:F$45)>0),"Please fill Subprogrammes from the top","") ->  | I35: =IF(ISERROR('5'!I$72),0,'5'!I$72) -> 1127517 | J35: =IF(ISERROR('5'!J$72),0,'5'!J$72) -> 0 | K35: =IF(ISERROR('5'!K$72),0,'5'!K$72) -> 0 | L35: =IF(ISERROR('5'!L$72),0,'5'!L$72) -> 0 | M35: =IF(ISERROR('5'!M$72),0,'5'!M$72) -> 0 | N35: =IF(ISERROR('5'!N$72),0,'5'!N$72) -> 0 | O35: =IF(ISERROR('5'!O$72),0,'5'!O$72) -> 0 | P35: =IF(ISERROR('5'!P$72),0,'5'!P$72) -> 0 | Q35: =IF(ISERROR('5'!Q$72),0,'5'!Q$72) -> 0 | R35: =IF(ISERROR('5'!R$72),0,'5'!R$72) -> 0 | S35: =IF(ISERROR('5'!S$72),0,'5'!S$72) -> 0 | T35: =IF(ISERROR('5'!T$72),0,'5'!T$72) -> 0 | U35: =IF(ISERROR('5'!U$72),0,'5'!U$72) -> 0 | V35: =IF(ISERROR('5'!V$72),0,'5'!V$72) -> 0 | W35: =IF(ISERROR('5'!W$72),0,'5'!W$72) -> 0 | X35: =IF(ISERROR('5'!X$72),0,'5'!X$72) -> 1127517
A36: 1 | B36: =IF('6'!$F$6<>"",E36,0) -> 6 | C36: 1 | D36: 0 | E36: 6 | F36: ICT Information Society and Capacity Development | G36: =IF(AND(F36="",COUNTA(F36:F$45)>0),"Please fill Subprogrammes from the top","") ->  | I36: =IF(ISERROR('6'!I$72),0,'6'!I$72) -> 72548 | J36: =IF(ISERROR('6'!J$72),0,'6'!J$72) -> 0 | K36: =IF(ISERROR('6'!K$72),0,'6'!K$72) -> 0 | L36: =IF(ISERROR('6'!L$72),0,'6'!L$72) -> 0 | M36: =IF(ISERROR('6'!M$72),0,'6'!M$72) -> 0 | N36: =IF(ISERROR('6'!N$72),0,'6'!N$72) -> 0 | O36: =IF(ISERROR('6'!O$72),0,'6'!O$72) -> 0 | P36: =IF(ISERROR('6'!P$72),0,'6'!P$72) -> 0 | Q36: =IF(ISERROR('6'!Q$72),0,'6'!Q$72) -> 0 | R36: =IF(ISERROR('6'!R$72),0,'6'!R$72) -> 0 | S36: =IF(ISERROR('6'!S$72),0,'6'!S$72) -> 0 | T36: =IF(ISERROR('6'!T$72),0,'6'!T$72) -> 0 | U36: =IF(ISERROR('6'!U$72),0,'6'!U$72) -> 0 | V36: =IF(ISERROR('6'!V$72),0,'6'!V$72) -> 0 | W36: =IF(ISERROR('6'!W$72),0,'6'!W$72) -> 0 | X36: =IF(ISERROR('6'!X$72),0,'6'!X$72) -> 72548
A37: 0 | B37: =IF('7'!$F$6<>"",E37,0) -> 0 | C37: 0 | D37: 0 | E37: 7 | G37: =IF(AND(F37="",COUNTA(F37:F$45)>0),"Please fill Subprogrammes from the top","") ->  | I37: =IF(ISERROR('7'!I$72),0,'7'!I$72) -> 0 | J37: =IF(ISERROR('7'!J$72),0,'7'!J$72) -> 0 | K37: =IF(ISERROR('7'!K$72),0,'7'!K$72) -> 0 | L37: =IF(ISERROR('7'!L$72),0,'7'!L$72) -> 0 | M37: =IF(ISERROR('7'!M$72),0,'7'!M$72) -> 0 | N37: =IF(ISERROR('7'!N$72),0,'7'!N$72) -> 0 | O37: =IF(ISERROR('7'!O$72),0,'7'!O$72) -> 0 | P37: =IF(ISERROR('7'!P$72),0,'7'!P$72) -> 0 | Q37: =IF(ISERROR('7'!Q$72),0,'7'!Q$72) -> 0 | R37: =IF(ISERROR('7'!R$72),0,'7'!R$72) -> 0 | S37: =IF(ISERROR('7'!S$72),0,'7'!S$72) -> 0 | T37: =IF(ISERROR('7'!T$72),0,'7'!T$72) -> 0 | U37: =IF(ISERROR('7'!U$72),0,'7'!U$72) -> 0 | V37: =IF(ISERROR('7'!V$72),0,'7'!V$72) -> 0 | W37: =IF(ISERROR('7'!W$72),0,'7'!W$72) -> 0 | X37: =IF(ISERROR('7'!X$72),0,'7'!X$72) -> 0
A38: 0 | B38: =IF('8'!$F$6<>"",E38,0) -> 0 | C38: 0 | D38: 0 | E38: 8 | G38: =IF(AND(F38="",COUNTA(F38:F$45)>0),"Please fill Subprogrammes from the top","") ->  | I38: =IF(ISERROR('8'!I$72),0,'8'!I$72) -> 0 | J38: =IF(ISERROR('8'!J$72),0,'8'!J$72) -> 0 | K38: =IF(ISERROR('8'!K$72),0,'8'!K$72) -> 0 | L38: =IF(ISERROR('8'!L$72),0,'8'!L$72) -> 0 | M38: =IF(ISERROR('8'!M$72),0,'8'!M$72) -> 0 | N38: =IF(ISERROR('8'!N$72),0,'8'!N$72) -> 0 | O38: =IF(ISERROR('8'!O$72),0,'8'!O$72) -> 0 | P38: =IF(ISERROR('8'!P$72),0,'8'!P$72) -> 0 | Q38: =IF(ISERROR('8'!Q$72),0,'8'!Q$72) -> 0 | R38: =IF(ISERROR('8'!R$72),0,'8'!R$72) -> 0 | S38: =IF(ISERROR('8'!S$72),0,'8'!S$72) -> 0 | T38: =IF(ISERROR('8'!T$72),0,'8'!T$72) -> 0 | U38: =IF(ISERROR('8'!U$72),0,'8'!U$72) -> 0 | V38: =IF(ISERROR('8'!V$72),0,'8'!V$72) -> 0 | W38: =IF(ISERROR('8'!W$72),0,'8'!W$72) -> 0 | X38: =IF(ISERROR('8'!X$72),0,'8'!X$72) -> 0
A39: 0 | B39: =IF('9'!$F$6<>"",E39,0) -> 0 | C39: 0 | D39: 0 | E39: 9 | G39: =IF(AND(F39="",COUNTA(F39:F$45)>0),"Please fill Subprogrammes from the top","") ->  | I39: =IF(ISERROR('9'!I$72),0,'9'!I$72) -> 0 | J39: =IF(ISERROR('9'!J$72),0,'9'!J$72) -> 0 | K39: =IF(ISERROR('9'!K$72),0,'9'!K$72) -> 0 | L39: =IF(ISERROR('9'!L$72),0,'9'!L$72) -> 0 | M39: =IF(ISERROR('9'!M$72),0,'9'!M$72) -> 0 | N39: =IF(ISERROR('9'!N$72),0,'9'!N$72) -> 0 | O39: =IF(ISERROR('9'!O$72),0,'9'!O$72) -> 0 | P39: =IF(ISERROR('9'!P$72),0,'9'!P$72) -> 0 | Q39: =IF(ISERROR('9'!Q$72),0,'9'!Q$72) -> 0 | R39: =IF(ISERROR('9'!R$72),0,'9'!R$72) -> 0 | S39: =IF(ISERROR('9'!S$72),0,'9'!S$72) -> 0 | T39: =IF(ISERROR('9'!T$72),0,'9'!T$72) -> 0 | U39: =IF(ISERROR('9'!U$72),0,'9'!U$72) -> 0 | V39: =IF(ISERROR('9'!V$72),0,'9'!V$72) -> 0 | W39: =IF(ISERROR('9'!W$72),0,'9'!W$72) -> 0 | X39: =IF(ISERROR('9'!X$72),0,'9'!X$72) -> 0
A40: 0 | B40: =IF('10'!$F$6<>"",E40,0) -> 0 | C40: 0 | D40: 0 | E40: 10 | G40: =IF(AND(F40="",COUNTA(F40:F$45)>0),"Please fill Subprogrammes from the top","") ->  | I40: =IF(ISERROR('10'!I$72),0,'10'!I$72) -> 0 | J40: =IF(ISERROR('10'!J$72),0,'10'!J$72) -> 0 | K40: =IF(ISERROR('10'!K$72),0,'10'!K$72) -> 0 | L40: =IF(ISERROR('10'!L$72),0,'10'!L$72) -> 0 | M40: =IF(ISERROR('10'!M$72),0,'10'!M$72) -> 0 | N40: =IF(ISERROR('10'!N$72),0,'10'!N$72) -> 0 | O40: =IF(ISERROR('10'!O$72),0,'10'!O$72) -> 0 | P40: =IF(ISERROR('10'!P$72),0,'10'!P$72) -> 0 | Q40: =IF(ISERROR('10'!Q$72),0,'10'!Q$72) -> 0 | R40: =IF(ISERROR('10'!R$72),0,'10'!R$72) -> 0 | S40: =IF(ISERROR('10'!S$72),0,'10'!S$72) -> 0 | T40: =IF(ISERROR('10'!T$72),0,'10'!T$72) -> 0 | U40: =IF(ISERROR('10'!U$72),0,'10'!U$72) -> 0 | V40: =IF(ISERROR('10'!V$72),0,'10'!V$72) -> 0 | W40: =IF(ISERROR('10'!W$72),0,'10'!W$72) -> 0 | X40: =IF(ISERROR('10'!X$72),0,'10'!X$72) -> 0
A41: 0 | B41: =IF('11'!$F$6<>"",E41,0) -> 0 | C41: 0 | D41: 0 | E41: 11 | G41: =IF(AND(F41="",COUNTA(F41:F$45)>0),"Please fill Subprogrammes from the top","") ->  | I41: =IF(ISERROR('11'!I$72),0,'11'!I$72) -> 0 | J41: =IF(ISERROR('11'!J$72),0,'11'!J$72) -> 0 | K41: =IF(ISERROR('11'!K$72),0,'11'!K$72) -> 0 | L41: =IF(ISERROR('11'!L$72),0,'11'!L$72) -> 0 | M41: =IF(ISERROR('11'!M$72),0,'11'!M$72) -> 0 | N41: =IF(ISERROR('11'!N$72),0,'11'!N$72) -> 0 | O41: =IF(ISERROR('11'!O$72),0,'11'!O$72) -> 0 | P41: =IF(ISERROR('11'!P$72),0,'11'!P$72) -> 0 | Q41: =IF(ISERROR('11'!Q$72),0,'11'!Q$72) -> 0 | R41: =IF(ISERROR('11'!R$72),0,'11'!R$72) -> 0 | S41: =IF(ISERROR('11'!S$72),0,'11'!S$72) -> 0 | T41: =IF(ISERROR('11'!T$72),0,'11'!T$72) -> 0 | U41: =IF(ISERROR('11'!U$72),0,'11'!U$72) -> 0 | V41: =IF(ISERROR('11'!V$72),0,'11'!V$72) -> 0 | W41: =IF(ISERROR('11'!W$72),0,'11'!W$72) -> 0 | X41: =IF(ISERROR('11'!X$72),0,'11'!X$72) -> 0
A42: 0 | B42: =IF('12'!$F$6<>"",E42,0) -> 0 | C42: 0 | D42: 0 | E42: 12 | G42: =IF(AND(F42="",COUNTA(F42:F$45)>0),"Please fill Subprogrammes from the top","") ->  | I42: =IF(ISERROR('12'!I$72),0,'12'!I$72) -> 0 | J42: =IF(ISERROR('12'!J$72),0,'12'!J$72) -> 0 | K42: =IF(ISERROR('12'!K$72),0,'12'!K$72) -> 0 | L42: =IF(ISERROR('12'!L$72),0,'12'!L$72) -> 0 | M42: =IF(ISERROR('12'!M$72),0,'12'!M$72) -> 0 | N42: =IF(ISERROR('12'!N$72),0,'12'!N$72) -> 0 | O42: =IF(ISERROR('12'!O$72),0,'12'!O$72) -> 0 | P42: =IF(ISERROR('12'!P$72),0,'12'!P$72) -> 0 | Q42: =IF(ISERROR('12'!Q$72),0,'12'!Q$72) -> 0 | R42: =IF(ISERROR('12'!R$72),0,'12'!R$72) -> 0 | S42: =IF(ISERROR('12'!S$72),0,'12'!S$72) -> 0 | T42: =IF(ISERROR('12'!T$72),0,'12'!T$72) -> 0 | U42: =IF(ISERROR('12'!U$72),0,'12'!U$72) -> 0 | V42: =IF(ISERROR('12'!V$72),0,'12'!V$72) -> 0 | W42: =IF(ISERROR('12'!W$72),0,'12'!W$72) -> 0 | X42: =IF(ISERROR('12'!X$72),0,'12'!X$72) -> 0
A43: 0 | B43: =IF('13'!$F$6<>"",E43,0) -> 0 | C43: 0 | D43: 0 | E43: 13 | G43: =IF(AND(F43="",COUNTA(F43:F$45)>0),"Please fill Subprogrammes from the top","") ->  | I43: =IF(ISERROR('13'!I$72),0,'13'!I$72) -> 0 | J43: =IF(ISERROR('13'!J$72),0,'13'!J$72) -> 0 | K43: =IF(ISERROR('13'!K$72),0,'13'!K$72) -> 0 | L43: =IF(ISERROR('13'!L$72),0,'13'!L$72) -> 0 | M43: =IF(ISERROR('13'!M$72),0,'13'!M$72) -> 0 | N43: =IF(ISERROR('13'!N$72),0,'13'!N$72) -> 0 | O43: =IF(ISERROR('13'!O$72),0,'13'!O$72) -> 0 | P43: =IF(ISERROR('13'!P$72),0,'13'!P$72) -> 0 | Q43: =IF(ISERROR('13'!Q$72),0,'13'!Q$72) -> 0 | R43: =IF(ISERROR('13'!R$72),0,'13'!R$72) -> 0 | S43: =IF(ISERROR('13'!S$72),0,'13'!S$72) -> 0 | T43: =IF(ISERROR('13'!T$72),0,'13'!T$72) -> 0 | U43: =IF(ISERROR('13'!U$72),0,'13'!U$72) -> 0 | V43: =IF(ISERROR('13'!V$72),0,'13'!V$72) -> 0 | W43: =IF(ISERROR('13'!W$72),0,'13'!W$72) -> 0 | X43: =IF(ISERROR('13'!X$72),0,'13'!X$72) -> 0
A44: 0 | B44: =IF('14'!$F$6<>"",E44,0) -> 0 | C44: 0 | D44: 0 | E44: 14 | G44: =IF(AND(F44="",COUNTA(F44:F$45)>0),"Please fill Subprogrammes from the top","") ->  | I44: =IF(ISERROR('14'!I$72),0,'14'!I$72) -> 0 | J44: =IF(ISERROR('14'!J$72),0,'14'!J$72) -> 0 | K44: =IF(ISERROR('14'!K$72),0,'14'!K$72) -> 0 | L44: =IF(ISERROR('14'!L$72),0,'14'!L$72) -> 0 | M44: =IF(ISERROR('14'!M$72),0,'14'!M$72) -> 0 | N44: =IF(ISERROR('14'!N$72),0,'14'!N$72) -> 0 | O44: =IF(ISERROR('14'!O$72),0,'14'!O$72) -> 0 | P44: =IF(ISERROR('14'!P$72),0,'14'!P$72) -> 0 | Q44: =IF(ISERROR('14'!Q$72),0,'14'!Q$72) -> 0 | R44: =IF(ISERROR('14'!R$72),0,'14'!R$72) -> 0 | S44: =IF(ISERROR('14'!S$72),0,'14'!S$72) -> 0 | T44: =IF(ISERROR('14'!T$72),0,'14'!T$72) -> 0 | U44: =IF(ISERROR('14'!U$72),0,'14'!U$72) -> 0 | V44: =IF(ISERROR('14'!V$72),0,'14'!V$72) -> 0 | W44: =IF(ISERROR('14'!W$72),0,'14'!W$72) -> 0 | X44: =IF(ISERROR('14'!X$72),0,'14'!X$72) -> 0
A45: 0 | B45: =IF('15'!$F$6<>"",E45,0) -> 0 | C45: 0 | D45: 0 | E45: 15 | G45: =IF(AND(F45="",COUNTA(F45:F$45)>0),"Please fill Subprogrammes from the top","") ->  | I45: =IF(ISERROR('15'!I$72),0,'15'!I$72) -> 0 | J45: =IF(ISERROR('15'!J$72),0,'15'!J$72) -> 0 | K45: =IF(ISERROR('15'!K$72),0,'15'!K$72) -> 0 | L45: =IF(ISERROR('15'!L$72),0,'15'!L$72) -> 0 | M45: =IF(ISERROR('15'!M$72),0,'15'!M$72) -> 0 | N45: =IF(ISERROR('15'!N$72),0,'15'!N$72) -> 0 | O45: =IF(ISERROR('15'!O$72),0,'15'!O$72) -> 0 | P45: =IF(ISERROR('15'!P$72),0,'15'!P$72) -> 0 | Q45: =IF(ISERROR('15'!Q$72),0,'15'!Q$72) -> 0 | R45: =IF(ISERROR('15'!R$72),0,'15'!R$72) -> 0 | S45: =IF(ISERROR('15'!S$72),0,'15'!S$72) -> 0 | T45: =IF(ISERROR('15'!T$72),0,'15'!T$72) -> 0 | U45: =IF(ISERROR('15'!U$72),0,'15'!U$72) -> 0 | V45: =IF(ISERROR('15'!V$72),0,'15'!V$72) -> 0 | W45: =IF(ISERROR('15'!W$72),0,'15'!W$72) -> 0 | X45: =IF(ISERROR('15'!X$72),0,'15'!X$72) -> 0
F46: Total for Programmes | I46: =SUM(I31:I45) -> 3394537 | J46: =SUM(J31:J45) -> 0 | K46: 0 | L46: 0 | M46: 0 | N46: 0 | O46: 0 | P46: 0 | Q46: 0 | R46: 0 | S46: 0 | T46: 0 | U46: 0 | V46: 0 | W46: 0 | X46: 3394537
A47: =IF(COUNTA(K47:Y47)-COUNTIF(K47:Y47,"0")<>0,1,0) -> 0 | B47: =IF(Direct_charges!$F$6<>"",E47,0) -> 16 | C47: =IF(LEN(F47)>2,1,0) -> 1 | D47: =IF(OR(AND(B47=0,C47<>0),AND(B47<>0,C47=0)),1,0) -> 0 | E47: 16 | F47: Direct charge against the National Revenue Fund | I47: =SUM(I48:I52) -> 0 | J47: =SUM(J48:J52) -> 0 | K47: 0 | L47: 0 | M47: 0 | N47: 0 | O47: 0 | P47: 0 | Q47: 0 | R47: 0 | S47: 0 | T47: 0 | U47: 0 | V47: 0 | W47: 0 | X47: 0
I48: =IF(ISERROR(Direct_charges!I$47),0,Direct_charges!I$47) -> 0 | J48: =IF(ISERROR(Direct_charges!J$47),0,Direct_charges!J$47) -> 0 | K48: =IF(ISERROR(Direct_charges!K$47),0,Direct_charges!K$47) -> 0 | L48: =IF(ISERROR(Direct_charges!L$47),0,Direct_charges!L$47) -> 0 | M48: =IF(ISERROR(Direct_charges!M$47),0,Direct_charges!M$47) -> 0 | N48: =IF(ISERROR(Direct_charges!N$47),0,Direct_charges!N$47) -> 0 | O48: =IF(ISERROR(Direct_charges!O$47),0,Direct_charges!O$47) -> 0 | P48: =IF(ISERROR(Direct_charges!P$47),0,Direct_charges!P$47) -> 0 | Q48: =IF(ISERROR(Direct_charges!Q$47),0,Direct_charges!Q$47) -> 0 | R48: =IF(ISERROR(Direct_charges!R$47),0,Direct_charges!R$47) -> 0 | S48: =IF(ISERROR(Direct_charges!S$47),0,Direct_charges!S$47) -> 0 | T48: =IF(ISERROR(Direct_charges!T$47),0,Direct_charges!T$47) -> 0 | U48: =IF(ISERROR(Direct_charges!U$47),0,Direct_charges!U$47) -> 0 | V48: =IF(ISERROR(Direct_charges!V$47),0,Direct_charges!V$47) -> 0 | W48: =IF(ISERROR(Direct_charges!W$47),0,Direct_charges!W$47) -> 0 | X48: =IF(ISERROR(Direct_charges!X$47),0,Direct_charges!X$47) -> 0
I49: =IF(ISERROR(Direct_charges!I$48),0,Direct_charges!I$48) -> 0 | J49: =IF(ISERROR(Direct_charges!J$48),0,Direct_charges!J$48) -> 0 | K49: =IF(ISERROR(Direct_charges!K$48),0,Direct_charges!K$48) -> 0 | L49: =IF(ISERROR(Direct_charges!L$48),0,Direct_charges!L$48) -> 0 | M49: =IF(ISERROR(Direct_charges!M$48),0,Direct_charges!M$48) -> 0 | N49: =IF(ISERROR(Direct_charges!N$48),0,Direct_charges!N$48) -> 0 | O49: =IF(ISERROR(Direct_charges!O$48),0,Direct_charges!O$48) -> 0 | P49: =IF(ISERROR(Direct_charges!P$48),0,Direct_charges!P$48) -> 0 | Q49: =IF(ISERROR(Direct_charges!Q$48),0,Direct_charges!Q$48) -> 0 | R49: =IF(ISERROR(Direct_charges!R$48),0,Direct_charges!R$48) -> 0 | S49: =IF(ISERROR(Direct_charges!S$48),0,Direct_charges!S$48) -> 0 | T49: =IF(ISERROR(Direct_charges!T$48),0,Direct_charges!T$48) -> 0 | U49: =IF(ISERROR(Direct_charges!U$48),0,Direct_charges!U$48) -> 0 | V49: =IF(ISERROR(Direct_charges!V$48),0,Direct_charges!V$48) -> 0 | W49: =IF(ISERROR(Direct_charges!W$48),0,Direct_charges!W$48) -> 0 | X49: =IF(ISERROR(Direct_charges!X$48),0,Direct_charges!X$48) -> 0
I50: =IF(ISERROR(Direct_charges!I$49),0,Direct_charges!I$49) -> 0 | J50: =IF(ISERROR(Direct_charges!J$49),0,Direct_charges!J$49) -> 0 | K50: =IF(ISERROR(Direct_charges!K$49),0,Direct_charges!K$49) -> 0 | L50: =IF(ISERROR(Direct_charges!L$49),0,Direct_charges!L$49) -> 0 | M50: =IF(ISERROR(Direct_charges!M$49),0,Direct_charges!M$49) -> 0 | N50: =IF(ISERROR(Direct_charges!N$49),0,Direct_charges!N$49) -> 0 | O50: =IF(ISERROR(Direct_charges!O$49),0,Direct_charges!O$49) -> 0 | P50: =IF(ISERROR(Direct_charges!P$49),0,Direct_charges!P$49) -> 0 | Q50: =IF(ISERROR(Direct_charges!Q$49),0,Direct_charges!Q$49) -> 0 | R50: =IF(ISERROR(Direct_charges!R$49),0,Direct_charges!R$49) -> 0 | S50: =IF(ISERROR(Direct_charges!S$49),0,Direct_charges!S$49) -> 0 | T50: =IF(ISERROR(Direct_charges!T$49),0,Direct_charges!T$49) -> 0 | U50: =IF(ISERROR(Direct_charges!U$49),0,Direct_charges!U$49) -> 0 | V50: =IF(ISERROR(Direct_charges!V$49),0,Direct_charges!V$49) -> 0 | W50: =IF(ISERROR(Direct_charges!W$49),0,Direct_charges!W$49) -> 0 | X50: =IF(ISERROR(Direct_charges!X$49),0,Direct_charges!X$49) -> 0
I51: =IF(ISERROR(Direct_charges!I$50),0,Direct_charges!I$50) -> 0 | J51: =IF(ISERROR(Direct_charges!J$50),0,Direct_charges!J$50) -> 0 | K51: =IF(ISERROR(Direct_charges!K$50),0,Direct_charges!K$50) -> 0 | L51: =IF(ISERROR(Direct_charges!L$50),0,Direct_charges!L$50) -> 0 | M51: =IF(ISERROR(Direct_charges!M$50),0,Direct_charges!M$50) -> 0 | N51: =IF(ISERROR(Direct_charges!N$50),0,Direct_charges!N$50) -> 0 | O51: =IF(ISERROR(Direct_charges!O$50),0,Direct_charges!O$50) -> 0 | P51: =IF(ISERROR(Direct_charges!P$50),0,Direct_charges!P$50) -> 0 | Q51: =IF(ISERROR(Direct_charges!Q$50),0,Direct_charges!Q$50) -> 0 | R51: =IF(ISERROR(Direct_charges!R$50),0,Direct_charges!R$50) -> 0 | S51: =IF(ISERROR(Direct_charges!S$50),0,Direct_charges!S$50) -> 0 | T51: =IF(ISERROR(Direct_charges!T$50),0,Direct_charges!T$50) -> 0 | U51: =IF(ISERROR(Direct_charges!U$50),0,Direct_charges!U$50) -> 0 | V51: =IF(ISERROR(Direct_charges!V$50),0,Direct_charges!V$50) -> 0 | W51: =IF(ISERROR(Direct_charges!W$50),0,Direct_charges!W$50) -> 0 | X51: =IF(ISERROR(Direct_charges!X$50),0,Direct_charges!X$50) -> 0
I52: =IF(ISERROR(Direct_charges!I$51),0,Direct_charges!I$51) -> 0 | J52: =IF(ISERROR(Direct_charges!J$51),0,Direct_charges!J$51) -> 0 | K52: =IF(ISERROR(Direct_charges!K$51),0,Direct_charges!K$51) -> 0 | L52: =IF(ISERROR(Direct_charges!L$51),0,Direct_charges!L$51) -> 0 | M52: =IF(ISERROR(Direct_charges!M$51),0,Direct_charges!M$51) -> 0 | N52: =IF(ISERROR(Direct_charges!N$51),0,Direct_charges!N$51) -> 0 | O52: =IF(ISERROR(Direct_charges!O$51),0,Direct_charges!O$51) -> 0 | P52: =IF(ISERROR(Direct_charges!P$51),0,Direct_charges!P$51) -> 0 | Q52: =IF(ISERROR(Direct_charges!Q$51),0,Direct_charges!Q$51) -> 0 | R52: =IF(ISERROR(Direct_charges!R$51),0,Direct_charges!R$51) -> 0 | S52: =IF(ISERROR(Direct_charges!S$51),0,Direct_charges!S$51) -> 0 | T52: =IF(ISERROR(Direct_charges!T$51),0,Direct_charges!T$51) -> 0 | U52: =IF(ISERROR(Direct_charges!U$51),0,Direct_charges!U$51) -> 0 | V52: =IF(ISERROR(Direct_charges!V$51),0,Direct_charges!V$51) -> 0 | W52: =IF(ISERROR(Direct_charges!W$51),0,Direct_charges!W$51) -> 0 | X52: =IF(ISERROR(Direct_charges!X$51),0,Direct_charges!X$51) -> 0
F54: Total | I54: =SUM(I46,I47) -> 3394537 | J54: =SUM(J46,J47) -> 0 | K54: 0 | L54: 0 | M54: 0 | N54: 0 | O54: 0 | P54: 0 | Q54: 0 | R54: 0 | S54: 0 | T54: 0 | U54: 0 | V54: 0 | W54: 0 | X54: 3394537
A58: 1 | B58: 1 | C58: =IF(AND(C31=0,C32=1),1,0) -> 0 | D58: =IF(F31<>"",E31,0) -> 1 | F58: Economic classification
A59: 1 | B59: 2 | C59: =IF(AND(C32=0,C33=1),1,0) -> 0 | D59: =IF(F32<>"",E32,0) -> 2 | F59: Current payments | I59: =SUM('1:Direct_charges'!I74) -> 779984 | J59: =SUM('1:Direct_charges'!J74) -> 0 | K59: =SUM('1:Direct_charges'!K74) -> 0 | L59: =SUM('1:Direct_charges'!L74) -> 0 | M59: =SUM('1:Direct_charges'!M74) -> 0 | N59: =SUM('1:Direct_charges'!N74) -> 0 | O59: =SUM('1:Direct_charges'!O74) -> 0 | P59: =SUM('1:Direct_charges'!P74) -> 0 | Q59: =SUM('1:Direct_charges'!Q74) -> 0 | R59: =SUM('1:Direct_charges'!R74) -> 0 | S59: =SUM('1:Direct_charges'!S74) -> 0 | T59: =SUM('1:Direct_charges'!T74) -> 0 | U59: =SUM('1:Direct_charges'!U74) -> 0 | V59: =SUM('1:Direct_charges'!V74) -> 0 | W59: =SUM('1:Direct_charges'!W74) -> 0 | X59: =SUM('1:Direct_charges'!X74) -> 779984
A60: =IF(SUM(COUNTIF(I60:X60,"<>0")-COUNTBLANK(I60:X60))<>0,1,0) -> 1 | B60: 3 | C60: =IF(AND(C33=0,C34=1),1,0) -> 0 | D60: =IF(F33<>"",E33,0) -> 3 | F60: Compensation of employees | I60: =SUM('1:Direct_charges'!I75) -> 348272 | J60: =SUM('1:Direct_charges'!J75) -> 0 | K60: =SUM('1:Direct_charges'!K75) -> 0 | L60: =SUM('1:Direct_charges'!L75) -> 0 | M60: =SUM('1:Direct_charges'!M75) -> 0 | N60: =SUM('1:Direct_charges'!N75) -> 0 | O60: =SUM('1:Direct_charges'!O75) -> 0 | P60: =SUM('1:Direct_charges'!P75) -> 0 | Q60: =SUM('1:Direct_charges'!Q75) -> 0 | R60: =SUM('1:Direct_charges'!R75) -> 0 | S60: =SUM('1:Direct_charges'!S75) -> 0 | T60: =SUM('1:Direct_charges'!T75) -> 0 | U60: =SUM('1:Direct_charges'!U75) -> 0 | V60: =SUM('1:Direct_charges'!V75) -> 0 | W60: =SUM('1:Direct_charges'!W75) -> 0 | X60: =SUM('1:Direct_charges'!X75) -> 348272
A61: =A60 -> 1 | B61: 4 | C61: =IF(AND(C33=0,C34=1),1,0) -> 0 | D61: =IF(F34<>"",E34,0) -> 4 | F61: Salaries and wages | I61: =SUM('1:Direct_charges'!I76) -> 293729 | J61: =SUM('1:Direct_charges'!J76) -> 0 | K61: =SUM('1:Direct_charges'!K76) -> 0 | L61: =SUM('1:Direct_charges'!L76) -> 0 | M61: =SUM('1:Direct_charges'!M76) -> 0 | N61: =SUM('1:Direct_charges'!N76) -> 0 | O61: =SUM('1:Direct_charges'!O76) -> 0 | P61: =SUM('1:Direct_charges'!P76) -> 0 | Q61: =SUM('1:Direct_charges'!Q76) -> 0 | R61: =SUM('1:Direct_charges'!R76) -> 0 | S61: =SUM('1:Direct_charges'!S76) -> 0 | T61: =SUM('1:Direct_charges'!T76) -> 0 | U61: =SUM('1:Direct_charges'!U76) -> 0 | V61: =SUM('1:Direct_charges'!V76) -> 0 | W61: =SUM('1:Direct_charges'!W76) -> 0 | X61: =SUM('1:Direct_charges'!X76) -> 293729
A62: =A60 -> 1 | B62: 5 | C62: =IF(AND(C34=0,C35=1),1,0) -> 0 | D62: =IF(F35<>"",E35,0) -> 5 | F62: Social contributions | I62: =SUM('1:Direct_charges'!I77) -> 54543 | J62: =SUM('1:Direct_charges'!J77) -> 0 | K62: =SUM('1:Direct_charges'!K77) -> 0 | L62: =SUM('1:Direct_charges'!L77) -> 0 | M62: =SUM('1:Direct_charges'!M77) -> 0 | N62: =SUM('1:Direct_charges'!N77) -> 0 | O62: =SUM('1:Direct_charges'!O77) -> 0 | P62: =SUM('1:Direct_charges'!P77) -> 0 | Q62: =SUM('1:Direct_charges'!Q77) -> 0 | R62: =SUM('1:Direct_charges'!R77) -> 0 | S62: =SUM('1:Direct_charges'!S77) -> 0 | T62: =SUM('1:Direct_charges'!T77) -> 0 | U62: =SUM('1:Direct_charges'!U77) -> 0 | V62: =SUM('1:Direct_charges'!V77) -> 0 | W62: =SUM('1:Direct_charges'!W77) -> 0 | X62: =SUM('1:Direct_charges'!X77) -> 54543
A63: =IF(SUM(COUNTIF(I63:X63,"<>0")-COUNTBLANK(I63:X63))<>0,1,0) -> 1 | F63: Goods and services | I63: =SUM('1:Direct_charges'!I78) -> 431712 | J63: =SUM('1:Direct_charges'!J78) -> 0 | K63: =SUM('1:Direct_charges'!K78) -> 0 | L63: =SUM('1:Direct_charges'!L78) -> 0 | M63: =SUM('1:Direct_charges'!M78) -> 0 | N63: =SUM('1:Direct_charges'!N78) -> 0 | O63: =SUM('1:Direct_charges'!O78) -> 0 | P63: =SUM('1:Direct_charges'!P78) -> 0 | Q63: =SUM('1:Direct_charges'!Q78) -> 0 | R63: =SUM('1:Direct_charges'!R78) -> 0 | S63: =SUM('1:Direct_charges'!S78) -> 0 | T63: =SUM('1:Direct_charges'!T78) -> 0 | U63: =SUM('1:Direct_charges'!U78) -> 0 | V63: =SUM('1:Direct_charges'!V78) -> 0 | W63: =SUM('1:Direct_charges'!W78) -> 0 | X63: =SUM('1:Direct_charges'!X78) -> 431712
A64: =A63 -> 1 | F64: Administrative fees | I64: =SUM('1:Direct_charges'!I79) -> 2620 | J64: =SUM('1:Direct_charges'!J79) -> 0 | K64: =SUM('1:Direct_charges'!K79) -> 0 | L64: =SUM('1:Direct_charges'!L79) -> 0 | M64: =SUM('1:Direct_charges'!M79) -> 0 | N64: =SUM('1:Direct_charges'!N79) -> 0 | O64: =SUM('1:Direct_charges'!O79) -> 0 | P64: =SUM('1:Direct_charges'!P79) -> 0 | Q64: =SUM('1:Direct_charges'!Q79) -> 0 | R64: =SUM('1:Direct_charges'!R79) -> 0 | S64: =SUM('1:Direct_charges'!S79) -> 0 | T64: =SUM('1:Direct_charges'!T79) -> 0 | U64: =SUM('1:Direct_charges'!U79) -> 0 | V64: =SUM('1:Direct_charges'!V79) -> 0 | W64: =SUM('1:Direct_charges'!W79) -> 0 | X64: =SUM('1:Direct_charges'!X79) -> 2620
A65: =IF(SUM(COUNTIF(I65:X65,"<>0")-COUNTBLANK(I65:X65))<>0,1,0) -> 1 | F65: Advertising | I65: =SUM('1:Direct_charges'!I80) -> 20396 | J65: =SUM('1:Direct_charges'!J80) -> 0 | K65: =SUM('1:Direct_charges'!K80) -> 0 | L65: =SUM('1:Direct_charges'!L80) -> 0 | M65: =SUM('1:Direct_charges'!M80) -> 0 | N65: =SUM('1:Direct_charges'!N80) -> 0 | O65: =SUM('1:Direct_charges'!O80) -> 0 | P65: =SUM('1:Direct_charges'!P80) -> 0 | Q65: =SUM('1:Direct_charges'!Q80) -> 0 | R65: =SUM('1:Direct_charges'!R80) -> 0 | S65: =SUM('1:Direct_charges'!S80) -> 0 | T65: =SUM('1:Direct_charges'!T80) -> 0 | U65: =SUM('1:Direct_charges'!U80) -> 0 | V65: =SUM('1:Direct_charges'!V80) -> 0 | W65: =SUM('1:Direct_charges'!W80) -> 0 | X65: =SUM('1:Direct_charges'!X80) -> 20396
A66: 1 | F66: Minor Assets | I66: =SUM('1:Direct_charges'!I81) -> 2576 | J66: =SUM('1:Direct_charges'!J81) -> 0 | K66: =SUM('1:Direct_charges'!K81) -> 0 | L66: =SUM('1:Direct_charges'!L81) -> 0 | M66: =SUM('1:Direct_charges'!M81) -> 0 | N66: =SUM('1:Direct_charges'!N81) -> 0 | O66: =SUM('1:Direct_charges'!O81) -> 0 | P66: =SUM('1:Direct_charges'!P81) -> 0 | Q66: =SUM('1:Direct_charges'!Q81) -> 0 | R66: =SUM('1:Direct_charges'!R81) -> 0 | S66: =SUM('1:Direct_charges'!S81) -> 0 | T66: =SUM('1:Direct_charges'!T81) -> 0 | U66: =SUM('1:Direct_charges'!U81) -> 0 | V66: =SUM('1:Direct_charges'!V81) -> 0 | W66: =SUM('1:Direct_charges'!W81) -> 0 | X66: =SUM('1:Direct_charges'!X81) -> 2576
A67: 1 | F67: Audit costs: External | I67: =SUM('1:Direct_charges'!I82) -> 7505 | J67: =SUM('1:Direct_charges'!J82) -> 0 | K67: =SUM('1:Direct_charges'!K82) -> 0 | L67: =SUM('1:Direct_charges'!L82) -> 0 | M67: =SUM('1:Direct_charges'!M82) -> 0 | N67: =SUM('1:Direct_charges'!N82) -> 0 | O67: =SUM('1:Direct_charges'!O82) -> 0 | P67: =SUM('1:Direct_charges'!P82) -> 0 | Q67: =SUM('1:Direct_charges'!Q82) -> 0 | R67: =SUM('1:Direct_charges'!R82) -> 0 | S67: =SUM('1:Direct_charges'!S82) -> 0 | T67: =SUM('1:Direct_charges'!T82) -> 0 | U67: =SUM('1:Direct_charges'!U82) -> 0 | V67: =SUM('1:Direct_charges'!V82) -> 0 | W67: =SUM('1:Direct_charges'!W82) -> 0 | X67: =SUM('1:Direct_charges'!X82) -> 7505
A68: 1 | F68: Bursaries: Employees | I68: =SUM('1:Direct_charges'!I83) -> 4076 | J68: =SUM('1:Direct_charges'!J83) -> 0 | K68: =SUM('1:Direct_charges'!K83) -> 0 | L68: =SUM('1:Direct_charges'!L83) -> 0 | M68: =SUM('1:Direct_charges'!M83) -> 0 | N68: =SUM('1:Direct_charges'!N83) -> 0 | O68: =SUM('1:Direct_charges'!O83) -> 0 | P68: =SUM('1:Direct_charges'!P83) -> 0 | Q68: =SUM('1:Direct_charges'!Q83) -> 0 | R68: =SUM('1:Direct_charges'!R83) -> 0 | S68: =SUM('1:Direct_charges'!S83) -> 0 | T68: =SUM('1:Direct_charges'!T83) -> 0 | U68: =SUM('1:Direct_charges'!U83) -> 0 | V68: =SUM('1:Direct_charges'!V83) -> 0 | W68: =SUM('1:Direct_charges'!W83) -> 0 | X68: =SUM('1:Direct_charges'!X83) -> 4076
A69: 1 | F69: Catering: Departmental activities | I69: =SUM('1:Direct_charges'!I84) -> 3576 | J69: =SUM('1:Direct_charges'!J84) -> 0 | K69: =SUM('1:Direct_charges'!K84) -> 0 | L69: =SUM('1:Direct_charges'!L84) -> 0 | M69: =SUM('1:Direct_charges'!M84) -> 0 | N69: =SUM('1:Direct_charges'!N84) -> 0 | O69: =SUM('1:Direct_charges'!O84) -> 0 | P69: =SUM('1:Direct_charges'!P84) -> 0 | Q69: =SUM('1:Direct_charges'!Q84) -> 0 | R69: =SUM('1:Direct_charges'!R84) -> 0 | S69: =SUM('1:Direct_charges'!S84) -> 0 | T69: =SUM('1:Direct_charges'!T84) -> 0 | U69: =SUM('1:Direct_charges'!U84) -> 0 | V69: =SUM('1:Direct_charges'!V84) -> 0 | W69: =SUM('1:Direct_charges'!W84) -> 0 | X69: =SUM('1:Direct_charges'!X84) -> 3576
A70: 1 | F70: Communication (G&S) | I70: =SUM('1:Direct_charges'!I85) -> 5801 | J70: =SUM('1:Direct_charges'!J85) -> 0 | K70: =SUM('1:Direct_charges'!K85) -> 0 | L70: =SUM('1:Direct_charges'!L85) -> 0 | M70: =SUM('1:Direct_charges'!M85) -> 0 | N70: =SUM('1:Direct_charges'!N85) -> 0 | O70: =SUM('1:Direct_charges'!O85) -> 0 | P70: =SUM('1:Direct_charges'!P85) -> 0 | Q70: =SUM('1:Direct_charges'!Q85) -> 0 | R70: =SUM('1:Direct_charges'!R85) -> 0 | S70: =SUM('1:Direct_charges'!S85) -> 0 | T70: =SUM('1:Direct_charges'!T85) -> 0 | U70: =SUM('1:Direct_charges'!U85) -> 0 | V70: =SUM('1:Direct_charges'!V85) -> 0 | W70: =SUM('1:Direct_charges'!W85) -> 0 | X70: =SUM('1:Direct_charges'!X85) -> 5801
A71: 1 | F71: Computer services | I71: =SUM('1:Direct_charges'!I86) -> 197509 | J71: =SUM('1:Direct_charges'!J86) -> 0 | K71: =SUM('1:Direct_charges'!K86) -> 0 | L71: =SUM('1:Direct_charges'!L86) -> 0 | M71: =SUM('1:Direct_charges'!M86) -> 0 | N71: =SUM('1:Direct_charges'!N86) -> 0 | O71: =SUM('1:Direct_charges'!O86) -> 0 | P71: =SUM('1:Direct_charges'!P86) -> 0 | Q71: =SUM('1:Direct_charges'!Q86) -> 0 | R71: =SUM('1:Direct_charges'!R86) -> 0 | S71: =SUM('1:Direct_charges'!S86) -> 0 | T71: =SUM('1:Direct_charges'!T86) -> 0 | U71: =SUM('1:Direct_charges'!U86) -> 0 | V71: =SUM('1:Direct_charges'!V86) -> 0 | W71: =SUM('1:Direct_charges'!W86) -> 0 | X71: =SUM('1:Direct_charges'!X86) -> 197509
A72: 1 | F72: Consultants: Business and advisory services | I72: =SUM('1:Direct_charges'!I87) -> 39303 | J72: =SUM('1:Direct_charges'!J87) -> 0 | K72: =SUM('1:Direct_charges'!K87) -> 0 | L72: =SUM('1:Direct_charges'!L87) -> 0 | M72: =SUM('1:Direct_charges'!M87) -> 0 | N72: =SUM('1:Direct_charges'!N87) -> 0 | O72: =SUM('1:Direct_charges'!O87) -> 0 | P72: =SUM('1:Direct_charges'!P87) -> 0 | Q72: =SUM('1:Direct_charges'!Q87) -> 0 | R72: =SUM('1:Direct_charges'!R87) -> 0 | S72: =SUM('1:Direct_charges'!S87) -> 0 | T72: =SUM('1:Direct_charges'!T87) -> 0 | U72: =SUM('1:Direct_charges'!U87) -> 0 | V72: =SUM('1:Direct_charges'!V87) -> 0 | W72: =SUM('1:Direct_charges'!W87) -> 0 | X72: =SUM('1:Direct_charges'!X87) -> 39303
A73: 0 | F73: Infrastructure and planning services | I73: =SUM('1:Direct_charges'!I88) -> 0 | J73: =SUM('1:Direct_charges'!J88) -> 0 | K73: =SUM('1:Direct_charges'!K88) -> 0 | L73: =SUM('1:Direct_charges'!L88) -> 0 | M73: =SUM('1:Direct_charges'!M88) -> 0 | N73: =SUM('1:Direct_charges'!N88) -> 0 | O73: =SUM('1:Direct_charges'!O88) -> 0 | P73: =SUM('1:Direct_charges'!P88) -> 0 | Q73: =SUM('1:Direct_charges'!Q88) -> 0 | R73: =SUM('1:Direct_charges'!R88) -> 0 | S73: =SUM('1:Direct_charges'!S88) -> 0 | T73: =SUM('1:Direct_charges'!T88) -> 0 | U73: =SUM('1:Direct_charges'!U88) -> 0 | V73: =SUM('1:Direct_charges'!V88) -> 0 | W73: =SUM('1:Direct_charges'!W88) -> 0 | X73: =SUM('1:Direct_charges'!X88) -> 0
A74: 0 | F74: Laboratory services | I74: =SUM('1:Direct_charges'!I89) -> 0 | J74: =SUM('1:Direct_charges'!J89) -> 0 | K74: =SUM('1:Direct_charges'!K89) -> 0 | L74: =SUM('1:Direct_charges'!L89) -> 0 | M74: =SUM('1:Direct_charges'!M89) -> 0 | N74: =SUM('1:Direct_charges'!N89) -> 0 | O74: =SUM('1:Direct_charges'!O89) -> 0 | P74: =SUM('1:Direct_charges'!P89) -> 0 | Q74: =SUM('1:Direct_charges'!Q89) -> 0 | R74: =SUM('1:Direct_charges'!R89) -> 0 | S74: =SUM('1:Direct_charges'!S89) -> 0 | T74: =SUM('1:Direct_charges'!T89) -> 0 | U74: =SUM('1:Direct_charges'!U89) -> 0 | V74: =SUM('1:Direct_charges'!V89) -> 0 | W74: =SUM('1:Direct_charges'!W89) -> 0 | X74: =SUM('1:Direct_charges'!X89) -> 0
A75: 1 | F75: Legal services (G&S) | I75: =SUM('1:Direct_charges'!I90) -> 6835 | J75: =SUM('1:Direct_charges'!J90) -> 0 | K75: =SUM('1:Direct_charges'!K90) -> 0 | L75: =SUM('1:Direct_charges'!L90) -> 0 | M75: =SUM('1:Direct_charges'!M90) -> 0 | N75: =SUM('1:Direct_charges'!N90) -> 0 | O75: =SUM('1:Direct_charges'!O90) -> 0 | P75: =SUM('1:Direct_charges'!P90) -> 0 | Q75: =SUM('1:Direct_charges'!Q90) -> 0 | R75: =SUM('1:Direct_charges'!R90) -> 0 | S75: =SUM('1:Direct_charges'!S90) -> 0 | T75: =SUM('1:Direct_charges'!T90) -> 0 | U75: =SUM('1:Direct_charges'!U90) -> 0 | V75: =SUM('1:Direct_charges'!V90) -> 0 | W75: =SUM('1:Direct_charges'!W90) -> 0 | X75: =SUM('1:Direct_charges'!X90) -> 6835
A76: 0 | F76: Science and technological services | I76: =SUM('1:Direct_charges'!I91) -> 0 | J76: =SUM('1:Direct_charges'!J91) -> 0 | K76: =SUM('1:Direct_charges'!K91) -> 0 | L76: =SUM('1:Direct_charges'!L91) -> 0 | M76: =SUM('1:Direct_charges'!M91) -> 0 | N76: =SUM('1:Direct_charges'!N91) -> 0 | O76: =SUM('1:Direct_charges'!O91) -> 0 | P76: =SUM('1:Direct_charges'!P91) -> 0 | Q76: =SUM('1:Direct_charges'!Q91) -> 0 | R76: =SUM('1:Direct_charges'!R91) -> 0 | S76: =SUM('1:Direct_charges'!S91) -> 0 | T76: =SUM('1:Direct_charges'!T91) -> 0 | U76: =SUM('1:Direct_charges'!U91) -> 0 | V76: =SUM('1:Direct_charges'!V91) -> 0 | W76: =SUM('1:Direct_charges'!W91) -> 0 | X76: =SUM('1:Direct_charges'!X91) -> 0
A77: 1 | F77: Contractors | I77: =SUM('1:Direct_charges'!I92) -> 8982 | J77: =SUM('1:Direct_charges'!J92) -> 0 | K77: =SUM('1:Direct_charges'!K92) -> 0 | L77: =SUM('1:Direct_charges'!L92) -> 0 | M77: =SUM('1:Direct_charges'!M92) -> 0 | N77: =SUM('1:Direct_charges'!N92) -> 0 | O77: =SUM('1:Direct_charges'!O92) -> 0 | P77: =SUM('1:Direct_charges'!P92) -> 0 | Q77: =SUM('1:Direct_charges'!Q92) -> 0 | R77: =SUM('1:Direct_charges'!R92) -> 0 | S77: =SUM('1:Direct_charges'!S92) -> 0 | T77: =SUM('1:Direct_charges'!T92) -> 0 | U77: =SUM('1:Direct_charges'!U92) -> 0 | V77: =SUM('1:Direct_charges'!V92) -> 0 | W77: =SUM('1:Direct_charges'!W92) -> 0 | X77: =SUM('1:Direct_charges'!X92) -> 8982
A78: 1 | F78: Agency and support/outsourced services | I78: =SUM('1:Direct_charges'!I93) -> 691 | J78: =SUM('1:Direct_charges'!J93) -> 0 | K78: =SUM('1:Direct_charges'!K93) -> 0 | L78: =SUM('1:Direct_charges'!L93) -> 0 | M78: =SUM('1:Direct_charges'!M93) -> 0 | N78: =SUM('1:Direct_charges'!N93) -> 0 | O78: =SUM('1:Direct_charges'!O93) -> 0 | P78: =SUM('1:Direct_charges'!P93) -> 0 | Q78: =SUM('1:Direct_charges'!Q93) -> 0 | R78: =SUM('1:Direct_charges'!R93) -> 0 | S78: =SUM('1:Direct_charges'!S93) -> 0 | T78: =SUM('1:Direct_charges'!T93) -> 0 | U78: =SUM('1:Direct_charges'!U93) -> 0 | V78: =SUM('1:Direct_charges'!V93) -> 0 | W78: =SUM('1:Direct_charges'!W93) -> 0 | X78: =SUM('1:Direct_charges'!X93) -> 691
A79: 1 | F79: Entertainment | I79: =SUM('1:Direct_charges'!I94) -> 367 | J79: =SUM('1:Direct_charges'!J94) -> 0 | K79: =SUM('1:Direct_charges'!K94) -> 0 | L79: =SUM('1:Direct_charges'!L94) -> 0 | M79: =SUM('1:Direct_charges'!M94) -> 0 | N79: =SUM('1:Direct_charges'!N94) -> 0 | O79: =SUM('1:Direct_charges'!O94) -> 0 | P79: =SUM('1:Direct_charges'!P94) -> 0 | Q79: =SUM('1:Direct_charges'!Q94) -> 0 | R79: =SUM('1:Direct_charges'!R94) -> 0 | S79: =SUM('1:Direct_charges'!S94) -> 0 | T79: =SUM('1:Direct_charges'!T94) -> 0 | U79: =SUM('1:Direct_charges'!U94) -> 0 | V79: =SUM('1:Direct_charges'!V94) -> 0 | W79: =SUM('1:Direct_charges'!W94) -> 0 | X79: =SUM('1:Direct_charges'!X94) -> 367
A80: 1 | F80: Fleet services (including government motor transport) | I80: =SUM('1:Direct_charges'!I95) -> 3213 | J80: =SUM('1:Direct_charges'!J95) -> 0 | K80: =SUM('1:Direct_charges'!K95) -> 0 | L80: =SUM('1:Direct_charges'!L95) -> 0 | M80: =SUM('1:Direct_charges'!M95) -> 0 | N80: =SUM('1:Direct_charges'!N95) -> 0 | O80: =SUM('1:Direct_charges'!O95) -> 0 | P80: =SUM('1:Direct_charges'!P95) -> 0 | Q80: =SUM('1:Direct_charges'!Q95) -> 0 | R80: =SUM('1:Direct_charges'!R95) -> 0 | S80: =SUM('1:Direct_charges'!S95) -> 0 | T80: =SUM('1:Direct_charges'!T95) -> 0 | U80: =SUM('1:Direct_charges'!U95) -> 0 | V80: =SUM('1:Direct_charges'!V95) -> 0 | W80: =SUM('1:Direct_charges'!W95) -> 0 | X80: =SUM('1:Direct_charges'!X95) -> 3213
A81: 0 | F81: Housing | I81: =SUM('1:Direct_charges'!I96) -> 0 | J81: =SUM('1:Direct_charges'!J96) -> 0 | K81: =SUM('1:Direct_charges'!K96) -> 0 | L81: =SUM('1:Direct_charges'!L96) -> 0 | M81: =SUM('1:Direct_charges'!M96) -> 0 | N81: =SUM('1:Direct_charges'!N96) -> 0 | O81: =SUM('1:Direct_charges'!O96) -> 0 | P81: =SUM('1:Direct_charges'!P96) -> 0 | Q81: =SUM('1:Direct_charges'!Q96) -> 0 | R81: =SUM('1:Direct_charges'!R96) -> 0 | S81: =SUM('1:Direct_charges'!S96) -> 0 | T81: =SUM('1:Direct_charges'!T96) -> 0 | U81: =SUM('1:Direct_charges'!U96) -> 0 | V81: =SUM('1:Direct_charges'!V96) -> 0 | W81: =SUM('1:Direct_charges'!W96) -> 0 | X81: =SUM('1:Direct_charges'!X96) -> 0
A82: 0 | F82: Inventory: Clothing material and accessories | I82: =SUM('1:Direct_charges'!I97) -> 0 | J82: =SUM('1:Direct_charges'!J97) -> 0 | K82: =SUM('1:Direct_charges'!K97) -> 0 | L82: =SUM('1:Direct_charges'!L97) -> 0 | M82: =SUM('1:Direct_charges'!M97) -> 0 | N82: =SUM('1:Direct_charges'!N97) -> 0 | O82: =SUM('1:Direct_charges'!O97) -> 0 | P82: =SUM('1:Direct_charges'!P97) -> 0 | Q82: =SUM('1:Direct_charges'!Q97) -> 0 | R82: =SUM('1:Direct_charges'!R97) -> 0 | S82: =SUM('1:Direct_charges'!S97) -> 0 | T82: =SUM('1:Direct_charges'!T97) -> 0 | U82: =SUM('1:Direct_charges'!U97) -> 0 | V82: =SUM('1:Direct_charges'!V97) -> 0 | W82: =SUM('1:Direct_charges'!W97) -> 0 | X82: =SUM('1:Direct_charges'!X97) -> 0
A83: 0 | F83: Inventory: Farming supplies | I83: =SUM('1:Direct_charges'!I98) -> 0 | J83: =SUM('1:Direct_charges'!J98) -> 0 | K83: =SUM('1:Direct_charges'!K98) -> 0 | L83: =SUM('1:Direct_charges'!L98) -> 0 | M83: =SUM('1:Direct_charges'!M98) -> 0 | N83: =SUM('1:Direct_charges'!N98) -> 0 | O83: =SUM('1:Direct_charges'!O98) -> 0 | P83: =SUM('1:Direct_charges'!P98) -> 0 | Q83: =SUM('1:Direct_charges'!Q98) -> 0 | R83: =SUM('1:Direct_charges'!R98) -> 0 | S83: =SUM('1:Direct_charges'!S98) -> 0 | T83: =SUM('1:Direct_charges'!T98) -> 0 | U83: =SUM('1:Direct_charges'!U98) -> 0 | V83: =SUM('1:Direct_charges'!V98) -> 0 | W83: =SUM('1:Direct_charges'!W98) -> 0 | X83: =SUM('1:Direct_charges'!X98) -> 0
A84: 0 | F84: Inventory: Food and food supplies | I84: =SUM('1:Direct_charges'!I99) -> 0 | J84: =SUM('1:Direct_charges'!J99) -> 0 | K84: =SUM('1:Direct_charges'!K99) -> 0 | L84: =SUM('1:Direct_charges'!L99) -> 0 | M84: =SUM('1:Direct_charges'!M99) -> 0 | N84: =SUM('1:Direct_charges'!N99) -> 0 | O84: =SUM('1:Direct_charges'!O99) -> 0 | P84: =SUM('1:Direct_charges'!P99) -> 0 | Q84: =SUM('1:Direct_charges'!Q99) -> 0 | R84: =SUM('1:Direct_charges'!R99) -> 0 | S84: =SUM('1:Direct_charges'!S99) -> 0 | T84: =SUM('1:Direct_charges'!T99) -> 0 | U84: =SUM('1:Direct_charges'!U99) -> 0 | V84: =SUM('1:Direct_charges'!V99) -> 0 | W84: =SUM('1:Direct_charges'!W99) -> 0 | X84: =SUM('1:Direct_charges'!X99) -> 0
A85: 0 | F85: Inventory: Fuel, oil and gas | I85: =SUM('1:Direct_charges'!I100) -> 0 | J85: =SUM('1:Direct_charges'!J100) -> 0 | K85: =SUM('1:Direct_charges'!K100) -> 0 | L85: =SUM('1:Direct_charges'!L100) -> 0 | M85: =SUM('1:Direct_charges'!M100) -> 0 | N85: =SUM('1:Direct_charges'!N100) -> 0 | O85: =SUM('1:Direct_charges'!O100) -> 0 | P85: =SUM('1:Direct_charges'!P100) -> 0 | Q85: =SUM('1:Direct_charges'!Q100) -> 0 | R85: =SUM('1:Direct_charges'!R100) -> 0 | S85: =SUM('1:Direct_charges'!S100) -> 0 | T85: =SUM('1:Direct_charges'!T100) -> 0 | U85: =SUM('1:Direct_charges'!U100) -> 0 | V85: =SUM('1:Direct_charges'!V100) -> 0 | W85: =SUM('1:Direct_charges'!W100) -> 0 | X85: =SUM('1:Direct_charges'!X100) -> 0
A86: 0 | F86: Inventory: Learner and teacher support material | I86: =SUM('1:Direct_charges'!I101) -> 0 | J86: =SUM('1:Direct_charges'!J101) -> 0 | K86: =SUM('1:Direct_charges'!K101) -> 0 | L86: =SUM('1:Direct_charges'!L101) -> 0 | M86: =SUM('1:Direct_charges'!M101) -> 0 | N86: =SUM('1:Direct_charges'!N101) -> 0 | O86: =SUM('1:Direct_charges'!O101) -> 0 | P86: =SUM('1:Direct_charges'!P101) -> 0 | Q86: =SUM('1:Direct_charges'!Q101) -> 0 | R86: =SUM('1:Direct_charges'!R101) -> 0 | S86: =SUM('1:Direct_charges'!S101) -> 0 | T86: =SUM('1:Direct_charges'!T101) -> 0 | U86: =SUM('1:Direct_charges'!U101) -> 0 | V86: =SUM('1:Direct_charges'!V101) -> 0 | W86: =SUM('1:Direct_charges'!W101) -> 0 | X86: =SUM('1:Direct_charges'!X101) -> 0
A87: 0 | F87: Inventory: Materials and supplies | I87: =SUM('1:Direct_charges'!I102) -> 0 | J87: =SUM('1:Direct_charges'!J102) -> 0 | K87: =SUM('1:Direct_charges'!K102) -> 0 | L87: =SUM('1:Direct_charges'!L102) -> 0 | M87: =SUM('1:Direct_charges'!M102) -> 0 | N87: =SUM('1:Direct_charges'!N102) -> 0 | O87: =SUM('1:Direct_charges'!O102) -> 0 | P87: =SUM('1:Direct_charges'!P102) -> 0 | Q87: =SUM('1:Direct_charges'!Q102) -> 0 | R87: =SUM('1:Direct_charges'!R102) -> 0 | S87: =SUM('1:Direct_charges'!S102) -> 0 | T87: =SUM('1:Direct_charges'!T102) -> 0 | U87: =SUM('1:Direct_charges'!U102) -> 0 | V87: =SUM('1:Direct_charges'!V102) -> 0 | W87: =SUM('1:Direct_charges'!W102) -> 0 | X87: =SUM('1:Direct_charges'!X102) -> 0
A88: 0 | F88: Inventory: Medical supplies | I88: =SUM('1:Direct_charges'!I103) -> 0 | J88: =SUM('1:Direct_charges'!J103) -> 0 | K88: =SUM('1:Direct_charges'!K103) -> 0 | L88: =SUM('1:Direct_charges'!L103) -> 0 | M88: =SUM('1:Direct_charges'!M103) -> 0 | N88: =SUM('1:Direct_charges'!N103) -> 0 | O88: =SUM('1:Direct_charges'!O103) -> 0 | P88: =SUM('1:Direct_charges'!P103) -> 0 | Q88: =SUM('1:Direct_charges'!Q103) -> 0 | R88: =SUM('1:Direct_charges'!R103) -> 0 | S88: =SUM('1:Direct_charges'!S103) -> 0 | T88: =SUM('1:Direct_charges'!T103) -> 0 | U88: =SUM('1:Direct_charges'!U103) -> 0 | V88: =SUM('1:Direct_charges'!V103) -> 0 | W88: =SUM('1:Direct_charges'!W103) -> 0 | X88: =SUM('1:Direct_charges'!X103) -> 0
A89: 0 | F89: Inventory: Medicine | I89: =SUM('1:Direct_charges'!I104) -> 0 | J89: =SUM('1:Direct_charges'!J104) -> 0 | K89: =SUM('1:Direct_charges'!K104) -> 0 | L89: =SUM('1:Direct_charges'!L104) -> 0 | M89: =SUM('1:Direct_charges'!M104) -> 0 | N89: =SUM('1:Direct_charges'!N104) -> 0 | O89: =SUM('1:Direct_charges'!O104) -> 0 | P89: =SUM('1:Direct_charges'!P104) -> 0 | Q89: =SUM('1:Direct_charges'!Q104) -> 0 | R89: =SUM('1:Direct_charges'!R104) -> 0 | S89: =SUM('1:Direct_charges'!S104) -> 0 | T89: =SUM('1:Direct_charges'!T104) -> 0 | U89: =SUM('1:Direct_charges'!U104) -> 0 | V89: =SUM('1:Direct_charges'!V104) -> 0 | W89: =SUM('1:Direct_charges'!W104) -> 0 | X89: =SUM('1:Direct_charges'!X104) -> 0
A90: 0 | F90: Medsas inventory interface | I90: =SUM('1:Direct_charges'!I105) -> 0 | J90: =SUM('1:Direct_charges'!J105) -> 0 | K90: =SUM('1:Direct_charges'!K105) -> 0 | L90: =SUM('1:Direct_charges'!L105) -> 0 | M90: =SUM('1:Direct_charges'!M105) -> 0 | N90: =SUM('1:Direct_charges'!N105) -> 0 | O90: =SUM('1:Direct_charges'!O105) -> 0 | P90: =SUM('1:Direct_charges'!P105) -> 0 | Q90: =SUM('1:Direct_charges'!Q105) -> 0 | R90: =SUM('1:Direct_charges'!R105) -> 0 | S90: =SUM('1:Direct_charges'!S105) -> 0 | T90: =SUM('1:Direct_charges'!T105) -> 0 | U90: =SUM('1:Direct_charges'!U105) -> 0 | V90: =SUM('1:Direct_charges'!V105) -> 0 | W90: =SUM('1:Direct_charges'!W105) -> 0 | X90: =SUM('1:Direct_charges'!X105) -> 0
A91: 0 | F91: Inventory: Other supplies | I91: =SUM('1:Direct_charges'!I106) -> 0 | J91: =SUM('1:Direct_charges'!J106) -> 0 | K91: =SUM('1:Direct_charges'!K106) -> 0 | L91: =SUM('1:Direct_charges'!L106) -> 0 | M91: =SUM('1:Direct_charges'!M106) -> 0 | N91: =SUM('1:Direct_charges'!N106) -> 0 | O91: =SUM('1:Direct_charges'!O106) -> 0 | P91: =SUM('1:Direct_charges'!P106) -> 0 | Q91: =SUM('1:Direct_charges'!Q106) -> 0 | R91: =SUM('1:Direct_charges'!R106) -> 0 | S91: =SUM('1:Direct_charges'!S106) -> 0 | T91: =SUM('1:Direct_charges'!T106) -> 0 | U91: =SUM('1:Direct_charges'!U106) -> 0 | V91: =SUM('1:Direct_charges'!V106) -> 0 | W91: =SUM('1:Direct_charges'!W106) -> 0 | X91: =SUM('1:Direct_charges'!X106) -> 0
A92: 1 | F92: Consumable supplies | I92: =SUM('1:Direct_charges'!I107) -> 1523 | J92: =SUM('1:Direct_charges'!J107) -> 0 | K92: =SUM('1:Direct_charges'!K107) -> 0 | L92: =SUM('1:Direct_charges'!L107) -> 0 | M92: =SUM('1:Direct_charges'!M107) -> 0 | N92: =SUM('1:Direct_charges'!N107) -> 0 | O92: =SUM('1:Direct_charges'!O107) -> 0 | P92: =SUM('1:Direct_charges'!P107) -> 0 | Q92: =SUM('1:Direct_charges'!Q107) -> 0 | R92: =SUM('1:Direct_charges'!R107) -> 0 | S92: =SUM('1:Direct_charges'!S107) -> 0 | T92: =SUM('1:Direct_charges'!T107) -> 0 | U92: =SUM('1:Direct_charges'!U107) -> 0 | V92: =SUM('1:Direct_charges'!V107) -> 0 | W92: =SUM('1:Direct_charges'!W107) -> 0 | X92: =SUM('1:Direct_charges'!X107) -> 1523
A93: 1 | F93: Consumables: Stationery, printing and office supplies | I93: =SUM('1:Direct_charges'!I108) -> 3946 | J93: =SUM('1:Direct_charges'!J108) -> 0 | K93: =SUM('1:Direct_charges'!K108) -> 0 | L93: =SUM('1:Direct_charges'!L108) -> 0 | M93: =SUM('1:Direct_charges'!M108) -> 0 | N93: =SUM('1:Direct_charges'!N108) -> 0 | O93: =SUM('1:Direct_charges'!O108) -> 0 | P93: =SUM('1:Direct_charges'!P108) -> 0 | Q93: =SUM('1:Direct_charges'!Q108) -> 0 | R93: =SUM('1:Direct_charges'!R108) -> 0 | S93: =SUM('1:Direct_charges'!S108) -> 0 | T93: =SUM('1:Direct_charges'!T108) -> 0 | U93: =SUM('1:Direct_charges'!U108) -> 0 | V93: =SUM('1:Direct_charges'!V108) -> 0 | W93: =SUM('1:Direct_charges'!W108) -> 0 | X93: =SUM('1:Direct_charges'!X108) -> 3946
A94: 1 | F94: Operating leases | I94: =SUM('1:Direct_charges'!I109) -> 28922 | J94: =SUM('1:Direct_charges'!J109) -> 0 | K94: =SUM('1:Direct_charges'!K109) -> 0 | L94: =SUM('1:Direct_charges'!L109) -> 0 | M94: =SUM('1:Direct_charges'!M109) -> 0 | N94: =SUM('1:Direct_charges'!N109) -> 0 | O94: =SUM('1:Direct_charges'!O109) -> 0 | P94: =SUM('1:Direct_charges'!P109) -> 0 | Q94: =SUM('1:Direct_charges'!Q109) -> 0 | R94: =SUM('1:Direct_charges'!R109) -> 0 | S94: =SUM('1:Direct_charges'!S109) -> 0 | T94: =SUM('1:Direct_charges'!T109) -> 0 | U94: =SUM('1:Direct_charges'!U109) -> 0 | V94: =SUM('1:Direct_charges'!V109) -> 0 | W94: =SUM('1:Direct_charges'!W109) -> 0 | X94: =SUM('1:Direct_charges'!X109) -> 28922
A95: 1 | F95: Rental and hiring | I95: =SUM('1:Direct_charges'!I110) -> 680 | J95: =SUM('1:Direct_charges'!J110) -> 0 | K95: =SUM('1:Direct_charges'!K110) -> 0 | L95: =SUM('1:Direct_charges'!L110) -> 0 | M95: =SUM('1:Direct_charges'!M110) -> 0 | N95: =SUM('1:Direct_charges'!N110) -> 0 | O95: =SUM('1:Direct_charges'!O110) -> 0 | P95: =SUM('1:Direct_charges'!P110) -> 0 | Q95: =SUM('1:Direct_charges'!Q110) -> 0 | R95: =SUM('1:Direct_charges'!R110) -> 0 | S95: =SUM('1:Direct_charges'!S110) -> 0 | T95: =SUM('1:Direct_charges'!T110) -> 0 | U95: =SUM('1:Direct_charges'!U110) -> 0 | V95: =SUM('1:Direct_charges'!V110) -> 0 | W95: =SUM('1:Direct_charges'!W110) -> 0 | X95: =SUM('1:Direct_charges'!X110) -> 680
A96: 1 | F96: Property payments | I96: =SUM('1:Direct_charges'!I111) -> 14320 | J96: =SUM('1:Direct_charges'!J111) -> 0 | K96: =SUM('1:Direct_charges'!K111) -> 0 | L96: =SUM('1:Direct_charges'!L111) -> 0 | M96: =SUM('1:Direct_charges'!M111) -> 0 | N96: =SUM('1:Direct_charges'!N111) -> 0 | O96: =SUM('1:Direct_charges'!O111) -> 0 | P96: =SUM('1:Direct_charges'!P111) -> 0 | Q96: =SUM('1:Direct_charges'!Q111) -> 0 | R96: =SUM('1:Direct_charges'!R111) -> 0 | S96: =SUM('1:Direct_charges'!S111) -> 0 | T96: =SUM('1:Direct_charges'!T111) -> 0 | U96: =SUM('1:Direct_charges'!U111) -> 0 | V96: =SUM('1:Direct_charges'!V111) -> 0 | W96: =SUM('1:Direct_charges'!W111) -> 0 | X96: =SUM('1:Direct_charges'!X111) -> 14320
A97: 0 | F97: Transport provided: Departmental activity | I97: =SUM('1:Direct_charges'!I112) -> 0 | J97: =SUM('1:Direct_charges'!J112) -> 0 | K97: =SUM('1:Direct_charges'!K112) -> 0 | L97: =SUM('1:Direct_charges'!L112) -> 0 | M97: =SUM('1:Direct_charges'!M112) -> 0 | N97: =SUM('1:Direct_charges'!N112) -> 0 | O97: =SUM('1:Direct_charges'!O112) -> 0 | P97: =SUM('1:Direct_charges'!P112) -> 0 | Q97: =SUM('1:Direct_charges'!Q112) -> 0 | R97: =SUM('1:Direct_charges'!R112) -> 0 | S97: =SUM('1:Direct_charges'!S112) -> 0 | T97: =SUM('1:Direct_charges'!T112) -> 0 | U97: =SUM('1:Direct_charges'!U112) -> 0 | V97: =SUM('1:Direct_charges'!V112) -> 0 | W97: =SUM('1:Direct_charges'!W112) -> 0 | X97: =SUM('1:Direct_charges'!X112) -> 0
A98: 1 | F98: Travel and subsistence | I98: =SUM('1:Direct_charges'!I113) -> 57087 | J98: =SUM('1:Direct_charges'!J113) -> 0 | K98: =SUM('1:Direct_charges'!K113) -> 0 | L98: =SUM('1:Direct_charges'!L113) -> 0 | M98: =SUM('1:Direct_charges'!M113) -> 0 | N98: =SUM('1:Direct_charges'!N113) -> 0 | O98: =SUM('1:Direct_charges'!O113) -> 0 | P98: =SUM('1:Direct_charges'!P113) -> 0 | Q98: =SUM('1:Direct_charges'!Q113) -> 0 | R98: =SUM('1:Direct_charges'!R113) -> 0 | S98: =SUM('1:Direct_charges'!S113) -> 0 | T98: =SUM('1:Direct_charges'!T113) -> 0 | U98: =SUM('1:Direct_charges'!U113) -> 0 | V98: =SUM('1:Direct_charges'!V113) -> 0 | W98: =SUM('1:Direct_charges'!W113) -> 0 | X98: =SUM('1:Direct_charges'!X113) -> 57087
A99: 1 | F99: Training and development | I99: =SUM('1:Direct_charges'!I114) -> 11639 | J99: =SUM('1:Direct_charges'!J114) -> 0 | K99: =SUM('1:Direct_charges'!K114) -> 0 | L99: =SUM('1:Direct_charges'!L114) -> 0 | M99: =SUM('1:Direct_charges'!M114) -> 0 | N99: =SUM('1:Direct_charges'!N114) -> 0 | O99: =SUM('1:Direct_charges'!O114) -> 0 | P99: =SUM('1:Direct_charges'!P114) -> 0 | Q99: =SUM('1:Direct_charges'!Q114) -> 0 | R99: =SUM('1:Direct_charges'!R114) -> 0 | S99: =SUM('1:Direct_charges'!S114) -> 0 | T99: =SUM('1:Direct_charges'!T114) -> 0 | U99: =SUM('1:Direct_charges'!U114) -> 0 | V99: =SUM('1:Direct_charges'!V114) -> 0 | W99: =SUM('1:Direct_charges'!W114) -> 0 | X99: =SUM('1:Direct_charges'!X114) -> 11639
A100: 1 | F100: Operating payments | I100: =SUM('1:Direct_charges'!I115) -> 2935 | J100: =SUM('1:Direct_charges'!J115) -> 0 | K100: =SUM('1:Direct_charges'!K115) -> 0 | L100: =SUM('1:Direct_charges'!L115) -> 0 | M100: =SUM('1:Direct_charges'!M115) -> 0 | N100: =SUM('1:Direct_charges'!N115) -> 0 | O100: =SUM('1:Direct_charges'!O115) -> 0 | P100: =SUM('1:Direct_charges'!P115) -> 0 | Q100: =SUM('1:Direct_charges'!Q115) -> 0 | R100: =SUM('1:Direct_charges'!R115) -> 0 | S100: =SUM('1:Direct_charges'!S115) -> 0 | T100: =SUM('1:Direct_charges'!T115) -> 0 | U100: =SUM('1:Direct_charges'!U115) -> 0 | V100: =SUM('1:Direct_charges'!V115) -> 0 | W100: =SUM('1:Direct_charges'!W115) -> 0 | X100: =SUM('1:Direct_charges'!X115) -> 2935
A101: =A63 -> 1 | F101: Venues and facilities | I101: =SUM('1:Direct_charges'!I116) -> 7210 | J101: =SUM('1:Direct_charges'!J116) -> 0 | K101: =SUM('1:Direct_charges'!K116) -> 0 | L101: =SUM('1:Direct_charges'!L116) -> 0 | M101: =SUM('1:Direct_charges'!M116) -> 0 | N101: =SUM('1:Direct_charges'!N116) -> 0 | O101: =SUM('1:Direct_charges'!O116) -> 0 | P101: =SUM('1:Direct_charges'!P116) -> 0 | Q101: =SUM('1:Direct_charges'!Q116) -> 0 | R101: =SUM('1:Direct_charges'!R116) -> 0 | S101: =SUM('1:Direct_charges'!S116) -> 0 | T101: =SUM('1:Direct_charges'!T116) -> 0 | U101: =SUM('1:Direct_charges'!U116) -> 0 | V101: =SUM('1:Direct_charges'!V116) -> 0 | W101: =SUM('1:Direct_charges'!W116) -> 0 | X101: =SUM('1:Direct_charges'!X116) -> 7210
A102: 0 | F102: Interest and rent on land | I102: =SUM('1:Direct_charges'!I117) -> 0 | J102: =SUM('1:Direct_charges'!J117) -> 0 | K102: =SUM('1:Direct_charges'!K117) -> 0 | L102: =SUM('1:Direct_charges'!L117) -> 0 | M102: =SUM('1:Direct_charges'!M117) -> 0 | N102: =SUM('1:Direct_charges'!N117) -> 0 | O102: =SUM('1:Direct_charges'!O117) -> 0 | P102: =SUM('1:Direct_charges'!P117) -> 0 | Q102: =SUM('1:Direct_charges'!Q117) -> 0 | R102: =SUM('1:Direct_charges'!R117) -> 0 | S102: =SUM('1:Direct_charges'!S117) -> 0 | T102: =SUM('1:Direct_charges'!T117) -> 0 | U102: =SUM('1:Direct_charges'!U117) -> 0 | V102: =SUM('1:Direct_charges'!V117) -> 0 | W102: =SUM('1:Direct_charges'!W117) -> 0 | X102: =SUM('1:Direct_charges'!X117) -> 0
A103: =A102 -> 0 | F103: Interest (Incl. interest on unitary payments (PPP)) | I103: =SUM('1:Direct_charges'!I118) -> 0 | J103: =SUM('1:Direct_charges'!J118) -> 0 | K103: =SUM('1:Direct_charges'!K118) -> 0 | L103: =SUM('1:Direct_charges'!L118) -> 0 | M103: =SUM('1:Direct_charges'!M118) -> 0 | N103: =SUM('1:Direct_charges'!N118) -> 0 | O103: =SUM('1:Direct_charges'!O118) -> 0 | P103: =SUM('1:Direct_charges'!P118) -> 0 | Q103: =SUM('1:Direct_charges'!Q118) -> 0 | R103: =SUM('1:Direct_charges'!R118) -> 0 | S103: =SUM('1:Direct_charges'!S118) -> 0 | T103: =SUM('1:Direct_charges'!T118) -> 0 | U103: =SUM('1:Direct_charges'!U118) -> 0 | V103: =SUM('1:Direct_charges'!V118) -> 0 | W103: =SUM('1:Direct_charges'!W118) -> 0 | X103: =SUM('1:Direct_charges'!X118) -> 0
A104: =A102 -> 0 | F104: Rent on land | I104: =SUM('1:Direct_charges'!I119) -> 0 | J104: =SUM('1:Direct_charges'!J119) -> 0 | K104: =SUM('1:Direct_charges'!K119) -> 0 | L104: =SUM('1:Direct_charges'!L119) -> 0 | M104: =SUM('1:Direct_charges'!M119) -> 0 | N104: =SUM('1:Direct_charges'!N119) -> 0 | O104: =SUM('1:Direct_charges'!O119) -> 0 | P104: =SUM('1:Direct_charges'!P119) -> 0 | Q104: =SUM('1:Direct_charges'!Q119) -> 0 | R104: =SUM('1:Direct_charges'!R119) -> 0 | S104: =SUM('1:Direct_charges'!S119) -> 0 | T104: =SUM('1:Direct_charges'!T119) -> 0 | U104: =SUM('1:Direct_charges'!U119) -> 0 | V104: =SUM('1:Direct_charges'!V119) -> 0 | W104: =SUM('1:Direct_charges'!W119) -> 0 | X104: =SUM('1:Direct_charges'!X119) -> 0
A105: 1 | F105: Transfers and subsidies | I105: =SUM('1:Direct_charges'!I120) -> 2582803 | J105: =SUM('1:Direct_charges'!J120) -> 0 | K105: =SUM('1:Direct_charges'!K120) -> 0 | L105: =SUM('1:Direct_charges'!L120) -> 0 | M105: =SUM('1:Direct_charges'!M120) -> 0 | N105: =SUM('1:Direct_charges'!N120) -> 0 | O105: =SUM('1:Direct_charges'!O120) -> 0 | P105: =SUM('1:Direct_charges'!P120) -> 0 | Q105: =SUM('1:Direct_charges'!Q120) -> 0 | R105: =SUM('1:Direct_charges'!R120) -> 0 | S105: =SUM('1:Direct_charges'!S120) -> 0 | T105: =SUM('1:Direct_charges'!T120) -> 0 | U105: =SUM('1:Direct_charges'!U120) -> 0 | V105: =SUM('1:Direct_charges'!V120) -> 0 | W105: =SUM('1:Direct_charges'!W120) -> 0 | X105: =SUM('1:Direct_charges'!X120) -> 2582803
A106: =IF(SUM(COUNTIF(I106:X106,"<>0")-COUNTBLANK(I106:X106))<>0,1,0) -> 1 | F106: Provinces and municipalities | I106: =SUM('1:Direct_charges'!I121) -> 19 | J106: =SUM('1:Direct_charges'!J121) -> 0 | K106: =SUM('1:Direct_charges'!K121) -> 0 | L106: =SUM('1:Direct_charges'!L121) -> 0 | M106: =SUM('1:Direct_charges'!M121) -> 0 | N106: =SUM('1:Direct_charges'!N121) -> 0 | O106: =SUM('1:Direct_charges'!O121) -> 0 | P106: =SUM('1:Direct_charges'!P121) -> 0 | Q106: =SUM('1:Direct_charges'!Q121) -> 0 | R106: =SUM('1:Direct_charges'!R121) -> 0 | S106: =SUM('1:Direct_charges'!S121) -> 0 | T106: =SUM('1:Direct_charges'!T121) -> 0 | U106: =SUM('1:Direct_charges'!U121) -> 0 | V106: =SUM('1:Direct_charges'!V121) -> 0 | W106: =SUM('1:Direct_charges'!W121) -> 0 | X106: =SUM('1:Direct_charges'!X121) -> 19
A107: 0 | F107: Provinces | I107: =SUM('1:Direct_charges'!I122) -> 0 | J107: =SUM('1:Direct_charges'!J122) -> 0 | K107: =SUM('1:Direct_charges'!K122) -> 0 | L107: =SUM('1:Direct_charges'!L122) -> 0 | M107: =SUM('1:Direct_charges'!M122) -> 0 | N107: =SUM('1:Direct_charges'!N122) -> 0 | O107: =SUM('1:Direct_charges'!O122) -> 0 | P107: =SUM('1:Direct_charges'!P122) -> 0 | Q107: =SUM('1:Direct_charges'!Q122) -> 0 | R107: =SUM('1:Direct_charges'!R122) -> 0 | S107: =SUM('1:Direct_charges'!S122) -> 0 | T107: =SUM('1:Direct_charges'!T122) -> 0 | U107: =SUM('1:Direct_charges'!U122) -> 0 | V107: =SUM('1:Direct_charges'!V122) -> 0 | W107: =SUM('1:Direct_charges'!W122) -> 0 | X107: =SUM('1:Direct_charges'!X122) -> 0
A108: =A107 -> 0 | F108: Provincial Revenue Funds | I108: =SUM('1:Direct_charges'!I123) -> 0 | J108: =SUM('1:Direct_charges'!J123) -> 0 | K108: =SUM('1:Direct_charges'!K123) -> 0 | L108: =SUM('1:Direct_charges'!L123) -> 0 | M108: =SUM('1:Direct_charges'!M123) -> 0 | N108: =SUM('1:Direct_charges'!N123) -> 0 | O108: =SUM('1:Direct_charges'!O123) -> 0 | P108: =SUM('1:Direct_charges'!P123) -> 0 | Q108: =SUM('1:Direct_charges'!Q123) -> 0 | R108: =SUM('1:Direct_charges'!R123) -> 0 | S108: =SUM('1:Direct_charges'!S123) -> 0 | T108: =SUM('1:Direct_charges'!T123) -> 0 | U108: =SUM('1:Direct_charges'!U123) -> 0 | V108: =SUM('1:Direct_charges'!V123) -> 0 | W108: =SUM('1:Direct_charges'!W123) -> 0 | X108: =SUM('1:Direct_charges'!X123) -> 0
A109: =A107 -> 0 | F109: Provincial agencies and funds | I109: =SUM('1:Direct_charges'!I124) -> 0 | J109: =SUM('1:Direct_charges'!J124) -> 0 | K109: =SUM('1:Direct_charges'!K124) -> 0 | L109: =SUM('1:Direct_charges'!L124) -> 0 | M109: =SUM('1:Direct_charges'!M124) -> 0 | N109: =SUM('1:Direct_charges'!N124) -> 0 | O109: =SUM('1:Direct_charges'!O124) -> 0 | P109: =SUM('1:Direct_charges'!P124) -> 0 | Q109: =SUM('1:Direct_charges'!Q124) -> 0 | R109: =SUM('1:Direct_charges'!R124) -> 0 | S109: =SUM('1:Direct_charges'!S124) -> 0 | T109: =SUM('1:Direct_charges'!T124) -> 0 | U109: =SUM('1:Direct_charges'!U124) -> 0 | V109: =SUM('1:Direct_charges'!V124) -> 0 | W109: =SUM('1:Direct_charges'!W124) -> 0 | X109: =SUM('1:Direct_charges'!X124) -> 0
A110: =IF(SUM(COUNTIF(I110:X110,"<>0")-COUNTBLANK(I110:X110))<>0,1,0) -> 1 | F110: Municipalities | I110: =SUM('1:Direct_charges'!I125) -> 19 | J110: =SUM('1:Direct_charges'!J125) -> 0 | K110: =SUM('1:Direct_charges'!K125) -> 0 | L110: =SUM('1:Direct_charges'!L125) -> 0 | M110: =SUM('1:Direct_charges'!M125) -> 0 | N110: =SUM('1:Direct_charges'!N125) -> 0 | O110: =SUM('1:Direct_charges'!O125) -> 0 | P110: =SUM('1:Direct_charges'!P125) -> 0 | Q110: =SUM('1:Direct_charges'!Q125) -> 0 | R110: =SUM('1:Direct_charges'!R125) -> 0 | S110: =SUM('1:Direct_charges'!S125) -> 0 | T110: =SUM('1:Direct_charges'!T125) -> 0 | U110: =SUM('1:Direct_charges'!U125) -> 0 | V110: =SUM('1:Direct_charges'!V125) -> 0 | W110: =SUM('1:Direct_charges'!W125) -> 0 | X110: =SUM('1:Direct_charges'!X125) -> 19
A111: =A110 -> 1 | F111: Municipal bank accounts | I111: =SUM('1:Direct_charges'!I126) -> 19 | J111: =SUM('1:Direct_charges'!J126) -> 0 | K111: =SUM('1:Direct_charges'!K126) -> 0 | L111: =SUM('1:Direct_charges'!L126) -> 0 | M111: =SUM('1:Direct_charges'!M126) -> 0 | N111: =SUM('1:Direct_charges'!N126) -> 0 | O111: =SUM('1:Direct_charges'!O126) -> 0 | P111: =SUM('1:Direct_charges'!P126) -> 0 | Q111: =SUM('1:Direct_charges'!Q126) -> 0 | R111: =SUM('1:Direct_charges'!R126) -> 0 | S111: =SUM('1:Direct_charges'!S126) -> 0 | T111: =SUM('1:Direct_charges'!T126) -> 0 | U111: =SUM('1:Direct_charges'!U126) -> 0 | V111: =SUM('1:Direct_charges'!V126) -> 0 | W111: =SUM('1:Direct_charges'!W126) -> 0 | X111: =SUM('1:Direct_charges'!X126) -> 19
A112: =A110 -> 1 | F112: Municipal agencies and funds | I112: =SUM('1:Direct_charges'!I127) -> 0 | J112: =SUM('1:Direct_charges'!J127) -> 0 | K112: =SUM('1:Direct_charges'!K127) -> 0 | L112: =SUM('1:Direct_charges'!L127) -> 0 | M112: =SUM('1:Direct_charges'!M127) -> 0 | N112: =SUM('1:Direct_charges'!N127) -> 0 | O112: =SUM('1:Direct_charges'!O127) -> 0 | P112: =SUM('1:Direct_charges'!P127) -> 0 | Q112: =SUM('1:Direct_charges'!Q127) -> 0 | R112: =SUM('1:Direct_charges'!R127) -> 0 | S112: =SUM('1:Direct_charges'!S127) -> 0 | T112: =SUM('1:Direct_charges'!T127) -> 0 | U112: =SUM('1:Direct_charges'!U127) -> 0 | V112: =SUM('1:Direct_charges'!V127) -> 0 | W112: =SUM('1:Direct_charges'!W127) -> 0 | X112: =SUM('1:Direct_charges'!X127) -> 0
A113: =IF(SUM(COUNTIF(I113:X113,"<>0")-COUNTBLANK(I113:X113))<>0,1,0) -> 1 | F113: Departmental agencies and accounts | I113: =SUM('1:Direct_charges'!I128) -> 1587582 | J113: =SUM('1:Direct_charges'!J128) -> 0 | K113: =SUM('1:Direct_charges'!K128) -> 0 | L113: =SUM('1:Direct_charges'!L128) -> 0 | M113: =SUM('1:Direct_charges'!M128) -> 0 | N113: =SUM('1:Direct_charges'!N128) -> 0 | O113: =SUM('1:Direct_charges'!O128) -> 0 | P113: =SUM('1:Direct_charges'!P128) -> 0 | Q113: =SUM('1:Direct_charges'!Q128) -> 0 | R113: =SUM('1:Direct_charges'!R128) -> 0 | S113: =SUM('1:Direct_charges'!S128) -> 0 | T113: =SUM('1:Direct_charges'!T128) -> 0 | U113: =SUM('1:Direct_charges'!U128) -> 0 | V113: =SUM('1:Direct_charges'!V128) -> 0 | W113: =SUM('1:Direct_charges'!W128) -> 0 | X113: =SUM('1:Direct_charges'!X128) -> 1587582
A114: =A113 -> 1 | F114: Social security funds | I114: =SUM('1:Direct_charges'!I129) -> 0 | J114: =SUM('1:Direct_charges'!J129) -> 0 | K114: =SUM('1:Direct_charges'!K129) -> 0 | L114: =SUM('1:Direct_charges'!L129) -> 0 | M114: =SUM('1:Direct_charges'!M129) -> 0 | N114: =SUM('1:Direct_charges'!N129) -> 0 | O114: =SUM('1:Direct_charges'!O129) -> 0 | P114: =SUM('1:Direct_charges'!P129) -> 0 | Q114: =SUM('1:Direct_charges'!Q129) -> 0 | R114: =SUM('1:Direct_charges'!R129) -> 0 | S114: =SUM('1:Direct_charges'!S129) -> 0 | T114: =SUM('1:Direct_charges'!T129) -> 0 | U114: =SUM('1:Direct_charges'!U129) -> 0 | V114: =SUM('1:Direct_charges'!V129) -> 0 | W114: =SUM('1:Direct_charges'!W129) -> 0 | X114: =SUM('1:Direct_charges'!X129) -> 0
A115: =A113 -> 1 | F115: Departmental agencies (non-business entities) | I115: =SUM('1:Direct_charges'!I130) -> 1587582 | J115: =SUM('1:Direct_charges'!J130) -> 0 | K115: =SUM('1:Direct_charges'!K130) -> 0 | L115: =SUM('1:Direct_charges'!L130) -> 0 | M115: =SUM('1:Direct_charges'!M130) -> 0 | N115: =SUM('1:Direct_charges'!N130) -> 0 | O115: =SUM('1:Direct_charges'!O130) -> 0 | P115: =SUM('1:Direct_charges'!P130) -> 0 | Q115: =SUM('1:Direct_charges'!Q130) -> 0 | R115: =SUM('1:Direct_charges'!R130) -> 0 | S115: =SUM('1:Direct_charges'!S130) -> 0 | T115: =SUM('1:Direct_charges'!T130) -> 0 | U115: =SUM('1:Direct_charges'!U130) -> 0 | V115: =SUM('1:Direct_charges'!V130) -> 0 | W115: =SUM('1:Direct_charges'!W130) -> 0 | X115: =SUM('1:Direct_charges'!X130) -> 1587582
A116: =IF(SUM(COUNTIF(I116:X116,"<>0")-COUNTBLANK(I116:X116))<>0,1,0) -> 0 | F116: Higher education institutions | I116: =SUM('1:Direct_charges'!I131) -> 0 | J116: =SUM('1:Direct_charges'!J131) -> 0 | K116: =SUM('1:Direct_charges'!K131) -> 0 | L116: =SUM('1:Direct_charges'!L131) -> 0 | M116: =SUM('1:Direct_charges'!M131) -> 0 | N116: =SUM('1:Direct_charges'!N131) -> 0 | O116: =SUM('1:Direct_charges'!O131) -> 0 | P116: =SUM('1:Direct_charges'!P131) -> 0 | Q116: =SUM('1:Direct_charges'!Q131) -> 0 | R116: =SUM('1:Direct_charges'!R131) -> 0 | S116: =SUM('1:Direct_charges'!S131) -> 0 | T116: =SUM('1:Direct_charges'!T131) -> 0 | U116: =SUM('1:Direct_charges'!U131) -> 0 | V116: =SUM('1:Direct_charges'!V131) -> 0 | W116: =SUM('1:Direct_charges'!W131) -> 0 | X116: =SUM('1:Direct_charges'!X131) -> 0
A117: 1 | F117: Foreign governments and international organisations | I117: =SUM('1:Direct_charges'!I132) -> 32724 | J117: =SUM('1:Direct_charges'!J132) -> 0 | K117: =SUM('1:Direct_charges'!K132) -> 0 | L117: =SUM('1:Direct_charges'!L132) -> 0 | M117: =SUM('1:Direct_charges'!M132) -> 0 | N117: =SUM('1:Direct_charges'!N132) -> 0 | O117: =SUM('1:Direct_charges'!O132) -> 0 | P117: =SUM('1:Direct_charges'!P132) -> 0 | Q117: =SUM('1:Direct_charges'!Q132) -> 0 | R117: =SUM('1:Direct_charges'!R132) -> 0 | S117: =SUM('1:Direct_charges'!S132) -> 0 | T117: =SUM('1:Direct_charges'!T132) -> 0 | U117: =SUM('1:Direct_charges'!U132) -> 0 | V117: =SUM('1:Direct_charges'!V132) -> 0 | W117: =SUM('1:Direct_charges'!W132) -> 0 | X117: =SUM('1:Direct_charges'!X132) -> 32724
A118: 1 | F118: Public corporations and private enterprises | I118: =SUM('1:Direct_charges'!I133) -> 962478 | J118: =SUM('1:Direct_charges'!J133) -> 0 | K118: =SUM('1:Direct_charges'!K133) -> 0 | L118: =SUM('1:Direct_charges'!L133) -> 0 | M118: =SUM('1:Direct_charges'!M133) -> 0 | N118: =SUM('1:Direct_charges'!N133) -> 0 | O118: =SUM('1:Direct_charges'!O133) -> 0 | P118: =SUM('1:Direct_charges'!P133) -> 0 | Q118: =SUM('1:Direct_charges'!Q133) -> 0 | R118: =SUM('1:Direct_charges'!R133) -> 0 | S118: =SUM('1:Direct_charges'!S133) -> 0 | T118: =SUM('1:Direct_charges'!T133) -> 0 | U118: =SUM('1:Direct_charges'!U133) -> 0 | V118: =SUM('1:Direct_charges'!V133) -> 0 | W118: =SUM('1:Direct_charges'!W133) -> 0 | X118: =SUM('1:Direct_charges'!X133) -> 962478
A119: 1 | F119: Public corporations | I119: =SUM('1:Direct_charges'!I134) -> 962478 | J119: =SUM('1:Direct_charges'!J134) -> 0 | K119: =SUM('1:Direct_charges'!K134) -> 0 | L119: =SUM('1:Direct_charges'!L134) -> 0 | M119: =SUM('1:Direct_charges'!M134) -> 0 | N119: =SUM('1:Direct_charges'!N134) -> 0 | O119: =SUM('1:Direct_charges'!O134) -> 0 | P119: =SUM('1:Direct_charges'!P134) -> 0 | Q119: =SUM('1:Direct_charges'!Q134) -> 0 | R119: =SUM('1:Direct_charges'!R134) -> 0 | S119: =SUM('1:Direct_charges'!S134) -> 0 | T119: =SUM('1:Direct_charges'!T134) -> 0 | U119: =SUM('1:Direct_charges'!U134) -> 0 | V119: =SUM('1:Direct_charges'!V134) -> 0 | W119: =SUM('1:Direct_charges'!W134) -> 0 | X119: =SUM('1:Direct_charges'!X134) -> 962478
A120: =A119 -> 1 | F120: Subsidies on products and production (pc) | I120: =SUM('1:Direct_charges'!I135) -> 0 | J120: =SUM('1:Direct_charges'!J135) -> 0 | K120: =SUM('1:Direct_charges'!K135) -> 0 | L120: =SUM('1:Direct_charges'!L135) -> 0 | M120: =SUM('1:Direct_charges'!M135) -> 0 | N120: =SUM('1:Direct_charges'!N135) -> 0 | O120: =SUM('1:Direct_charges'!O135) -> 0 | P120: =SUM('1:Direct_charges'!P135) -> 0 | Q120: =SUM('1:Direct_charges'!Q135) -> 0 | R120: =SUM('1:Direct_charges'!R135) -> 0 | S120: =SUM('1:Direct_charges'!S135) -> 0 | T120: =SUM('1:Direct_charges'!T135) -> 0 | U120: =SUM('1:Direct_charges'!U135) -> 0 | V120: =SUM('1:Direct_charges'!V135) -> 0 | W120: =SUM('1:Direct_charges'!W135) -> 0 | X120: =SUM('1:Direct_charges'!X135) -> 0
A121: =A119 -> 1 | F121: Other transfers to public corporations | I121: =SUM('1:Direct_charges'!I136) -> 962478 | J121: =SUM('1:Direct_charges'!J136) -> 0 | K121: =SUM('1:Direct_charges'!K136) -> 0 | L121: =SUM('1:Direct_charges'!L136) -> 0 | M121: =SUM('1:Direct_charges'!M136) -> 0 | N121: =SUM('1:Direct_charges'!N136) -> 0 | O121: =SUM('1:Direct_charges'!O136) -> 0 | P121: =SUM('1:Direct_charges'!P136) -> 0 | Q121: =SUM('1:Direct_charges'!Q136) -> 0 | R121: =SUM('1:Direct_charges'!R136) -> 0 | S121: =SUM('1:Direct_charges'!S136) -> 0 | T121: =SUM('1:Direct_charges'!T136) -> 0 | U121: =SUM('1:Direct_charges'!U136) -> 0 | V121: =SUM('1:Direct_charges'!V136) -> 0 | W121: =SUM('1:Direct_charges'!W136) -> 0 | X121: =SUM('1:Direct_charges'!X136) -> 962478
A122: =IF(SUM(COUNTIF(I122:X122,"<>0")-COUNTBLANK(I122:X122))<>0,1,0) -> 0 | F122: Private enterprises | I122: =SUM('1:Direct_charges'!I137) -> 0 | J122: =SUM('1:Direct_charges'!J137) -> 0 | K122: =SUM('1:Direct_charges'!K137) -> 0 | L122: =SUM('1:Direct_charges'!L137) -> 0 | M122: =SUM('1:Direct_charges'!M137) -> 0 | N122: =SUM('1:Direct_charges'!N137) -> 0 | O122: =SUM('1:Direct_charges'!O137) -> 0 | P122: =SUM('1:Direct_charges'!P137) -> 0 | Q122: =SUM('1:Direct_charges'!Q137) -> 0 | R122: =SUM('1:Direct_charges'!R137) -> 0 | S122: =SUM('1:Direct_charges'!S137) -> 0 | T122: =SUM('1:Direct_charges'!T137) -> 0 | U122: =SUM('1:Direct_charges'!U137) -> 0 | V122: =SUM('1:Direct_charges'!V137) -> 0 | W122: =SUM('1:Direct_charges'!W137) -> 0 | X122: =SUM('1:Direct_charges'!X137) -> 0
A123: =A122 -> 0 | F123: Subsidies on products and production (pe) | I123: =SUM('1:Direct_charges'!I138) -> 0 | J123: =SUM('1:Direct_charges'!J138) -> 0 | K123: =SUM('1:Direct_charges'!K138) -> 0 | L123: =SUM('1:Direct_charges'!L138) -> 0 | M123: =SUM('1:Direct_charges'!M138) -> 0 | N123: =SUM('1:Direct_charges'!N138) -> 0 | O123: =SUM('1:Direct_charges'!O138) -> 0 | P123: =SUM('1:Direct_charges'!P138) -> 0 | Q123: =SUM('1:Direct_charges'!Q138) -> 0 | R123: =SUM('1:Direct_charges'!R138) -> 0 | S123: =SUM('1:Direct_charges'!S138) -> 0 | T123: =SUM('1:Direct_charges'!T138) -> 0 | U123: =SUM('1:Direct_charges'!U138) -> 0 | V123: =SUM('1:Direct_charges'!V138) -> 0 | W123: =SUM('1:Direct_charges'!W138) -> 0 | X123: =SUM('1:Direct_charges'!X138) -> 0
A124: =A122 -> 0 | F124: Other transfers to private enterprises | I124: =SUM('1:Direct_charges'!I139) -> 0 | J124: =SUM('1:Direct_charges'!J139) -> 0 | K124: =SUM('1:Direct_charges'!K139) -> 0 | L124: =SUM('1:Direct_charges'!L139) -> 0 | M124: =SUM('1:Direct_charges'!M139) -> 0 | N124: =SUM('1:Direct_charges'!N139) -> 0 | O124: =SUM('1:Direct_charges'!O139) -> 0 | P124: =SUM('1:Direct_charges'!P139) -> 0 | Q124: =SUM('1:Direct_charges'!Q139) -> 0 | R124: =SUM('1:Direct_charges'!R139) -> 0 | S124: =SUM('1:Direct_charges'!S139) -> 0 | T124: =SUM('1:Direct_charges'!T139) -> 0 | U124: =SUM('1:Direct_charges'!U139) -> 0 | V124: =SUM('1:Direct_charges'!V139) -> 0 | W124: =SUM('1:Direct_charges'!W139) -> 0 | X124: =SUM('1:Direct_charges'!X139) -> 0
A125: =IF(A124=0,A118,IF(SUM(COUNTIF(I130:X130,"<>0")-COUNTBLANK(I130:X130))<>0,1,0)) -> 1 | F125: Non-profit institutions | I125: =SUM('1:Direct_charges'!I140) -> 0 | J125: =SUM('1:Direct_charges'!J140) -> 0 | K125: =SUM('1:Direct_charges'!K140) -> 0 | L125: =SUM('1:Direct_charges'!L140) -> 0 | M125: =SUM('1:Direct_charges'!M140) -> 0 | N125: =SUM('1:Direct_charges'!N140) -> 0 | O125: =SUM('1:Direct_charges'!O140) -> 0 | P125: =SUM('1:Direct_charges'!P140) -> 0 | Q125: =SUM('1:Direct_charges'!Q140) -> 0 | R125: =SUM('1:Direct_charges'!R140) -> 0 | S125: =SUM('1:Direct_charges'!S140) -> 0 | T125: =SUM('1:Direct_charges'!T140) -> 0 | U125: =SUM('1:Direct_charges'!U140) -> 0 | V125: =SUM('1:Direct_charges'!V140) -> 0 | W125: =SUM('1:Direct_charges'!W140) -> 0 | X125: =SUM('1:Direct_charges'!X140) -> 0
A126: =IF(SUM(COUNTIF(I126:X126,"<>0")-COUNTBLANK(I126:X126))<>0,1,0) -> 0 | F126: Households | I126: =SUM('1:Direct_charges'!I141) -> 0 | J126: =SUM('1:Direct_charges'!J141) -> 0 | K126: =SUM('1:Direct_charges'!K141) -> 0 | L126: =SUM('1:Direct_charges'!L141) -> 0 | M126: =SUM('1:Direct_charges'!M141) -> 0 | N126: =SUM('1:Direct_charges'!N141) -> 0 | O126: =SUM('1:Direct_charges'!O141) -> 0 | P126: =SUM('1:Direct_charges'!P141) -> 0 | Q126: =SUM('1:Direct_charges'!Q141) -> 0 | R126: =SUM('1:Direct_charges'!R141) -> 0 | S126: =SUM('1:Direct_charges'!S141) -> 0 | T126: =SUM('1:Direct_charges'!T141) -> 0 | U126: =SUM('1:Direct_charges'!U141) -> 0 | V126: =SUM('1:Direct_charges'!V141) -> 0 | W126: =SUM('1:Direct_charges'!W141) -> 0 | X126: =SUM('1:Direct_charges'!X141) -> 0
A127: =A126 -> 0 | F127: Social benefits | I127: =SUM('1:Direct_charges'!I142) -> 0 | J127: =SUM('1:Direct_charges'!J142) -> 0 | K127: =SUM('1:Direct_charges'!K142) -> 0 | L127: =SUM('1:Direct_charges'!L142) -> 0 | M127: =SUM('1:Direct_charges'!M142) -> 0 | N127: =SUM('1:Direct_charges'!N142) -> 0 | O127: =SUM('1:Direct_charges'!O142) -> 0 | P127: =SUM('1:Direct_charges'!P142) -> 0 | Q127: =SUM('1:Direct_charges'!Q142) -> 0 | R127: =SUM('1:Direct_charges'!R142) -> 0 | S127: =SUM('1:Direct_charges'!S142) -> 0 | T127: =SUM('1:Direct_charges'!T142) -> 0 | U127: =SUM('1:Direct_charges'!U142) -> 0 | V127: =SUM('1:Direct_charges'!V142) -> 0 | W127: =SUM('1:Direct_charges'!W142) -> 0 | X127: =SUM('1:Direct_charges'!X142) -> 0
A128: =A126 -> 0 | F128: Other transfers to households | I128: =SUM('1:Direct_charges'!I143) -> 0 | J128: =SUM('1:Direct_charges'!J143) -> 0 | K128: =SUM('1:Direct_charges'!K143) -> 0 | L128: =SUM('1:Direct_charges'!L143) -> 0 | M128: =SUM('1:Direct_charges'!M143) -> 0 | N128: =SUM('1:Direct_charges'!N143) -> 0 | O128: =SUM('1:Direct_charges'!O143) -> 0 | P128: =SUM('1:Direct_charges'!P143) -> 0 | Q128: =SUM('1:Direct_charges'!Q143) -> 0 | R128: =SUM('1:Direct_charges'!R143) -> 0 | S128: =SUM('1:Direct_charges'!S143) -> 0 | T128: =SUM('1:Direct_charges'!T143) -> 0 | U128: =SUM('1:Direct_charges'!U143) -> 0 | V128: =SUM('1:Direct_charges'!V143) -> 0 | W128: =SUM('1:Direct_charges'!W143) -> 0 | X128: =SUM('1:Direct_charges'!X143) -> 0
A129: 1 | F129: Payments for capital assets | I129: =SUM('1:Direct_charges'!I144) -> 31750 | J129: =SUM('1:Direct_charges'!J144) -> 0 | K129: =SUM('1:Direct_charges'!K144) -> 0 | L129: =SUM('1:Direct_charges'!L144) -> 0 | M129: =SUM('1:Direct_charges'!M144) -> 0 | N129: =SUM('1:Direct_charges'!N144) -> 0 | O129: =SUM('1:Direct_charges'!O144) -> 0 | P129: =SUM('1:Direct_charges'!P144) -> 0 | Q129: =SUM('1:Direct_charges'!Q144) -> 0 | R129: =SUM('1:Direct_charges'!R144) -> 0 | S129: =SUM('1:Direct_charges'!S144) -> 0 | T129: =SUM('1:Direct_charges'!T144) -> 0 | U129: =SUM('1:Direct_charges'!U144) -> 0 | V129: =SUM('1:Direct_charges'!V144) -> 0 | W129: =SUM('1:Direct_charges'!W144) -> 0 | X129: =SUM('1:Direct_charges'!X144) -> 31750
A130: =IF(SUM(COUNTIF(I130:X130,"<>0")-COUNTBLANK(I130:X130))<>0,1,0) -> 0 | F130: Buildings and other fixed structures | I130: =SUM('1:Direct_charges'!I145) -> 0 | J130: =SUM('1:Direct_charges'!J145) -> 0 | K130: =SUM('1:Direct_charges'!K145) -> 0 | L130: =SUM('1:Direct_charges'!L145) -> 0 | M130: =SUM('1:Direct_charges'!M145) -> 0 | N130: =SUM('1:Direct_charges'!N145) -> 0 | O130: =SUM('1:Direct_charges'!O145) -> 0 | P130: =SUM('1:Direct_charges'!P145) -> 0 | Q130: =SUM('1:Direct_charges'!Q145) -> 0 | R130: =SUM('1:Direct_charges'!R145) -> 0 | S130: =SUM('1:Direct_charges'!S145) -> 0 | T130: =SUM('1:Direct_charges'!T145) -> 0 | U130: =SUM('1:Direct_charges'!U145) -> 0 | V130: =SUM('1:Direct_charges'!V145) -> 0 | W130: =SUM('1:Direct_charges'!W145) -> 0 | X130: =SUM('1:Direct_charges'!X145) -> 0
A131: =A130 -> 0 | F131: Buildings | I131: =SUM('1:Direct_charges'!I146) -> 0 | J131: =SUM('1:Direct_charges'!J146) -> 0 | K131: =SUM('1:Direct_charges'!K146) -> 0 | L131: =SUM('1:Direct_charges'!L146) -> 0 | M131: =SUM('1:Direct_charges'!M146) -> 0 | N131: =SUM('1:Direct_charges'!N146) -> 0 | O131: =SUM('1:Direct_charges'!O146) -> 0 | P131: =SUM('1:Direct_charges'!P146) -> 0 | Q131: =SUM('1:Direct_charges'!Q146) -> 0 | R131: =SUM('1:Direct_charges'!R146) -> 0 | S131: =SUM('1:Direct_charges'!S146) -> 0 | T131: =SUM('1:Direct_charges'!T146) -> 0 | U131: =SUM('1:Direct_charges'!U146) -> 0 | V131: =SUM('1:Direct_charges'!V146) -> 0 | W131: =SUM('1:Direct_charges'!W146) -> 0 | X131: =SUM('1:Direct_charges'!X146) -> 0
A132: =A130 -> 0 | F132: Other fixed structures | I132: =SUM('1:Direct_charges'!I147) -> 0 | J132: =SUM('1:Direct_charges'!J147) -> 0 | K132: =SUM('1:Direct_charges'!K147) -> 0 | L132: =SUM('1:Direct_charges'!L147) -> 0 | M132: =SUM('1:Direct_charges'!M147) -> 0 | N132: =SUM('1:Direct_charges'!N147) -> 0 | O132: =SUM('1:Direct_charges'!O147) -> 0 | P132: =SUM('1:Direct_charges'!P147) -> 0 | Q132: =SUM('1:Direct_charges'!Q147) -> 0 | R132: =SUM('1:Direct_charges'!R147) -> 0 | S132: =SUM('1:Direct_charges'!S147) -> 0 | T132: =SUM('1:Direct_charges'!T147) -> 0 | U132: =SUM('1:Direct_charges'!U147) -> 0 | V132: =SUM('1:Direct_charges'!V147) -> 0 | W132: =SUM('1:Direct_charges'!W147) -> 0 | X132: =SUM('1:Direct_charges'!X147) -> 0
A133: =IF(SUM(COUNTIF(I133:X133,"<>0")-COUNTBLANK(I133:X133))<>0,1,0) -> 1 | F133: Machinery and equipment | I133: =SUM('1:Direct_charges'!I148) -> 16945 | J133: =SUM('1:Direct_charges'!J148) -> 0 | K133: =SUM('1:Direct_charges'!K148) -> 0 | L133: =SUM('1:Direct_charges'!L148) -> 0 | M133: =SUM('1:Direct_charges'!M148) -> 0 | N133: =SUM('1:Direct_charges'!N148) -> 0 | O133: =SUM('1:Direct_charges'!O148) -> 0 | P133: =SUM('1:Direct_charges'!P148) -> 0 | Q133: =SUM('1:Direct_charges'!Q148) -> 0 | R133: =SUM('1:Direct_charges'!R148) -> 0 | S133: =SUM('1:Direct_charges'!S148) -> 0 | T133: =SUM('1:Direct_charges'!T148) -> 0 | U133: =SUM('1:Direct_charges'!U148) -> 0 | V133: =SUM('1:Direct_charges'!V148) -> 0 | W133: =SUM('1:Direct_charges'!W148) -> 0 | X133: =SUM('1:Direct_charges'!X148) -> 16945
A134: =A133 -> 1 | F134: Transport equipment | I134: =SUM('1:Direct_charges'!I149) -> 2327 | J134: =SUM('1:Direct_charges'!J149) -> 0 | K134: =SUM('1:Direct_charges'!K149) -> 0 | L134: =SUM('1:Direct_charges'!L149) -> 0 | M134: =SUM('1:Direct_charges'!M149) -> 0 | N134: =SUM('1:Direct_charges'!N149) -> 0 | O134: =SUM('1:Direct_charges'!O149) -> 0 | P134: =SUM('1:Direct_charges'!P149) -> 0 | Q134: =SUM('1:Direct_charges'!Q149) -> 0 | R134: =SUM('1:Direct_charges'!R149) -> 0 | S134: =SUM('1:Direct_charges'!S149) -> 0 | T134: =SUM('1:Direct_charges'!T149) -> 0 | U134: =SUM('1:Direct_charges'!U149) -> 0 | V134: =SUM('1:Direct_charges'!V149) -> 0 | W134: =SUM('1:Direct_charges'!W149) -> 0 | X134: =SUM('1:Direct_charges'!X149) -> 2327
A135: =A133 -> 1 | F135: Other machinery and equipment | I135: =SUM('1:Direct_charges'!I150) -> 14618 | J135: =SUM('1:Direct_charges'!J150) -> 0 | K135: =SUM('1:Direct_charges'!K150) -> 0 | L135: =SUM('1:Direct_charges'!L150) -> 0 | M135: =SUM('1:Direct_charges'!M150) -> 0 | N135: =SUM('1:Direct_charges'!N150) -> 0 | O135: =SUM('1:Direct_charges'!O150) -> 0 | P135: =SUM('1:Direct_charges'!P150) -> 0 | Q135: =SUM('1:Direct_charges'!Q150) -> 0 | R135: =SUM('1:Direct_charges'!R150) -> 0 | S135: =SUM('1:Direct_charges'!S150) -> 0 | T135: =SUM('1:Direct_charges'!T150) -> 0 | U135: =SUM('1:Direct_charges'!U150) -> 0 | V135: =SUM('1:Direct_charges'!V150) -> 0 | W135: =SUM('1:Direct_charges'!W150) -> 0 | X135: =SUM('1:Direct_charges'!X150) -> 14618
A136: =IF(SUM(COUNTIF(I136:X136,"<>0")-COUNTBLANK(I136:X136))<>0,1,0) -> 0 | F136: Heritage assets | I136: =SUM('1:Direct_charges'!I151) -> 0 | J136: =SUM('1:Direct_charges'!J151) -> 0 | K136: =SUM('1:Direct_charges'!K151) -> 0 | L136: =SUM('1:Direct_charges'!L151) -> 0 | M136: =SUM('1:Direct_charges'!M151) -> 0 | N136: =SUM('1:Direct_charges'!N151) -> 0 | O136: =SUM('1:Direct_charges'!O151) -> 0 | P136: =SUM('1:Direct_charges'!P151) -> 0 | Q136: =SUM('1:Direct_charges'!Q151) -> 0 | R136: =SUM('1:Direct_charges'!R151) -> 0 | S136: =SUM('1:Direct_charges'!S151) -> 0 | T136: =SUM('1:Direct_charges'!T151) -> 0 | U136: =SUM('1:Direct_charges'!U151) -> 0 | V136: =SUM('1:Direct_charges'!V151) -> 0 | W136: =SUM('1:Direct_charges'!W151) -> 0 | X136: =SUM('1:Direct_charges'!X151) -> 0
A137: 0 | F137: Specialised military assets | I137: =SUM('1:Direct_charges'!I152) -> 0 | J137: =SUM('1:Direct_charges'!J152) -> 0 | K137: =SUM('1:Direct_charges'!K152) -> 0 | L137: =SUM('1:Direct_charges'!L152) -> 0 | M137: =SUM('1:Direct_charges'!M152) -> 0 | N137: =SUM('1:Direct_charges'!N152) -> 0 | O137: =SUM('1:Direct_charges'!O152) -> 0 | P137: =SUM('1:Direct_charges'!P152) -> 0 | Q137: =SUM('1:Direct_charges'!Q152) -> 0 | R137: =SUM('1:Direct_charges'!R152) -> 0 | S137: =SUM('1:Direct_charges'!S152) -> 0 | T137: =SUM('1:Direct_charges'!T152) -> 0 | U137: =SUM('1:Direct_charges'!U152) -> 0 | V137: =SUM('1:Direct_charges'!V152) -> 0 | W137: =SUM('1:Direct_charges'!W152) -> 0 | X137: =SUM('1:Direct_charges'!X152) -> 0
A138: 0 | F138: Biological assets | I138: =SUM('1:Direct_charges'!I153) -> 0 | J138: =SUM('1:Direct_charges'!J153) -> 0 | K138: =SUM('1:Direct_charges'!K153) -> 0 | L138: =SUM('1:Direct_charges'!L153) -> 0 | M138: =SUM('1:Direct_charges'!M153) -> 0 | N138: =SUM('1:Direct_charges'!N153) -> 0 | O138: =SUM('1:Direct_charges'!O153) -> 0 | P138: =SUM('1:Direct_charges'!P153) -> 0 | Q138: =SUM('1:Direct_charges'!Q153) -> 0 | R138: =SUM('1:Direct_charges'!R153) -> 0 | S138: =SUM('1:Direct_charges'!S153) -> 0 | T138: =SUM('1:Direct_charges'!T153) -> 0 | U138: =SUM('1:Direct_charges'!U153) -> 0 | V138: =SUM('1:Direct_charges'!V153) -> 0 | W138: =SUM('1:Direct_charges'!W153) -> 0 | X138: =SUM('1:Direct_charges'!X153) -> 0
A139: 0 | F139: Land and sub-soil assets | I139: =SUM('1:Direct_charges'!I154) -> 0 | J139: =SUM('1:Direct_charges'!J154) -> 0 | K139: =SUM('1:Direct_charges'!K154) -> 0 | L139: =SUM('1:Direct_charges'!L154) -> 0 | M139: =SUM('1:Direct_charges'!M154) -> 0 | N139: =SUM('1:Direct_charges'!N154) -> 0 | O139: =SUM('1:Direct_charges'!O154) -> 0 | P139: =SUM('1:Direct_charges'!P154) -> 0 | Q139: =SUM('1:Direct_charges'!Q154) -> 0 | R139: =SUM('1:Direct_charges'!R154) -> 0 | S139: =SUM('1:Direct_charges'!S154) -> 0 | T139: =SUM('1:Direct_charges'!T154) -> 0 | U139: =SUM('1:Direct_charges'!U154) -> 0 | V139: =SUM('1:Direct_charges'!V154) -> 0 | W139: =SUM('1:Direct_charges'!W154) -> 0 | X139: =SUM('1:Direct_charges'!X154) -> 0
A140: 1 | F140: Software and other intangible assets | I140: =SUM('1:Direct_charges'!I155) -> 14805 | J140: =SUM('1:Direct_charges'!J155) -> 0 | K140: =SUM('1:Direct_charges'!K155) -> 0 | L140: =SUM('1:Direct_charges'!L155) -> 0 | M140: =SUM('1:Direct_charges'!M155) -> 0 | N140: =SUM('1:Direct_charges'!N155) -> 0 | O140: =SUM('1:Direct_charges'!O155) -> 0 | P140: =SUM('1:Direct_charges'!P155) -> 0 | Q140: =SUM('1:Direct_charges'!Q155) -> 0 | R140: =SUM('1:Direct_charges'!R155) -> 0 | S140: =SUM('1:Direct_charges'!S155) -> 0 | T140: =SUM('1:Direct_charges'!T155) -> 0 | U140: =SUM('1:Direct_charges'!U155) -> 0 | V140: =SUM('1:Direct_charges'!V155) -> 0 | W140: =SUM('1:Direct_charges'!W155) -> 0 | X140: =SUM('1:Direct_charges'!X155) -> 14805
A141: 1 | F141: Payments for financial assets | I141: =SUM('1:Direct_charges'!I156) -> 0 | J141: =SUM('1:Direct_charges'!J156) -> 0 | K141: =SUM('1:Direct_charges'!K156) -> 0 | L141: =SUM('1:Direct_charges'!L156) -> 0 | M141: =SUM('1:Direct_charges'!M156) -> 0 | N141: =SUM('1:Direct_charges'!N156) -> 0 | O141: =SUM('1:Direct_charges'!O156) -> 0 | P141: =SUM('1:Direct_charges'!P156) -> 0 | Q141: =SUM('1:Direct_charges'!Q156) -> 0 | R141: =SUM('1:Direct_charges'!R156) -> 0 | S141: =SUM('1:Direct_charges'!S156) -> 0 | T141: =SUM('1:Direct_charges'!T156) -> 0 | U141: =SUM('1:Direct_charges'!U156) -> 0 | V141: =SUM('1:Direct_charges'!V156) -> 0 | W141: =SUM('1:Direct_charges'!W156) -> 0 | X141: =SUM('1:Direct_charges'!X156) -> 0
A142: 1
A143: 1 | F143: Total | I143: =SUM(I59,I105,I129,I141) -> 3394537 | J143: =SUM(J59,J105,J129,J141) -> 0 | K143: =SUM(K59,K105,K129,K141) -> 0 | L143: 0 | M143: 0 | N143: =SUM(N59,N105,N129,N141) -> 0 | O143: 0 | P143: 0 | Q143: 0 | R143: 0 | S143: 0 | T143: 0 | U143: 0 | V143: 0 | W143: 0 | X143: 3394537
A144: 1
A145: 1 | F145: Check: Programmes less Economic classification | I145: =I54-I143 -> 0 | J145: =J54-J143 -> 0 | K145: 0 | L145: 0 | M145: 0 | N145: 0 | O145: 0 | P145: 0 | Q145: 0 | R145: 0 | S145: 0 | T145: 0 | U145: 0 | V145: 0 | W145: 0 | X145: 0
A146: 1
A147: 1
A148: 1
A149: 1
A150: 1
A151: 1
A152: 1
A153: 1 | F153: Division of Revenue | H153: =+$H$26 -> 2020/21
A154: 1 | K154: Adjustments appropriation | M154: Special Adjustments Appropriation
A155: 1 | I155: Voted (Main appropriation) | J155: Special appropriation | K155: Roll-overs | L155: Unforeseeable/ unavoidable | M155: Utilisation of unspend funds Virements & Shifts | N155: Significant and unforeseeable economic and financial events | P155: Shifting of funds following function shift | R155: Self-financing | S155: Declared unspent funds | T155: Unforeseeable and unavoidable expenditure | U155: Announced in the budget speech | V155: Section 16 of the PFMA | W155: Total special adjustments appropriation | X155: Adjusted appropriation
F156: Rand thousand | N156: Suspension of funds | O156: Allocation of funds | P156: Within the vote | Q156: Between votes
A157: 1 | F157: National | I157: =I54-(I158+I161) -> 3394537 | J157: =J54-(J158+J161) -> 0 | K157: 0 | L157: 0 | M157: 0 | N157: 0 | O157: 0 | P157: 0 | Q157: 0 | R157: 0 | S157: 0 | T157: 0 | U157: 0 | V157: 0 | W157: 0 | X157: 3394537
A158: 1 | F158: Provincial | I158: =SUM(I159:I160) -> 0 | J158: =SUM(J159:J160) -> 0 | K158: 0 | L158: 0 | M158: 0 | N158: 0 | O158: 0 | P158: 0 | Q158: 0 | R158: 0 | S158: 0 | T158: 0 | U158: 0 | V158: 0 | W158: 0 | X158: 0
A159: 1 | F159: Provincial equitable share | I159: =SUMPRODUCT(SUMIF(INDIRECT("'"&SheetList&"'!$AC$268:$AC$281"),$F159,INDIRECT("'"&SheetList&"'!I$268:I$281"))) -> 0 | J159: =SUMPRODUCT(SUMIF(INDIRECT("'"&SheetList&"'!$AC$268:$AC$281"),$F159,INDIRECT("'"&SheetList&"'!J$268:J$281"))) -> 0 | K159: =SUMPRODUCT(SUMIF(INDIRECT("'"&SheetList&"'!$AC$268:$AC$281"),$F159,INDIRECT("'"&SheetList&"'!K$268:K$281"))) -> 0 | L159: =SUMPRODUCT(SUMIF(INDIRECT("'"&SheetList&"'!$AC$268:$AC$281"),$F159,INDIRECT("'"&SheetList&"'!L$268:L$281"))) -> 0 | M159: =SUMPRODUCT(SUMIF(INDIRECT("'"&SheetList&"'!$AC$268:$AC$281"),$F159,INDIRECT("'"&SheetList&"'!M$268:M$281"))) -> 0 | N159: =SUMPRODUCT(SUMIF(INDIRECT("'"&SheetList&"'!$AC$268:$AC$281"),$F159,INDIRECT("'"&SheetList&"'!N$268:N$281"))) -> 0 | O159: =SUMPRODUCT(SUMIF(INDIRECT("'"&SheetList&"'!$AC$268:$AC$281"),$F159,INDIRECT("'"&SheetList&"'!O$268:O$281"))) -> 0 | P159: =SUMPRODUCT(SUMIF(INDIRECT("'"&SheetList&"'!$AC$268:$AC$281"),$F159,INDIRECT("'"&SheetList&"'!P$268:P$281"))) -> 0 | Q159: =SUMPRODUCT(SUMIF(INDIRECT("'"&SheetList&"'!$AC$268:$AC$281"),$F159,INDIRECT("'"&SheetList&"'!Q$268:Q$281"))) -> 0 | R159: =SUMPRODUCT(SUMIF(INDIRECT("'"&SheetList&"'!$AC$268:$AC$281"),$F159,INDIRECT("'"&SheetList&"'!R$268:R$281"))) -> 0 | S159: =SUMPRODUCT(SUMIF(INDIRECT("'"&SheetList&"'!$AC$268:$AC$281"),$F159,INDIRECT("'"&SheetList&"'!S$268:S$281"))) -> 0 | T159: =SUMPRODUCT(SUMIF(INDIRECT("'"&SheetList&"'!$AC$268:$AC$281"),$F159,INDIRECT("'"&SheetList&"'!T$268:T$281"))) -> 0 | U159: =SUMPRODUCT(SUMIF(INDIRECT("'"&SheetList&"'!$AC$268:$AC$281"),$F159,INDIRECT("'"&SheetList&"'!U$268:U$281"))) -> 0 | V159: =SUMPRODUCT(SUMIF(INDIRECT("'"&SheetList&"'!$AC$268:$AC$281"),$F159,INDIRECT("'"&SheetList&"'!V$268:V$281"))) -> 0 | W159: =SUMPRODUCT(SUMIF(INDIRECT("'"&SheetList&"'!$AC$268:$AC$281"),$F159,INDIRECT("'"&SheetList&"'!W$268:W$281"))) -> 0 | X159: =SUMPRODUCT(SUMIF(INDIRECT("'"&SheetList&"'!$AC$268:$AC$281"),$F159,INDIRECT("'"&SheetList&"'!X$268:X$281"))) -> 0
A160: 1 | F160: Provincial conditional grants (Direct) | I160: =SUMPRODUCT(SUMIF(INDIRECT("'"&SheetList&"'!$AC$268:$AC$281"),$F160,INDIRECT("'"&SheetList&"'!I$268:I$281"))) -> 0 | J160: =SUMPRODUCT(SUMIF(INDIRECT("'"&SheetList&"'!$AC$268:$AC$281"),$F160,INDIRECT("'"&SheetList&"'!J$268:J$281"))) -> 0 | K160: =SUMPRODUCT(SUMIF(INDIRECT("'"&SheetList&"'!$AC$268:$AC$281"),$F160,INDIRECT("'"&SheetList&"'!K$268:K$281"))) -> 0 | L160: =SUMPRODUCT(SUMIF(INDIRECT("'"&SheetList&"'!$AC$268:$AC$281"),$F160,INDIRECT("'"&SheetList&"'!L$268:L$281"))) -> 0 | M160: =SUMPRODUCT(SUMIF(INDIRECT("'"&SheetList&"'!$AC$268:$AC$281"),$F160,INDIRECT("'"&SheetList&"'!M$268:M$281"))) -> 0 | N160: =SUMPRODUCT(SUMIF(INDIRECT("'"&SheetList&"'!$AC$268:$AC$281"),$F160,INDIRECT("'"&SheetList&"'!N$268:N$281"))) -> 0 | O160: =SUMPRODUCT(SUMIF(INDIRECT("'"&SheetList&"'!$AC$268:$AC$281"),$F160,INDIRECT("'"&SheetList&"'!O$268:O$281"))) -> 0 | P160: =SUMPRODUCT(SUMIF(INDIRECT("'"&SheetList&"'!$AC$268:$AC$281"),$F160,INDIRECT("'"&SheetList&"'!P$268:P$281"))) -> 0 | Q160: =SUMPRODUCT(SUMIF(INDIRECT("'"&SheetList&"'!$AC$268:$AC$281"),$F160,INDIRECT("'"&SheetList&"'!Q$268:Q$281"))) -> 0 | R160: =SUMPRODUCT(SUMIF(INDIRECT("'"&SheetList&"'!$AC$268:$AC$281"),$F160,INDIRECT("'"&SheetList&"'!R$268:R$281"))) -> 0 | S160: =SUMPRODUCT(SUMIF(INDIRECT("'"&SheetList&"'!$AC$268:$AC$281"),$F160,INDIRECT("'"&SheetList&"'!S$268:S$281"))) -> 0 | T160: =SUMPRODUCT(SUMIF(INDIRECT("'"&SheetList&"'!$AC$268:$AC$281"),$F160,INDIRECT("'"&SheetList&"'!T$268:T$281"))) -> 0 | U160: =SUMPRODUCT(SUMIF(INDIRECT("'"&SheetList&"'!$AC$268:$AC$281"),$F160,INDIRECT("'"&SheetList&"'!U$268:U$281"))) -> 0 | V160: =SUMPRODUCT(SUMIF(INDIRECT("'"&SheetList&"'!$AC$268:$AC$281"),$F160,INDIRECT("'"&SheetList&"'!V$268:V$281"))) -> 0 | W160: =SUMPRODUCT(SUMIF(INDIRECT("'"&SheetList&"'!$AC$268:$AC$281"),$F160,INDIRECT("'"&SheetList&"'!W$268:W$281"))) -> 0 | X160: =SUMPRODUCT(SUMIF(INDIRECT("'"&SheetList&"'!$AC$268:$AC$281"),$F160,INDIRECT("'"&SheetList&"'!X$268:X$281"))) -> 0
A161: 1 | F161: Local | I161: =SUM(I162:I164) -> 0 | J161: =SUM(J162:J164) -> 0 | K161: 0 | L161: 0 | M161: 0 | N161: 0 | O161: 0 | P161: 0 | Q161: 0 | R161: 0 | S161: 0 | T161: 0 | U161: 0 | V161: 0 | W161: 0 | X161: 0
A162: 1 | F162: Local government equitable share | I162: =SUMPRODUCT(SUMIF(INDIRECT("'"&SheetList&"'!$AC$268:$AC$281"),$F162,INDIRECT("'"&SheetList&"'!I$268:I$281"))) -> 0 | J162: =SUMPRODUCT(SUMIF(INDIRECT("'"&SheetList&"'!$AC$268:$AC$281"),$F162,INDIRECT("'"&SheetList&"'!J$268:J$281"))) -> 0 | K162: =SUMPRODUCT(SUMIF(INDIRECT("'"&SheetList&"'!$AC$268:$AC$281"),$F162,INDIRECT("'"&SheetList&"'!K$268:K$281"))) -> 0 | L162: =SUMPRODUCT(SUMIF(INDIRECT("'"&SheetList&"'!$AC$268:$AC$281"),$F162,INDIRECT("'"&SheetList&"'!L$268:L$281"))) -> 0 | M162: =SUMPRODUCT(SUMIF(INDIRECT("'"&SheetList&"'!$AC$268:$AC$281"),$F162,INDIRECT("'"&SheetList&"'!M$268:M$281"))) -> 0 | N162: =SUMPRODUCT(SUMIF(INDIRECT("'"&SheetList&"'!$AC$268:$AC$281"),$F162,INDIRECT("'"&SheetList&"'!N$268:N$281"))) -> 0 | O162: =SUMPRODUCT(SUMIF(INDIRECT("'"&SheetList&"'!$AC$268:$AC$281"),$F162,INDIRECT("'"&SheetList&"'!O$268:O$281"))) -> 0 | P162: =SUMPRODUCT(SUMIF(INDIRECT("'"&SheetList&"'!$AC$268:$AC$281"),$F162,INDIRECT("'"&SheetList&"'!P$268:P$281"))) -> 0 | Q162: =SUMPRODUCT(SUMIF(INDIRECT("'"&SheetList&"'!$AC$268:$AC$281"),$F162,INDIRECT("'"&SheetList&"'!Q$268:Q$281"))) -> 0 | R162: =SUMPRODUCT(SUMIF(INDIRECT("'"&SheetList&"'!$AC$268:$AC$281"),$F162,INDIRECT("'"&SheetList&"'!R$268:R$281"))) -> 0 | S162: =SUMPRODUCT(SUMIF(INDIRECT("'"&SheetList&"'!$AC$268:$AC$281"),$F162,INDIRECT("'"&SheetList&"'!S$268:S$281"))) -> 0 | T162: =SUMPRODUCT(SUMIF(INDIRECT("'"&SheetList&"'!$AC$268:$AC$281"),$F162,INDIRECT("'"&SheetList&"'!T$268:T$281"))) -> 0 | U162: =SUMPRODUCT(SUMIF(INDIRECT("'"&SheetList&"'!$AC$268:$AC$281"),$F162,INDIRECT("'"&SheetList&"'!U$268:U$281"))) -> 0 | V162: =SUMPRODUCT(SUMIF(INDIRECT("'"&SheetList&"'!$AC$268:$AC$281"),$F162,INDIRECT("'"&SheetList&"'!V$268:V$281"))) -> 0 | W162: =SUMPRODUCT(SUMIF(INDIRECT("'"&SheetList&"'!$AC$268:$AC$281"),$F162,INDIRECT("'"&SheetList&"'!W$268:W$281"))) -> 0 | X162: =SUMPRODUCT(SUMIF(INDIRECT("'"&SheetList&"'!$AC$268:$AC$281"),$F162,INDIRECT("'"&SheetList&"'!X$268:X$281"))) -> 0
A163: 1 | F163: Local government conditional grants (Direct) | I163: =SUMPRODUCT(SUMIF(INDIRECT("'"&SheetList&"'!$AC$268:$AC$281"),$F163,INDIRECT("'"&SheetList&"'!I$268:I$281"))) -> 0 | J163: =SUMPRODUCT(SUMIF(INDIRECT("'"&SheetList&"'!$AC$268:$AC$281"),$F163,INDIRECT("'"&SheetList&"'!J$268:J$281"))) -> 0 | K163: =SUMPRODUCT(SUMIF(INDIRECT("'"&SheetList&"'!$AC$268:$AC$281"),$F163,INDIRECT("'"&SheetList&"'!K$268:K$281"))) -> 0 | L163: =SUMPRODUCT(SUMIF(INDIRECT("'"&SheetList&"'!$AC$268:$AC$281"),$F163,INDIRECT("'"&SheetList&"'!L$268:L$281"))) -> 0 | M163: =SUMPRODUCT(SUMIF(INDIRECT("'"&SheetList&"'!$AC$268:$AC$281"),$F163,INDIRECT("'"&SheetList&"'!M$268:M$281"))) -> 0 | N163: =SUMPRODUCT(SUMIF(INDIRECT("'"&SheetList&"'!$AC$268:$AC$281"),$F163,INDIRECT("'"&SheetList&"'!N$268:N$281"))) -> 0 | O163: =SUMPRODUCT(SUMIF(INDIRECT("'"&SheetList&"'!$AC$268:$AC$281"),$F163,INDIRECT("'"&SheetList&"'!O$268:O$281"))) -> 0 | P163: =SUMPRODUCT(SUMIF(INDIRECT("'"&SheetList&"'!$AC$268:$AC$281"),$F163,INDIRECT("'"&SheetList&"'!P$268:P$281"))) -> 0 | Q163: =SUMPRODUCT(SUMIF(INDIRECT("'"&SheetList&"'!$AC$268:$AC$281"),$F163,INDIRECT("'"&SheetList&"'!Q$268:Q$281"))) -> 0 | R163: =SUMPRODUCT(SUMIF(INDIRECT("'"&SheetList&"'!$AC$268:$AC$281"),$F163,INDIRECT("'"&SheetList&"'!R$268:R$281"))) -> 0 | S163: =SUMPRODUCT(SUMIF(INDIRECT("'"&SheetList&"'!$AC$268:$AC$281"),$F163,INDIRECT("'"&SheetList&"'!S$268:S$281"))) -> 0 | T163: =SUMPRODUCT(SUMIF(INDIRECT("'"&SheetList&"'!$AC$268:$AC$281"),$F163,INDIRECT("'"&SheetList&"'!T$268:T$281"))) -> 0 | U163: =SUMPRODUCT(SUMIF(INDIRECT("'"&SheetList&"'!$AC$268:$AC$281"),$F163,INDIRECT("'"&SheetList&"'!U$268:U$281"))) -> 0 | V163: =SUMPRODUCT(SUMIF(INDIRECT("'"&SheetList&"'!$AC$268:$AC$281"),$F163,INDIRECT("'"&SheetList&"'!V$268:V$281"))) -> 0 | W163: =SUMPRODUCT(SUMIF(INDIRECT("'"&SheetList&"'!$AC$268:$AC$281"),$F163,INDIRECT("'"&SheetList&"'!W$268:W$281"))) -> 0 | X163: =SUMPRODUCT(SUMIF(INDIRECT("'"&SheetList&"'!$AC$268:$AC$281"),$F163,INDIRECT("'"&SheetList&"'!X$268:X$281"))) -> 0
A164: 1 | F164: General Fuel Levy sharing with Metropolitan Municipalities | I164: =SUMPRODUCT(SUMIF(INDIRECT("'"&SheetList&"'!$AC$268:$AC$281"),$F164,INDIRECT("'"&SheetList&"'!I$268:I$281"))) -> 0 | J164: =SUMPRODUCT(SUMIF(INDIRECT("'"&SheetList&"'!$AC$268:$AC$281"),$F164,INDIRECT("'"&SheetList&"'!J$268:J$281"))) -> 0 | K164: =SUMPRODUCT(SUMIF(INDIRECT("'"&SheetList&"'!$AC$268:$AC$281"),$F164,INDIRECT("'"&SheetList&"'!K$268:K$281"))) -> 0 | L164: =SUMPRODUCT(SUMIF(INDIRECT("'"&SheetList&"'!$AC$268:$AC$281"),$F164,INDIRECT("'"&SheetList&"'!L$268:L$281"))) -> 0 | M164: =SUMPRODUCT(SUMIF(INDIRECT("'"&SheetList&"'!$AC$268:$AC$281"),$F164,INDIRECT("'"&SheetList&"'!M$268:M$281"))) -> 0 | N164: =SUMPRODUCT(SUMIF(INDIRECT("'"&SheetList&"'!$AC$268:$AC$281"),$F164,INDIRECT("'"&SheetList&"'!N$268:N$281"))) -> 0 | O164: =SUMPRODUCT(SUMIF(INDIRECT("'"&SheetList&"'!$AC$268:$AC$281"),$F164,INDIRECT("'"&SheetList&"'!O$268:O$281"))) -> 0 | P164: =SUMPRODUCT(SUMIF(INDIRECT("'"&SheetList&"'!$AC$268:$AC$281"),$F164,INDIRECT("'"&SheetList&"'!P$268:P$281"))) -> 0 | Q164: =SUMPRODUCT(SUMIF(INDIRECT("'"&SheetList&"'!$AC$268:$AC$281"),$F164,INDIRECT("'"&SheetList&"'!Q$268:Q$281"))) -> 0 | R164: =SUMPRODUCT(SUMIF(INDIRECT("'"&SheetList&"'!$AC$268:$AC$281"),$F164,INDIRECT("'"&SheetList&"'!R$268:R$281"))) -> 0 | S164: =SUMPRODUCT(SUMIF(INDIRECT("'"&SheetList&"'!$AC$268:$AC$281"),$F164,INDIRECT("'"&SheetList&"'!S$268:S$281"))) -> 0 | T164: =SUMPRODUCT(SUMIF(INDIRECT("'"&SheetList&"'!$AC$268:$AC$281"),$F164,INDIRECT("'"&SheetList&"'!T$268:T$281"))) -> 0 | U164: =SUMPRODUCT(SUMIF(INDIRECT("'"&SheetList&"'!$AC$268:$AC$281"),$F164,INDIRECT("'"&SheetList&"'!U$268:U$281"))) -> 0 | V164: =SUMPRODUCT(SUMIF(INDIRECT("'"&SheetList&"'!$AC$268:$AC$281"),$F164,INDIRECT("'"&SheetList&"'!V$268:V$281"))) -> 0 | W164: =SUMPRODUCT(SUMIF(INDIRECT("'"&SheetList&"'!$AC$268:$AC$281"),$F164,INDIRECT("'"&SheetList&"'!W$268:W$281"))) -> 0 | X164: =SUMPRODUCT(SUMIF(INDIRECT("'"&SheetList&"'!$AC$268:$AC$281"),$F164,INDIRECT("'"&SheetList&"'!X$268:X$281"))) -> 0
A165: 1 | F165: TOTAL | I165: =SUM(I157,I158,I161) -> 3394537 | J165: =SUM(J157,J158,J161) -> 0 | K165: 0 | L165: 0 | M165: 0 | N165: 0 | O165: 0 | P165: 0 | Q165: 0 | R165: 0 | S165: 0 | T165: 0 | U165: 0 | V165: 0 | W165: 0 | X165: 3394537
A166: 1
A167: 1 | F167: Percentage shares:
A168: 1 | F168: National | I168: =IFERROR(I157/I$165,0) -> 1 | J168: =IFERROR(J157/J$165,0) -> 0 | K168: 0 | L168: 0 | M168: 0 | N168: 0 | O168: 0 | P168: 0 | Q168: 0 | R168: 0 | S168: 0 | T168: 0 | U168: 0 | V168: 0 | W168: 0 | X168: 1
A169: 1 | F169: Provincial | I169: =IFERROR(I158/I$165,0) -> 0 | J169: =IFERROR(J158/J$165,0) -> 0 | K169: 0 | L169: 0 | M169: 0 | N169: 0 | O169: 0 | P169: 0 | Q169: 0 | R169: 0 | S169: 0 | T169: 0 | U169: 0 | V169: 0 | W169: 0 | X169: 0
A170: 1 | F170: Provincial equitable share | I170: =IFERROR(I159/I$165,0) -> 0 | J170: =IFERROR(J159/J$165,0) -> 0 | K170: 0 | L170: 0 | M170: 0 | N170: 0 | O170: 0 | P170: 0 | Q170: 0 | R170: 0 | S170: 0 | T170: 0 | U170: 0 | V170: 0 | W170: 0 | X170: 0
A171: 1 | F171: Provincial conditional grants (Direct) | I171: =IFERROR(I160/I$165,0) -> 0 | J171: =IFERROR(J160/J$165,0) -> 0 | K171: 0 | L171: 0 | M171: 0 | N171: 0 | O171: 0 | P171: 0 | Q171: 0 | R171: 0 | S171: 0 | T171: 0 | U171: 0 | V171: 0 | W171: 0 | X171: 0
A172: 1 | F172: Local | I172: =IFERROR(I161/I$165,0) -> 0 | J172: =IFERROR(J161/J$165,0) -> 0 | K172: 0 | L172: 0 | M172: 0 | N172: 0 | O172: 0 | P172: 0 | Q172: 0 | R172: 0 | S172: 0 | T172: 0 | U172: 0 | V172: 0 | W172: 0 | X172: 0
A173: 1 | F173: Local government equitable share | I173: =IFERROR(I162/I$165,0) -> 0 | J173: =IFERROR(J162/J$165,0) -> 0 | K173: 0 | L173: 0 | M173: 0 | N173: 0 | O173: 0 | P173: 0 | Q173: 0 | R173: 0 | S173: 0 | T173: 0 | U173: 0 | V173: 0 | W173: 0 | X173: 0
A174: 1 | F174: Local government conditional grants (Direct) | I174: =IFERROR(I163/I$165,0) -> 0 | J174: =IFERROR(J163/J$165,0) -> 0 | K174: 0 | L174: 0 | M174: 0 | N174: 0 | O174: 0 | P174: 0 | Q174: 0 | R174: 0 | S174: 0 | T174: 0 | U174: 0 | V174: 0 | W174: 0 | X174: 0
A175: 1 | F175: General Fuel Levy sharing with Metropolitan Municipalities | I175: =IFERROR(I164/I$165,0) -> 0 | J175: =IFERROR(J164/J$165,0) -> 0 | K175: 0 | L175: 0 | M175: 0 | N175: 0 | O175: 0 | P175: 0 | Q175: 0 | R175: 0 | S175: 0 | T175: 0 | U175: 0 | V175: 0 | W175: 0 | X175: 0
A176: 1 | F176: TOTAL | I176: =SUM(I168,I169,I172) -> 1 | J176: =SUM(J168,J169,J172) -> 0 | K176: 0 | L176: 0 | M176: 0 | N176: 0 | O176: 0 | P176: 0 | Q176: 0 | R176: 0 | S176: 0 | T176: 0 | U176: 0 | V176: 0 | W176: 0 | X176: 1
A177: 1
A181: 1 | F181: I, ……………………………………………………..………………………………………., certify:
A182: 1 | F182: 1) the information in this template is complete, true and accurate.
A183: 1
A184: 1 | F184: ……………….…………………………..
A185: 1 | F185: ="ACCOUNTING OFFICER / FINANCIAL OFFICER" -> ACCOUNTING OFFICER / FINANCIAL OFFICER
A188: 1 | F188: …………......./……........….../……...….....…...

Sheet 1
A1: Row of SP1 | B1: 300
A2: 1 | B2: 150
A3: SP's created | B3: =MAX(B320:B4497) -> 6
A4: SP's listed | B4: =COUNTA(F47:F71) -> 6
A5: SP'Var | B5: =B4-B3 -> 0 | F5: =IF(G5="","",IF($B$5>0,"No. of subprogramme units to create","No. of subprogramme units to delete")) ->  | G5: =IF(B4-B3=0,"",IF(B4-B3<0,B3-B4,B4-B3)) -> 
A6: Check | B6: =B4-MAX(B47:B71) -> 0 | F6: Vote no. | G6: =MyVoteNo -> 30
A7: SPFormula | B7: OFFSET(H$1,(B2*$E31)+$B$2+33,0) | F7: Department name | G7: =MyDeptName -> Communications and Digital Technologies
A8: Prog No. | B8: 1 | F8: Programme name | G8: =OFFSET(Summary!$F$30,$B$8,0) -> Administration
F9: Programme manager | G9: Adv Sybil Lyons-Grootboom | J9: Post: | K9: ADDG
F11: Programme purpose
F12: Provide strategic leadership, management and support services to the department.
A14: =IF(B14=0,0,1) -> 0 | B14: =IF(F14<>"",E14,0) -> 0
A15: 0 | B15: 0
A16: 0 | B16: 0
A17: =IF(B17=0,0,1) -> 0 | B17: 0
A18: =IF(B18=0,0,1) -> 0 | B18: 0
A19: =IF(B19=0,0,1) -> 0 | B19: 0
A20: 0 | B20: 0
A21: 0 | B21: 0
A22: 0 | B22: 0
A23: 0 | B23: 0
A24: 0 | B24: 0
A25: 0 | B25: 0
A26: 0 | B26: 0
A27: 0 | B27: 0
A28: 0 | B28: 0
A29: 0 | B29: 0
A30: 0 | B30: 0
A31: 0 | B31: 0
A32: 0 | B32: 0
A33: 0 | B33: 0
A34: 0 | B34: 0
A35: 0 | B35: 0
A36: 0 | B36: 0
A37: 0 | B37: 0
A38: 0 | B38: 0
A39: 0 | B39: 0
A40: 0 | B40: =IF(ISERROR(INDEX(('S&E data'!$B$4:$B$100),MATCH($G$7,'S&E data'!$G$4:$G$100,0))&IF(LEN(B8)<2,"0"&B8,B8)),0,INDEX(('S&E data'!$B$4:$B$100),MATCH($G$7,'S&E data'!$G$4:$G$100,0))&IF(LEN(B8)<2,"0"&B8,B8)) -> 0
A41: =IF(COUNTA(F41:Y41)>0,1,0) -> 0
A42: 1 | H42: =+Summary!$H$26 -> 2020/21
A43: 1 | K43: Adjustments appropriation | M43: Special Adjustments Appropriation
A44: 1 | F44: =+IF(COUNTIF(I162:X162,">0.5")+COUNTIF(I162:X162,"<-0.49999")<>0,"Inconsistencies between Subprogrammes and Economic classification",IF(COUNTIF(I164:X164,">0.5")+COUNTIF(I164:X164,"<-0.49999")<>0,"Inconsistencies between Transfers Detail and Economic classification","")) ->  | I44: Voted (Main appropriation) | J44: Special appropriation | K44: Roll-overs | L44: Unforeseeable/ unavoidable | M44: Utilisation of unspend funds Virements & Shifts | N44: Significant and unforeseeable economic and financial events | P44: Shifting of funds following function shift | R44: Self-financing | S44: Declared unspent funds | T44: Unforeseeable and unavoidable expenditure | U44: Announced in the budget speech | V44: Section 16 of the PFMA | W44: Total special adjustments appropriation | X44: Adjusted appropriation
A45: 1 | F45: R thousand | N45: Suspension of funds | O45: Allocation of funds | P45: Within the vote | Q45: Between votes
A46: 1 | C46: Name | F46: Subprogrammes
A47: 1 | B47: =IF(F47<>"",E47,0) -> 1 | C47: =IF(LEN(F47)>2,1,0) -> 1 | E47: 1 | F47: Ministry | G47: =IF(AND(F47="",COUNTA(F48:F$71)>0),"Please fill Subprogrammes from the top","") ->  | I47: =IF(AND($B$6>=0,$B47<>0),OFFSET(I$1,($B$2*$E47)+($B$2+55),0),0) -> 7513 | J47: 0 | K47: 0 | L47: 0 | M47: 0 | N47: 0 | O47: 0 | P47: 0 | Q47: 0 | R47: 0 | S47: 0 | T47: 0 | U47: 0 | V47: 0 | W47: 0 | X47: 7513
A48: =IF(B48=0,0,1) -> 1 | B48: =IF(F48<>"",E48,0) -> 2 | C48: =IF(LEN(F48)>2,1,0) -> 1 | E48: 2 | F48: Departmental Management | G48: =IF(AND(F48="",COUNTA(F49:F$71)>0),"Please fill Subprogrammes from the top","") ->  | I48: 79210 | J48: 0 | K48: 0 | L48: 0 | M48: 0 | N48: 0 | O48: 0 | P48: 0 | Q48: 0 | R48: 0 | S48: 0 | T48: 0 | U48: 0 | V48: 0 | W48: 0 | X48: 79210
A49: =IF(B49=0,0,1) -> 1 | B49: 3 | C49: 1 | E49: 3 | F49: Internal Audit | G49: =IF(AND(F49="",COUNTA(F50:F$71)>0),"Please fill Subprogrammes from the top","") ->  | I49: 11470 | J49: 0 | K49: 0 | L49: 0 | M49: 0 | N49: 0 | O49: 0 | P49: 0 | Q49: 0 | R49: 0 | S49: 0 | T49: 0 | U49: 0 | V49: 0 | W49: 0 | X49: 11470
A50: =IF(B50=0,0,1) -> 1 | B50: 4 | C50: 1 | E50: 4 | F50: Corporate Services | G50: =IF(AND(F50="",COUNTA(F51:F$71)>0),"Please fill Subprogrammes from the top","") ->  | I50: 112525 | J50: 0 | K50: 0 | L50: 0 | M50: 0 | N50: 0 | O50: 0 | P50: 0 | Q50: 0 | R50: 0 | S50: 0 | T50: 0 | U50: 0 | V50: 0 | W50: 0 | X50: 112525
A51: 1 | B51: 5 | C51: 1 | E51: 5 | F51: Financial Management | G51: =IF(AND(F51="",COUNTA(F52:F$71)>0),"Please fill Subprogrammes from the top","") ->  | I51: 71839 | J51: 0 | K51: 0 | L51: 0 | M51: 0 | N51: 0 | O51: 0 | P51: 0 | Q51: 0 | R51: 0 | S51: 0 | T51: 0 | U51: 0 | V51: 0 | W51: 0 | X51: 71839
A52: 1 | B52: 6 | C52: 1 | E52: 6 | F52: Office Accommodation | G52: =IF(AND(F52="",COUNTA(F53:F$71)>0),"Please fill Subprogrammes from the top","") ->  | I52: 31110 | J52: 0 | K52: 0 | L52: 0 | M52: 0 | N52: 0 | O52: 0 | P52: 0 | Q52: 0 | R52: 0 | S52: 0 | T52: 0 | U52: 0 | V52: 0 | W52: 0 | X52: 31110
A53: 0 | B53: 0 | C53: 0 | E53: 7 | G53: =IF(AND(F53="",COUNTA(F54:F$71)>0),"Please fill Subprogrammes from the top","") ->  | I53: 0 | J53: 0 | K53: 0 | L53: 0 | M53: 0 | N53: 0 | O53: 0 | P53: 0 | Q53: 0 | R53: 0 | S53: 0 | T53: 0 | U53: 0 | V53: 0 | W53: 0 | X53: 0
A54: 0 | B54: 0 | C54: 0 | E54: 8 | G54: =IF(AND(F54="",COUNTA(F55:F$71)>0),"Please fill Subprogrammes from the top","") ->  | I54: 0 | J54: 0 | K54: 0 | L54: 0 | M54: 0 | N54: 0 | O54: 0 | P54: 0 | Q54: 0 | R54: 0 | S54: 0 | T54: 0 | U54: 0 | V54: 0 | W54: 0 | X54: 0
A55: 0 | B55: 0 | C55: 0 | E55: 9 | G55: =IF(AND(F55="",COUNTA(F56:F$71)>0),"Please fill Subprogrammes from the top","") ->  | I55: 0 | J55: 0 | K55: 0 | L55: 0 | M55: 0 | N55: 0 | O55: 0 | P55: 0 | Q55: 0 | R55: 0 | S55: 0 | T55: 0 | U55: 0 | V55: 0 | W55: 0 | X55: 0
A56: 0 | B56: 0 | C56: 0 | E56: 10 | G56: =IF(AND(F56="",COUNTA(F57:F$71)>0),"Please fill Subprogrammes from the top","") ->  | I56: 0 | J56: 0 | K56: 0 | L56: 0 | M56: 0 | N56: 0 | O56: 0 | P56: 0 | Q56: 0 | R56: 0 | S56: 0 | T56: 0 | U56: 0 | V56: 0 | W56: 0 | X56: 0
A57: 0 | B57: 0 | C57: 0 | E57: 11 | G57: =IF(AND(F57="",COUNTA(F58:F$71)>0),"Please fill Subprogrammes from the top","") ->  | I57: =IF(AND($B$6>=0,$B57<>0),OFFSET(I$1,($B$2*$E57)+($B$2+55),0),0) -> 0 | J57: 0 | K57: 0 | L57: 0 | M57: 0 | N57: 0 | O57: 0 | P57: 0 | Q57: 0 | R57: 0 | S57: 0 | T57: 0 | U57: 0 | V57: 0 | W57: 0 | X57: 0
A58: 0 | B58: 0 | C58: 0 | E58: 12 | G58: =IF(AND(F58="",COUNTA(F59:F$71)>0),"Please fill Subprogrammes from the top","") ->  | I58: 0 | J58: 0 | K58: 0 | L58: 0 | M58: 0 | N58: 0 | O58: 0 | P58: 0 | Q58: 0 | R58: 0 | S58: 0 | T58: 0 | U58: 0 | V58: 0 | W58: 0 | X58: 0
A59: 0 | B59: 0 | C59: 0 | E59: 13 | G59: =IF(AND(F59="",COUNTA(F60:F$71)>0),"Please fill Subprogrammes from the top","") ->  | I59: 0 | J59: 0 | K59: 0 | L59: 0 | M59: 0 | N59: 0 | O59: 0 | P59: 0 | Q59: 0 | R59: 0 | S59: 0 | T59: 0 | U59: 0 | V59: 0 | W59: 0 | X59: 0
A60: 0 | B60: 0 | C60: 0 | E60: 14 | G60: =IF(AND(F60="",COUNTA(F61:F$71)>0),"Please fill Subprogrammes from the top","") ->  | I60: 0 | J60: 0 | K60: 0 | L60: 0 | M60: 0 | N60: 0 | O60: 0 | P60: 0 | Q60: 0 | R60: 0 | S60: 0 | T60: 0 | U60: 0 | V60: 0 | W60: 0 | X60: 0
A61: 0 | B61: 0 | C61: 0 | E61: 15 | G61: =IF(AND(F61="",COUNTA(F62:F$71)>0),"Please fill Subprogrammes from the top","") ->  | I61: 0 | J61: 0 | K61: 0 | L61: 0 | M61: 0 | N61: 0 | O61: 0 | P61: 0 | Q61: 0 | R61: 0 | S61: 0 | T61: 0 | U61: 0 | V61: 0 | W61: 0 | X61: 0
A62: 0 | B62: 0 | C62: 0 | E62: 16 | G62: =IF(AND(F62="",COUNTA(F63:F$71)>0),"Please fill Subprogrammes from the top","") ->  | I62: 0 | J62: 0 | K62: 0 | L62: 0 | M62: 0 | N62: 0 | O62: 0 | P62: 0 | Q62: 0 | R62: 0 | S62: 0 | T62: 0 | U62: 0 | V62: 0 | W62: 0 | X62: 0
A63: 0 | B63: 0 | C63: 0 | E63: 17 | G63: =IF(AND(F63="",COUNTA(F64:F$71)>0),"Please fill Subprogrammes from the top","") ->  | I63: 0 | J63: 0 | K63: 0 | L63: 0 | M63: 0 | N63: 0 | O63: 0 | P63: 0 | Q63: 0 | R63: 0 | S63: 0 | T63: 0 | U63: 0 | V63: 0 | W63: 0 | X63: 0
A64: 0 | B64: 0 | C64: 0 | E64: 18 | G64: =IF(AND(F64="",COUNTA(F65:F$71)>0),"Please fill Subprogrammes from the top","") ->  | I64: 0 | J64: 0 | K64: 0 | L64: 0 | M64: 0 | N64: 0 | O64: 0 | P64: 0 | Q64: 0 | R64: 0 | S64: 0 | T64: 0 | U64: 0 | V64: 0 | W64: 0 | X64: 0
A65: 0 | B65: 0 | C65: 0 | E65: 19 | G65: =IF(AND(F65="",COUNTA(F66:F$71)>0),"Please fill Subprogrammes from the top","") ->  | I65: 0 | J65: 0 | K65: 0 | L65: 0 | M65: 0 | N65: 0 | O65: 0 | P65: 0 | Q65: 0 | R65: 0 | S65: 0 | T65: 0 | U65: 0 | V65: 0 | W65: 0 | X65: 0
A66: 0 | B66: 0 | C66: 0 | E66: 20 | G66: =IF(AND(F66="",COUNTA(F67:F$71)>0),"Please fill Subprogrammes from the top","") ->  | I66: 0 | J66: 0 | K66: 0 | L66: 0 | M66: 0 | N66: 0 | O66: 0 | P66: 0 | Q66: 0 | R66: 0 | S66: 0 | T66: 0 | U66: 0 | V66: 0 | W66: 0 | X66: 0
A67: 0 | B67: 0 | C67: 0 | E67: 21 | G67: =IF(AND(F67="",COUNTA(F68:F$71)>0),"Please fill Subprogrammes from the top","") ->  | I67: 0 | J67: 0 | K67: 0 | L67: 0 | M67: 0 | N67: 0 | O67: 0 | P67: 0 | Q67: 0 | R67: 0 | S67: 0 | T67: 0 | U67: 0 | V67: 0 | W67: 0 | X67: 0
A68: 0 | B68: 0 | C68: 0 | E68: 22 | G68: =IF(AND(F68="",COUNTA(F69:F$71)>0),"Please fill Subprogrammes from the top","") ->  | I68: 0 | J68: 0 | K68: 0 | L68: 0 | M68: 0 | N68: 0 | O68: 0 | P68: 0 | Q68: 0 | R68: 0 | S68: 0 | T68: 0 | U68: 0 | V68: 0 | W68: 0 | X68: 0
A69: 0 | B69: 0 | C69: 0 | E69: 23 | G69: =IF(AND(F69="",COUNTA(F70:F$71)>0),"Please fill Subprogrammes from the top","") ->  | I69: 0 | J69: 0 | K69: 0 | L69: 0 | M69: 0 | N69: 0 | O69: 0 | P69: 0 | Q69: 0 | R69: 0 | S69: 0 | T69: 0 | U69: 0 | V69: 0 | W69: 0 | X69: 0
A70: 0 | B70: 0 | C70: 0 | E70: 24 | G70: =IF(AND(F70="",COUNTA(F71:F$71)>0),"Please fill Subprogrammes from the top","") ->  | I70: 0 | J70: 0 | K70: 0 | L70: 0 | M70: 0 | N70: 0 | O70: 0 | P70: 0 | Q70: 0 | R70: 0 | S70: 0 | T70: 0 | U70: 0 | V70: 0 | W70: 0 | X70: 0
A71: 0 | B71: 0 | C71: 0 | E71: 25 | I71: 0 | J71: 0 | K71: 0 | L71: 0 | M71: 0 | N71: 0 | O71: 0 | P71: 0 | Q71: 0 | R71: 0 | S71: 0 | T71: 0 | U71: 0 | V71: 0 | W71: 0 | X71: 0
A72: 1 | F72: Total | I72: =SUM(I47:I71) -> 313667 | J72: =SUM(J47:J71) -> 0 | K72: =SUM(K47:K71) -> 0 | L72: 0 | M72: =SUM(M47:M71) -> 0 | N72: 0 | O72: 0 | P72: 0 | Q72: 0 | R72: 0 | S72: 0 | T72: 0 | U72: 0 | V72: 0 | W72: 0 | X72: 313667
A73: 1 | F73: Economic classification
A74: 1 | F74: Current payments | I74: =+I75+I78+I117 -> 283932 | J74: =+J75+J78+J117 -> 0 | K74: =+K75+K78+K117 -> 0 | L74: =+L75+L78+L117 -> 0 | M74: =+M75+M78+M117 -> 0 | N74: =+N75+N78+N117 -> 0 | O74: 0 | P74: 0 | Q74: 0 | R74: 0 | S74: 0 | T74: 0 | U74: 0 | V74: 0 | W74: 0 | X74: 283932
A75: =IF(SUM(COUNTIF(I75:X75,"<>0")-COUNTBLANK(I75:X75))<>0,1,0) -> 1 | F75: Compensation of employees | I75: =SUM(I76:I77) -> 162626 | J75: =SUM(J76:J77) -> 0 | K75: =SUM(K76:K77) -> 0 | L75: =SUM(L76:L77) -> 0 | M75: =SUM(M76:M77) -> 0 | N75: =SUM(N76:N77) -> 0 | O75: 0 | P75: 0 | Q75: 0 | R75: 0 | S75: 0 | T75: 0 | U75: 0 | V75: 0 | W75: 0 | X75: 162626
A76: =A75 -> 1 | F76: Salaries and wages | I76: =SUMIF($F$284:$F$5020,$F76,I$284:I$5020) -> 132002 | J76: 0 | K76: 0 | L76: 0 | M76: 0 | N76: 0 | O76: 0 | P76: 0 | Q76: 0 | R76: 0 | S76: 0 | T76: 0 | U76: 0 | V76: 0 | W76: 0 | X76: 132002
A77: =A75 -> 1 | F77: Social contributions | I77: 30624 | J77: 0 | K77: 0 | L77: 0 | M77: 0 | N77: 0 | O77: 0 | P77: 0 | Q77: 0 | R77: 0 | S77: 0 | T77: 0 | U77: 0 | V77: 0 | W77: 0 | X77: 30624
A78: =IF(SUM(COUNTIF(I78:X78,"<>0")-COUNTBLANK(I78:X78))<>0,1,0) -> 1 | F78: Goods and services | I78: =SUM(I79:I116) -> 121306 | J78: =SUM(J79:J116) -> 0 | K78: =SUM(K79:K116) -> 0 | L78: =SUM(L79:L116) -> 0 | M78: =SUM(M79:M116) -> 0 | N78: =SUM(N79:N116) -> 0 | O78: 0 | P78: 0 | Q78: 0 | R78: 0 | S78: 0 | T78: 0 | U78: 0 | V78: 0 | W78: 0 | X78: 121306
A79: =A78 -> 1 | F79: Administrative fees | I79: =SUMIF($F$284:$F$5020,$F79,I$284:I$5020) -> 715 | J79: 0 | K79: 0 | L79: 0 | M79: 0 | N79: 0 | O79: 0 | P79: 0 | Q79: 0 | R79: 0 | S79: 0 | T79: 0 | U79: 0 | V79: 0 | W79: 0 | X79: 715
A80: =IF(SUM(COUNTIF(I80:X80,"<>0")-COUNTBLANK(I80:X80))<>0,1,0) -> 1 | F80: Advertising | I80: 2858 | J80: 0 | K80: 0 | L80: 0 | M80: 0 | N80: 0 | O80: 0 | P80: 0 | Q80: 0 | R80: 0 | S80: 0 | T80: 0 | U80: 0 | V80: 0 | W80: 0 | X80: 2858
A81: 1 | F81: Minor Assets | I81: 390 | J81: 0 | K81: 0 | L81: 0 | M81: 0 | N81: 0 | O81: 0 | P81: 0 | Q81: 0 | R81: 0 | S81: 0 | T81: 0 | U81: 0 | V81: 0 | W81: 0 | X81: 390
A82: 1 | F82: Audit costs: External | I82: 7500 | J82: 0 | K82: 0 | L82: 0 | M82: 0 | N82: 0 | O82: 0 | P82: 0 | Q82: 0 | R82: 0 | S82: 0 | T82: 0 | U82: 0 | V82: 0 | W82: 0 | X82: 7500
A83: 1 | F83: Bursaries: Employees | I83: 1541 | J83: 0 | K83: 0 | L83: 0 | M83: 0 | N83: 0 | O83: 0 | P83: 0 | Q83: 0 | R83: 0 | S83: 0 | T83: 0 | U83: 0 | V83: 0 | W83: 0 | X83: 1541
A84: 1 | F84: Catering: Departmental activities | I84: 1408 | J84: 0 | K84: 0 | L84: 0 | M84: 0 | N84: 0 | O84: 0 | P84: 0 | Q84: 0 | R84: 0 | S84: 0 | T84: 0 | U84: 0 | V84: 0 | W84: 0 | X84: 1408
A85: 1 | F85: Communication (G&S) | I85: 2938 | J85: 0 | K85: 0 | L85: 0 | M85: 0 | N85: 0 | O85: 0 | P85: 0 | Q85: 0 | R85: 0 | S85: 0 | T85: 0 | U85: 0 | V85: 0 | W85: 0 | X85: 2938
A86: 1 | F86: Computer services | I86: 12946 | J86: 0 | K86: 0 | L86: 0 | M86: 0 | N86: 0 | O86: 0 | P86: 0 | Q86: 0 | R86: 0 | S86: 0 | T86: 0 | U86: 0 | V86: 0 | W86: 0 | X86: 12946
A87: 1 | F87: Consultants: Business and advisory services | I87: 9530 | J87: 0 | K87: 0 | L87: 0 | M87: 0 | N87: 0 | O87: 0 | P87: 0 | Q87: 0 | R87: 0 | S87: 0 | T87: 0 | U87: 0 | V87: 0 | W87: 0 | X87: 9530
A88: 0 | F88: Infrastructure and planning services | I88: 0 | J88: 0 | K88: 0 | L88: 0 | M88: 0 | N88: 0 | O88: 0 | P88: 0 | Q88: 0 | R88: 0 | S88: 0 | T88: 0 | U88: 0 | V88: 0 | W88: 0 | X88: 0
A89: 0 | F89: Laboratory services | I89: 0 | J89: 0 | K89: 0 | L89: 0 | M89: 0 | N89: 0 | O89: 0 | P89: 0 | Q89: 0 | R89: 0 | S89: 0 | T89: 0 | U89: 0 | V89: 0 | W89: 0 | X89: 0
A90: 1 | F90: Legal services (G&S) | I90: 6210 | J90: 0 | K90: 0 | L90: 0 | M90: 0 | N90: 0 | O90: 0 | P90: 0 | Q90: 0 | R90: 0 | S90: 0 | T90: 0 | U90: 0 | V90: 0 | W90: 0 | X90: 6210
A91: 0 | F91: Science and technological services | I91: 0 | J91: 0 | K91: 0 | L91: 0 | M91: 0 | N91: 0 | O91: 0 | P91: 0 | Q91: 0 | R91: 0 | S91: 0 | T91: 0 | U91: 0 | V91: 0 | W91: 0 | X91: 0
A92: 1 | F92: Contractors | I92: 2964 | J92: 0 | K92: 0 | L92: 0 | M92: 0 | N92: 0 | O92: 0 | P92: 0 | Q92: 0 | R92: 0 | S92: 0 | T92: 0 | U92: 0 | V92: 0 | W92: 0 | X92: 2964
A93: 1 | F93: Agency and support/outsourced services | I93: 50 | J93: 0 | K93: 0 | L93: 0 | M93: 0 | N93: 0 | O93: 0 | P93: 0 | Q93: 0 | R93: 0 | S93: 0 | T93: 0 | U93: 0 | V93: 0 | W93: 0 | X93: 50
A94: 1 | F94: Entertainment | I94: =SUMIF($F$284:$F$5020,$F94,I$284:I$5020) -> 201 | J94: 0 | K94: 0 | L94: 0 | M94: 0 | N94: 0 | O94: 0 | P94: 0 | Q94: 0 | R94: 0 | S94: 0 | T94: 0 | U94: 0 | V94: 0 | W94: 0 | X94: =SUMIF($F$284:$F$5020,$F94,X$284:X$5020) -> 201
A95: 1 | F95: Fleet services (including government motor transport) | I95: 1636 | J95: 0 | K95: 0 | L95: 0 | M95: 0 | N95: 0 | O95: 0 | P95: 0 | Q95: 0 | R95: 0 | S95: 0 | T95: 0 | U95: 0 | V95: 0 | W95: 0 | X95: =SUMIF($F$284:$F$5020,$F95,X$284:X$5020) -> 1636
A96: 0 | F96: Housing | I96: 0 | J96: 0 | K96: 0 | L96: 0 | M96: 0 | N96: 0 | O96: 0 | P96: 0 | Q96: 0 | R96: 0 | S96: 0 | T96: 0 | U96: 0 | V96: 0 | W96: 0 | X96: 0
A97: 0 | F97: Inventory: Clothing material and accessories | I97: 0 | J97: 0 | K97: 0 | L97: 0 | M97: 0 | N97: 0 | O97: 0 | P97: 0 | Q97: 0 | R97: 0 | S97: 0 | T97: 0 | U97: 0 | V97: 0 | W97: 0 | X97: 0
A98: 0 | F98: Inventory: Farming supplies | I98: 0 | J98: 0 | K98: 0 | L98: 0 | M98: 0 | N98: 0 | O98: 0 | P98: 0 | Q98: 0 | R98: 0 | S98: 0 | T98: 0 | U98: 0 | V98: 0 | W98: 0 | X98: 0
A99: 0 | F99: Inventory: Food and food supplies | I99: 0 | J99: 0 | K99: 0 | L99: 0 | M99: 0 | N99: 0 | O99: 0 | P99: 0 | Q99: 0 | R99: 0 | S99: 0 | T99: 0 | U99: 0 | V99: 0 | W99: 0 | X99: 0
A100: 0 | F100: Inventory: Fuel, oil and gas | I100: 0 | J100: 0 | K100: 0 | L100: 0 | M100: 0 | N100: 0 | O100: 0 | P100: 0 | Q100: 0 | R100: 0 | S100: 0 | T100: 0 | U100: 0 | V100: 0 | W100: 0 | X100: 0
A101: 0 | F101: Inventory: Learner and teacher support material | I101: 0 | J101: 0 | K101: 0 | L101: 0 | M101: 0 | N101: 0 | O101: 0 | P101: 0 | Q101: 0 | R101: 0 | S101: 0 | T101: 0 | U101: 0 | V101: 0 | W101: 0 | X101: 0
A102: 0 | F102: Inventory: Materials and supplies | I102: 0 | J102: 0 | K102: 0 | L102: 0 | M102: 0 | N102: 0 | O102: 0 | P102: 0 | Q102: 0 | R102: 0 | S102: 0 | T102: 0 | U102: 0 | V102: 0 | W102: 0 | X102: 0
A103: 0 | F103: Inventory: Medical supplies | I103: 0 | J103: 0 | K103: 0 | L103: 0 | M103: 0 | N103: 0 | O103: 0 | P103: 0 | Q103: 0 | R103: 0 | S103: 0 | T103: 0 | U103: 0 | V103: 0 | W103: 0 | X103: 0
A104: 0 | F104: Inventory: Medicine | I104: =SUMIF($F$284:$F$5020,$F104,I$284:I$5020) -> 0 | J104: 0 | K104: 0 | L104: 0 | M104: 0 | N104: 0 | O104: 0 | P104: 0 | Q104: 0 | R104: 0 | S104: 0 | T104: 0 | U104: 0 | V104: 0 | W104: 0 | X104: 0
A105: 0 | F105: Medsas inventory interface | I105: 0 | J105: 0 | K105: 0 | L105: 0 | M105: 0 | N105: 0 | O105: 0 | P105: 0 | Q105: 0 | R105: 0 | S105: 0 | T105: 0 | U105: 0 | V105: 0 | W105: 0 | X105: 0
A106: 0 | F106: Inventory: Other supplies | I106: 0 | J106: 0 | K106: 0 | L106: 0 | M106: 0 | N106: 0 | O106: 0 | P106: 0 | Q106: 0 | R106: 0 | S106: 0 | T106: 0 | U106: 0 | V106: 0 | W106: 0 | X106: 0
A107: 1 | F107: Consumable supplies | I107: 654 | J107: 0 | K107: 0 | L107: 0 | M107: 0 | N107: 0 | O107: 0 | P107: 0 | Q107: 0 | R107: 0 | S107: 0 | T107: 0 | U107: 0 | V107: 0 | W107: 0 | X107: 654
A108: 1 | F108: Consumables: Stationery, printing and office supplies | I108: 1771 | J108: 0 | K108: 0 | L108: 0 | M108: 0 | N108: 0 | O108: 0 | P108: 0 | Q108: 0 | R108: 0 | S108: 0 | T108: 0 | U108: 0 | V108: 0 | W108: 0 | X108: 1771
A109: 1 | F109: Operating leases | I109: 27754 | J109: 0 | K109: 0 | L109: 0 | M109: 0 | N109: 0 | O109: 0 | P109: 0 | Q109: 0 | R109: 0 | S109: 0 | T109: 0 | U109: 0 | V109: 0 | W109: 0 | X109: 27754
A110: 0 | F110: Rental and hiring | I110: 0 | J110: 0 | K110: 0 | L110: 0 | M110: 0 | N110: 0 | O110: 0 | P110: 0 | Q110: 0 | R110: 0 | S110: 0 | T110: 0 | U110: 0 | V110: 0 | W110: 0 | X110: 0
A111: 1 | F111: Property payments | I111: 14320 | J111: 0 | K111: 0 | L111: 0 | M111: 0 | N111: 0 | O111: 0 | P111: 0 | Q111: 0 | R111: 0 | S111: 0 | T111: 0 | U111: 0 | V111: 0 | W111: 0 | X111: 14320
A112: 0 | F112: Transport provided: Departmental activity | I112: 0 | J112: 0 | K112: 0 | L112: 0 | M112: 0 | N112: 0 | O112: 0 | P112: 0 | Q112: 0 | R112: 0 | S112: 0 | T112: 0 | U112: 0 | V112: 0 | W112: 0 | X112: 0
A113: 1 | F113: Travel and subsistence | I113: 20445 | J113: 0 | K113: 0 | L113: 0 | M113: 0 | N113: 0 | O113: 0 | P113: 0 | Q113: 0 | R113: 0 | S113: 0 | T113: 0 | U113: 0 | V113: 0 | W113: 0 | X113: 20445
A114: 1 | F114: Training and development | I114: 2592 | J114: 0 | K114: 0 | L114: 0 | M114: 0 | N114: 0 | O114: 0 | P114: 0 | Q114: 0 | R114: 0 | S114: 0 | T114: 0 | U114: 0 | V114: 0 | W114: 0 | X114: 2592
A115: 1 | F115: Operating payments | I115: 1416 | J115: 0 | K115: 0 | L115: 0 | M115: 0 | N115: 0 | O115: 0 | P115: 0 | Q115: 0 | R115: 0 | S115: 0 | T115: 0 | U115: 0 | V115: 0 | W115: 0 | X115: 1416
A116: =A78 -> 1 | F116: Venues and facilities | I116: 1467 | J116: 0 | K116: 0 | L116: 0 | M116: 0 | N116: 0 | O116: 0 | P116: 0 | Q116: 0 | R116: 0 | S116: 0 | T116: 0 | U116: 0 | V116: 0 | W116: 0 | X116: 1467
A117: 0 | F117: Interest and rent on land | I117: =SUM(I118:I119) -> 0 | J117: =SUM(J118:J119) -> 0 | K117: =SUM(K118:K119) -> 0 | L117: =SUM(L118:L119) -> 0 | M117: =SUM(M118:M119) -> 0 | N117: =SUM(N118:N119) -> 0 | O117: 0 | P117: 0 | Q117: 0 | R117: 0 | S117: 0 | T117: 0 | U117: 0 | V117: 0 | W117: 0 | X117: 0
A118: =A117 -> 0 | F118: Interest (Incl. interest on unitary payments (PPP)) | I118: =SUMIF($F$284:$F$5020,$F118,I$284:I$5020) -> 0 | J118: 0 | K118: 0 | L118: 0 | M118: 0 | N118: 0 | O118: 0 | P118: 0 | Q118: 0 | R118: 0 | S118: 0 | T118: 0 | U118: 0 | V118: 0 | W118: 0 | X118: 0
A119: =A117 -> 0 | F119: Rent on land | I119: 0 | J119: 0 | K119: 0 | L119: 0 | M119: 0 | N119: 0 | O119: 0 | P119: 0 | Q119: 0 | R119: 0 | S119: 0 | T119: 0 | U119: 0 | V119: 0 | W119: 0 | X119: 0
A120: 1 | F120: Transfers and subsidies | I120: =+SUM(I121,I128,I131,I132,I133,I140,I141) -> 19 | J120: =+SUM(J121,J128,J131,J132,J133,J140,J141) -> 0 | K120: =+SUM(K121,K128,K131,K132,K133,K140,K141) -> 0 | L120: 0 | M120: =+SUM(M121,M128,M131,M132,M133,M140,M141) -> 0 | N120: 0 | O120: 0 | P120: 0 | Q120: 0 | R120: 0 | S120: 0 | T120: 0 | U120: 0 | V120: 0 | W120: 0 | X120: 19
A121: =IF(SUM(COUNTIF(I121:X121,"<>0")-COUNTBLANK(I121:X121))<>0,1,0) -> 1 | F121: Provinces and municipalities | I121: =SUMIF($F$284:$F$5020,$F121,I$284:I$5020) -> 19 | J121: 0 | K121: 0 | L121: 0 | M121: 0 | N121: 0 | O121: 0 | P121: 0 | Q121: 0 | R121: 0 | S121: 0 | T121: 0 | U121: 0 | V121: 0 | W121: 0 | X121: 19
A122: 0 | F122: Provinces | I122: 0 | J122: 0 | K122: 0 | L122: 0 | M122: 0 | N122: 0 | O122: 0 | P122: 0 | Q122: 0 | R122: 0 | S122: 0 | T122: 0 | U122: 0 | V122: 0 | W122: 0 | X122: 0
A123: =A122 -> 0 | F123: Provincial Revenue Funds | I123: 0 | J123: 0 | K123: 0 | L123: 0 | M123: 0 | N123: 0 | O123: 0 | P123: 0 | Q123: 0 | R123: 0 | S123: 0 | T123: 0 | U123: 0 | V123: 0 | W123: 0 | X123: 0
A124: =A122 -> 0 | F124: Provincial agencies and funds | I124: 0 | J124: 0 | K124: 0 | L124: 0 | M124: 0 | N124: 0 | O124: 0 | P124: 0 | Q124: 0 | R124: 0 | S124: 0 | T124: 0 | U124: 0 | V124: 0 | W124: 0 | X124: 0
A125: =IF(SUM(COUNTIF(I125:X125,"<>0")-COUNTBLANK(I125:X125))<>0,1,0) -> 1 | F125: Municipalities | I125: 19 | J125: 0 | K125: 0 | L125: 0 | M125: 0 | N125: 0 | O125: 0 | P125: 0 | Q125: 0 | R125: 0 | S125: 0 | T125: 0 | U125: 0 | V125: 0 | W125: 0 | X125: 19
A126: =A125 -> 1 | F126: Municipal bank accounts | I126: 19 | J126: 0 | K126: 0 | L126: 0 | M126: 0 | N126: 0 | O126: 0 | P126: 0 | Q126: 0 | R126: 0 | S126: 0 | T126: 0 | U126: 0 | V126: 0 | W126: 0 | X126: 19
A127: =A125 -> 1 | F127: Municipal agencies and funds | I127: 0 | J127: 0 | K127: 0 | L127: 0 | M127: 0 | N127: 0 | O127: 0 | P127: 0 | Q127: 0 | R127: 0 | S127: 0 | T127: 0 | U127: 0 | V127: 0 | W127: 0 | X127: 0
A128: =IF(SUM(COUNTIF(I128:X128,"<>0")-COUNTBLANK(I128:X128))<>0,1,0) -> 0 | F128: Departmental agencies and accounts | I128: 0 | J128: 0 | K128: 0 | L128: 0 | M128: 0 | N128: 0 | O128: 0 | P128: 0 | Q128: 0 | R128: 0 | S128: 0 | T128: 0 | U128: 0 | V128: 0 | W128: 0 | X128: 0
A129: =A128 -> 0 | F129: Social security funds | I129: 0 | J129: 0 | K129: 0 | L129: 0 | M129: 0 | N129: 0 | O129: 0 | P129: 0 | Q129: 0 | R129: 0 | S129: 0 | T129: 0 | U129: 0 | V129: 0 | W129: 0 | X129: 0
A130: =A128 -> 0 | F130: Departmental agencies (non-business entities) | I130: 0 | J130: 0 | K130: 0 | L130: 0 | M130: 0 | N130: 0 | O130: 0 | P130: 0 | Q130: 0 | R130: 0 | S130: 0 | T130: 0 | U130: 0 | V130: 0 | W130: 0 | X130: 0
A131: =IF(SUM(COUNTIF(I131:X131,"<>0")-COUNTBLANK(I131:X131))<>0,1,0) -> 0 | F131: Higher education institutions | I131: 0 | J131: 0 | K131: 0 | L131: 0 | M131: 0 | N131: 0 | O131: 0 | P131: 0 | Q131: 0 | R131: 0 | S131: 0 | T131: 0 | U131: 0 | V131: 0 | W131: 0 | X131: 0
A132: 0 | F132: Foreign governments and international organisations | I132: 0 | J132: 0 | K132: 0 | L132: 0 | M132: 0 | N132: 0 | O132: 0 | P132: 0 | Q132: 0 | R132: 0 | S132: 0 | T132: 0 | U132: 0 | V132: 0 | W132: 0 | X132: 0
A133: 0 | F133: Public corporations and private enterprises | I133: 0 | J133: 0 | K133: 0 | L133: 0 | M133: 0 | N133: 0 | O133: 0 | P133: 0 | Q133: 0 | R133: 0 | S133: 0 | T133: 0 | U133: 0 | V133: 0 | W133: 0 | X133: 0
A134: 0 | F134: Public corporations | I134: 0 | J134: 0 | K134: 0 | L134: 0 | M134: 0 | N134: 0 | O134: 0 | P134: 0 | Q134: 0 | R134: 0 | S134: 0 | T134: 0 | U134: 0 | V134: 0 | W134: 0 | X134: 0
A135: =A134 -> 0 | F135: Subsidies on products and production (pc) | I135: 0 | J135: 0 | K135: 0 | L135: 0 | M135: 0 | N135: 0 | O135: 0 | P135: 0 | Q135: 0 | R135: 0 | S135: 0 | T135: 0 | U135: 0 | V135: 0 | W135: 0 | X135: 0
A136: =A134 -> 0 | F136: Other transfers to public corporations | I136: =SUMIF($F$284:$F$5020,$F136,I$284:I$5020) -> 0 | J136: 0 | K136: 0 | L136: 0 | M136: 0 | N136: 0 | O136: 0 | P136: 0 | Q136: 0 | R136: 0 | S136: 0 | T136: 0 | U136: 0 | V136: 0 | W136: 0 | X136: =SUMIF($F$284:$F$5020,$F136,X$284:X$5020) -> 0
A137: =IF(SUM(COUNTIF(I137:X137,"<>0")-COUNTBLANK(I137:X137))<>0,1,0) -> 0 | F137: Private enterprises | I137: 0 | J137: 0 | K137: 0 | L137: 0 | M137: 0 | N137: 0 | O137: 0 | P137: 0 | Q137: 0 | R137: 0 | S137: 0 | T137: 0 | U137: 0 | V137: 0 | W137: 0 | X137: =SUMIF($F$284:$F$5020,$F137,X$284:X$5020) -> 0
A138: =A137 -> 0 | F138: Subsidies on products and production (pe) | I138: 0 | J138: 0 | K138: 0 | L138: 0 | M138: 0 | N138: 0 | O138: 0 | P138: 0 | Q138: 0 | R138: 0 | S138: 0 | T138: 0 | U138: 0 | V138: 0 | W138: 0 | X138: 0
A139: =A137 -> 0 | F139: Other transfers to private enterprises | I139: 0 | J139: 0 | K139: 0 | L139: 0 | M139: 0 | N139: 0 | O139: 0 | P139: 0 | Q139: 0 | R139: 0 | S139: 0 | T139: 0 | U139: 0 | V139: 0 | W139: 0 | X139: 0
A140: =IF(A139=0,A133,IF(SUM(COUNTIF(I145:X145,"<>0")-COUNTBLANK(I145:X145))<>0,1,0)) -> 0 | F140: Non-profit institutions | I140: 0 | J140: 0 | K140: 0 | L140: 0 | M140: 0 | N140: 0 | O140: 0 | P140: 0 | Q140: 0 | R140: 0 | S140: 0 | T140: 0 | U140: 0 | V140: 0 | W140: 0 | X140: 0
A141: =IF(SUM(COUNTIF(I141:X141,"<>0")-COUNTBLANK(I141:X141))<>0,1,0) -> 0 | F141: Households | I141: 0 | J141: 0 | K141: 0 | L141: 0 | M141: 0 | N141: 0 | O141: 0 | P141: 0 | Q141: 0 | R141: 0 | S141: 0 | T141: 0 | U141: 0 | V141: 0 | W141: 0 | X141: 0
A142: =A141 -> 0 | F142: Social benefits | I142: 0 | J142: 0 | K142: 0 | L142: 0 | M142: 0 | N142: 0 | O142: 0 | P142: 0 | Q142: 0 | R142: 0 | S142: 0 | T142: 0 | U142: 0 | V142: 0 | W142: 0 | X142: 0
A143: =A141 -> 0 | F143: Other transfers to households | I143: 0 | J143: 0 | K143: 0 | L143: 0 | M143: 0 | N143: 0 | O143: 0 | P143: 0 | Q143: 0 | R143: 0 | S143: 0 | T143: 0 | U143: 0 | V143: 0 | W143: 0 | X143: 0
A144: 1 | F144: Payments for capital assets | I144: =SUM(I145,I148,I151:I155) -> 29716 | J144: =SUM(J145,J148,J151:J155) -> 0 | K144: =SUM(K145,K148,K151:K155) -> 0 | L144: =SUM(L145,L148,L151:L155) -> 0 | M144: =SUM(M145,M148,M151:M155) -> 0 | N144: 0 | O144: 0 | P144: 0 | Q144: 0 | R144: 0 | S144: 0 | T144: =SUM(T145,T148,T151:T155) -> 0 | U144: =SUM(U145,U148,U151:U155) -> 0 | V144: =SUM(V145,V148,V151:V155) -> 0 | W144: 0 | X144: =SUM(X145,X148,X151:X155) -> 29716
A145: =IF(SUM(COUNTIF(I145:X145,"<>0")-COUNTBLANK(I145:X145))<>0,1,0) -> 0 | F145: Buildings and other fixed structures | I145: =SUM(I146:I147) -> 0 | J145: =SUM(J146:J147) -> 0 | K145: =SUM(K146:K147) -> 0 | L145: =SUM(L146:L147) -> 0 | M145: 0 | N145: 0 | O145: 0 | P145: 0 | Q145: 0 | R145: 0 | S145: 0 | T145: 0 | U145: 0 | V145: 0 | W145: 0 | X145: 0
A146: =A145 -> 0 | F146: Buildings | I146: =SUMIF($F$284:$F$5020,$F146,I$284:I$5020) -> 0 | J146: 0 | K146: 0 | L146: 0 | M146: 0 | N146: 0 | O146: 0 | P146: 0 | Q146: 0 | R146: 0 | S146: 0 | T146: 0 | U146: 0 | V146: 0 | W146: 0 | X146: 0
A147: =A145 -> 0 | F147: Other fixed structures | I147: 0 | J147: 0 | K147: 0 | L147: 0 | M147: 0 | N147: 0 | O147: 0 | P147: 0 | Q147: 0 | R147: 0 | S147: 0 | T147: 0 | U147: 0 | V147: 0 | W147: 0 | X147: 0
A148: =IF(SUM(COUNTIF(I148:X148,"<>0")-COUNTBLANK(I148:X148))<>0,1,0) -> 1 | F148: Machinery and equipment | I148: =SUM(I149:I150) -> 15002 | J148: =SUM(J149:J150) -> 0 | K148: =SUM(K149:K150) -> 0 | L148: =SUM(L149:L150) -> 0 | M148: 0 | N148: 0 | O148: 0 | P148: 0 | Q148: 0 | R148: 0 | S148: 0 | T148: 0 | U148: 0 | V148: 0 | W148: 0 | X148: 15002
A149: =A148 -> 1 | F149: Transport equipment | I149: =SUMIF($F$284:$F$5020,$F149,I$284:I$5020) -> 2327 | J149: 0 | K149: 0 | L149: 0 | M149: 0 | N149: 0 | O149: 0 | P149: 0 | Q149: 0 | R149: 0 | S149: 0 | T149: 0 | U149: 0 | V149: 0 | W149: 0 | X149: 2327
A150: =A148 -> 1 | F150: Other machinery and equipment | I150: 12675 | J150: 0 | K150: 0 | L150: 0 | M150: 0 | N150: 0 | O150: 0 | P150: 0 | Q150: 0 | R150: 0 | S150: 0 | T150: 0 | U150: 0 | V150: 0 | W150: 0 | X150: 12675
A151: =IF(SUM(COUNTIF(I151:X151,"<>0")-COUNTBLANK(I151:X151))<>0,1,0) -> 0 | F151: Heritage assets | I151: 0 | J151: 0 | K151: 0 | L151: 0 | M151: 0 | N151: 0 | O151: 0 | P151: 0 | Q151: 0 | R151: 0 | S151: 0 | T151: 0 | U151: 0 | V151: 0 | W151: 0 | X151: 0
A152: 0 | F152: Specialised military assets | I152: 0 | J152: 0 | K152: 0 | L152: 0 | M152: 0 | N152: 0 | O152: 0 | P152: 0 | Q152: 0 | R152: 0 | S152: 0 | T152: 0 | U152: 0 | V152: 0 | W152: 0 | X152: 0
A153: 0 | F153: Biological assets | I153: 0 | J153: 0 | K153: 0 | L153: 0 | M153: 0 | N153: 0 | O153: 0 | P153: 0 | Q153: 0 | R153: 0 | S153: 0 | T153: 0 | U153: 0 | V153: 0 | W153: 0 | X153: 0
A154: 0 | F154: Land and sub-soil assets | I154: 0 | J154: 0 | K154: 0 | L154: 0 | M154: 0 | N154: 0 | O154: 0 | P154: 0 | Q154: 0 | R154: 0 | S154: 0 | T154: 0 | U154: 0 | V154: 0 | W154: 0 | X154: 0
A155: 1 | F155: Software and other intangible assets | I155: =SUMIF($F$284:$F$5020,$F155,I$284:I$5020) -> 14714 | J155: 0 | K155: 0 | L155: 0 | M155: 0 | N155: 0 | O155: 0 | P155: 0 | Q155: 0 | R155: 0 | S155: 0 | T155: 0 | U155: 0 | V155: 0 | W155: 0 | X155: 14714
A156: 1 | F156: Payments for financial assets | I156: =SUMIF($F$284:$F$5020,$F156,I$284:I$5020) -> 0 | J156: 0 | K156: 0 | L156: 0 | M156: 0 | N156: 0 | O156: 0 | P156: 0 | Q156: 0 | R156: 0 | S156: 0 | T156: 0 | U156: 0 | V156: 0 | W156: 0 | X156: 0
A157: 1
A158: 1 | F158: Total | I158: =SUM(I74,I120,I144,I156) -> 313667 | J158: 0 | K158: 0 | L158: 0 | M158: 0 | N158: 0 | O158: 0 | P158: 0 | Q158: 0 | R158: 0 | S158: 0 | T158: 0 | U158: 0 | V158: 0 | W158: 0 | X158: 313667
A159: 1
A160: 1
A161: 1
A162: 1 | F162: Check: Programmes less Economic classification | I162: =I72-I158 -> 0 | J162: =J72-J158 -> 0 | K162: =K72-K158 -> 0 | L162: 0 | M162: 0 | N162: 0 | O162: 0 | P162: 0 | Q162: 0 | R162: 0 | S162: 0 | T162: 0 | U162: 0 | V162: 0 | W162: 0 | X162: 0
A163: 1
A164: 1 | F164: Check: Detail of Transfers less Transfers Economic classification | I164: =I282-I120 -> 0 | J164: 0 | K164: 0 | L164: 0 | M164: 0 | N164: 0 | O164: 0 | P164: 0 | Q164: 0 | R164: 0 | S164: 0 | T164: 0 | U164: 0 | V164: 0 | W164: 0 | X164: 0
A165: 1
F166: Check: Payments for financial assets | I166: =+I156-SUM(I289:I301) -> 0 | J166: =+J156-SUM(J289:J301) -> 0 | K166: 0 | L166: 0 | M166: 0 | N166: 0 | O166: 0 | P166: 0 | Q166: 0 | R166: 0 | S166: 0 | T166: 0 | U166: 0 | V166: 0 | W166: 0 | X166: 0
F172: DETAIL OF TRANSFERS AND SUBSIDIES | I172: 1 | J172: 2 | K172: 3 | L172: 4 | M172: 5 | N172: 6 | O172: 7 | P172: 8 | Q172: 9 | R172: 10 | S172: 11 | T172: 12 | U172: 13 | V172: 14 | W172: 15 | X172: 16 | Y172: 17 | Z172: 18 | AA172: 19 | AB172: 20 | AC172: 21 | AD172: 22 | AE172: 23
A173: 1 | F173: Recipient | H173: =+$H$42 -> 2020/21 | Z173: 35 | AA173: 36 | AB173: 37 | AC173: 38 | AD173: 39 | AE173: 40
A174: 1 | K174: Adjustments appropriation | M174: Special Adjustments Appropriation
A175: 1 | I175: Voted (Main appropriation) | J175: Special appropriation | K175: Roll-overs | L175: Unforeseeable/ unavoidable | M175: Utilisation of unspend funds Virements & Shifts | N175: Significant and unforeseeable economic and financial events | P175: Shifting of funds following function shift | R175: Self-financing | S175: Declared unspent funds | T175: Unforeseeable and unavoidable expenditure | U175: Announced in the budget speech | V175: Section 16 of the PFMA | W175: Total special adjustments appropriation | X175: Adjusted appropriation
A176: 1 | F176: R thousand | N176: Suspension of funds | O176: Allocation of funds | P176: Within the vote | Q176: Between votes | Z176: Economic classification | AA176: Current/Capital | AB176: Subprogramme | AC176: Specifically and exclusively (S & E) appropriated | AD176: Purpose of transfer payment | AE176: Description of transfer payment
A177: 1 | B177: =IF(ISERROR(INDEX((MyTransfersEcon1),MATCH(Z185,MyTransfersEcon3,0))),0,AA185&" transfers: "&INDEX((MyTransfersEcon1),MATCH(Z185,MyTransfersEcon3,0))) -> Current transfers: Provinces and municipalities | E177: 1 | F177: Public corporations and private enterprises | I177: 0 | W177: =SUM(K177:V177) -> 0 | X177: =I177+J177+W177 -> 0 | Z177: Other transfers to public corporations | AA177: Current | AB177: Departmental Management | AC177: 0 | AD177: Transfers and subsidies: private enterprises | AE177: payment for claims against the state priv enterprises
A178: =IF(SUM(COUNTIF(F178:AD178,"<>0")-COUNTBLANK(F178:AD178))<>0,1,0) -> 1 | B178: =IF(ISERROR(INDEX((MyTransfersEcon1),MATCH(Z178,MyTransfersEcon3,0))),0,AA178&" transfers: "&INDEX((MyTransfersEcon1),MATCH(Z178,MyTransfersEcon3,0))) -> Current transfers: Households | E178: 2 | F178: Households | I178: 0 | W178: =SUM(K178:V178) -> 0 | X178: =I178+J178+W178 -> 0 | Z178: Social benefits | AA178: Current | AB178: Departmental Management | AC178: 0 | AD178: Employee social benefits | AE178: Payment of leave gratuity
A179: =IF(SUM(COUNTIF(F179:AD179,"<>0")-COUNTBLANK(F179:AD179))<>0,1,0) -> 1 | B179: Current transfers: Households | E179: 3 | F179: Households | I179: 0 | W179: 0 | X179: 0 | Z179: Other transfers to households | AA179: Current | AB179: Departmental Management | AC179: 0 | AD179: Funeral Costs | AE179: Condolences/ Act of Grace
A180: 1 | B180: Current transfers: Households | E180: 4 | F180: Households | I180: 0 | W180: 0 | X180: 0 | Z180: Social benefits | AA180: Current | AB180: Internal Audit | AC180: 0 | AD180: Employee social benefits | AE180: Payment of leave gratuity
A181: 1 | B181: Current transfers: Households | E181: 5 | F181: Households | I181: 0 | W181: 0 | X181: 0 | Z181: Other transfers to households | AA181: Current | AB181: Internal Audit | AC181: 0 | AD181: Funeral Costs | AE181: Condolences/ Act of Grace
A182: 1 | B182: Current transfers: Public corporations and private enterprises | E182: 6 | F182: Public corporations and private enterprises | I182: 0 | W182: 0 | X182: 0 | Z182: Other transfers to public corporations | AA182: Current | AB182: Corporate Services | AC182: 0 | AD182: Transfers and subsidies: private enterprises | AE182: payment for claims against the state priv enterprises
A183: 1 | B183: Current transfers: Households | E183: 7 | F183: Households | I183: 0 | W183: 0 | X183: 0 | Z183: Other transfers to households | AA183: Current | AB183: Corporate Services | AC183: 0 | AD183: Funeral Costs | AE183: Condolences/ Act of Grace
A184: 1 | B184: Current transfers: Households | E184: 8 | F184: Households | I184: 0 | W184: 0 | X184: 0 | Z184: Other transfers to households | AA184: Current | AB184: Corporate Services | AC184: 0 | AD184: Other transfers (CASH) | AE184: Donations
A185: 1 | B185: Current transfers: Provinces and municipalities | E185: 9 | F185: Provinces and municipalities | I185: 0 | W185: 0 | X185: 0 | Z185: Provincial agencies and funds | AA185: Current | AB185: Financial Management | AC185: 0 | AD185: Renewal of car licenses | AE185: Payment of car licenses
A186: 1 | B186: Current transfers: Departmental agencies and accounts | E186: 10 | F186: Departmental agencies and accounts | I186: 0 | W186: 0 | X186: 0 | Z186: Departmental agencies (non-business entities) | AA186: Current | AB186: Financial Management | AC186: 0 | AD186: Renewal of licenses | AE186: Payment of licenses for TV/Radio
A187: 1 | B187: Current transfers: Households | E187: 11 | F187: Households | I187: 0 | W187: 0 | X187: 0 | Z187: Social benefits | AA187: Current | AB187: Financial Management | AC187: 0 | AD187: Employee social benefits | AE187: Payment of leave gratuity
A188: 1 | B188: Current transfers: Households | E188: 12 | F188: Households | I188: 0 | W188: 0 | X188: 0 | Z188: Other transfers to households | AA188: Current | AB188: Financial Management | AC188: 0 | AD188: Funeral Costs | AE188: Condolences/ Act of Grace
A189: 1 | B189: Current transfers: Households | E189: 13 | F189: Households | I189: 0 | W189: 0 | X189: 0 | Z189: Social benefits | AA189: Current | AB189: Internal Audit | AC189: 0 | AD189: Employee social benefits | AE189: Payment of leave gratuity
A190: 1 | B190: Current transfers: Households | E190: 14 | F190: Households | I190: 0 | W190: 0 | X190: 0 | Z190: Social benefits | AA190: Current | AB190: Departmental Management | AC190: 0 | AD190: Leave Gratuities | AE190: Employee Social Benefits
A191: 1 | B191: Current transfers: Households | E191: 15 | F191: Households | I191: 0 | W191: 0 | X191: 0 | Z191: Social benefits | AA191: Current | AB191: Departmental Management | AC191: 0 | AD191: Employee social benefits | AE191: Payment of leave gratuity
A192: 1 | B192: Current transfers: Households | E192: 16 | F192: Households | I192: 0 | W192: 0 | X192: 0 | Z192: Other transfers to households | AA192: Current | AB192: Departmental Management | AC192: 0 | AD192: Funeral Costs | AE192: Condolences/ Act of Grace
A193: 1 | B193: Current transfers: Provinces and municipalities | E193: 17 | F193: Vehicle licences | I193: 0 | W193: 0 | X193: 0 | Z193: Municipal bank accounts | AA193: Current | AB193: Departmental Management | AC193: 0 | AD193: Renewal of car licenses | AE193: Payment of car licenses
A194: 1 | B194: Current transfers: Households | E194: 18 | F194: Households | I194: 0 | W194: 0 | X194: 0 | Z194: Social benefits | AA194: Current | AB194: Departmental Management | AC194: 0 | AD194: Employee social benefits | AE194: Payment of leave gratuity
A195: 1 | B195: Current transfers: Households | E195: 19 | F195: Households | I195: 0 | W195: 0 | X195: 0 | Z195: Social benefits | AA195: Current | AB195: Financial Management | AC195: 0 | AD195: Employee social benefits | AE195: Payment of leave gratuity
A196: 1 | B196: Current transfers: Households | E196: 20 | F196: Households | I196: 0 | W196: 0 | X196: 0 | Z196: Other transfers to households | AA196: Current | AB196: Financial Management | AC196: 0 | AD196: Funeral Costs | AE196: Condolences/ Act of Grace
A197: 1 | B197: Current transfers: Provinces and municipalities | E197: 21 | F197: Vehicle licences | I197: 0 | W197: 0 | X197: 0 | Z197: Municipal bank accounts | AA197: Current | AB197: Financial Management | AC197: 0 | AD197: Renewal of car licences | AE197: Payment of car licenses
A198: 1 | B198: Current transfers: Provinces and municipalities | E198: 22 | F198: Vehicle licences | I198: 19 | W198: 0 | X198: 19 | Z198: Municipal bank accounts | AA198: Current | AB198: Financial Management | AC198: 0 | AD198: Licence fees paid to Municipalities | AE198: Payment of car licenses
A199: 1 | B199: Current transfers: Households | E199: 23 | F199: Households | I199: 0 | W199: 0 | X199: 0 | Z199: Social benefits | AA199: Current | AB199: Financial Management | AC199: 0 | AD199: Employee social benefits | AE199: Payment of leave gratuity
A200: 1 | B200: Current transfers: Households | E200: 24 | F200: Households | I200: 0 | W200: 0 | X200: 0 | Z200: Social benefits | AA200: Current | AB200: Financial Management | AC200: 0 | AD200: Employee social benefits | AE200: Payment of leave gratuity
A201: 1 | B201: Current transfers: Households | E201: 25 | F201: Households | I201: 0 | W201: 0 | X201: 0 | Z201: Other transfers to households | AA201: Current | AB201: Corporate Services | AC201: 0 | AD201: Funeral Costs | AE201: Condolences/ Act of Grace
A202: 1 | B202: Current transfers: Households | E202: 26 | F202: Households | I202: 0 | W202: 0 | X202: 0 | Z202: Other transfers to households | AA202: Current | AB202: Corporate Services | AC202: 0 | AD202: Funeral Costs | AE202: Condolences/ Act of Grace
A203: 1 | B203: Current transfers: Households | E203: 27 | F203: Claims against the state | I203: 0 | W203: 0 | X203: 0 | Z203: Other transfers to households | AA203: Current | AB203: Corporate Services | AC203: 0 | AD203: Settlement of arbitration award | AE203: Payment for resettlement costs
A204: 1 | B204: Current transfers: Households | E204: 28 | F204: Households | I204: 0 | W204: 0 | X204: 0 | Z204: Social benefits | AA204: Current | AB204: Corporate Services | AC204: 0 | AD204: Employee social benefits | AE204: Payment of leave gratuity
A205: 1 | B205: Current transfers: Households | E205: 29 | F205: Households | I205: 0 | W205: 0 | X205: 0 | Z205: Other transfers to households | AA205: Current | AB205: Corporate Services | AC205: 0 | AD205: Funeral Costs | AE205: Condolences/ Act of Grace
A206: 0 | B206: 0 | E206: 30 | F206: 0 | I206: 0 | W206: 0 | X206: 0 | Z206: 0 | AA206: 0 | AB206: 0 | AC206: 0 | AD206: 0 | AE206: 0
A207: 0 | B207: 0 | E207: 31 | F207: 0 | I207: 0 | W207: 0 | X207: 0 | Z207: 0 | AA207: 0 | AB207: 0 | AC207: 0 | AD207: 0 | AE207: 0
... 890 more rows

Sheet 2
A1: Row of SP1 | B1: 300
A2: SPInterval | B2: 150
A3: SP's created | B3: =MAX(B320:B4497) -> 3
A4: SP's listed | B4: =COUNTA(F47:F71) -> 3
A5: SP'Var | B5: =B4-B3 -> 0 | F5: =IF(G5="","",IF($B$5>0,"No. of subprogramme units to create","No. of subprogramme units to delete")) ->  | G5: =IF(B4-B3=0,"",IF(B4-B3<0,B3-B4,B4-B3)) -> 
A6: Check | B6: =B4-MAX(B47:B71) -> 0 | F6: Vote no. | G6: =MyVoteNo -> 30
A7: SPFormula | B7: OFFSET(H$1,(B2*$E31)+$B$2+33,0) | F7: Department name | G7: =MyDeptName -> Communications and Digital Technologies
A8: Prog No. | B8: 2 | F8: Programme name | G8: =OFFSET(Summary!$F$30,$B$8,0) -> ICT International Relations and Affairs
F9: Programme manager | G9: Ms Nonkqubela Jordan | J9: Post: | K9: DDG
F11: Programme purpose
F12: Ensure alignment between South Africa’s foreign policy and international activities in the field of ICT.
A14: =IF(B14=0,0,1) -> 0 | B14: =IF(F14<>"",E14,0) -> 0
A15: 0 | B15: 0
A16: 0 | B16: 0
A17: =IF(B17=0,0,1) -> 0 | B17: 0
A18: =IF(B18=0,0,1) -> 0 | B18: 0
A19: =IF(B19=0,0,1) -> 0 | B19: 0
A20: 0 | B20: 0
A21: 0 | B21: 0
A22: 0 | B22: 0
A23: 0 | B23: 0
A24: 0 | B24: 0
A25: 0 | B25: 0
A26: 0 | B26: 0
A27: 0 | B27: 0
A28: 0 | B28: 0
A29: 0 | B29: 0
A30: 0 | B30: 0
A31: 0 | B31: 0
A32: 0 | B32: 0
A33: 0 | B33: 0
A34: 0 | B34: 0
A35: 0 | B35: 0
A36: 0 | B36: 0
A37: 0 | B37: 0
A38: 0 | B38: 0
A39: 0 | B39: 0 | U39: Hide | V39: Hide
A40: 0 | B40: =IF(ISERROR(INDEX(('S&E data'!$B$4:$B$100),MATCH($G$7,'S&E data'!$G$4:$G$100,0))&IF(LEN(B8)<2,"0"&B8,B8)),0,INDEX(('S&E data'!$B$4:$B$100),MATCH($G$7,'S&E data'!$G$4:$G$100,0))&IF(LEN(B8)<2,"0"&B8,B8)) -> 0
A41: =IF(COUNTA(F41:Y41)>0,1,0) -> 0
A42: 1 | H42: =+Summary!$H$26 -> 2020/21
A43: 1 | K43: Adjustments appropriation | M43: Special Adjustments Appropriation
A44: 1 | F44: =+IF(COUNTIF(I162:X162,">0.5")+COUNTIF(I162:X162,"<-0.49999")<>0,"Inconsistencies between Subprogrammes and Economic classification",IF(COUNTIF(I164:X164,">0.5")+COUNTIF(I164:X164,"<-0.49999")<>0,"Inconsistencies between Transfers Detail and Economic classification","")) ->  | I44: Voted (Main appropriation) | J44: Special appropriation | K44: Roll-overs | L44: Unforeseeable/ unavoidable | M44: Utilisation of unspend funds Virements & Shifts | N44: Significant and unforeseeable economic and financial events | P44: Shifting of funds following function shift | R44: Self-financing | S44: Declared unspent funds | T44: Unforeseeable and unavoidable expenditure | U44: Announced in the budget speech | V44: Section 16 of the PFMA | W44: Total special adjustments appropriation | X44: Adjusted appropriation
A45: 1 | F45: R thousand | N45: Suspension of funds | O45: Allocation of funds | P45: Within the vote | Q45: Between votes
A46: 1 | C46: Name | F46: Subprogrammes
A47: 1 | B47: =IF(F47<>"",E47,0) -> 1 | C47: =IF(LEN(F47)>2,1,0) -> 1 | E47: 1 | F47: Programme Management for International Relations and Affairs | G47: =IF(AND(F47="",COUNTA(F48:F$71)>0),"Please fill Subprogrammes from the top","") ->  | I47: =IF(AND($B$6>=0,$B47<>0),OFFSET(I$1,($B$2*$E47)+($B$2+55),0),0) -> 2945 | J47: 0 | K47: 0 | L47: 0 | M47: 0 | N47: 0 | O47: 0 | P47: 0 | Q47: 0 | R47: 0 | S47: 0 | T47: 0 | U47: 0 | V47: 0 | W47: 0 | X47: 2945
A48: =IF(B48=0,0,1) -> 1 | B48: =IF(F48<>"",E48,0) -> 2 | C48: =IF(LEN(F48)>2,1,0) -> 1 | E48: 2 | F48: International Affairs | G48: =IF(AND(F48="",COUNTA(F49:F$71)>0),"Please fill Subprogrammes from the top","") ->  | I48: 14814 | J48: 0 | K48: 0 | L48: 0 | M48: 0 | N48: 0 | O48: 0 | P48: 0 | Q48: 0 | R48: 0 | S48: 0 | T48: 0 | U48: 0 | V48: 0 | W48: 0 | X48: 14814
A49: =IF(B49=0,0,1) -> 1 | B49: 3 | C49: 1 | E49: 3 | F49: ICT Trade/Partnership | G49: =IF(AND(F49="",COUNTA(F50:F$71)>0),"Please fill Subprogrammes from the top","") ->  | I49: 43076 | J49: 0 | K49: 0 | L49: 0 | M49: 0 | N49: 0 | O49: 0 | P49: 0 | Q49: 0 | R49: 0 | S49: 0 | T49: 0 | U49: 0 | V49: 0 | W49: 0 | X49: 43076
A50: =IF(B50=0,0,1) -> 0 | B50: 0 | C50: 0 | E50: 4 | G50: =IF(AND(F50="",COUNTA(F51:F$71)>0),"Please fill Subprogrammes from the top","") ->  | I50: 0 | J50: 0 | K50: 0 | L50: 0 | M50: 0 | N50: 0 | O50: 0 | P50: 0 | Q50: 0 | R50: 0 | S50: 0 | T50: 0 | U50: 0 | V50: 0 | W50: 0 | X50: 0
A51: 0 | B51: 0 | C51: 0 | E51: 5 | G51: =IF(AND(F51="",COUNTA(F52:F$71)>0),"Please fill Subprogrammes from the top","") ->  | I51: 0 | J51: 0 | K51: 0 | L51: 0 | M51: 0 | N51: 0 | O51: 0 | P51: 0 | Q51: 0 | R51: 0 | S51: 0 | T51: 0 | U51: 0 | V51: 0 | W51: 0 | X51: 0
A52: 0 | B52: 0 | C52: 0 | E52: 6 | G52: =IF(AND(F52="",COUNTA(F53:F$71)>0),"Please fill Subprogrammes from the top","") ->  | I52: 0 | J52: 0 | K52: 0 | L52: 0 | M52: 0 | N52: 0 | O52: 0 | P52: 0 | Q52: 0 | R52: 0 | S52: 0 | T52: 0 | U52: 0 | V52: 0 | W52: 0 | X52: 0
A53: 0 | B53: 0 | C53: 0 | E53: 7 | G53: =IF(AND(F53="",COUNTA(F54:F$71)>0),"Please fill Subprogrammes from the top","") ->  | I53: 0 | J53: 0 | K53: 0 | L53: 0 | M53: 0 | N53: 0 | O53: 0 | P53: 0 | Q53: 0 | R53: 0 | S53: 0 | T53: 0 | U53: 0 | V53: 0 | W53: 0 | X53: 0
A54: 0 | B54: 0 | C54: 0 | E54: 8 | G54: =IF(AND(F54="",COUNTA(F55:F$71)>0),"Please fill Subprogrammes from the top","") ->  | I54: 0 | J54: 0 | K54: 0 | L54: 0 | M54: 0 | N54: 0 | O54: 0 | P54: 0 | Q54: 0 | R54: 0 | S54: 0 | T54: 0 | U54: 0 | V54: 0 | W54: 0 | X54: 0
A55: 0 | B55: 0 | C55: 0 | E55: 9 | G55: =IF(AND(F55="",COUNTA(F56:F$71)>0),"Please fill Subprogrammes from the top","") ->  | I55: 0 | J55: 0 | K55: 0 | L55: 0 | M55: 0 | N55: 0 | O55: 0 | P55: 0 | Q55: 0 | R55: 0 | S55: 0 | T55: 0 | U55: 0 | V55: 0 | W55: 0 | X55: 0
A56: 0 | B56: 0 | C56: 0 | E56: 10 | G56: =IF(AND(F56="",COUNTA(F57:F$71)>0),"Please fill Subprogrammes from the top","") ->  | I56: 0 | J56: 0 | K56: 0 | L56: 0 | M56: 0 | N56: 0 | O56: 0 | P56: 0 | Q56: 0 | R56: 0 | S56: 0 | T56: 0 | U56: 0 | V56: 0 | W56: 0 | X56: 0
A57: 0 | B57: 0 | C57: 0 | E57: 11 | G57: =IF(AND(F57="",COUNTA(F58:F$71)>0),"Please fill Subprogrammes from the top","") ->  | I57: =IF(AND($B$6>=0,$B57<>0),OFFSET(I$1,($B$2*$E57)+($B$2+55),0),0) -> 0 | J57: 0 | K57: 0 | L57: 0 | M57: 0 | N57: 0 | O57: 0 | P57: 0 | Q57: 0 | R57: 0 | S57: 0 | T57: 0 | U57: 0 | V57: 0 | W57: 0 | X57: 0
A58: 0 | B58: 0 | C58: 0 | E58: 12 | G58: =IF(AND(F58="",COUNTA(F59:F$71)>0),"Please fill Subprogrammes from the top","") ->  | I58: 0 | J58: 0 | K58: 0 | L58: 0 | M58: 0 | N58: 0 | O58: 0 | P58: 0 | Q58: 0 | R58: 0 | S58: 0 | T58: 0 | U58: 0 | V58: 0 | W58: 0 | X58: 0
A59: 0 | B59: 0 | C59: 0 | E59: 13 | G59: =IF(AND(F59="",COUNTA(F60:F$71)>0),"Please fill Subprogrammes from the top","") ->  | I59: 0 | J59: 0 | K59: 0 | L59: 0 | M59: 0 | N59: 0 | O59: 0 | P59: 0 | Q59: 0 | R59: 0 | S59: 0 | T59: 0 | U59: 0 | V59: 0 | W59: 0 | X59: 0
A60: 0 | B60: 0 | C60: 0 | E60: 14 | G60: =IF(AND(F60="",COUNTA(F61:F$71)>0),"Please fill Subprogrammes from the top","") ->  | I60: 0 | J60: 0 | K60: 0 | L60: 0 | M60: 0 | N60: 0 | O60: 0 | P60: 0 | Q60: 0 | R60: 0 | S60: 0 | T60: 0 | U60: 0 | V60: 0 | W60: 0 | X60: 0
A61: 0 | B61: 0 | C61: 0 | E61: 15 | G61: =IF(AND(F61="",COUNTA(F62:F$71)>0),"Please fill Subprogrammes from the top","") ->  | I61: 0 | J61: 0 | K61: 0 | L61: 0 | M61: 0 | N61: 0 | O61: 0 | P61: 0 | Q61: 0 | R61: 0 | S61: 0 | T61: 0 | U61: 0 | V61: 0 | W61: 0 | X61: 0
A62: 0 | B62: 0 | C62: 0 | E62: 16 | G62: =IF(AND(F62="",COUNTA(F63:F$71)>0),"Please fill Subprogrammes from the top","") ->  | I62: 0 | J62: 0 | K62: 0 | L62: 0 | M62: 0 | N62: 0 | O62: 0 | P62: 0 | Q62: 0 | R62: 0 | S62: 0 | T62: 0 | U62: 0 | V62: 0 | W62: 0 | X62: 0
A63: 0 | B63: 0 | C63: 0 | E63: 17 | G63: =IF(AND(F63="",COUNTA(F64:F$71)>0),"Please fill Subprogrammes from the top","") ->  | I63: 0 | J63: 0 | K63: 0 | L63: 0 | M63: 0 | N63: 0 | O63: 0 | P63: 0 | Q63: 0 | R63: 0 | S63: 0 | T63: 0 | U63: 0 | V63: 0 | W63: 0 | X63: 0
A64: 0 | B64: 0 | C64: 0 | E64: 18 | G64: =IF(AND(F64="",COUNTA(F65:F$71)>0),"Please fill Subprogrammes from the top","") ->  | I64: 0 | J64: 0 | K64: 0 | L64: 0 | M64: 0 | N64: 0 | O64: 0 | P64: 0 | Q64: 0 | R64: 0 | S64: 0 | T64: 0 | U64: 0 | V64: 0 | W64: 0 | X64: 0
A65: 0 | B65: 0 | C65: 0 | E65: 19 | G65: =IF(AND(F65="",COUNTA(F66:F$71)>0),"Please fill Subprogrammes from the top","") ->  | I65: 0 | J65: 0 | K65: 0 | L65: 0 | M65: 0 | N65: 0 | O65: 0 | P65: 0 | Q65: 0 | R65: 0 | S65: 0 | T65: 0 | U65: 0 | V65: 0 | W65: 0 | X65: 0
A66: 0 | B66: 0 | C66: 0 | E66: 20 | G66: =IF(AND(F66="",COUNTA(F67:F$71)>0),"Please fill Subprogrammes from the top","") ->  | I66: 0 | J66: 0 | K66: 0 | L66: 0 | M66: 0 | N66: 0 | O66: 0 | P66: 0 | Q66: 0 | R66: 0 | S66: 0 | T66: 0 | U66: 0 | V66: 0 | W66: 0 | X66: 0
A67: 0 | B67: 0 | C67: 0 | E67: 21 | G67: =IF(AND(F67="",COUNTA(F68:F$71)>0),"Please fill Subprogrammes from the top","") ->  | I67: 0 | J67: 0 | K67: 0 | L67: 0 | M67: 0 | N67: 0 | O67: 0 | P67: 0 | Q67: 0 | R67: 0 | S67: 0 | T67: 0 | U67: 0 | V67: 0 | W67: 0 | X67: 0
A68: 0 | B68: 0 | C68: 0 | E68: 22 | G68: =IF(AND(F68="",COUNTA(F69:F$71)>0),"Please fill Subprogrammes from the top","") ->  | I68: 0 | J68: 0 | K68: 0 | L68: 0 | M68: 0 | N68: 0 | O68: 0 | P68: 0 | Q68: 0 | R68: 0 | S68: 0 | T68: 0 | U68: 0 | V68: 0 | W68: 0 | X68: 0
A69: 0 | B69: 0 | C69: 0 | E69: 23 | G69: =IF(AND(F69="",COUNTA(F70:F$71)>0),"Please fill Subprogrammes from the top","") ->  | I69: 0 | J69: 0 | K69: 0 | L69: 0 | M69: 0 | N69: 0 | O69: 0 | P69: 0 | Q69: 0 | R69: 0 | S69: 0 | T69: 0 | U69: 0 | V69: 0 | W69: 0 | X69: 0
A70: 0 | B70: 0 | C70: 0 | E70: 24 | G70: =IF(AND(F70="",COUNTA(F71:F$71)>0),"Please fill Subprogrammes from the top","") ->  | I70: 0 | J70: 0 | K70: 0 | L70: 0 | M70: 0 | N70: 0 | O70: 0 | P70: 0 | Q70: 0 | R70: 0 | S70: 0 | T70: 0 | U70: 0 | V70: 0 | W70: 0 | X70: 0
A71: 0 | B71: 0 | C71: 0 | E71: 25 | I71: 0 | J71: 0 | K71: 0 | L71: 0 | M71: 0 | N71: 0 | O71: 0 | P71: 0 | Q71: 0 | R71: 0 | S71: 0 | T71: 0 | U71: 0 | V71: 0 | W71: 0 | X71: 0
A72: 1 | F72: Total | I72: =SUM(I47:I71) -> 60835 | J72: =SUM(J47:J71) -> 0 | K72: =SUM(K47:K71) -> 0 | L72: 0 | M72: =SUM(M47:M71) -> 0 | N72: 0 | O72: 0 | P72: 0 | Q72: 0 | R72: 0 | S72: 0 | T72: 0 | U72: 0 | V72: 0 | W72: 0 | X72: 60835
A73: 1 | F73: Economic classification
A74: 1 | F74: Current payments | I74: =+I75+I78+I117 -> 27505 | J74: =+J75+J78+J117 -> 0 | K74: =+K75+K78+K117 -> 0 | L74: =+L75+L78+L117 -> 0 | M74: =+M75+M78+M117 -> 0 | N74: =+N75+N78+N117 -> 0 | O74: 0 | P74: 0 | Q74: 0 | R74: 0 | S74: 0 | T74: 0 | U74: 0 | V74: 0 | W74: 0 | X74: 27505
A75: =IF(SUM(COUNTIF(I75:X75,"<>0")-COUNTBLANK(I75:X75))<>0,1,0) -> 1 | F75: Compensation of employees | I75: =SUM(I76:I77) -> 17851 | J75: =SUM(J76:J77) -> 0 | K75: =SUM(K76:K77) -> 0 | L75: =SUM(L76:L77) -> 0 | M75: =SUM(M76:M77) -> 0 | N75: =SUM(N76:N77) -> 0 | O75: 0 | P75: 0 | Q75: 0 | R75: 0 | S75: 0 | T75: 0 | U75: 0 | V75: 0 | W75: 0 | X75: 17851
A76: =A75 -> 1 | F76: Salaries and wages | I76: =SUMIF($F$284:$F$5020,$F76,I$284:I$5020) -> 14010 | J76: 0 | K76: 0 | L76: 0 | M76: 0 | N76: 0 | O76: 0 | P76: 0 | Q76: 0 | R76: 0 | S76: 0 | T76: 0 | U76: 0 | V76: 0 | W76: 0 | X76: 14010
A77: =A75 -> 1 | F77: Social contributions | I77: 3841 | J77: 0 | K77: 0 | L77: 0 | M77: 0 | N77: 0 | O77: 0 | P77: 0 | Q77: 0 | R77: 0 | S77: 0 | T77: 0 | U77: 0 | V77: 0 | W77: 0 | X77: 3841
A78: =IF(SUM(COUNTIF(I78:X78,"<>0")-COUNTBLANK(I78:X78))<>0,1,0) -> 1 | F78: Goods and services | I78: =SUM(I79:I116) -> 9654 | J78: =SUM(J79:J116) -> 0 | K78: =SUM(K79:K116) -> 0 | L78: =SUM(L79:L116) -> 0 | M78: =SUM(M79:M116) -> 0 | N78: =SUM(N79:N116) -> 0 | O78: 0 | P78: 0 | Q78: 0 | R78: 0 | S78: 0 | T78: 0 | U78: 0 | V78: 0 | W78: 0 | X78: 9654
A79: =A78 -> 1 | F79: Administrative fees | I79: =SUMIF($F$284:$F$5020,$F79,I$284:I$5020) -> 217 | J79: 0 | K79: 0 | L79: 0 | M79: 0 | N79: 0 | O79: 0 | P79: 0 | Q79: 0 | R79: 0 | S79: 0 | T79: 0 | U79: 0 | V79: 0 | W79: 0 | X79: 217
A80: =IF(SUM(COUNTIF(I80:X80,"<>0")-COUNTBLANK(I80:X80))<>0,1,0) -> 1 | F80: Advertising | I80: 20 | J80: 0 | K80: 0 | L80: 0 | M80: 0 | N80: 0 | O80: 0 | P80: 0 | Q80: 0 | R80: 0 | S80: 0 | T80: 0 | U80: 0 | V80: 0 | W80: 0 | X80: 20
A81: 1 | F81: Minor Assets | I81: 191 | J81: 0 | K81: 0 | L81: 0 | M81: 0 | N81: 0 | O81: 0 | P81: 0 | Q81: 0 | R81: 0 | S81: 0 | T81: 0 | U81: 0 | V81: 0 | W81: 0 | X81: 191
A82: 0 | F82: Audit costs: External | I82: 0 | J82: 0 | K82: 0 | L82: 0 | M82: 0 | N82: 0 | O82: 0 | P82: 0 | Q82: 0 | R82: 0 | S82: 0 | T82: 0 | U82: 0 | V82: 0 | W82: 0 | X82: 0
A83: 1 | F83: Bursaries: Employees | I83: 180 | J83: 0 | K83: 0 | L83: 0 | M83: 0 | N83: 0 | O83: 0 | P83: 0 | Q83: 0 | R83: 0 | S83: 0 | T83: 0 | U83: 0 | V83: 0 | W83: 0 | X83: 180
A84: 1 | F84: Catering: Departmental activities | I84: 165 | J84: 0 | K84: 0 | L84: 0 | M84: 0 | N84: 0 | O84: 0 | P84: 0 | Q84: 0 | R84: 0 | S84: 0 | T84: 0 | U84: 0 | V84: 0 | W84: 0 | X84: 165
A85: 1 | F85: Communication (G&S) | I85: 190 | J85: 0 | K85: 0 | L85: 0 | M85: 0 | N85: 0 | O85: 0 | P85: 0 | Q85: 0 | R85: 0 | S85: 0 | T85: 0 | U85: 0 | V85: 0 | W85: 0 | X85: 190
A86: 0 | F86: Computer services | I86: 0 | J86: 0 | K86: 0 | L86: 0 | M86: 0 | N86: 0 | O86: 0 | P86: 0 | Q86: 0 | R86: 0 | S86: 0 | T86: 0 | U86: 0 | V86: 0 | W86: 0 | X86: 0
A87: 0 | F87: Consultants: Business and advisory services | I87: 0 | J87: 0 | K87: 0 | L87: 0 | M87: 0 | N87: 0 | O87: 0 | P87: 0 | Q87: 0 | R87: 0 | S87: 0 | T87: 0 | U87: 0 | V87: 0 | W87: 0 | X87: 0
A88: 0 | F88: Infrastructure and planning services | I88: 0 | J88: 0 | K88: 0 | L88: 0 | M88: 0 | N88: 0 | O88: 0 | P88: 0 | Q88: 0 | R88: 0 | S88: 0 | T88: 0 | U88: 0 | V88: 0 | W88: 0 | X88: 0
A89: 0 | F89: Laboratory services | I89: 0 | J89: 0 | K89: 0 | L89: 0 | M89: 0 | N89: 0 | O89: 0 | P89: 0 | Q89: 0 | R89: 0 | S89: 0 | T89: 0 | U89: 0 | V89: 0 | W89: 0 | X89: 0
A90: 0 | F90: Legal services (G&S) | I90: 0 | J90: 0 | K90: 0 | L90: 0 | M90: 0 | N90: 0 | O90: 0 | P90: 0 | Q90: 0 | R90: 0 | S90: 0 | T90: 0 | U90: 0 | V90: 0 | W90: 0 | X90: 0
A91: 0 | F91: Science and technological services | I91: 0 | J91: 0 | K91: 0 | L91: 0 | M91: 0 | N91: 0 | O91: 0 | P91: 0 | Q91: 0 | R91: 0 | S91: 0 | T91: 0 | U91: 0 | V91: 0 | W91: 0 | X91: 0
A92: 1 | F92: Contractors | I92: 876 | J92: 0 | K92: 0 | L92: 0 | M92: 0 | N92: 0 | O92: 0 | P92: 0 | Q92: 0 | R92: 0 | S92: 0 | T92: 0 | U92: 0 | V92: 0 | W92: 0 | X92: 876
A93: 0 | F93: Agency and support/outsourced services | I93: 0 | J93: 0 | K93: 0 | L93: 0 | M93: 0 | N93: 0 | O93: 0 | P93: 0 | Q93: 0 | R93: 0 | S93: 0 | T93: 0 | U93: 0 | V93: 0 | W93: 0 | X93: 0
A94: 1 | F94: Entertainment | I94: =SUMIF($F$284:$F$5020,$F94,I$284:I$5020) -> 14 | J94: 0 | K94: 0 | L94: 0 | M94: 0 | N94: 0 | O94: 0 | P94: 0 | Q94: 0 | R94: 0 | S94: 0 | T94: 0 | U94: 0 | V94: 0 | W94: 0 | X94: =SUMIF($F$284:$F$5020,$F94,X$284:X$5020) -> 14
A95: 1 | F95: Fleet services (including government motor transport) | I95: 10 | J95: 0 | K95: 0 | L95: 0 | M95: 0 | N95: 0 | O95: 0 | P95: 0 | Q95: 0 | R95: 0 | S95: 0 | T95: 0 | U95: 0 | V95: 0 | W95: 0 | X95: =SUMIF($F$284:$F$5020,$F95,X$284:X$5020) -> 10
A96: 0 | F96: Housing | I96: 0 | J96: 0 | K96: 0 | L96: 0 | M96: 0 | N96: 0 | O96: 0 | P96: 0 | Q96: 0 | R96: 0 | S96: 0 | T96: 0 | U96: 0 | V96: 0 | W96: 0 | X96: 0
A97: 0 | F97: Inventory: Clothing material and accessories | I97: 0 | J97: 0 | K97: 0 | L97: 0 | M97: 0 | N97: 0 | O97: 0 | P97: 0 | Q97: 0 | R97: 0 | S97: 0 | T97: 0 | U97: 0 | V97: 0 | W97: 0 | X97: 0
A98: 0 | F98: Inventory: Farming supplies | I98: 0 | J98: 0 | K98: 0 | L98: 0 | M98: 0 | N98: 0 | O98: 0 | P98: 0 | Q98: 0 | R98: 0 | S98: 0 | T98: 0 | U98: 0 | V98: 0 | W98: 0 | X98: 0
A99: 0 | F99: Inventory: Food and food supplies | I99: 0 | J99: 0 | K99: 0 | L99: 0 | M99: 0 | N99: 0 | O99: 0 | P99: 0 | Q99: 0 | R99: 0 | S99: 0 | T99: 0 | U99: 0 | V99: 0 | W99: 0 | X99: 0
A100: 0 | F100: Inventory: Fuel, oil and gas | I100: 0 | J100: 0 | K100: 0 | L100: 0 | M100: 0 | N100: 0 | O100: 0 | P100: 0 | Q100: 0 | R100: 0 | S100: 0 | T100: 0 | U100: 0 | V100: 0 | W100: 0 | X100: 0
A101: 0 | F101: Inventory: Learner and teacher support material | I101: 0 | J101: 0 | K101: 0 | L101: 0 | M101: 0 | N101: 0 | O101: 0 | P101: 0 | Q101: 0 | R101: 0 | S101: 0 | T101: 0 | U101: 0 | V101: 0 | W101: 0 | X101: 0
A102: 0 | F102: Inventory: Materials and supplies | I102: 0 | J102: 0 | K102: 0 | L102: 0 | M102: 0 | N102: 0 | O102: 0 | P102: 0 | Q102: 0 | R102: 0 | S102: 0 | T102: 0 | U102: 0 | V102: 0 | W102: 0 | X102: 0
A103: 0 | F103: Inventory: Medical supplies | I103: 0 | J103: 0 | K103: 0 | L103: 0 | M103: 0 | N103: 0 | O103: 0 | P103: 0 | Q103: 0 | R103: 0 | S103: 0 | T103: 0 | U103: 0 | V103: 0 | W103: 0 | X103: 0
A104: 0 | F104: Inventory: Medicine | I104: =SUMIF($F$284:$F$5020,$F104,I$284:I$5020) -> 0 | J104: 0 | K104: 0 | L104: 0 | M104: 0 | N104: 0 | O104: 0 | P104: 0 | Q104: 0 | R104: 0 | S104: 0 | T104: 0 | U104: 0 | V104: 0 | W104: 0 | X104: 0
A105: 0 | F105: Medsas inventory interface | I105: 0 | J105: 0 | K105: 0 | L105: 0 | M105: 0 | N105: 0 | O105: 0 | P105: 0 | Q105: 0 | R105: 0 | S105: 0 | T105: 0 | U105: 0 | V105: 0 | W105: 0 | X105: 0
A106: 0 | F106: Inventory: Other supplies | I106: 0 | J106: 0 | K106: 0 | L106: 0 | M106: 0 | N106: 0 | O106: 0 | P106: 0 | Q106: 0 | R106: 0 | S106: 0 | T106: 0 | U106: 0 | V106: 0 | W106: 0 | X106: 0
A107: 1 | F107: Consumable supplies | I107: 30 | J107: 0 | K107: 0 | L107: 0 | M107: 0 | N107: 0 | O107: 0 | P107: 0 | Q107: 0 | R107: 0 | S107: 0 | T107: 0 | U107: 0 | V107: 0 | W107: 0 | X107: 30
A108: 1 | F108: Consumables: Stationery, printing and office supplies | I108: 138 | J108: 0 | K108: 0 | L108: 0 | M108: 0 | N108: 0 | O108: 0 | P108: 0 | Q108: 0 | R108: 0 | S108: 0 | T108: 0 | U108: 0 | V108: 0 | W108: 0 | X108: 138
A109: 1 | F109: Operating leases | I109: 316 | J109: 0 | K109: 0 | L109: 0 | M109: 0 | N109: 0 | O109: 0 | P109: 0 | Q109: 0 | R109: 0 | S109: 0 | T109: 0 | U109: 0 | V109: 0 | W109: 0 | X109: 316
A110: 0 | F110: Rental and hiring | I110: 0 | J110: 0 | K110: 0 | L110: 0 | M110: 0 | N110: 0 | O110: 0 | P110: 0 | Q110: 0 | R110: 0 | S110: 0 | T110: 0 | U110: 0 | V110: 0 | W110: 0 | X110: 0
A111: 0 | F111: Property payments | I111: 0 | J111: 0 | K111: 0 | L111: 0 | M111: 0 | N111: 0 | O111: 0 | P111: 0 | Q111: 0 | R111: 0 | S111: 0 | T111: 0 | U111: 0 | V111: 0 | W111: 0 | X111: 0
A112: 0 | F112: Transport provided: Departmental activity | I112: 0 | J112: 0 | K112: 0 | L112: 0 | M112: 0 | N112: 0 | O112: 0 | P112: 0 | Q112: 0 | R112: 0 | S112: 0 | T112: 0 | U112: 0 | V112: 0 | W112: 0 | X112: 0
A113: 1 | F113: Travel and subsistence | I113: 4747 | J113: 0 | K113: 0 | L113: 0 | M113: 0 | N113: 0 | O113: 0 | P113: 0 | Q113: 0 | R113: 0 | S113: 0 | T113: 0 | U113: 0 | V113: 0 | W113: 0 | X113: 4747
A114: 1 | F114: Training and development | I114: 160 | J114: 0 | K114: 0 | L114: 0 | M114: 0 | N114: 0 | O114: 0 | P114: 0 | Q114: 0 | R114: 0 | S114: 0 | T114: 0 | U114: 0 | V114: 0 | W114: 0 | X114: 160
A115: 1 | F115: Operating payments | I115: 200 | J115: 0 | K115: 0 | L115: 0 | M115: 0 | N115: 0 | O115: 0 | P115: 0 | Q115: 0 | R115: 0 | S115: 0 | T115: 0 | U115: 0 | V115: 0 | W115: 0 | X115: 200
A116: =A78 -> 1 | F116: Venues and facilities | I116: 2200 | J116: 0 | K116: 0 | L116: 0 | M116: 0 | N116: 0 | O116: 0 | P116: 0 | Q116: 0 | R116: 0 | S116: 0 | T116: 0 | U116: 0 | V116: 0 | W116: 0 | X116: 2200
A117: 0 | F117: Interest and rent on land | I117: =SUM(I118:I119) -> 0 | J117: =SUM(J118:J119) -> 0 | K117: =SUM(K118:K119) -> 0 | L117: =SUM(L118:L119) -> 0 | M117: =SUM(M118:M119) -> 0 | N117: =SUM(N118:N119) -> 0 | O117: 0 | P117: 0 | Q117: 0 | R117: 0 | S117: 0 | T117: 0 | U117: 0 | V117: 0 | W117: 0 | X117: 0
A118: =A117 -> 0 | F118: Interest (Incl. interest on unitary payments (PPP)) | I118: =SUMIF($F$284:$F$5020,$F118,I$284:I$5020) -> 0 | J118: 0 | K118: 0 | L118: 0 | M118: 0 | N118: 0 | O118: 0 | P118: 0 | Q118: 0 | R118: 0 | S118: 0 | T118: 0 | U118: 0 | V118: 0 | W118: 0 | X118: 0
A119: =A117 -> 0 | F119: Rent on land | I119: 0 | J119: 0 | K119: 0 | L119: 0 | M119: 0 | N119: 0 | O119: 0 | P119: 0 | Q119: 0 | R119: 0 | S119: 0 | T119: 0 | U119: 0 | V119: 0 | W119: 0 | X119: 0
A120: 1 | F120: Transfers and subsidies | I120: =+SUM(I121,I128,I131,I132,I133,I140,I141) -> 32724 | J120: =+SUM(J121,J128,J131,J132,J133,J140,J141) -> 0 | K120: =+SUM(K121,K128,K131,K132,K133,K140,K141) -> 0 | L120: 0 | M120: =+SUM(M121,M128,M131,M132,M133,M140,M141) -> 0 | N120: 0 | O120: 0 | P120: 0 | Q120: 0 | R120: 0 | S120: 0 | T120: 0 | U120: 0 | V120: 0 | W120: 0 | X120: 32724
A121: =IF(SUM(COUNTIF(I121:X121,"<>0")-COUNTBLANK(I121:X121))<>0,1,0) -> 0 | F121: Provinces and municipalities | I121: =SUMIF($F$284:$F$5020,$F121,I$284:I$5020) -> 0 | J121: 0 | K121: 0 | L121: 0 | M121: 0 | N121: 0 | O121: 0 | P121: 0 | Q121: 0 | R121: 0 | S121: 0 | T121: 0 | U121: 0 | V121: 0 | W121: 0 | X121: 0
A122: 0 | F122: Provinces | I122: 0 | J122: 0 | K122: 0 | L122: 0 | M122: 0 | N122: 0 | O122: 0 | P122: 0 | Q122: 0 | R122: 0 | S122: 0 | T122: 0 | U122: 0 | V122: 0 | W122: 0 | X122: 0
A123: =A122 -> 0 | F123: Provincial Revenue Funds | I123: 0 | J123: 0 | K123: 0 | L123: 0 | M123: 0 | N123: 0 | O123: 0 | P123: 0 | Q123: 0 | R123: 0 | S123: 0 | T123: 0 | U123: 0 | V123: 0 | W123: 0 | X123: 0
A124: =A122 -> 0 | F124: Provincial agencies and funds | I124: 0 | J124: 0 | K124: 0 | L124: 0 | M124: 0 | N124: 0 | O124: 0 | P124: 0 | Q124: 0 | R124: 0 | S124: 0 | T124: 0 | U124: 0 | V124: 0 | W124: 0 | X124: 0
A125: =IF(SUM(COUNTIF(I125:X125,"<>0")-COUNTBLANK(I125:X125))<>0,1,0) -> 0 | F125: Municipalities | I125: 0 | J125: 0 | K125: 0 | L125: 0 | M125: 0 | N125: 0 | O125: 0 | P125: 0 | Q125: 0 | R125: 0 | S125: 0 | T125: 0 | U125: 0 | V125: 0 | W125: 0 | X125: 0
A126: =A125 -> 0 | F126: Municipal bank accounts | I126: 0 | J126: 0 | K126: 0 | L126: 0 | M126: 0 | N126: 0 | O126: 0 | P126: 0 | Q126: 0 | R126: 0 | S126: 0 | T126: 0 | U126: 0 | V126: 0 | W126: 0 | X126: 0
A127: =A125 -> 0 | F127: Municipal agencies and funds | I127: 0 | J127: 0 | K127: 0 | L127: 0 | M127: 0 | N127: 0 | O127: 0 | P127: 0 | Q127: 0 | R127: 0 | S127: 0 | T127: 0 | U127: 0 | V127: 0 | W127: 0 | X127: 0
A128: =IF(SUM(COUNTIF(I128:X128,"<>0")-COUNTBLANK(I128:X128))<>0,1,0) -> 0 | F128: Departmental agencies and accounts | I128: 0 | J128: 0 | K128: 0 | L128: 0 | M128: 0 | N128: 0 | O128: 0 | P128: 0 | Q128: 0 | R128: 0 | S128: 0 | T128: 0 | U128: 0 | V128: 0 | W128: 0 | X128: 0
A129: =A128 -> 0 | F129: Social security funds | I129: 0 | J129: 0 | K129: 0 | L129: 0 | M129: 0 | N129: 0 | O129: 0 | P129: 0 | Q129: 0 | R129: 0 | S129: 0 | T129: 0 | U129: 0 | V129: 0 | W129: 0 | X129: 0
A130: =A128 -> 0 | F130: Departmental agencies (non-business entities) | I130: 0 | J130: 0 | K130: 0 | L130: 0 | M130: 0 | N130: 0 | O130: 0 | P130: 0 | Q130: 0 | R130: 0 | S130: 0 | T130: 0 | U130: 0 | V130: 0 | W130: 0 | X130: 0
A131: =IF(SUM(COUNTIF(I131:X131,"<>0")-COUNTBLANK(I131:X131))<>0,1,0) -> 0 | F131: Higher education institutions | I131: 0 | J131: 0 | K131: 0 | L131: 0 | M131: 0 | N131: 0 | O131: 0 | P131: 0 | Q131: 0 | R131: 0 | S131: 0 | T131: 0 | U131: 0 | V131: 0 | W131: 0 | X131: 0
A132: 1 | F132: Foreign governments and international organisations | I132: 32724 | J132: 0 | K132: 0 | L132: 0 | M132: 0 | N132: 0 | O132: 0 | P132: 0 | Q132: 0 | R132: 0 | S132: 0 | T132: 0 | U132: 0 | V132: 0 | W132: 0 | X132: 32724
A133: 0 | F133: Public corporations and private enterprises | I133: 0 | J133: 0 | K133: 0 | L133: 0 | M133: 0 | N133: 0 | O133: 0 | P133: 0 | Q133: 0 | R133: 0 | S133: 0 | T133: 0 | U133: 0 | V133: 0 | W133: 0 | X133: 0
A134: 0 | F134: Public corporations | I134: 0 | J134: 0 | K134: 0 | L134: 0 | M134: 0 | N134: 0 | O134: 0 | P134: 0 | Q134: 0 | R134: 0 | S134: 0 | T134: 0 | U134: 0 | V134: 0 | W134: 0 | X134: 0
A135: =A134 -> 0 | F135: Subsidies on products and production (pc) | I135: 0 | J135: 0 | K135: 0 | L135: 0 | M135: 0 | N135: 0 | O135: 0 | P135: 0 | Q135: 0 | R135: 0 | S135: 0 | T135: 0 | U135: 0 | V135: 0 | W135: 0 | X135: 0
A136: =A134 -> 0 | F136: Other transfers to public corporations | I136: =SUMIF($F$284:$F$5020,$F136,I$284:I$5020) -> 0 | J136: 0 | K136: 0 | L136: 0 | M136: 0 | N136: 0 | O136: 0 | P136: 0 | Q136: 0 | R136: 0 | S136: 0 | T136: 0 | U136: 0 | V136: 0 | W136: 0 | X136: =SUMIF($F$284:$F$5020,$F136,X$284:X$5020) -> 0
A137: =IF(SUM(COUNTIF(I137:X137,"<>0")-COUNTBLANK(I137:X137))<>0,1,0) -> 0 | F137: Private enterprises | I137: 0 | J137: 0 | K137: 0 | L137: 0 | M137: 0 | N137: 0 | O137: 0 | P137: 0 | Q137: 0 | R137: 0 | S137: 0 | T137: 0 | U137: 0 | V137: 0 | W137: 0 | X137: =SUMIF($F$284:$F$5020,$F137,X$284:X$5020) -> 0
A138: =A137 -> 0 | F138: Subsidies on products and production (pe) | I138: 0 | J138: 0 | K138: 0 | L138: 0 | M138: 0 | N138: 0 | O138: 0 | P138: 0 | Q138: 0 | R138: 0 | S138: 0 | T138: 0 | U138: 0 | V138: 0 | W138: 0 | X138: 0
A139: =A137 -> 0 | F139: Other transfers to private enterprises | I139: 0 | J139: 0 | K139: 0 | L139: 0 | M139: 0 | N139: 0 | O139: 0 | P139: 0 | Q139: 0 | R139: 0 | S139: 0 | T139: 0 | U139: 0 | V139: 0 | W139: 0 | X139: 0
A140: =IF(A139=0,A133,IF(SUM(COUNTIF(I145:X145,"<>0")-COUNTBLANK(I145:X145))<>0,1,0)) -> 0 | F140: Non-profit institutions | I140: 0 | J140: 0 | K140: 0 | L140: 0 | M140: 0 | N140: 0 | O140: 0 | P140: 0 | Q140: 0 | R140: 0 | S140: 0 | T140: 0 | U140: 0 | V140: 0 | W140: 0 | X140: 0
A141: =IF(SUM(COUNTIF(I141:X141,"<>0")-COUNTBLANK(I141:X141))<>0,1,0) -> 0 | F141: Households | I141: 0 | J141: 0 | K141: 0 | L141: 0 | M141: 0 | N141: 0 | O141: 0 | P141: 0 | Q141: 0 | R141: 0 | S141: 0 | T141: 0 | U141: 0 | V141: 0 | W141: 0 | X141: 0
A142: =A141 -> 0 | F142: Social benefits | I142: 0 | J142: 0 | K142: 0 | L142: 0 | M142: 0 | N142: 0 | O142: 0 | P142: 0 | Q142: 0 | R142: 0 | S142: 0 | T142: 0 | U142: 0 | V142: 0 | W142: 0 | X142: 0
A143: =A141 -> 0 | F143: Other transfers to households | I143: 0 | J143: 0 | K143: 0 | L143: 0 | M143: 0 | N143: 0 | O143: 0 | P143: 0 | Q143: 0 | R143: 0 | S143: 0 | T143: 0 | U143: 0 | V143: 0 | W143: 0 | X143: 0
A144: 1 | F144: Payments for capital assets | I144: =SUM(I145,I148,I151:I155) -> 606 | J144: =SUM(J145,J148,J151:J155) -> 0 | K144: =SUM(K145,K148,K151:K155) -> 0 | L144: =SUM(L145,L148,L151:L155) -> 0 | M144: =SUM(M145,M148,M151:M155) -> 0 | N144: 0 | O144: 0 | P144: 0 | Q144: 0 | R144: 0 | S144: 0 | T144: =SUM(T145,T148,T151:T155) -> 0 | U144: =SUM(U145,U148,U151:U155) -> 0 | V144: =SUM(V145,V148,V151:V155) -> 0 | W144: 0 | X144: =SUM(X145,X148,X151:X155) -> 606
A145: =IF(SUM(COUNTIF(I145:X145,"<>0")-COUNTBLANK(I145:X145))<>0,1,0) -> 0 | F145: Buildings and other fixed structures | I145: =SUM(I146:I147) -> 0 | J145: =SUM(J146:J147) -> 0 | K145: =SUM(K146:K147) -> 0 | L145: =SUM(L146:L147) -> 0 | M145: 0 | N145: 0 | O145: 0 | P145: 0 | Q145: 0 | R145: 0 | S145: 0 | T145: 0 | U145: 0 | V145: 0 | W145: 0 | X145: 0
A146: =A145 -> 0 | F146: Buildings | I146: =SUMIF($F$284:$F$5020,$F146,I$284:I$5020) -> 0 | J146: 0 | K146: 0 | L146: 0 | M146: 0 | N146: 0 | O146: 0 | P146: 0 | Q146: 0 | R146: 0 | S146: 0 | T146: 0 | U146: 0 | V146: 0 | W146: 0 | X146: 0
A147: =A145 -> 0 | F147: Other fixed structures | I147: 0 | J147: 0 | K147: 0 | L147: 0 | M147: 0 | N147: 0 | O147: 0 | P147: 0 | Q147: 0 | R147: 0 | S147: 0 | T147: 0 | U147: 0 | V147: 0 | W147: 0 | X147: 0
A148: =IF(SUM(COUNTIF(I148:X148,"<>0")-COUNTBLANK(I148:X148))<>0,1,0) -> 1 | F148: Machinery and equipment | I148: =SUM(I149:I150) -> 606 | J148: =SUM(J149:J150) -> 0 | K148: =SUM(K149:K150) -> 0 | L148: =SUM(L149:L150) -> 0 | M148: 0 | N148: 0 | O148: 0 | P148: 0 | Q148: 0 | R148: 0 | S148: 0 | T148: 0 | U148: 0 | V148: 0 | W148: 0 | X148: 606
A149: =A148 -> 1 | F149: Transport equipment | I149: =SUMIF($F$284:$F$5020,$F149,I$284:I$5020) -> 0 | J149: 0 | K149: 0 | L149: 0 | M149: 0 | N149: 0 | O149: 0 | P149: 0 | Q149: 0 | R149: 0 | S149: 0 | T149: 0 | U149: 0 | V149: 0 | W149: 0 | X149: 0
A150: =A148 -> 1 | F150: Other machinery and equipment | I150: 606 | J150: 0 | K150: 0 | L150: 0 | M150: 0 | N150: 0 | O150: 0 | P150: 0 | Q150: 0 | R150: 0 | S150: 0 | T150: 0 | U150: 0 | V150: 0 | W150: 0 | X150: 606
A151: =IF(SUM(COUNTIF(I151:X151,"<>0")-COUNTBLANK(I151:X151))<>0,1,0) -> 0 | F151: Heritage assets | I151: 0 | J151: 0 | K151: 0 | L151: 0 | M151: 0 | N151: 0 | O151: 0 | P151: 0 | Q151: 0 | R151: 0 | S151: 0 | T151: 0 | U151: 0 | V151: 0 | W151: 0 | X151: 0
A152: 0 | F152: Specialised military assets | I152: 0 | J152: 0 | K152: 0 | L152: 0 | M152: 0 | N152: 0 | O152: 0 | P152: 0 | Q152: 0 | R152: 0 | S152: 0 | T152: 0 | U152: 0 | V152: 0 | W152: 0 | X152: 0
A153: 0 | F153: Biological assets | I153: 0 | J153: 0 | K153: 0 | L153: 0 | M153: 0 | N153: 0 | O153: 0 | P153: 0 | Q153: 0 | R153: 0 | S153: 0 | T153: 0 | U153: 0 | V153: 0 | W153: 0 | X153: 0
A154: 0 | F154: Land and sub-soil assets | I154: 0 | J154: 0 | K154: 0 | L154: 0 | M154: 0 | N154: 0 | O154: 0 | P154: 0 | Q154: 0 | R154: 0 | S154: 0 | T154: 0 | U154: 0 | V154: 0 | W154: 0 | X154: 0
A155: 0 | F155: Software and other intangible assets | I155: 0 | J155: 0 | K155: 0 | L155: 0 | M155: 0 | N155: 0 | O155: 0 | P155: 0 | Q155: 0 | R155: 0 | S155: 0 | T155: 0 | U155: 0 | V155: 0 | W155: 0 | X155: 0
A156: 1 | F156: Payments for financial assets | I156: 0 | J156: 0 | K156: 0 | L156: 0 | M156: 0 | N156: 0 | O156: 0 | P156: 0 | Q156: 0 | R156: 0 | S156: 0 | T156: 0 | U156: 0 | V156: 0 | W156: 0 | X156: 0
A157: 1
A158: 1 | F158: Total | I158: =SUM(I74,I120,I144,I156) -> 60835 | J158: 0 | K158: 0 | L158: 0 | M158: 0 | N158: 0 | O158: 0 | P158: 0 | Q158: 0 | R158: 0 | S158: 0 | T158: 0 | U158: 0 | V158: 0 | W158: 0 | X158: 60835
A159: 1
A160: 1
A161: 1
A162: 1 | F162: Check: Programmes less Economic classification | I162: =I72-I158 -> 0 | J162: =J72-J158 -> 0 | K162: =K72-K158 -> 0 | L162: 0 | M162: 0 | N162: 0 | O162: 0 | P162: 0 | Q162: 0 | R162: 0 | S162: 0 | T162: 0 | U162: 0 | V162: 0 | W162: 0 | X162: 0
A163: 1
A164: 1 | F164: Check: Detail of Transfers less Transfers Economic classification | I164: =I282-I120 -> 0 | J164: 0 | K164: 0 | L164: 0 | M164: 0 | N164: 0 | O164: 0 | P164: 0 | Q164: 0 | R164: 0 | S164: 0 | T164: 0 | U164: 0 | V164: 0 | W164: 0 | X164: 0
A165: 1
F166: Check: Payments for financial assets | I166: =+I156-SUM(I289:I301) -> 0 | J166: =+J156-SUM(J289:J301) -> 0 | K166: 0 | L166: 0 | M166: 0 | N166: 0 | O166: 0 | P166: 0 | Q166: 0 | R166: 0 | S166: 0 | T166: 0 | U166: 0 | V166: 0 | W166: 0 | X166: 0
F172: DETAIL OF TRANSFERS AND SUBSIDIES | I172: 1 | J172: 2 | K172: 3 | L172: 4 | M172: 5 | N172: 6 | O172: 7 | P172: 8 | Q172: 9 | R172: 10 | S172: 11 | T172: 12 | U172: 13 | V172: 14 | W172: 15 | X172: 16 | Y172: 17 | Z172: 18 | AA172: 19 | AB172: 20 | AC172: 21 | AD172: 22 | AE172: 23
A173: 1 | F173: Recipient | H173: =+$H$42 -> 2020/21 | Z173: 35 | AA173: 36 | AB173: 37 | AC173: 38 | AD173: 39 | AE173: 40
A174: 1 | K174: Adjustments appropriation | M174: Special Adjustments Appropriation
A175: 1 | I175: Voted (Main appropriation) | J175: Special appropriation | K175: Roll-overs | L175: Unforeseeable/ unavoidable | M175: Utilisation of unspend funds Virements & Shifts | N175: Significant and unforeseeable economic and financial events | P175: Shifting of funds following function shift | R175: Self-financing | S175: Declared unspent funds | T175: Unforeseeable and unavoidable expenditure | U175: Announced in the budget speech | V175: Section 16 of the PFMA | W175: Total special adjustments appropriation | X175: Adjusted appropriation
A176: 1 | F176: R thousand | N176: Suspension of funds | O176: Allocation of funds | P176: Within the vote | Q176: Between votes | Z176: Economic classification | AA176: Current/Capital | AB176: Subprogramme | AC176: Specifically and exclusively (S & E) appropriated | AD176: Purpose of transfer payment | AE176: Description of transfer payment
A177: 1 | B177: =IF(ISERROR(INDEX((MyTransfersEcon1),MATCH(Z185,MyTransfersEcon3,0))),0,AA185&" transfers: "&INDEX((MyTransfersEcon1),MATCH(Z185,MyTransfersEcon3,0))) -> Current transfers: Non-profit institutions | E177: 1 | F177: Universal Postal Union | I177: 7044 | W177: =SUM(K177:V177) -> 0 | X177: =I177+J177+W177 -> 7044 | Z177: Foreign governments and international organisations | AA177: Current | AB177: ICT Trade/Partnership | AC177: 0 | AD177: International Organisation: Membership fees | AE177: Transfer payment to Universal Postal Union: membership fees
A178: =IF(SUM(COUNTIF(F178:AD178,"<>0")-COUNTBLANK(F178:AD178))<>0,1,0) -> 1 | B178: =IF(ISERROR(INDEX((MyTransfersEcon1),MATCH(Z178,MyTransfersEcon3,0))),0,AA178&" transfers: "&INDEX((MyTransfersEcon1),MATCH(Z178,MyTransfersEcon3,0))) -> Current transfers: Foreign governments and international organisations | E178: 2 | F178: International Telecommunication Union | I178: 20584 | W178: =SUM(K178:V178) -> 0 | X178: =I178+J178+W178 -> 20584 | Z178: Foreign governments and international organisations | AA178: Current | AB178: ICT Trade/Partnership | AC178: 0 | AD178: International Organisation: Membership fees | AE178: Transfer payment to International Telecommunication Union: Membership fees
A179: =IF(SUM(COUNTIF(F179:AD179,"<>0")-COUNTBLANK(F179:AD179))<>0,1,0) -> 1 | B179: Current transfers: Foreign governments and international organisations | E179: 3 | F179: African Telecommunications Union | I179: 1186 | W179: 0 | X179: 1186 | Z179: Foreign governments and international organisations | AA179: Current | AB179: ICT Trade/Partnership | AC179: 0 | AD179: International Organisation: Membership fees | AE179: Transfer Payment to Afican Telecoms Union: Membership fees
A180: 1 | B180: Current transfers: Foreign governments and international organisations | E180: 4 | F180: Pan-African Postal Union | I180: 1215 | W180: 0 | X180: 1215 | Z180: Foreign governments and international organisations | AA180: Current | AB180: ICT Trade/Partnership | AC180: 0 | AD180: International Organisation: Membership fees | AE180: Transfer Payment to Pan African Postal Union: Membership fees
A181: 1 | B181: Current transfers: Foreign governments and international organisations | E181: 5 | F181: Organisation for Economic Cooperation and Development | I181: 198 | W181: 0 | X181: 198 | Z181: Foreign governments and international organisations | AA181: Current | AB181: ICT Trade/Partnership | AC181: 0 | AD181: Committee on Digital Economy Policy: Partnership fees | AE181: Transfer payment to Organisation for Economic Cooperation and Development: Membership fees
A182: 1 | B182: Current transfers: Foreign governments and international organisations | E182: 6 | F182: Commonwealth Telecommunications Organisation | I182: 493 | W182: 0 | X182: 493 | Z182: Foreign governments and international organisations | AA182: Current | AB182: ICT Trade/Partnership | AC182: 0 | AD182: International Organisation: Membership fees | AE182: Transfer payment to Commonwealth Telecoms Organizations: Membership fees
A183: 1 | B183: Current transfers: Foreign governments and international organisations | E183: 7 | F183: DONA Foundation | I183: 1214 | W183: 0 | X183: 1214 | Z183: Foreign governments and international organisations | AA183: Current | AB183: ICT Trade/Partnership | AC183: 0 | AD183: International Organisation: Membership fees | AE183: Transfer payment to Dona Foundation
A184: 1 | B184: Current transfers: Households | E184: 8 | F184: Households | I184: 0 | W184: 0 | X184: 0 | Z184: Other transfers to households | AA184: Current | AB184: International Affairs | AC184: 0 | AD184: Funeral Costs | AE184: Condolences/Act of grace
A185: 1 | B185: Current transfers: Non-profit institutions | E185: 9 | F185: Universal Postal Union | I185: 0 | W185: 0 | X185: 0 | Z185: Non-profit institutions | AA185: Current | AB185: ICT Trade/Partnership | AC185: 0 | AD185: Payment to Non Profit Institutions | AE185: Payment to Non Profit Institutions
A186: 1 | B186: Current transfers: Foreign governments and international organisations | E186: 10 | F186: Smart Africa Alliance | I186: 790 | W186: 0 | X186: 790 | Z186: Foreign governments and international organisations | AA186: Current | AB186: ICT Trade/Partnership | AC186: 0 | AD186: International Organisation: Membership fees | AE186: Transfer Payment to Smart Africa Alliance
A187: 1 | B187: Current transfers: Households | E187: 11 | F187: Households | I187: 0 | W187: 0 | X187: 0 | Z187: Other transfers to households | AA187: Current | AB187: International Affairs | AC187: 0 | AD187: Funeral Costs | AE187: Condolences/Act of grace
A188: 1 | B188: Current transfers: Households | E188: 12 | F188: Households | I188: 0 | W188: 0 | X188: 0 | Z188: Other transfers to households | AA188: Current | AB188: ICT Trade/Partnership | AC188: 0 | AD188: Other Transfers CASH | AE188: Donation cash
A189: 0 | B189: 0 | E189: 13 | F189: 0 | I189: 0 | W189: 0 | X189: 0 | Z189: 0 | AA189: 0 | AB189: 0 | AC189: 0 | AD189: 0 | AE189: 0
A190: 0 | B190: 0 | E190: 14 | F190: 0 | I190: 0 | W190: 0 | X190: 0 | Z190: 0 | AA190: 0 | AB190: 0 | AC190: 0 | AD190: 0 | AE190: 0
A191: 0 | B191: 0 | E191: 15 | F191: 0 | I191: 0 | W191: 0 | X191: 0 | Z191: 0 | AA191: 0 | AB191: 0 | AC191: 0 | AD191: 0 | AE191: 0
A192: 0 | B192: 0 | E192: 16 | F192: 0 | I192: 0 | W192: 0 | X192: 0 | Z192: 0 | AA192: 0 | AB192: 0 | AC192: 0 | AD192: 0 | AE192: 0
A193: 0 | B193: 0 | E193: 17 | F193: 0 | I193: 0 | W193: 0 | X193: 0 | Z193: 0 | AA193: 0 | AB193: 0 | AC193: 0 | AD193: 0 | AE193: 0
A194: 0 | B194: 0 | E194: 18 | F194: 0 | I194: 0 | W194: 0 | X194: 0 | Z194: 0 | AA194: 0 | AB194: 0 | AC194: 0 | AD194: 0 | AE194: 0
A195: 0 | B195: 0 | E195: 19 | F195: 0 | I195: 0 | W195: 0 | X195: 0 | Z195: 0 | AA195: 0 | AB195: 0 | AC195: 0 | AD195: 0 | AE195: 0
A196: 0 | B196: 0 | E196: 20 | F196: 0 | I196: 0 | W196: 0 | X196: 0 | Z196: 0 | AA196: 0 | AB196: 0 | AC196: 0 | AD196: 0 | AE196: 0
A197: 0 | B197: 0 | E197: 21 | F197: 0 | I197: 0 | W197: 0 | X197: 0 | Z197: 0 | AA197: 0 | AB197: 0 | AC197: 0 | AD197: 0 | AE197: 0
A198: 0 | B198: 0 | E198: 22 | F198: 0 | I198: 0 | W198: 0 | X198: 0 | Z198: 0 | AA198: 0 | AB198: 0 | AC198: 0 | AD198: 0 | AE198: 0
A199: 0 | B199: 0 | E199: 23 | F199: 0 | I199: 0 | W199: 0 | X199: 0 | Z199: 0 | AA199: 0 | AB199: 0 | AC199: 0 | AD199: 0 | AE199: 0
A200: 0 | B200: 0 | E200: 24 | F200: 0 | I200: 0 | W200: 0 | X200: 0 | Z200: 0 | AA200: 0 | AB200: 0 | AC200: 0 | AD200: 0 | AE200: 0
A201: 0 | B201: 0 | E201: 25 | F201: 0 | I201: 0 | W201: 0 | X201: 0 | Z201: 0 | AA201: 0 | AB201: 0 | AC201: 0 | AD201: 0 | AE201: 0
A202: 0 | B202: 0 | E202: 26 | F202: 0 | I202: 0 | W202: 0 | X202: 0 | Z202: 0 | AA202: 0 | AB202: 0 | AC202: 0 | AD202: 0 | AE202: 0
A203: 0 | B203: 0 | E203: 27 | F203: 0 | I203: 0 | W203: 0 | X203: 0 | Z203: 0 | AA203: 0 | AB203: 0 | AC203: 0 | AD203: 0 | AE203: 0
A204: 0 | B204: 0 | E204: 28 | F204: 0 | I204: 0 | W204: 0 | X204: 0 | Z204: 0 | AA204: 0 | AB204: 0 | AC204: 0 | AD204: 0 | AE204: 0
A205: 0 | B205: 0 | E205: 29 | F205: 0 | I205: 0 | W205: 0 | X205: 0 | Z205: 0 | AA205: 0 | AB205: 0 | AC205: 0 | AD205: 0 | AE205: 0
A206: 0 | B206: 0 | E206: 30 | F206: 0 | I206: 0 | W206: 0 | X206: 0 | Z206: 0 | AA206: 0 | AB206: 0 | AC206: 0 | AD206: 0 | AE206: 0
A207: 0 | B207: 0 | E207: 31 | F207: 0 | I207: 0 | W207: 0 | X207: 0 | Z207: 0 | AA207: 0 | AB207: 0 | AC207: 0 | AD207: 0 | AE207: 0
... 500 more rows

Sheet 3
A1: Row of SP1 | B1: 300
A2: SPInterval | B2: 150
A3: SP's created | B3: =MAX(B284:B4497) -> 8
A4: SP's listed | B4: =COUNTA(F47:F71) -> 8
A5: SP'Var | B5: =B4-B3 -> 0 | F5: =IF(G5="","",IF($B$5>0,"No. of subprogramme units to create","No. of subprogramme units to delete")) ->  | G5: =IF(B4-B3=0,"",IF(B4-B3<0,B3-B4,B4-B3)) -> 
A6: Check | B6: =B4-MAX(B47:B71) -> 0 | F6: Vote no. | G6: =MyVoteNo -> 30
A7: SPFormula | B7: OFFSET(H$1,(B2*$E31)+$B$2+33,0) | F7: Department name | G7: =MyDeptName -> Communications and Digital Technologies
A8: Prog No. | B8: 3 | F8: Programme name | G8: =OFFSET(Summary!$F$30,$B$8,0) -> ICT Policy Development and Research
F9: Programme manager | J9: Post:
F11: Programme purpose
F12: Develop ICT policies and legislation that support the development of an ICT sector that creates favourable conditions for accelerated and shared economic growth. Develop strategies that increase the adoption and use of ICT by the majority of South Africans to bridge the digital divide.
A14: =IF(B14=0,0,1) -> 0 | B14: =IF(F14<>"",E14,0) -> 0
A15: 0 | B15: 0
A16: 0 | B16: 0
A17: =IF(B17=0,0,1) -> 0 | B17: 0
A18: =IF(B18=0,0,1) -> 0 | B18: 0
A19: =IF(B19=0,0,1) -> 0 | B19: 0
A20: 0 | B20: 0
A21: 0 | B21: 0
A22: 0 | B22: 0
A23: 0 | B23: 0
A24: 0 | B24: 0
A25: 0 | B25: 0
A26: 0 | B26: 0
A27: 0 | B27: 0
A28: 0 | B28: 0
A29: 0 | B29: 0
A30: 0 | B30: 0
A31: 0 | B31: 0
A32: 0 | B32: 0
A33: 0 | B33: 0
A34: 0 | B34: 0
A35: 0 | B35: 0
A36: 0 | B36: 0
A37: 0 | B37: 0
A38: 0 | B38: 0
A39: 0 | B39: 0 | U39: Hide | V39: Hide
A40: 0 | B40: =IF(ISERROR(INDEX(('S&E data'!$B$4:$B$100),MATCH($G$7,'S&E data'!$G$4:$G$100,0))&IF(LEN(B8)<2,"0"&B8,B8)),0,INDEX(('S&E data'!$B$4:$B$100),MATCH($G$7,'S&E data'!$G$4:$G$100,0))&IF(LEN(B8)<2,"0"&B8,B8)) -> 0
A41: =IF(COUNTA(F41:Y41)>0,1,0) -> 0
A42: 1 | H42: =+Summary!$H$26 -> 2020/21
A43: 1 | K43: Adjustments appropriation | M43: Special Adjustments Appropriation
A44: 1 | F44: =+IF(COUNTIF(I162:X162,">0.5")+COUNTIF(I162:X162,"<-0.49999")<>0,"Inconsistencies between Subprogrammes and Economic classification",IF(COUNTIF(I164:X164,">0.5")+COUNTIF(I164:X164,"<-0.49999")<>0,"Inconsistencies between Transfers Detail and Economic classification","")) ->  | I44: Voted (Main appropriation) | J44: Special appropriation | K44: Roll-overs | L44: Unforeseeable/ unavoidable | M44: Utilisation of unspend funds Virements & Shifts | N44: Significant and unforeseeable economic and financial events | P44: Shifting of funds following function shift | R44: Self-financing | S44: Declared unspent funds | T44: Unforeseeable and unavoidable expenditure | U44: Announced in the budget speech | V44: Section 16 of the PFMA | W44: Total special adjustments appropriation | X44: Adjusted appropriation
A45: 1 | F45: R thousand | N45: Suspension of funds | O45: Allocation of funds | P45: Within the vote | Q45: Between votes
A46: 1 | C46: Name | F46: Subprogrammes
A47: 1 | B47: =IF(F47<>"",E47,0) -> 1 | C47: =IF(LEN(F47)>2,1,0) -> 1 | E47: 1 | F47: Programme Management for ICT Policy Development and Research | G47: =IF(AND(F47="",COUNTA(F48:F$71)>0),"Please fill Subprogrammes from the top","") ->  | I47: =IF(AND($B$6>=0,$B47<>0),OFFSET(I$1,($B$2*$E47)+($B$2+55),0),0) -> 2760 | J47: 0 | K47: 0 | L47: 0 | M47: 0 | N47: 0 | O47: 0 | P47: 0 | Q47: 0 | R47: 0 | S47: 0 | T47: 0 | U47: 0 | V47: 0 | W47: 0 | X47: 2760
A48: =IF(B48=0,0,1) -> 1 | B48: =IF(F48<>"",E48,0) -> 2 | C48: =IF(LEN(F48)>2,1,0) -> 1 | E48: 2 | F48: ICT Policy Development | G48: =IF(AND(F48="",COUNTA(F49:F$71)>0),"Please fill Subprogrammes from the top","") ->  | I48: 19149 | J48: 0 | K48: 0 | L48: 0 | M48: 0 | N48: 0 | O48: 0 | P48: 0 | Q48: 0 | R48: 0 | S48: 0 | T48: 0 | U48: 0 | V48: 0 | W48: 0 | X48: 19149
A49: =IF(B49=0,0,1) -> 1 | B49: 3 | C49: 1 | E49: 3 | F49: Economic and Market Analysis | G49: =IF(AND(F49="",COUNTA(F50:F$71)>0),"Please fill Subprogrammes from the top","") ->  | I49: 5960 | J49: 0 | K49: 0 | L49: 0 | M49: 0 | N49: 0 | O49: 0 | P49: 0 | Q49: 0 | R49: 0 | S49: 0 | T49: 0 | U49: 0 | V49: 0 | W49: 0 | X49: 5960
A50: =IF(B50=0,0,1) -> 1 | B50: 4 | C50: 1 | E50: 4 | F50: Research | G50: =IF(AND(F50="",COUNTA(F51:F$71)>0),"Please fill Subprogrammes from the top","") ->  | I50: 9980 | J50: 0 | K50: 0 | L50: 0 | M50: 0 | N50: 0 | O50: 0 | P50: 0 | Q50: 0 | R50: 0 | S50: 0 | T50: 0 | U50: 0 | V50: 0 | W50: 0 | X50: 9980
A51: 1 | B51: 5 | C51: 1 | E51: 5 | F51: Small Medium and Micro Enterprise | G51: =IF(AND(F51="",COUNTA(F52:F$71)>0),"Please fill Subprogrammes from the top","") ->  | I51: 5159 | J51: 0 | K51: 0 | L51: 0 | M51: 0 | N51: 0 | O51: 0 | P51: 0 | Q51: 0 | R51: 0 | S51: 0 | T51: 0 | U51: 0 | V51: 0 | W51: 0 | X51: 5159
A52: 1 | B52: 6 | C52: 1 | E52: 6 | F52: Broadcasting Policy | G52: =IF(AND(F52="",COUNTA(F53:F$71)>0),"Please fill Subprogrammes from the top","") ->  | I52: 13384 | J52: 0 | K52: 0 | L52: 0 | M52: 0 | N52: 0 | O52: 0 | P52: 0 | Q52: 0 | R52: 0 | S52: 0 | T52: 0 | U52: 0 | V52: 0 | W52: 0 | X52: 13384
A53: 1 | B53: 7 | C53: 1 | E53: 7 | F53: Presidential Commission on 4IR | G53: =IF(AND(F53="",COUNTA(F54:F$71)>0),"Please fill Subprogrammes from the top","") ->  | I53: 13400 | J53: 0 | K53: 0 | L53: 0 | M53: 0 | N53: 0 | O53: 0 | P53: 0 | Q53: 0 | R53: 0 | S53: 0 | T53: 0 | U53: 0 | V53: 0 | W53: 0 | X53: 13400
A54: 1 | B54: 8 | C54: 1 | E54: 8 | F54: Media Policy | G54: =IF(AND(F54="",COUNTA(F55:F$71)>0),"Please fill Subprogrammes from the top","") ->  | I54: 0 | J54: 0 | K54: 0 | L54: 0 | M54: 0 | N54: 0 | O54: 0 | P54: 0 | Q54: 0 | R54: 0 | S54: 0 | T54: 0 | U54: 0 | V54: 0 | W54: 0 | X54: 0
A55: 0 | B55: 0 | C55: 0 | E55: 9 | G55: =IF(AND(F55="",COUNTA(F56:F$71)>0),"Please fill Subprogrammes from the top","") ->  | I55: 0 | J55: 0 | K55: 0 | L55: 0 | M55: 0 | N55: 0 | O55: 0 | P55: 0 | Q55: 0 | R55: 0 | S55: 0 | T55: 0 | U55: 0 | V55: 0 | W55: 0 | X55: 0
A56: 0 | B56: 0 | C56: 0 | E56: 10 | G56: =IF(AND(F56="",COUNTA(F57:F$71)>0),"Please fill Subprogrammes from the top","") ->  | I56: 0 | J56: 0 | K56: 0 | L56: 0 | M56: 0 | N56: 0 | O56: 0 | P56: 0 | Q56: 0 | R56: 0 | S56: 0 | T56: 0 | U56: 0 | V56: 0 | W56: 0 | X56: 0
A57: 0 | B57: 0 | C57: 0 | E57: 11 | G57: =IF(AND(F57="",COUNTA(F58:F$71)>0),"Please fill Subprogrammes from the top","") ->  | I57: =IF(AND($B$6>=0,$B57<>0),OFFSET(I$1,($B$2*$E57)+($B$2+55),0),0) -> 0 | J57: 0 | K57: 0 | L57: 0 | M57: 0 | N57: 0 | O57: 0 | P57: 0 | Q57: 0 | R57: 0 | S57: 0 | T57: 0 | U57: 0 | V57: 0 | W57: 0 | X57: 0
A58: 0 | B58: 0 | C58: 0 | E58: 12 | G58: =IF(AND(F58="",COUNTA(F59:F$71)>0),"Please fill Subprogrammes from the top","") ->  | I58: 0 | J58: 0 | K58: 0 | L58: 0 | M58: 0 | N58: 0 | O58: 0 | P58: 0 | Q58: 0 | R58: 0 | S58: 0 | T58: 0 | U58: 0 | V58: 0 | W58: 0 | X58: 0
A59: 0 | B59: 0 | C59: 0 | E59: 13 | G59: =IF(AND(F59="",COUNTA(F60:F$71)>0),"Please fill Subprogrammes from the top","") ->  | I59: 0 | J59: 0 | K59: 0 | L59: 0 | M59: 0 | N59: 0 | O59: 0 | P59: 0 | Q59: 0 | R59: 0 | S59: 0 | T59: 0 | U59: 0 | V59: 0 | W59: 0 | X59: 0
A60: 0 | B60: 0 | C60: 0 | E60: 14 | G60: =IF(AND(F60="",COUNTA(F61:F$71)>0),"Please fill Subprogrammes from the top","") ->  | I60: 0 | J60: 0 | K60: 0 | L60: 0 | M60: 0 | N60: 0 | O60: 0 | P60: 0 | Q60: 0 | R60: 0 | S60: 0 | T60: 0 | U60: 0 | V60: 0 | W60: 0 | X60: 0
A61: 0 | B61: 0 | C61: 0 | E61: 15 | G61: =IF(AND(F61="",COUNTA(F62:F$71)>0),"Please fill Subprogrammes from the top","") ->  | I61: 0 | J61: 0 | K61: 0 | L61: 0 | M61: 0 | N61: 0 | O61: 0 | P61: 0 | Q61: 0 | R61: 0 | S61: 0 | T61: 0 | U61: 0 | V61: 0 | W61: 0 | X61: 0
A62: 0 | B62: 0 | C62: 0 | E62: 16 | G62: =IF(AND(F62="",COUNTA(F63:F$71)>0),"Please fill Subprogrammes from the top","") ->  | I62: 0 | J62: 0 | K62: 0 | L62: 0 | M62: 0 | N62: 0 | O62: 0 | P62: 0 | Q62: 0 | R62: 0 | S62: 0 | T62: 0 | U62: 0 | V62: 0 | W62: 0 | X62: 0
A63: 0 | B63: 0 | C63: 0 | E63: 17 | G63: =IF(AND(F63="",COUNTA(F64:F$71)>0),"Please fill Subprogrammes from the top","") ->  | I63: 0 | J63: 0 | K63: 0 | L63: 0 | M63: 0 | N63: 0 | O63: 0 | P63: 0 | Q63: 0 | R63: 0 | S63: 0 | T63: 0 | U63: 0 | V63: 0 | W63: 0 | X63: 0
A64: 0 | B64: 0 | C64: 0 | E64: 18 | G64: =IF(AND(F64="",COUNTA(F65:F$71)>0),"Please fill Subprogrammes from the top","") ->  | I64: 0 | J64: 0 | K64: 0 | L64: 0 | M64: 0 | N64: 0 | O64: 0 | P64: 0 | Q64: 0 | R64: 0 | S64: 0 | T64: 0 | U64: 0 | V64: 0 | W64: 0 | X64: 0
A65: 0 | B65: 0 | C65: 0 | E65: 19 | G65: =IF(AND(F65="",COUNTA(F66:F$71)>0),"Please fill Subprogrammes from the top","") ->  | I65: 0 | J65: 0 | K65: 0 | L65: 0 | M65: 0 | N65: 0 | O65: 0 | P65: 0 | Q65: 0 | R65: 0 | S65: 0 | T65: 0 | U65: 0 | V65: 0 | W65: 0 | X65: 0
A66: 0 | B66: 0 | C66: 0 | E66: 20 | G66: =IF(AND(F66="",COUNTA(F67:F$71)>0),"Please fill Subprogrammes from the top","") ->  | I66: 0 | J66: 0 | K66: 0 | L66: 0 | M66: 0 | N66: 0 | O66: 0 | P66: 0 | Q66: 0 | R66: 0 | S66: 0 | T66: 0 | U66: 0 | V66: 0 | W66: 0 | X66: 0
A67: 0 | B67: 0 | C67: 0 | E67: 21 | G67: =IF(AND(F67="",COUNTA(F68:F$71)>0),"Please fill Subprogrammes from the top","") ->  | I67: 0 | J67: 0 | K67: 0 | L67: 0 | M67: 0 | N67: 0 | O67: 0 | P67: 0 | Q67: 0 | R67: 0 | S67: 0 | T67: 0 | U67: 0 | V67: 0 | W67: 0 | X67: 0
A68: 0 | B68: 0 | C68: 0 | E68: 22 | G68: =IF(AND(F68="",COUNTA(F69:F$71)>0),"Please fill Subprogrammes from the top","") ->  | I68: 0 | J68: 0 | K68: 0 | L68: 0 | M68: 0 | N68: 0 | O68: 0 | P68: 0 | Q68: 0 | R68: 0 | S68: 0 | T68: 0 | U68: 0 | V68: 0 | W68: 0 | X68: 0
A69: 0 | B69: 0 | C69: 0 | E69: 23 | G69: =IF(AND(F69="",COUNTA(F70:F$71)>0),"Please fill Subprogrammes from the top","") ->  | I69: 0 | J69: 0 | K69: 0 | L69: 0 | M69: 0 | N69: 0 | O69: 0 | P69: 0 | Q69: 0 | R69: 0 | S69: 0 | T69: 0 | U69: 0 | V69: 0 | W69: 0 | X69: 0
A70: 0 | B70: 0 | C70: 0 | E70: 24 | G70: =IF(AND(F70="",COUNTA(F71:F$71)>0),"Please fill Subprogrammes from the top","") ->  | I70: 0 | J70: 0 | K70: 0 | L70: 0 | M70: 0 | N70: 0 | O70: 0 | P70: 0 | Q70: 0 | R70: 0 | S70: 0 | T70: 0 | U70: 0 | V70: 0 | W70: 0 | X70: 0
A71: 0 | B71: 0 | C71: 0 | E71: 25 | I71: 0 | J71: 0 | K71: 0 | L71: 0 | M71: 0 | N71: 0 | O71: 0 | P71: 0 | Q71: 0 | R71: 0 | S71: 0 | T71: 0 | U71: 0 | V71: 0 | W71: 0 | X71: 0
A72: 1 | F72: Total | I72: =SUM(I47:I71) -> 69792 | J72: =SUM(J47:J71) -> 0 | K72: =SUM(K47:K71) -> 0 | L72: 0 | M72: =SUM(M47:M71) -> 0 | N72: 0 | O72: 0 | P72: 0 | Q72: 0 | R72: 0 | S72: 0 | T72: 0 | U72: 0 | V72: 0 | W72: 0 | X72: 69792
A73: 1 | F73: Economic classification
A74: 1 | F74: Current payments | I74: =+I75+I78+I117 -> 69431 | J74: =+J75+J78+J117 -> 0 | K74: =+K75+K78+K117 -> 0 | L74: =+L75+L78+L117 -> 0 | M74: =+M75+M78+M117 -> 0 | N74: =+N75+N78+N117 -> 0 | O74: 0 | P74: 0 | Q74: 0 | R74: 0 | S74: 0 | T74: 0 | U74: 0 | V74: 0 | W74: 0 | X74: 69431
A75: =IF(SUM(COUNTIF(I75:X75,"<>0")-COUNTBLANK(I75:X75))<>0,1,0) -> 1 | F75: Compensation of employees | I75: =SUM(I76:I77) -> 42314 | J75: =SUM(J76:J77) -> 0 | K75: =SUM(K76:K77) -> 0 | L75: =SUM(L76:L77) -> 0 | M75: =SUM(M76:M77) -> 0 | N75: =SUM(N76:N77) -> 0 | O75: 0 | P75: 0 | Q75: 0 | R75: 0 | S75: 0 | T75: 0 | U75: 0 | V75: 0 | W75: 0 | X75: 42314
A76: =A75 -> 1 | F76: Salaries and wages | I76: =SUMIF($F$284:$F$5020,$F76,I$284:I$5020) -> 36223 | J76: 0 | K76: 0 | L76: 0 | M76: 0 | N76: 0 | O76: 0 | P76: 0 | Q76: 0 | R76: 0 | S76: 0 | T76: 0 | U76: 0 | V76: 0 | W76: 0 | X76: 36223
A77: =A75 -> 1 | F77: Social contributions | I77: 6091 | J77: 0 | K77: 0 | L77: 0 | M77: 0 | N77: 0 | O77: 0 | P77: 0 | Q77: 0 | R77: 0 | S77: 0 | T77: 0 | U77: 0 | V77: 0 | W77: 0 | X77: 6091
A78: =IF(SUM(COUNTIF(I78:X78,"<>0")-COUNTBLANK(I78:X78))<>0,1,0) -> 1 | F78: Goods and services | I78: =SUM(I79:I116) -> 27117 | J78: =SUM(J79:J116) -> 0 | K78: =SUM(K79:K116) -> 0 | L78: =SUM(L79:L116) -> 0 | M78: =SUM(M79:M116) -> 0 | N78: =SUM(N79:N116) -> 0 | O78: 0 | P78: 0 | Q78: 0 | R78: 0 | S78: 0 | T78: 0 | U78: 0 | V78: 0 | W78: 0 | X78: 27117
A79: =A78 -> 1 | F79: Administrative fees | I79: =SUMIF($F$284:$F$5020,$F79,I$284:I$5020) -> 281 | J79: 0 | K79: 0 | L79: 0 | M79: 0 | N79: 0 | O79: 0 | P79: 0 | Q79: 0 | R79: 0 | S79: 0 | T79: 0 | U79: 0 | V79: 0 | W79: 0 | X79: 281
A80: =IF(SUM(COUNTIF(I80:X80,"<>0")-COUNTBLANK(I80:X80))<>0,1,0) -> 1 | F80: Advertising | I80: 595 | J80: 0 | K80: 0 | L80: 0 | M80: 0 | N80: 0 | O80: 0 | P80: 0 | Q80: 0 | R80: 0 | S80: 0 | T80: 0 | U80: 0 | V80: 0 | W80: 0 | X80: 595
A81: 1 | F81: Minor Assets | I81: 419 | J81: 0 | K81: 0 | L81: 0 | M81: 0 | N81: 0 | O81: 0 | P81: 0 | Q81: 0 | R81: 0 | S81: 0 | T81: 0 | U81: 0 | V81: 0 | W81: 0 | X81: 419
A82: 0 | F82: Audit costs: External | I82: 0 | J82: 0 | K82: 0 | L82: 0 | M82: 0 | N82: 0 | O82: 0 | P82: 0 | Q82: 0 | R82: 0 | S82: 0 | T82: 0 | U82: 0 | V82: 0 | W82: 0 | X82: 0
A83: 1 | F83: Bursaries: Employees | I83: 314 | J83: 0 | K83: 0 | L83: 0 | M83: 0 | N83: 0 | O83: 0 | P83: 0 | Q83: 0 | R83: 0 | S83: 0 | T83: 0 | U83: 0 | V83: 0 | W83: 0 | X83: 314
A84: 1 | F84: Catering: Departmental activities | I84: 436 | J84: 0 | K84: 0 | L84: 0 | M84: 0 | N84: 0 | O84: 0 | P84: 0 | Q84: 0 | R84: 0 | S84: 0 | T84: 0 | U84: 0 | V84: 0 | W84: 0 | X84: 436
A85: 1 | F85: Communication (G&S) | I85: 667 | J85: 0 | K85: 0 | L85: 0 | M85: 0 | N85: 0 | O85: 0 | P85: 0 | Q85: 0 | R85: 0 | S85: 0 | T85: 0 | U85: 0 | V85: 0 | W85: 0 | X85: 667
A86: 0 | F86: Computer services | I86: 0 | J86: 0 | K86: 0 | L86: 0 | M86: 0 | N86: 0 | O86: 0 | P86: 0 | Q86: 0 | R86: 0 | S86: 0 | T86: 0 | U86: 0 | V86: 0 | W86: 0 | X86: 0
A87: 1 | F87: Consultants: Business and advisory services | I87: 14688 | J87: 0 | K87: 0 | L87: 0 | M87: 0 | N87: 0 | O87: 0 | P87: 0 | Q87: 0 | R87: 0 | S87: 0 | T87: 0 | U87: 0 | V87: 0 | W87: 0 | X87: 14688
A88: 0 | F88: Infrastructure and planning services | I88: 0 | J88: 0 | K88: 0 | L88: 0 | M88: 0 | N88: 0 | O88: 0 | P88: 0 | Q88: 0 | R88: 0 | S88: 0 | T88: 0 | U88: 0 | V88: 0 | W88: 0 | X88: 0
A89: 0 | F89: Laboratory services | I89: 0 | J89: 0 | K89: 0 | L89: 0 | M89: 0 | N89: 0 | O89: 0 | P89: 0 | Q89: 0 | R89: 0 | S89: 0 | T89: 0 | U89: 0 | V89: 0 | W89: 0 | X89: 0
A90: 1 | F90: Legal services (G&S) | I90: 450 | J90: 0 | K90: 0 | L90: 0 | M90: 0 | N90: 0 | O90: 0 | P90: 0 | Q90: 0 | R90: 0 | S90: 0 | T90: 0 | U90: 0 | V90: 0 | W90: 0 | X90: 450
A91: 0 | F91: Science and technological services | I91: 0 | J91: 0 | K91: 0 | L91: 0 | M91: 0 | N91: 0 | O91: 0 | P91: 0 | Q91: 0 | R91: 0 | S91: 0 | T91: 0 | U91: 0 | V91: 0 | W91: 0 | X91: 0
A92: 1 | F92: Contractors | I92: 72 | J92: 0 | K92: 0 | L92: 0 | M92: 0 | N92: 0 | O92: 0 | P92: 0 | Q92: 0 | R92: 0 | S92: 0 | T92: 0 | U92: 0 | V92: 0 | W92: 0 | X92: 72
A93: 1 | F93: Agency and support/outsourced services | I93: 134 | J93: 0 | K93: 0 | L93: 0 | M93: 0 | N93: 0 | O93: 0 | P93: 0 | Q93: 0 | R93: 0 | S93: 0 | T93: 0 | U93: 0 | V93: 0 | W93: 0 | X93: 134
A94: 1 | F94: Entertainment | I94: =SUMIF($F$284:$F$5020,$F94,I$284:I$5020) -> 47 | J94: 0 | K94: 0 | L94: 0 | M94: 0 | N94: 0 | O94: 0 | P94: 0 | Q94: 0 | R94: 0 | S94: 0 | T94: 0 | U94: 0 | V94: 0 | W94: 0 | X94: =SUMIF($F$284:$F$5020,$F94,X$284:X$5020) -> 47
A95: 0 | F95: Fleet services (including government motor transport) | I95: 0 | J95: 0 | K95: 0 | L95: 0 | M95: 0 | N95: 0 | O95: 0 | P95: 0 | Q95: 0 | R95: 0 | S95: 0 | T95: 0 | U95: 0 | V95: 0 | W95: 0 | X95: =SUMIF($F$284:$F$5020,$F95,X$284:X$5020) -> 0
A96: 0 | F96: Housing | I96: 0 | J96: 0 | K96: 0 | L96: 0 | M96: 0 | N96: 0 | O96: 0 | P96: 0 | Q96: 0 | R96: 0 | S96: 0 | T96: 0 | U96: 0 | V96: 0 | W96: 0 | X96: 0
A97: 0 | F97: Inventory: Clothing material and accessories | I97: 0 | J97: 0 | K97: 0 | L97: 0 | M97: 0 | N97: 0 | O97: 0 | P97: 0 | Q97: 0 | R97: 0 | S97: 0 | T97: 0 | U97: 0 | V97: 0 | W97: 0 | X97: 0
A98: 0 | F98: Inventory: Farming supplies | I98: 0 | J98: 0 | K98: 0 | L98: 0 | M98: 0 | N98: 0 | O98: 0 | P98: 0 | Q98: 0 | R98: 0 | S98: 0 | T98: 0 | U98: 0 | V98: 0 | W98: 0 | X98: 0
A99: 0 | F99: Inventory: Food and food supplies | I99: 0 | J99: 0 | K99: 0 | L99: 0 | M99: 0 | N99: 0 | O99: 0 | P99: 0 | Q99: 0 | R99: 0 | S99: 0 | T99: 0 | U99: 0 | V99: 0 | W99: 0 | X99: 0
A100: 0 | F100: Inventory: Fuel, oil and gas | I100: 0 | J100: 0 | K100: 0 | L100: 0 | M100: 0 | N100: 0 | O100: 0 | P100: 0 | Q100: 0 | R100: 0 | S100: 0 | T100: 0 | U100: 0 | V100: 0 | W100: 0 | X100: 0
A101: 0 | F101: Inventory: Learner and teacher support material | I101: 0 | J101: 0 | K101: 0 | L101: 0 | M101: 0 | N101: 0 | O101: 0 | P101: 0 | Q101: 0 | R101: 0 | S101: 0 | T101: 0 | U101: 0 | V101: 0 | W101: 0 | X101: 0
A102: 0 | F102: Inventory: Materials and supplies | I102: 0 | J102: 0 | K102: 0 | L102: 0 | M102: 0 | N102: 0 | O102: 0 | P102: 0 | Q102: 0 | R102: 0 | S102: 0 | T102: 0 | U102: 0 | V102: 0 | W102: 0 | X102: 0
A103: 0 | F103: Inventory: Medical supplies | I103: 0 | J103: 0 | K103: 0 | L103: 0 | M103: 0 | N103: 0 | O103: 0 | P103: 0 | Q103: 0 | R103: 0 | S103: 0 | T103: 0 | U103: 0 | V103: 0 | W103: 0 | X103: 0
A104: 0 | F104: Inventory: Medicine | I104: =SUMIF($F$284:$F$5020,$F104,I$284:I$5020) -> 0 | J104: 0 | K104: 0 | L104: 0 | M104: 0 | N104: 0 | O104: 0 | P104: 0 | Q104: 0 | R104: 0 | S104: 0 | T104: 0 | U104: 0 | V104: 0 | W104: 0 | X104: 0
A105: 0 | F105: Medsas inventory interface | I105: 0 | J105: 0 | K105: 0 | L105: 0 | M105: 0 | N105: 0 | O105: 0 | P105: 0 | Q105: 0 | R105: 0 | S105: 0 | T105: 0 | U105: 0 | V105: 0 | W105: 0 | X105: 0
A106: 0 | F106: Inventory: Other supplies | I106: 0 | J106: 0 | K106: 0 | L106: 0 | M106: 0 | N106: 0 | O106: 0 | P106: 0 | Q106: 0 | R106: 0 | S106: 0 | T106: 0 | U106: 0 | V106: 0 | W106: 0 | X106: 0
A107: 1 | F107: Consumable supplies | I107: 550 | J107: 0 | K107: 0 | L107: 0 | M107: 0 | N107: 0 | O107: 0 | P107: 0 | Q107: 0 | R107: 0 | S107: 0 | T107: 0 | U107: 0 | V107: 0 | W107: 0 | X107: 550
A108: 1 | F108: Consumables: Stationery, printing and office supplies | I108: 746 | J108: 0 | K108: 0 | L108: 0 | M108: 0 | N108: 0 | O108: 0 | P108: 0 | Q108: 0 | R108: 0 | S108: 0 | T108: 0 | U108: 0 | V108: 0 | W108: 0 | X108: 746
A109: 1 | F109: Operating leases | I109: 82 | J109: 0 | K109: 0 | L109: 0 | M109: 0 | N109: 0 | O109: 0 | P109: 0 | Q109: 0 | R109: 0 | S109: 0 | T109: 0 | U109: 0 | V109: 0 | W109: 0 | X109: 82
A110: 1 | F110: Rental and hiring | I110: 600 | J110: 0 | K110: 0 | L110: 0 | M110: 0 | N110: 0 | O110: 0 | P110: 0 | Q110: 0 | R110: 0 | S110: 0 | T110: 0 | U110: 0 | V110: 0 | W110: 0 | X110: 600
A111: 0 | F111: Property payments | I111: 0 | J111: 0 | K111: 0 | L111: 0 | M111: 0 | N111: 0 | O111: 0 | P111: 0 | Q111: 0 | R111: 0 | S111: 0 | T111: 0 | U111: 0 | V111: 0 | W111: 0 | X111: 0
A112: 0 | F112: Transport provided: Departmental activity | I112: 0 | J112: 0 | K112: 0 | L112: 0 | M112: 0 | N112: 0 | O112: 0 | P112: 0 | Q112: 0 | R112: 0 | S112: 0 | T112: 0 | U112: 0 | V112: 0 | W112: 0 | X112: 0
A113: 1 | F113: Travel and subsistence | I113: 5860 | J113: 0 | K113: 0 | L113: 0 | M113: 0 | N113: 0 | O113: 0 | P113: 0 | Q113: 0 | R113: 0 | S113: 0 | T113: 0 | U113: 0 | V113: 0 | W113: 0 | X113: 5860
A114: 1 | F114: Training and development | I114: 510 | J114: 0 | K114: 0 | L114: 0 | M114: 0 | N114: 0 | O114: 0 | P114: 0 | Q114: 0 | R114: 0 | S114: 0 | T114: 0 | U114: 0 | V114: 0 | W114: 0 | X114: 510
A115: 1 | F115: Operating payments | I115: 93 | J115: 0 | K115: 0 | L115: 0 | M115: 0 | N115: 0 | O115: 0 | P115: 0 | Q115: 0 | R115: 0 | S115: 0 | T115: 0 | U115: 0 | V115: 0 | W115: 0 | X115: 93
A116: =A78 -> 1 | F116: Venues and facilities | I116: 573 | J116: 0 | K116: 0 | L116: 0 | M116: 0 | N116: 0 | O116: 0 | P116: 0 | Q116: 0 | R116: 0 | S116: 0 | T116: 0 | U116: 0 | V116: 0 | W116: 0 | X116: 573
A117: 0 | F117: Interest and rent on land | I117: =SUM(I118:I119) -> 0 | J117: =SUM(J118:J119) -> 0 | K117: =SUM(K118:K119) -> 0 | L117: =SUM(L118:L119) -> 0 | M117: =SUM(M118:M119) -> 0 | N117: =SUM(N118:N119) -> 0 | O117: 0 | P117: 0 | Q117: 0 | R117: 0 | S117: 0 | T117: 0 | U117: 0 | V117: 0 | W117: 0 | X117: 0
A118: =A117 -> 0 | F118: Interest (Incl. interest on unitary payments (PPP)) | I118: =SUMIF($F$284:$F$5020,$F118,I$284:I$5020) -> 0 | J118: 0 | K118: 0 | L118: 0 | M118: 0 | N118: 0 | O118: 0 | P118: 0 | Q118: 0 | R118: 0 | S118: 0 | T118: 0 | U118: 0 | V118: 0 | W118: 0 | X118: 0
A119: =A117 -> 0 | F119: Rent on land | I119: 0 | J119: 0 | K119: 0 | L119: 0 | M119: 0 | N119: 0 | O119: 0 | P119: 0 | Q119: 0 | R119: 0 | S119: 0 | T119: 0 | U119: 0 | V119: 0 | W119: 0 | X119: 0
A120: 1 | F120: Transfers and subsidies | I120: =+SUM(I121,I128,I131,I132,I133,I140,I141) -> 0 | J120: =+SUM(J121,J128,J131,J132,J133,J140,J141) -> 0 | K120: =+SUM(K121,K128,K131,K132,K133,K140,K141) -> 0 | L120: 0 | M120: =+SUM(M121,M128,M131,M132,M133,M140,M141) -> 0 | N120: 0 | O120: 0 | P120: 0 | Q120: 0 | R120: 0 | S120: 0 | T120: 0 | U120: 0 | V120: 0 | W120: 0 | X120: 0
A121: =IF(SUM(COUNTIF(I121:X121,"<>0")-COUNTBLANK(I121:X121))<>0,1,0) -> 0 | F121: Provinces and municipalities | I121: =SUMIF($F$284:$F$5020,$F121,I$284:I$5020) -> 0 | J121: 0 | K121: 0 | L121: 0 | M121: 0 | N121: 0 | O121: 0 | P121: 0 | Q121: 0 | R121: 0 | S121: 0 | T121: 0 | U121: 0 | V121: 0 | W121: 0 | X121: 0
A122: 0 | F122: Provinces | I122: 0 | J122: 0 | K122: 0 | L122: 0 | M122: 0 | N122: 0 | O122: 0 | P122: 0 | Q122: 0 | R122: 0 | S122: 0 | T122: 0 | U122: 0 | V122: 0 | W122: 0 | X122: 0
A123: =A122 -> 0 | F123: Provincial Revenue Funds | I123: 0 | J123: 0 | K123: 0 | L123: 0 | M123: 0 | N123: 0 | O123: 0 | P123: 0 | Q123: 0 | R123: 0 | S123: 0 | T123: 0 | U123: 0 | V123: 0 | W123: 0 | X123: 0
A124: =A122 -> 0 | F124: Provincial agencies and funds | I124: 0 | J124: 0 | K124: 0 | L124: 0 | M124: 0 | N124: 0 | O124: 0 | P124: 0 | Q124: 0 | R124: 0 | S124: 0 | T124: 0 | U124: 0 | V124: 0 | W124: 0 | X124: 0
A125: =IF(SUM(COUNTIF(I125:X125,"<>0")-COUNTBLANK(I125:X125))<>0,1,0) -> 0 | F125: Municipalities | I125: 0 | J125: 0 | K125: 0 | L125: 0 | M125: 0 | N125: 0 | O125: 0 | P125: 0 | Q125: 0 | R125: 0 | S125: 0 | T125: 0 | U125: 0 | V125: 0 | W125: 0 | X125: 0
A126: =A125 -> 0 | F126: Municipal bank accounts | I126: 0 | J126: 0 | K126: 0 | L126: 0 | M126: 0 | N126: 0 | O126: 0 | P126: 0 | Q126: 0 | R126: 0 | S126: 0 | T126: 0 | U126: 0 | V126: 0 | W126: 0 | X126: 0
A127: =A125 -> 0 | F127: Municipal agencies and funds | I127: 0 | J127: 0 | K127: 0 | L127: 0 | M127: 0 | N127: 0 | O127: 0 | P127: 0 | Q127: 0 | R127: 0 | S127: 0 | T127: 0 | U127: 0 | V127: 0 | W127: 0 | X127: 0
A128: =IF(SUM(COUNTIF(I128:X128,"<>0")-COUNTBLANK(I128:X128))<>0,1,0) -> 0 | F128: Departmental agencies and accounts | I128: 0 | J128: 0 | K128: 0 | L128: 0 | M128: 0 | N128: 0 | O128: 0 | P128: 0 | Q128: 0 | R128: 0 | S128: 0 | T128: 0 | U128: 0 | V128: 0 | W128: 0 | X128: 0
A129: =A128 -> 0 | F129: Social security funds | I129: 0 | J129: 0 | K129: 0 | L129: 0 | M129: 0 | N129: 0 | O129: 0 | P129: 0 | Q129: 0 | R129: 0 | S129: 0 | T129: 0 | U129: 0 | V129: 0 | W129: 0 | X129: 0
A130: =A128 -> 0 | F130: Departmental agencies (non-business entities) | I130: 0 | J130: 0 | K130: 0 | L130: 0 | M130: 0 | N130: 0 | O130: 0 | P130: 0 | Q130: 0 | R130: 0 | S130: 0 | T130: 0 | U130: 0 | V130: 0 | W130: 0 | X130: 0
A131: =IF(SUM(COUNTIF(I131:X131,"<>0")-COUNTBLANK(I131:X131))<>0,1,0) -> 0 | F131: Higher education institutions | I131: 0 | J131: 0 | K131: 0 | L131: 0 | M131: 0 | N131: 0 | O131: 0 | P131: 0 | Q131: 0 | R131: 0 | S131: 0 | T131: 0 | U131: 0 | V131: 0 | W131: 0 | X131: 0
A132: 0 | F132: Foreign governments and international organisations | I132: 0 | J132: 0 | K132: 0 | L132: 0 | M132: 0 | N132: 0 | O132: 0 | P132: 0 | Q132: 0 | R132: 0 | S132: 0 | T132: 0 | U132: 0 | V132: 0 | W132: 0 | X132: 0
A133: 0 | F133: Public corporations and private enterprises | I133: 0 | J133: 0 | K133: 0 | L133: 0 | M133: 0 | N133: 0 | O133: 0 | P133: 0 | Q133: 0 | R133: 0 | S133: 0 | T133: 0 | U133: 0 | V133: 0 | W133: 0 | X133: 0
A134: 0 | F134: Public corporations | I134: 0 | J134: 0 | K134: 0 | L134: 0 | M134: 0 | N134: 0 | O134: 0 | P134: 0 | Q134: 0 | R134: 0 | S134: 0 | T134: 0 | U134: 0 | V134: 0 | W134: 0 | X134: 0
A135: =A134 -> 0 | F135: Subsidies on products and production (pc) | I135: 0 | J135: 0 | K135: 0 | L135: 0 | M135: 0 | N135: 0 | O135: 0 | P135: 0 | Q135: 0 | R135: 0 | S135: 0 | T135: 0 | U135: 0 | V135: 0 | W135: 0 | X135: 0
A136: =A134 -> 0 | F136: Other transfers to public corporations | I136: =SUMIF($F$284:$F$5020,$F136,I$284:I$5020) -> 0 | J136: 0 | K136: 0 | L136: 0 | M136: 0 | N136: 0 | O136: 0 | P136: 0 | Q136: 0 | R136: 0 | S136: 0 | T136: 0 | U136: 0 | V136: 0 | W136: 0 | X136: =SUMIF($F$284:$F$5020,$F136,X$284:X$5020) -> 0
A137: =IF(SUM(COUNTIF(I137:X137,"<>0")-COUNTBLANK(I137:X137))<>0,1,0) -> 0 | F137: Private enterprises | I137: 0 | J137: 0 | K137: 0 | L137: 0 | M137: 0 | N137: 0 | O137: 0 | P137: 0 | Q137: 0 | R137: 0 | S137: 0 | T137: 0 | U137: 0 | V137: 0 | W137: 0 | X137: =SUMIF($F$284:$F$5020,$F137,X$284:X$5020) -> 0
A138: =A137 -> 0 | F138: Subsidies on products and production (pe) | I138: 0 | J138: 0 | K138: 0 | L138: 0 | M138: 0 | N138: 0 | O138: 0 | P138: 0 | Q138: 0 | R138: 0 | S138: 0 | T138: 0 | U138: 0 | V138: 0 | W138: 0 | X138: 0
A139: =A137 -> 0 | F139: Other transfers to private enterprises | I139: 0 | J139: 0 | K139: 0 | L139: 0 | M139: 0 | N139: 0 | O139: 0 | P139: 0 | Q139: 0 | R139: 0 | S139: 0 | T139: 0 | U139: 0 | V139: 0 | W139: 0 | X139: 0
A140: =IF(A139=0,A133,IF(SUM(COUNTIF(I145:X145,"<>0")-COUNTBLANK(I145:X145))<>0,1,0)) -> 0 | F140: Non-profit institutions | I140: 0 | J140: 0 | K140: 0 | L140: 0 | M140: 0 | N140: 0 | O140: 0 | P140: 0 | Q140: 0 | R140: 0 | S140: 0 | T140: 0 | U140: 0 | V140: 0 | W140: 0 | X140: 0
A141: =IF(SUM(COUNTIF(I141:X141,"<>0")-COUNTBLANK(I141:X141))<>0,1,0) -> 0 | F141: Households | I141: 0 | J141: 0 | K141: 0 | L141: 0 | M141: 0 | N141: 0 | O141: 0 | P141: 0 | Q141: 0 | R141: 0 | S141: 0 | T141: 0 | U141: 0 | V141: 0 | W141: 0 | X141: 0
A142: =A141 -> 0 | F142: Social benefits | I142: 0 | J142: 0 | K142: 0 | L142: 0 | M142: 0 | N142: 0 | O142: 0 | P142: 0 | Q142: 0 | R142: 0 | S142: 0 | T142: 0 | U142: 0 | V142: 0 | W142: 0 | X142: 0
A143: =A141 -> 0 | F143: Other transfers to households | I143: 0 | J143: 0 | K143: 0 | L143: 0 | M143: 0 | N143: 0 | O143: 0 | P143: 0 | Q143: 0 | R143: 0 | S143: 0 | T143: 0 | U143: 0 | V143: 0 | W143: 0 | X143: 0
A144: 1 | F144: Payments for capital assets | I144: =SUM(I145,I148,I151:I155) -> 361 | J144: =SUM(J145,J148,J151:J155) -> 0 | K144: =SUM(K145,K148,K151:K155) -> 0 | L144: =SUM(L145,L148,L151:L155) -> 0 | M144: =SUM(M145,M148,M151:M155) -> 0 | N144: 0 | O144: 0 | P144: 0 | Q144: 0 | R144: 0 | S144: 0 | T144: =SUM(T145,T148,T151:T155) -> 0 | U144: =SUM(U145,U148,U151:U155) -> 0 | V144: =SUM(V145,V148,V151:V155) -> 0 | W144: 0 | X144: =SUM(X145,X148,X151:X155) -> 361
A145: =IF(SUM(COUNTIF(I145:X145,"<>0")-COUNTBLANK(I145:X145))<>0,1,0) -> 0 | F145: Buildings and other fixed structures | I145: =SUM(I146:I147) -> 0 | J145: =SUM(J146:J147) -> 0 | K145: =SUM(K146:K147) -> 0 | L145: =SUM(L146:L147) -> 0 | M145: 0 | N145: 0 | O145: 0 | P145: 0 | Q145: 0 | R145: 0 | S145: 0 | T145: 0 | U145: 0 | V145: 0 | W145: 0 | X145: 0
A146: =A145 -> 0 | F146: Buildings | I146: =SUMIF($F$284:$F$5020,$F146,I$284:I$5020) -> 0 | J146: 0 | K146: 0 | L146: 0 | M146: 0 | N146: 0 | O146: 0 | P146: 0 | Q146: 0 | R146: 0 | S146: 0 | T146: 0 | U146: 0 | V146: 0 | W146: 0 | X146: 0
A147: =A145 -> 0 | F147: Other fixed structures | I147: 0 | J147: 0 | K147: 0 | L147: 0 | M147: 0 | N147: 0 | O147: 0 | P147: 0 | Q147: 0 | R147: 0 | S147: 0 | T147: 0 | U147: 0 | V147: 0 | W147: 0 | X147: 0
A148: =IF(SUM(COUNTIF(I148:X148,"<>0")-COUNTBLANK(I148:X148))<>0,1,0) -> 1 | F148: Machinery and equipment | I148: =SUM(I149:I150) -> 361 | J148: =SUM(J149:J150) -> 0 | K148: =SUM(K149:K150) -> 0 | L148: =SUM(L149:L150) -> 0 | M148: 0 | N148: 0 | O148: 0 | P148: 0 | Q148: 0 | R148: 0 | S148: 0 | T148: 0 | U148: 0 | V148: 0 | W148: 0 | X148: 361
A149: =A148 -> 1 | F149: Transport equipment | I149: =SUMIF($F$284:$F$5020,$F149,I$284:I$5020) -> 0 | J149: 0 | K149: 0 | L149: 0 | M149: 0 | N149: 0 | O149: 0 | P149: 0 | Q149: 0 | R149: 0 | S149: 0 | T149: 0 | U149: 0 | V149: 0 | W149: 0 | X149: 0
A150: =A148 -> 1 | F150: Other machinery and equipment | I150: 361 | J150: 0 | K150: 0 | L150: 0 | M150: 0 | N150: 0 | O150: 0 | P150: 0 | Q150: 0 | R150: 0 | S150: 0 | T150: 0 | U150: 0 | V150: 0 | W150: 0 | X150: 361
A151: =IF(SUM(COUNTIF(I151:X151,"<>0")-COUNTBLANK(I151:X151))<>0,1,0) -> 0 | F151: Heritage assets | I151: 0 | J151: 0 | K151: 0 | L151: 0 | M151: 0 | N151: 0 | O151: 0 | P151: 0 | Q151: 0 | R151: 0 | S151: 0 | T151: 0 | U151: 0 | V151: 0 | W151: 0 | X151: 0
A152: 0 | F152: Specialised military assets | I152: 0 | J152: 0 | K152: 0 | L152: 0 | M152: 0 | N152: 0 | O152: 0 | P152: 0 | Q152: 0 | R152: 0 | S152: 0 | T152: 0 | U152: 0 | V152: 0 | W152: 0 | X152: 0
A153: 0 | F153: Biological assets | I153: 0 | J153: 0 | K153: 0 | L153: 0 | M153: 0 | N153: 0 | O153: 0 | P153: 0 | Q153: 0 | R153: 0 | S153: 0 | T153: 0 | U153: 0 | V153: 0 | W153: 0 | X153: 0
A154: 0 | F154: Land and sub-soil assets | I154: 0 | J154: 0 | K154: 0 | L154: 0 | M154: 0 | N154: 0 | O154: 0 | P154: 0 | Q154: 0 | R154: 0 | S154: 0 | T154: 0 | U154: 0 | V154: 0 | W154: 0 | X154: 0
A155: 0 | F155: Software and other intangible assets | I155: 0 | J155: 0 | K155: 0 | L155: 0 | M155: 0 | N155: 0 | O155: 0 | P155: 0 | Q155: 0 | R155: 0 | S155: 0 | T155: 0 | U155: 0 | V155: 0 | W155: 0 | X155: 0
A156: 1 | F156: Payments for financial assets | I156: 0 | J156: 0 | K156: 0 | L156: 0 | M156: 0 | N156: 0 | O156: 0 | P156: 0 | Q156: 0 | R156: 0 | S156: 0 | T156: 0 | U156: 0 | V156: 0 | W156: 0 | X156: 0
A157: 1
A158: 1 | F158: Total | I158: =SUM(I74,I120,I144,I156) -> 69792 | J158: 0 | K158: 0 | L158: 0 | M158: 0 | N158: 0 | O158: 0 | P158: 0 | Q158: 0 | R158: 0 | S158: 0 | T158: 0 | U158: 0 | V158: 0 | W158: 0 | X158: 69792
A159: 1
A160: 1
A161: 1
A162: 1 | F162: Check: Programmes less Economic classification | I162: =I72-I158 -> 0 | J162: =J72-J158 -> 0 | K162: =K72-K158 -> 0 | L162: 0 | M162: 0 | N162: 0 | O162: 0 | P162: 0 | Q162: 0 | R162: 0 | S162: 0 | T162: 0 | U162: 0 | V162: 0 | W162: 0 | X162: 0
A163: 1
A164: 1 | F164: Check: Detail of Transfers less Transfers Economic classification | I164: =I282-I120 -> 0 | J164: 0 | K164: 0 | L164: 0 | M164: 0 | N164: 0 | O164: 0 | P164: 0 | Q164: 0 | R164: 0 | S164: 0 | T164: 0 | U164: 0 | V164: 0 | W164: 0 | X164: 0
A165: 1
F166: Check: Payments for financial assets | I166: =+I156-SUM(I289:I301) -> 0 | J166: =+J156-SUM(J289:J301) -> 0 | K166: 0 | L166: 0 | M166: 0 | N166: 0 | O166: 0 | P166: 0 | Q166: 0 | R166: 0 | S166: 0 | T166: 0 | U166: 0 | V166: 0 | W166: 0 | X166: 0
F172: DETAIL OF TRANSFERS AND SUBSIDIES | I172: 1 | J172: 2 | K172: 3 | L172: 4 | M172: 5 | N172: 6 | O172: 7 | P172: 8 | Q172: 9 | R172: 10 | S172: 11 | T172: 12 | U172: 13 | V172: 14 | W172: 15 | X172: 16 | Y172: 17 | Z172: 18 | AA172: 19 | AB172: 20 | AC172: 21 | AD172: 22 | AE172: 23
A173: 1 | F173: Recipient | H173: =+$H$42 -> 2020/21 | Z173: 35 | AA173: 36 | AB173: 37 | AC173: 38 | AD173: 39 | AE173: 40
A174: 1 | K174: Adjustments appropriation | M174: Special Adjustments Appropriation
A175: 1 | I175: Voted (Main appropriation) | J175: Special appropriation | K175: Roll-overs | L175: Unforeseeable/ unavoidable | M175: Utilisation of unspend funds Virements & Shifts | N175: Significant and unforeseeable economic and financial events | P175: Shifting of funds following function shift | R175: Self-financing | S175: Declared unspent funds | T175: Unforeseeable and unavoidable expenditure | U175: Announced in the budget speech | V175: Section 16 of the PFMA | W175: Total special adjustments appropriation | X175: Adjusted appropriation
A176: 1 | F176: R thousand | N176: Suspension of funds | O176: Allocation of funds | P176: Within the vote | Q176: Between votes | Z176: Economic classification | AA176: Current/Capital | AB176: Subprogramme | AC176: Specifically and exclusively (S & E) appropriated | AD176: Purpose of transfer payment | AE176: Description of transfer payment
A177: 1 | B177: =IF(ISERROR(INDEX((MyTransfersEcon1),MATCH(Z185,MyTransfersEcon3,0))),0,AA185&" transfers: "&INDEX((MyTransfersEcon1),MATCH(Z185,MyTransfersEcon3,0))) -> 0 | E177: 1 | F177: Households | I177: 0 | W177: =SUM(K177:V177) -> 0 | X177: =I177+J177+W177 -> 0 | Z177: Other transfers to households | AA177: Current | AB177: ICT Policy Development | AC177: 0 | AD177: Funeral costs | AE177: Condolences
A178: =IF(SUM(COUNTIF(F178:AD178,"<>0")-COUNTBLANK(F178:AD178))<>0,1,0) -> 1 | B178: =IF(ISERROR(INDEX((MyTransfersEcon1),MATCH(Z178,MyTransfersEcon3,0))),0,AA178&" transfers: "&INDEX((MyTransfersEcon1),MATCH(Z178,MyTransfersEcon3,0))) -> Current transfers: Households | E178: 2 | F178: Households | I178: 0 | W178: =SUM(K178:V178) -> 0 | X178: =I178+J178+W178 -> 0 | Z178: Social benefits | AA178: Current | AB178: ICT Policy Development | AC178: 0 | AD178: Employee social benefits | AE178: Payment for leave gratuity
A179: =IF(SUM(COUNTIF(F179:AD179,"<>0")-COUNTBLANK(F179:AD179))<>0,1,0) -> 1 | B179: Current transfers: Households | E179: 3 | F179: Households | I179: 0 | W179: 0 | X179: 0 | Z179: Social benefits | AA179: Current | AB179: Research | AC179: 0 | AD179: Employee social benefits | AE179: Payment for leave gratuity
A180: 1 | B180: Current transfers: Households | E180: 4 | F180: Households | I180: 0 | W180: 0 | X180: 0 | Z180: Social benefits | AA180: Current | AB180: Broadcasting Policy | AC180: 0 | AD180: Employee social benefits | AE180: Payment for leave gratuity
A181: 0 | B181: 0 | E181: 5 | F181: 0 | I181: 0 | W181: 0 | X181: 0 | Z181: 0 | AA181: 0 | AB181: 0 | AC181: 0 | AD181: 0 | AE181: 0
A182: 0 | B182: 0 | E182: 6 | F182: 0 | I182: 0 | W182: 0 | X182: 0 | Z182: 0 | AA182: 0 | AB182: 0 | AC182: 0 | AD182: 0 | AE182: 0
A183: 0 | B183: 0 | E183: 7 | F183: 0 | I183: 0 | W183: 0 | X183: 0 | Z183: 0 | AA183: 0 | AB183: 0 | AC183: 0 | AD183: 0 | AE183: 0
A184: 0 | B184: 0 | E184: 8 | F184: 0 | I184: 0 | W184: 0 | X184: 0 | Z184: 0 | AA184: 0 | AB184: 0 | AC184: 0 | AD184: 0 | AE184: 0
A185: 0 | B185: 0 | E185: 9 | F185: 0 | I185: 0 | W185: 0 | X185: 0 | Z185: 0 | AA185: 0 | AB185: 0 | AC185: 0 | AD185: 0 | AE185: 0
A186: 0 | B186: 0 | E186: 10 | F186: 0 | I186: 0 | W186: 0 | X186: 0 | Z186: 0 | AA186: 0 | AB186: 0 | AC186: 0 | AD186: 0 | AE186: 0
A187: 0 | B187: 0 | E187: 11 | F187: 0 | I187: 0 | W187: 0 | X187: 0 | Z187: 0 | AA187: 0 | AB187: 0 | AC187: 0 | AD187: 0 | AE187: 0
A188: 0 | B188: 0 | E188: 12 | F188: 0 | I188: 0 | W188: 0 | X188: 0 | Z188: 0 | AA188: 0 | AB188: 0 | AC188: 0 | AD188: 0 | AE188: 0
A189: 0 | B189: 0 | E189: 13 | F189: 0 | I189: 0 | W189: 0 | X189: 0 | Z189: 0 | AA189: 0 | AB189: 0 | AC189: 0 | AD189: 0 | AE189: 0
A190: 0 | B190: 0 | E190: 14 | F190: 0 | I190: 0 | W190: 0 | X190: 0 | Z190: 0 | AA190: 0 | AB190: 0 | AC190: 0 | AD190: 0 | AE190: 0
A191: 0 | B191: 0 | E191: 15 | F191: 0 | I191: 0 | W191: 0 | X191: 0 | Z191: 0 | AA191: 0 | AB191: 0 | AC191: 0 | AD191: 0 | AE191: 0
A192: 0 | B192: 0 | E192: 16 | F192: 0 | I192: 0 | W192: 0 | X192: 0 | Z192: 0 | AA192: 0 | AB192: 0 | AC192: 0 | AD192: 0 | AE192: 0
A193: 0 | B193: 0 | E193: 17 | F193: 0 | I193: 0 | W193: 0 | X193: 0 | Z193: 0 | AA193: 0 | AB193: 0 | AC193: 0 | AD193: 0 | AE193: 0
A194: 0 | B194: 0 | E194: 18 | F194: 0 | I194: 0 | W194: 0 | X194: 0 | Z194: 0 | AA194: 0 | AB194: 0 | AC194: 0 | AD194: 0 | AE194: 0
A195: 0 | B195: 0 | E195: 19 | F195: 0 | I195: 0 | W195: 0 | X195: 0 | Z195: 0 | AA195: 0 | AB195: 0 | AC195: 0 | AD195: 0 | AE195: 0
A196: 0 | B196: 0 | E196: 20 | F196: 0 | I196: 0 | W196: 0 | X196: 0 | Z196: 0 | AA196: 0 | AB196: 0 | AC196: 0 | AD196: 0 | AE196: 0
A197: 0 | B197: 0 | E197: 21 | F197: 0 | I197: 0 | W197: 0 | X197: 0 | Z197: 0 | AA197: 0 | AB197: 0 | AC197: 0 | AD197: 0 | AE197: 0
A198: 0 | B198: 0 | E198: 22 | F198: 0 | I198: 0 | W198: 0 | X198: 0 | Z198: 0 | AA198: 0 | AB198: 0 | AC198: 0 | AD198: 0 | AE198: 0
A199: 0 | B199: 0 | E199: 23 | F199: 0 | I199: 0 | W199: 0 | X199: 0 | Z199: 0 | AA199: 0 | AB199: 0 | AC199: 0 | AD199: 0 | AE199: 0
A200: 0 | B200: 0 | E200: 24 | F200: 0 | I200: 0 | W200: 0 | X200: 0 | Z200: 0 | AA200: 0 | AB200: 0 | AC200: 0 | AD200: 0 | AE200: 0
A201: 0 | B201: 0 | E201: 25 | F201: 0 | I201: 0 | W201: 0 | X201: 0 | Z201: 0 | AA201: 0 | AB201: 0 | AC201: 0 | AD201: 0 | AE201: 0
A202: 0 | B202: 0 | E202: 26 | F202: 0 | I202: 0 | W202: 0 | X202: 0 | Z202: 0 | AA202: 0 | AB202: 0 | AC202: 0 | AD202: 0 | AE202: 0
A203: 0 | B203: 0 | E203: 27 | F203: 0 | I203: 0 | W203: 0 | X203: 0 | Z203: 0 | AA203: 0 | AB203: 0 | AC203: 0 | AD203: 0 | AE203: 0
A204: 0 | B204: 0 | E204: 28 | F204: 0 | I204: 0 | W204: 0 | X204: 0 | Z204: 0 | AA204: 0 | AB204: 0 | AC204: 0 | AD204: 0 | AE204: 0
A205: 0 | B205: 0 | E205: 29 | F205: 0 | I205: 0 | W205: 0 | X205: 0 | Z205: 0 | AA205: 0 | AB205: 0 | AC205: 0 | AD205: 0 | AE205: 0
A206: 0 | B206: 0 | E206: 30 | F206: 0 | I206: 0 | W206: 0 | X206: 0 | Z206: 0 | AA206: 0 | AB206: 0 | AC206: 0 | AD206: 0 | AE206: 0
A207: 0 | B207: 0 | E207: 31 | F207: 0 | I207: 0 | W207: 0 | X207: 0 | Z207: 0 | AA207: 0 | AB207: 0 | AC207: 0 | AD207: 0 | AE207: 0
... 1150 more rows

Sheet 4
A1: Row of SP1 | B1: 300
A2: SPInterval | B2: 150
A3: SP's created | B3: =MAX(B284:B4497) -> 4
A4: SP's listed | B4: =COUNTA(F47:F71) -> 4
A5: SP'Var | B5: =B4-B3 -> 0 | F5: =IF(G5="","",IF($B$5>0,"No. of subprogramme units to create","No. of subprogramme units to delete")) ->  | G5: =IF(B4-B3=0,"",IF(B4-B3<0,B3-B4,B4-B3)) -> 
A6: Check | B6: =B4-MAX(B47:B71) -> 0 | F6: Vote no. | G6: =MyVoteNo -> 30
A7: SPFormula | B7: OFFSET(H$1,(B2*$E31)+$B$2+33,0) | F7: Department name | G7: =MyDeptName -> Communications and Digital Technologies
A8: Prog No. | B8: 4 | F8: Programme name | G8: =OFFSET(Summary!$F$30,$B$8,0) -> ICT Enterprise and Public Entity Oversight
F9: Programme manager | J9: Post:
F11: Programme purpose
F12: Oversee and manage government’s shareholding interest in the ICT public entities and state-owned companies. Facilitate the growth and development of small, medium and micro enterprises in the ICT sector.
A14: =IF(B14=0,0,1) -> 0 | B14: =IF(F14<>"",E14,0) -> 0
A15: 0 | B15: 0
A16: 0 | B16: 0
A17: =IF(B17=0,0,1) -> 0 | B17: 0
A18: =IF(B18=0,0,1) -> 0 | B18: 0
A19: =IF(B19=0,0,1) -> 0 | B19: 0
A20: 0 | B20: 0
A21: 0 | B21: 0
A22: 0 | B22: 0
A23: 0 | B23: 0
A24: 0 | B24: 0
A25: 0 | B25: 0
A26: 0 | B26: 0
A27: 0 | B27: 0
A28: 0 | B28: 0
A29: 0 | B29: 0
A30: 0 | B30: 0
A31: 0 | B31: 0
A32: 0 | B32: 0
A33: 0 | B33: 0
A34: 0 | B34: 0
A35: 0 | B35: 0
A36: 0 | B36: 0
A37: 0 | B37: 0
A38: 0 | B38: 0
A39: 0 | B39: 0 | U39: Hide | V39: Hide
A40: 0 | B40: =IF(ISERROR(INDEX(('S&E data'!$B$4:$B$100),MATCH($G$7,'S&E data'!$G$4:$G$100,0))&IF(LEN(B8)<2,"0"&B8,B8)),0,INDEX(('S&E data'!$B$4:$B$100),MATCH($G$7,'S&E data'!$G$4:$G$100,0))&IF(LEN(B8)<2,"0"&B8,B8)) -> 0
A41: =IF(COUNTA(F41:Y41)>0,1,0) -> 0
A42: 1 | H42: =+Summary!$H$26 -> 2020/21
A43: 1 | K43: Adjustments appropriation | M43: Special Adjustments Appropriation
A44: 1 | F44: =+IF(COUNTIF(I162:X162,">0.5")+COUNTIF(I162:X162,"<-0.49999")<>0,"Inconsistencies between Subprogrammes and Economic classification",IF(COUNTIF(I164:X164,">0.5")+COUNTIF(I164:X164,"<-0.49999")<>0,"Inconsistencies between Transfers Detail and Economic classification","")) ->  | I44: Voted (Main appropriation) | J44: Special appropriation | K44: Roll-overs | L44: Unforeseeable/ unavoidable | M44: Utilisation of unspend funds Virements & Shifts | N44: Significant and unforeseeable economic and financial events | P44: Shifting of funds following function shift | R44: Self-financing | S44: Declared unspent funds | T44: Unforeseeable and unavoidable expenditure | U44: Announced in the budget speech | V44: Section 16 of the PFMA | W44: Total special adjustments appropriation | X44: Adjusted appropriation
A45: 1 | F45: R thousand | N45: Suspension of funds | O45: Allocation of funds | P45: Within the vote | Q45: Between votes
A46: 1 | C46: Name | F46: Subprogrammes
A47: 1 | B47: =IF(F47<>"",E47,0) -> 1 | C47: =IF(LEN(F47)>2,1,0) -> 1 | E47: 1 | F47: Programme Management for ICT Enterprise and Public Entity Oversight | G47: =IF(AND(F47="",COUNTA(F48:F$71)>0),"Please fill Subprogrammes from the top","") ->  | I47: =IF(AND($B$6>=0,$B47<>0),OFFSET(I$1,($B$2*$E47)+($B$2+55),0),0) -> 9165 | J47: 0 | K47: 0 | L47: 0 | M47: 0 | N47: 0 | O47: 0 | P47: 0 | Q47: 0 | R47: 0 | S47: 0 | T47: 0 | U47: 0 | V47: 0 | W47: 0 | X47: 9165
A48: =IF(B48=0,0,1) -> 1 | B48: =IF(F48<>"",E48,0) -> 2 | C48: =IF(LEN(F48)>2,1,0) -> 1 | E48: 2 | F48: Regulatory Institutions | G48: =IF(AND(F48="",COUNTA(F49:F$71)>0),"Please fill Subprogrammes from the top","") ->  | I48: 590580 | J48: 0 | K48: 0 | L48: 0 | M48: 0 | N48: 0 | O48: 0 | P48: 0 | Q48: 0 | R48: 0 | S48: 0 | T48: 0 | U48: 0 | V48: 0 | W48: 0 | X48: 590580
A49: =IF(B49=0,0,1) -> 1 | B49: 3 | C49: 1 | E49: 3 | F49: Universal Services and Access | G49: =IF(AND(F49="",COUNTA(F50:F$71)>0),"Please fill Subprogrammes from the top","") ->  | I49: 1051238 | J49: 0 | K49: 0 | L49: 0 | M49: 0 | N49: 0 | O49: 0 | P49: 0 | Q49: 0 | R49: 0 | S49: 0 | T49: 0 | U49: 0 | V49: 0 | W49: 0 | X49: 1051238
A50: =IF(B50=0,0,1) -> 1 | B50: 4 | C50: 1 | E50: 4 | F50: ICT Skills Development | G50: =IF(AND(F50="",COUNTA(F51:F$71)>0),"Please fill Subprogrammes from the top","") ->  | I50: 99195 | J50: 0 | K50: 0 | L50: 0 | M50: 0 | N50: 0 | O50: 0 | P50: 0 | Q50: 0 | R50: 0 | S50: 0 | T50: 0 | U50: 0 | V50: 0 | W50: 0 | X50: 99195
A51: 0 | B51: 0 | C51: 0 | E51: 5 | G51: =IF(AND(F51="",COUNTA(F52:F$71)>0),"Please fill Subprogrammes from the top","") ->  | I51: 0 | J51: 0 | K51: 0 | L51: 0 | M51: 0 | N51: 0 | O51: 0 | P51: 0 | Q51: 0 | R51: 0 | S51: 0 | T51: 0 | U51: 0 | V51: 0 | W51: 0 | X51: 0
A52: 0 | B52: 0 | C52: 0 | E52: 6 | G52: =IF(AND(F52="",COUNTA(F53:F$71)>0),"Please fill Subprogrammes from the top","") ->  | I52: 0 | J52: 0 | K52: 0 | L52: 0 | M52: 0 | N52: 0 | O52: 0 | P52: 0 | Q52: 0 | R52: 0 | S52: 0 | T52: 0 | U52: 0 | V52: 0 | W52: 0 | X52: 0
A53: 0 | B53: 0 | C53: 0 | E53: 7 | G53: =IF(AND(F53="",COUNTA(F54:F$71)>0),"Please fill Subprogrammes from the top","") ->  | I53: 0 | J53: 0 | K53: 0 | L53: 0 | M53: 0 | N53: 0 | O53: 0 | P53: 0 | Q53: 0 | R53: 0 | S53: 0 | T53: 0 | U53: 0 | V53: 0 | W53: 0 | X53: 0
A54: 0 | B54: 0 | C54: 0 | E54: 8 | G54: =IF(AND(F54="",COUNTA(F55:F$71)>0),"Please fill Subprogrammes from the top","") ->  | I54: 0 | J54: 0 | K54: 0 | L54: 0 | M54: 0 | N54: 0 | O54: 0 | P54: 0 | Q54: 0 | R54: 0 | S54: 0 | T54: 0 | U54: 0 | V54: 0 | W54: 0 | X54: 0
A55: 0 | B55: 0 | C55: 0 | E55: 9 | G55: =IF(AND(F55="",COUNTA(F56:F$71)>0),"Please fill Subprogrammes from the top","") ->  | I55: 0 | J55: 0 | K55: 0 | L55: 0 | M55: 0 | N55: 0 | O55: 0 | P55: 0 | Q55: 0 | R55: 0 | S55: 0 | T55: 0 | U55: 0 | V55: 0 | W55: 0 | X55: 0
A56: 0 | B56: 0 | C56: 0 | E56: 10 | G56: =IF(AND(F56="",COUNTA(F57:F$71)>0),"Please fill Subprogrammes from the top","") ->  | I56: 0 | J56: 0 | K56: 0 | L56: 0 | M56: 0 | N56: 0 | O56: 0 | P56: 0 | Q56: 0 | R56: 0 | S56: 0 | T56: 0 | U56: 0 | V56: 0 | W56: 0 | X56: 0
A57: 0 | B57: 0 | C57: 0 | E57: 11 | G57: =IF(AND(F57="",COUNTA(F58:F$71)>0),"Please fill Subprogrammes from the top","") ->  | I57: =IF(AND($B$6>=0,$B57<>0),OFFSET(I$1,($B$2*$E57)+($B$2+55),0),0) -> 0 | J57: 0 | K57: 0 | L57: 0 | M57: 0 | N57: 0 | O57: 0 | P57: 0 | Q57: 0 | R57: 0 | S57: 0 | T57: 0 | U57: 0 | V57: 0 | W57: 0 | X57: 0
A58: 0 | B58: 0 | C58: 0 | E58: 12 | G58: =IF(AND(F58="",COUNTA(F59:F$71)>0),"Please fill Subprogrammes from the top","") ->  | I58: 0 | J58: 0 | K58: 0 | L58: 0 | M58: 0 | N58: 0 | O58: 0 | P58: 0 | Q58: 0 | R58: 0 | S58: 0 | T58: 0 | U58: 0 | V58: 0 | W58: 0 | X58: 0
A59: 0 | B59: 0 | C59: 0 | E59: 13 | G59: =IF(AND(F59="",COUNTA(F60:F$71)>0),"Please fill Subprogrammes from the top","") ->  | I59: 0 | J59: 0 | K59: 0 | L59: 0 | M59: 0 | N59: 0 | O59: 0 | P59: 0 | Q59: 0 | R59: 0 | S59: 0 | T59: 0 | U59: 0 | V59: 0 | W59: 0 | X59: 0
A60: 0 | B60: 0 | C60: 0 | E60: 14 | G60: =IF(AND(F60="",COUNTA(F61:F$71)>0),"Please fill Subprogrammes from the top","") ->  | I60: 0 | J60: 0 | K60: 0 | L60: 0 | M60: 0 | N60: 0 | O60: 0 | P60: 0 | Q60: 0 | R60: 0 | S60: 0 | T60: 0 | U60: 0 | V60: 0 | W60: 0 | X60: 0
A61: 0 | B61: 0 | C61: 0 | E61: 15 | G61: =IF(AND(F61="",COUNTA(F62:F$71)>0),"Please fill Subprogrammes from the top","") ->  | I61: 0 | J61: 0 | K61: 0 | L61: 0 | M61: 0 | N61: 0 | O61: 0 | P61: 0 | Q61: 0 | R61: 0 | S61: 0 | T61: 0 | U61: 0 | V61: 0 | W61: 0 | X61: 0
A62: 0 | B62: 0 | C62: 0 | E62: 16 | G62: =IF(AND(F62="",COUNTA(F63:F$71)>0),"Please fill Subprogrammes from the top","") ->  | I62: 0 | J62: 0 | K62: 0 | L62: 0 | M62: 0 | N62: 0 | O62: 0 | P62: 0 | Q62: 0 | R62: 0 | S62: 0 | T62: 0 | U62: 0 | V62: 0 | W62: 0 | X62: 0
A63: 0 | B63: 0 | C63: 0 | E63: 17 | G63: =IF(AND(F63="",COUNTA(F64:F$71)>0),"Please fill Subprogrammes from the top","") ->  | I63: 0 | J63: 0 | K63: 0 | L63: 0 | M63: 0 | N63: 0 | O63: 0 | P63: 0 | Q63: 0 | R63: 0 | S63: 0 | T63: 0 | U63: 0 | V63: 0 | W63: 0 | X63: 0
A64: 0 | B64: 0 | C64: 0 | E64: 18 | G64: =IF(AND(F64="",COUNTA(F65:F$71)>0),"Please fill Subprogrammes from the top","") ->  | I64: 0 | J64: 0 | K64: 0 | L64: 0 | M64: 0 | N64: 0 | O64: 0 | P64: 0 | Q64: 0 | R64: 0 | S64: 0 | T64: 0 | U64: 0 | V64: 0 | W64: 0 | X64: 0
A65: 0 | B65: 0 | C65: 0 | E65: 19 | G65: =IF(AND(F65="",COUNTA(F66:F$71)>0),"Please fill Subprogrammes from the top","") ->  | I65: 0 | J65: 0 | K65: 0 | L65: 0 | M65: 0 | N65: 0 | O65: 0 | P65: 0 | Q65: 0 | R65: 0 | S65: 0 | T65: 0 | U65: 0 | V65: 0 | W65: 0 | X65: 0
A66: 0 | B66: 0 | C66: 0 | E66: 20 | G66: =IF(AND(F66="",COUNTA(F67:F$71)>0),"Please fill Subprogrammes from the top","") ->  | I66: 0 | J66: 0 | K66: 0 | L66: 0 | M66: 0 | N66: 0 | O66: 0 | P66: 0 | Q66: 0 | R66: 0 | S66: 0 | T66: 0 | U66: 0 | V66: 0 | W66: 0 | X66: 0
A67: 0 | B67: 0 | C67: 0 | E67: 21 | G67: =IF(AND(F67="",COUNTA(F68:F$71)>0),"Please fill Subprogrammes from the top","") ->  | I67: 0 | J67: 0 | K67: 0 | L67: 0 | M67: 0 | N67: 0 | O67: 0 | P67: 0 | Q67: 0 | R67: 0 | S67: 0 | T67: 0 | U67: 0 | V67: 0 | W67: 0 | X67: 0
A68: 0 | B68: 0 | C68: 0 | E68: 22 | G68: =IF(AND(F68="",COUNTA(F69:F$71)>0),"Please fill Subprogrammes from the top","") ->  | I68: 0 | J68: 0 | K68: 0 | L68: 0 | M68: 0 | N68: 0 | O68: 0 | P68: 0 | Q68: 0 | R68: 0 | S68: 0 | T68: 0 | U68: 0 | V68: 0 | W68: 0 | X68: 0
A69: 0 | B69: 0 | C69: 0 | E69: 23 | G69: =IF(AND(F69="",COUNTA(F70:F$71)>0),"Please fill Subprogrammes from the top","") ->  | I69: 0 | J69: 0 | K69: 0 | L69: 0 | M69: 0 | N69: 0 | O69: 0 | P69: 0 | Q69: 0 | R69: 0 | S69: 0 | T69: 0 | U69: 0 | V69: 0 | W69: 0 | X69: 0
A70: 0 | B70: 0 | C70: 0 | E70: 24 | G70: =IF(AND(F70="",COUNTA(F71:F$71)>0),"Please fill Subprogrammes from the top","") ->  | I70: 0 | J70: 0 | K70: 0 | L70: 0 | M70: 0 | N70: 0 | O70: 0 | P70: 0 | Q70: 0 | R70: 0 | S70: 0 | T70: 0 | U70: 0 | V70: 0 | W70: 0 | X70: 0
A71: 0 | B71: 0 | C71: 0 | E71: 25 | I71: 0 | J71: 0 | K71: 0 | L71: 0 | M71: 0 | N71: 0 | O71: 0 | P71: 0 | Q71: 0 | R71: 0 | S71: 0 | T71: 0 | U71: 0 | V71: 0 | W71: 0 | X71: 0
A72: 1 | F72: Total | I72: =SUM(I47:I71) -> 1750178 | J72: =SUM(J47:J71) -> 0 | K72: =SUM(K47:K71) -> 0 | L72: 0 | M72: =SUM(M47:M71) -> 0 | N72: 0 | O72: 0 | P72: 0 | Q72: 0 | R72: 0 | S72: 0 | T72: 0 | U72: 0 | V72: 0 | W72: 0 | X72: 1750178
A73: 1 | F73: Economic classification
A74: 1 | F74: Current payments | I74: =+I75+I78+I117 -> 42964 | J74: =+J75+J78+J117 -> 0 | K74: =+K75+K78+K117 -> 0 | L74: =+L75+L78+L117 -> 0 | M74: =+M75+M78+M117 -> 0 | N74: =+N75+N78+N117 -> 0 | O74: 0 | P74: 0 | Q74: 0 | R74: 0 | S74: 0 | T74: 0 | U74: 0 | V74: 0 | W74: 0 | X74: 42964
A75: =IF(SUM(COUNTIF(I75:X75,"<>0")-COUNTBLANK(I75:X75))<>0,1,0) -> 1 | F75: Compensation of employees | I75: =SUM(I76:I77) -> 35733 | J75: =SUM(J76:J77) -> 0 | K75: =SUM(K76:K77) -> 0 | L75: =SUM(L76:L77) -> 0 | M75: =SUM(M76:M77) -> 0 | N75: =SUM(N76:N77) -> 0 | O75: 0 | P75: 0 | Q75: 0 | R75: 0 | S75: 0 | T75: 0 | U75: 0 | V75: 0 | W75: 0 | X75: 35733
A76: =A75 -> 1 | F76: Salaries and wages | I76: =SUMIF($F$284:$F$5020,$F76,I$284:I$5020) -> 32899 | J76: 0 | K76: 0 | L76: 0 | M76: 0 | N76: 0 | O76: 0 | P76: 0 | Q76: 0 | R76: 0 | S76: 0 | T76: 0 | U76: 0 | V76: 0 | W76: 0 | X76: 32899
A77: =A75 -> 1 | F77: Social contributions | I77: 2834 | J77: 0 | K77: 0 | L77: 0 | M77: 0 | N77: 0 | O77: 0 | P77: 0 | Q77: 0 | R77: 0 | S77: 0 | T77: 0 | U77: 0 | V77: 0 | W77: 0 | X77: 2834
A78: =IF(SUM(COUNTIF(I78:X78,"<>0")-COUNTBLANK(I78:X78))<>0,1,0) -> 1 | F78: Goods and services | I78: =SUM(I79:I116) -> 7231 | J78: =SUM(J79:J116) -> 0 | K78: =SUM(K79:K116) -> 0 | L78: =SUM(L79:L116) -> 0 | M78: =SUM(M79:M116) -> 0 | N78: =SUM(N79:N116) -> 0 | O78: 0 | P78: 0 | Q78: 0 | R78: 0 | S78: 0 | T78: 0 | U78: 0 | V78: 0 | W78: 0 | X78: 7231
A79: =A78 -> 1 | F79: Administrative fees | I79: =SUMIF($F$284:$F$5020,$F79,I$284:I$5020) -> 111 | J79: 0 | K79: 0 | L79: 0 | M79: 0 | N79: 0 | O79: 0 | P79: 0 | Q79: 0 | R79: 0 | S79: 0 | T79: 0 | U79: 0 | V79: 0 | W79: 0 | X79: 111
A80: =IF(SUM(COUNTIF(I80:X80,"<>0")-COUNTBLANK(I80:X80))<>0,1,0) -> 1 | F80: Advertising | I80: 1013 | J80: 0 | K80: 0 | L80: 0 | M80: 0 | N80: 0 | O80: 0 | P80: 0 | Q80: 0 | R80: 0 | S80: 0 | T80: 0 | U80: 0 | V80: 0 | W80: 0 | X80: 1013
A81: 1 | F81: Minor Assets | I81: 184 | J81: 0 | K81: 0 | L81: 0 | M81: 0 | N81: 0 | O81: 0 | P81: 0 | Q81: 0 | R81: 0 | S81: 0 | T81: 0 | U81: 0 | V81: 0 | W81: 0 | X81: 184
A82: 1 | F82: Audit costs: External | I82: 5 | J82: 0 | K82: 0 | L82: 0 | M82: 0 | N82: 0 | O82: 0 | P82: 0 | Q82: 0 | R82: 0 | S82: 0 | T82: 0 | U82: 0 | V82: 0 | W82: 0 | X82: 5
A83: 1 | F83: Bursaries: Employees | I83: 590 | J83: 0 | K83: 0 | L83: 0 | M83: 0 | N83: 0 | O83: 0 | P83: 0 | Q83: 0 | R83: 0 | S83: 0 | T83: 0 | U83: 0 | V83: 0 | W83: 0 | X83: 590
A84: 1 | F84: Catering: Departmental activities | I84: 195 | J84: 0 | K84: 0 | L84: 0 | M84: 0 | N84: 0 | O84: 0 | P84: 0 | Q84: 0 | R84: 0 | S84: 0 | T84: 0 | U84: 0 | V84: 0 | W84: 0 | X84: 195
A85: 1 | F85: Communication (G&S) | I85: 481 | J85: 0 | K85: 0 | L85: 0 | M85: 0 | N85: 0 | O85: 0 | P85: 0 | Q85: 0 | R85: 0 | S85: 0 | T85: 0 | U85: 0 | V85: 0 | W85: 0 | X85: 481
A86: 1 | F86: Computer services | I86: 15 | J86: 0 | K86: 0 | L86: 0 | M86: 0 | N86: 0 | O86: 0 | P86: 0 | Q86: 0 | R86: 0 | S86: 0 | T86: 0 | U86: 0 | V86: 0 | W86: 0 | X86: 15
A87: 0 | F87: Consultants: Business and advisory services | I87: 0 | J87: 0 | K87: 0 | L87: 0 | M87: 0 | N87: 0 | O87: 0 | P87: 0 | Q87: 0 | R87: 0 | S87: 0 | T87: 0 | U87: 0 | V87: 0 | W87: 0 | X87: 0
A88: 0 | F88: Infrastructure and planning services | I88: 0 | J88: 0 | K88: 0 | L88: 0 | M88: 0 | N88: 0 | O88: 0 | P88: 0 | Q88: 0 | R88: 0 | S88: 0 | T88: 0 | U88: 0 | V88: 0 | W88: 0 | X88: 0
A89: 0 | F89: Laboratory services | I89: 0 | J89: 0 | K89: 0 | L89: 0 | M89: 0 | N89: 0 | O89: 0 | P89: 0 | Q89: 0 | R89: 0 | S89: 0 | T89: 0 | U89: 0 | V89: 0 | W89: 0 | X89: 0
A90: 1 | F90: Legal services (G&S) | I90: 25 | J90: 0 | K90: 0 | L90: 0 | M90: 0 | N90: 0 | O90: 0 | P90: 0 | Q90: 0 | R90: 0 | S90: 0 | T90: 0 | U90: 0 | V90: 0 | W90: 0 | X90: 25
A91: 0 | F91: Science and technological services | I91: 0 | J91: 0 | K91: 0 | L91: 0 | M91: 0 | N91: 0 | O91: 0 | P91: 0 | Q91: 0 | R91: 0 | S91: 0 | T91: 0 | U91: 0 | V91: 0 | W91: 0 | X91: 0
A92: 0 | F92: Contractors | I92: 0 | J92: 0 | K92: 0 | L92: 0 | M92: 0 | N92: 0 | O92: 0 | P92: 0 | Q92: 0 | R92: 0 | S92: 0 | T92: 0 | U92: 0 | V92: 0 | W92: 0 | X92: 0
A93: 0 | F93: Agency and support/outsourced services | I93: 0 | J93: 0 | K93: 0 | L93: 0 | M93: 0 | N93: 0 | O93: 0 | P93: 0 | Q93: 0 | R93: 0 | S93: 0 | T93: 0 | U93: 0 | V93: 0 | W93: 0 | X93: 0
A94: 1 | F94: Entertainment | I94: =SUMIF($F$284:$F$5020,$F94,I$284:I$5020) -> 43 | J94: 0 | K94: 0 | L94: 0 | M94: 0 | N94: 0 | O94: 0 | P94: 0 | Q94: 0 | R94: 0 | S94: 0 | T94: 0 | U94: 0 | V94: 0 | W94: 0 | X94: =SUMIF($F$284:$F$5020,$F94,X$284:X$5020) -> 43
A95: 1 | F95: Fleet services (including government motor transport) | I95: 13 | J95: 0 | K95: 0 | L95: 0 | M95: 0 | N95: 0 | O95: 0 | P95: 0 | Q95: 0 | R95: 0 | S95: 0 | T95: 0 | U95: 0 | V95: 0 | W95: 0 | X95: =SUMIF($F$284:$F$5020,$F95,X$284:X$5020) -> 13
A96: 0 | F96: Housing | I96: 0 | J96: 0 | K96: 0 | L96: 0 | M96: 0 | N96: 0 | O96: 0 | P96: 0 | Q96: 0 | R96: 0 | S96: 0 | T96: 0 | U96: 0 | V96: 0 | W96: 0 | X96: 0
A97: 0 | F97: Inventory: Clothing material and accessories | I97: 0 | J97: 0 | K97: 0 | L97: 0 | M97: 0 | N97: 0 | O97: 0 | P97: 0 | Q97: 0 | R97: 0 | S97: 0 | T97: 0 | U97: 0 | V97: 0 | W97: 0 | X97: 0
A98: 0 | F98: Inventory: Farming supplies | I98: 0 | J98: 0 | K98: 0 | L98: 0 | M98: 0 | N98: 0 | O98: 0 | P98: 0 | Q98: 0 | R98: 0 | S98: 0 | T98: 0 | U98: 0 | V98: 0 | W98: 0 | X98: 0
A99: 0 | F99: Inventory: Food and food supplies | I99: 0 | J99: 0 | K99: 0 | L99: 0 | M99: 0 | N99: 0 | O99: 0 | P99: 0 | Q99: 0 | R99: 0 | S99: 0 | T99: 0 | U99: 0 | V99: 0 | W99: 0 | X99: 0
A100: 0 | F100: Inventory: Fuel, oil and gas | I100: 0 | J100: 0 | K100: 0 | L100: 0 | M100: 0 | N100: 0 | O100: 0 | P100: 0 | Q100: 0 | R100: 0 | S100: 0 | T100: 0 | U100: 0 | V100: 0 | W100: 0 | X100: 0
A101: 0 | F101: Inventory: Learner and teacher support material | I101: 0 | J101: 0 | K101: 0 | L101: 0 | M101: 0 | N101: 0 | O101: 0 | P101: 0 | Q101: 0 | R101: 0 | S101: 0 | T101: 0 | U101: 0 | V101: 0 | W101: 0 | X101: 0
A102: 0 | F102: Inventory: Materials and supplies | I102: 0 | J102: 0 | K102: 0 | L102: 0 | M102: 0 | N102: 0 | O102: 0 | P102: 0 | Q102: 0 | R102: 0 | S102: 0 | T102: 0 | U102: 0 | V102: 0 | W102: 0 | X102: 0
A103: 0 | F103: Inventory: Medical supplies | I103: 0 | J103: 0 | K103: 0 | L103: 0 | M103: 0 | N103: 0 | O103: 0 | P103: 0 | Q103: 0 | R103: 0 | S103: 0 | T103: 0 | U103: 0 | V103: 0 | W103: 0 | X103: 0
A104: 0 | F104: Inventory: Medicine | I104: =SUMIF($F$284:$F$5020,$F104,I$284:I$5020) -> 0 | J104: 0 | K104: 0 | L104: 0 | M104: 0 | N104: 0 | O104: 0 | P104: 0 | Q104: 0 | R104: 0 | S104: 0 | T104: 0 | U104: 0 | V104: 0 | W104: 0 | X104: 0
A105: 0 | F105: Medsas inventory interface | I105: 0 | J105: 0 | K105: 0 | L105: 0 | M105: 0 | N105: 0 | O105: 0 | P105: 0 | Q105: 0 | R105: 0 | S105: 0 | T105: 0 | U105: 0 | V105: 0 | W105: 0 | X105: 0
A106: 0 | F106: Inventory: Other supplies | I106: 0 | J106: 0 | K106: 0 | L106: 0 | M106: 0 | N106: 0 | O106: 0 | P106: 0 | Q106: 0 | R106: 0 | S106: 0 | T106: 0 | U106: 0 | V106: 0 | W106: 0 | X106: 0
A107: 1 | F107: Consumable supplies | I107: 17 | J107: 0 | K107: 0 | L107: 0 | M107: 0 | N107: 0 | O107: 0 | P107: 0 | Q107: 0 | R107: 0 | S107: 0 | T107: 0 | U107: 0 | V107: 0 | W107: 0 | X107: 17
A108: 1 | F108: Consumables: Stationery, printing and office supplies | I108: 352 | J108: 0 | K108: 0 | L108: 0 | M108: 0 | N108: 0 | O108: 0 | P108: 0 | Q108: 0 | R108: 0 | S108: 0 | T108: 0 | U108: 0 | V108: 0 | W108: 0 | X108: 352
A109: 1 | F109: Operating leases | I109: 180 | J109: 0 | K109: 0 | L109: 0 | M109: 0 | N109: 0 | O109: 0 | P109: 0 | Q109: 0 | R109: 0 | S109: 0 | T109: 0 | U109: 0 | V109: 0 | W109: 0 | X109: 180
A110: 1 | F110: Rental and hiring | I110: 35 | J110: 0 | K110: 0 | L110: 0 | M110: 0 | N110: 0 | O110: 0 | P110: 0 | Q110: 0 | R110: 0 | S110: 0 | T110: 0 | U110: 0 | V110: 0 | W110: 0 | X110: 35
A111: 0 | F111: Property payments | I111: 0 | J111: 0 | K111: 0 | L111: 0 | M111: 0 | N111: 0 | O111: 0 | P111: 0 | Q111: 0 | R111: 0 | S111: 0 | T111: 0 | U111: 0 | V111: 0 | W111: 0 | X111: 0
A112: 0 | F112: Transport provided: Departmental activity | I112: 0 | J112: 0 | K112: 0 | L112: 0 | M112: 0 | N112: 0 | O112: 0 | P112: 0 | Q112: 0 | R112: 0 | S112: 0 | T112: 0 | U112: 0 | V112: 0 | W112: 0 | X112: 0
A113: 1 | F113: Travel and subsistence | I113: 3516 | J113: 0 | K113: 0 | L113: 0 | M113: 0 | N113: 0 | O113: 0 | P113: 0 | Q113: 0 | R113: 0 | S113: 0 | T113: 0 | U113: 0 | V113: 0 | W113: 0 | X113: 3516
A114: 1 | F114: Training and development | I114: 295 | J114: 0 | K114: 0 | L114: 0 | M114: 0 | N114: 0 | O114: 0 | P114: 0 | Q114: 0 | R114: 0 | S114: 0 | T114: 0 | U114: 0 | V114: 0 | W114: 0 | X114: 295
A115: 1 | F115: Operating payments | I115: 21 | J115: 0 | K115: 0 | L115: 0 | M115: 0 | N115: 0 | O115: 0 | P115: 0 | Q115: 0 | R115: 0 | S115: 0 | T115: 0 | U115: 0 | V115: 0 | W115: 0 | X115: 21
A116: =A78 -> 1 | F116: Venues and facilities | I116: 140 | J116: 0 | K116: 0 | L116: 0 | M116: 0 | N116: 0 | O116: 0 | P116: 0 | Q116: 0 | R116: 0 | S116: 0 | T116: 0 | U116: 0 | V116: 0 | W116: 0 | X116: 140
A117: 0 | F117: Interest and rent on land | I117: =SUM(I118:I119) -> 0 | J117: =SUM(J118:J119) -> 0 | K117: =SUM(K118:K119) -> 0 | L117: =SUM(L118:L119) -> 0 | M117: =SUM(M118:M119) -> 0 | N117: =SUM(N118:N119) -> 0 | O117: 0 | P117: 0 | Q117: 0 | R117: 0 | S117: 0 | T117: 0 | U117: 0 | V117: 0 | W117: 0 | X117: 0
A118: =A117 -> 0 | F118: Interest (Incl. interest on unitary payments (PPP)) | I118: =SUMIF($F$284:$F$5020,$F118,I$284:I$5020) -> 0 | J118: 0 | K118: 0 | L118: 0 | M118: 0 | N118: 0 | O118: 0 | P118: 0 | Q118: 0 | R118: 0 | S118: 0 | T118: 0 | U118: 0 | V118: 0 | W118: 0 | X118: 0
A119: =A117 -> 0 | F119: Rent on land | I119: 0 | J119: 0 | K119: 0 | L119: 0 | M119: 0 | N119: 0 | O119: 0 | P119: 0 | Q119: 0 | R119: 0 | S119: 0 | T119: 0 | U119: 0 | V119: 0 | W119: 0 | X119: 0
A120: 1 | F120: Transfers and subsidies | I120: =+SUM(I121,I128,I131,I132,I133,I140,I141) -> 1706709 | J120: =+SUM(J121,J128,J131,J132,J133,J140,J141) -> 0 | K120: =+SUM(K121,K128,K131,K132,K133,K140,K141) -> 0 | L120: 0 | M120: =+SUM(M121,M128,M131,M132,M133,M140,M141) -> 0 | N120: 0 | O120: 0 | P120: 0 | Q120: 0 | R120: 0 | S120: 0 | T120: 0 | U120: 0 | V120: 0 | W120: 0 | X120: 1706709
A121: =IF(SUM(COUNTIF(I121:X121,"<>0")-COUNTBLANK(I121:X121))<>0,1,0) -> 0 | F121: Provinces and municipalities | I121: =SUMIF($F$284:$F$5020,$F121,I$284:I$5020) -> 0 | J121: 0 | K121: 0 | L121: 0 | M121: 0 | N121: 0 | O121: 0 | P121: 0 | Q121: 0 | R121: 0 | S121: 0 | T121: 0 | U121: 0 | V121: 0 | W121: 0 | X121: 0
A122: 0 | F122: Provinces | I122: 0 | J122: 0 | K122: 0 | L122: 0 | M122: 0 | N122: 0 | O122: 0 | P122: 0 | Q122: 0 | R122: 0 | S122: 0 | T122: 0 | U122: 0 | V122: 0 | W122: 0 | X122: 0
A123: =A122 -> 0 | F123: Provincial Revenue Funds | I123: 0 | J123: 0 | K123: 0 | L123: 0 | M123: 0 | N123: 0 | O123: 0 | P123: 0 | Q123: 0 | R123: 0 | S123: 0 | T123: 0 | U123: 0 | V123: 0 | W123: 0 | X123: 0
A124: =A122 -> 0 | F124: Provincial agencies and funds | I124: 0 | J124: 0 | K124: 0 | L124: 0 | M124: 0 | N124: 0 | O124: 0 | P124: 0 | Q124: 0 | R124: 0 | S124: 0 | T124: 0 | U124: 0 | V124: 0 | W124: 0 | X124: 0
A125: =IF(SUM(COUNTIF(I125:X125,"<>0")-COUNTBLANK(I125:X125))<>0,1,0) -> 0 | F125: Municipalities | I125: 0 | J125: 0 | K125: 0 | L125: 0 | M125: 0 | N125: 0 | O125: 0 | P125: 0 | Q125: 0 | R125: 0 | S125: 0 | T125: 0 | U125: 0 | V125: 0 | W125: 0 | X125: 0
A126: =A125 -> 0 | F126: Municipal bank accounts | I126: 0 | J126: 0 | K126: 0 | L126: 0 | M126: 0 | N126: 0 | O126: 0 | P126: 0 | Q126: 0 | R126: 0 | S126: 0 | T126: 0 | U126: 0 | V126: 0 | W126: 0 | X126: 0
A127: =A125 -> 0 | F127: Municipal agencies and funds | I127: 0 | J127: 0 | K127: 0 | L127: 0 | M127: 0 | N127: 0 | O127: 0 | P127: 0 | Q127: 0 | R127: 0 | S127: 0 | T127: 0 | U127: 0 | V127: 0 | W127: 0 | X127: 0
A128: =IF(SUM(COUNTIF(I128:X128,"<>0")-COUNTBLANK(I128:X128))<>0,1,0) -> 1 | F128: Departmental agencies and accounts | I128: 1008861 | J128: 0 | K128: 0 | L128: 0 | M128: 0 | N128: 0 | O128: 0 | P128: 0 | Q128: 0 | R128: 0 | S128: 0 | T128: 0 | U128: 0 | V128: 0 | W128: 0 | X128: 1008861
A129: =A128 -> 1 | F129: Social security funds | I129: 0 | J129: 0 | K129: 0 | L129: 0 | M129: 0 | N129: 0 | O129: 0 | P129: 0 | Q129: 0 | R129: 0 | S129: 0 | T129: 0 | U129: 0 | V129: 0 | W129: 0 | X129: 0
A130: =A128 -> 1 | F130: Departmental agencies (non-business entities) | I130: 1008861 | J130: 0 | K130: 0 | L130: 0 | M130: 0 | N130: 0 | O130: 0 | P130: 0 | Q130: 0 | R130: 0 | S130: 0 | T130: 0 | U130: 0 | V130: 0 | W130: 0 | X130: 1008861
A131: =IF(SUM(COUNTIF(I131:X131,"<>0")-COUNTBLANK(I131:X131))<>0,1,0) -> 0 | F131: Higher education institutions | I131: 0 | J131: 0 | K131: 0 | L131: 0 | M131: 0 | N131: 0 | O131: 0 | P131: 0 | Q131: 0 | R131: 0 | S131: 0 | T131: 0 | U131: 0 | V131: 0 | W131: 0 | X131: 0
A132: 0 | F132: Foreign governments and international organisations | I132: 0 | J132: 0 | K132: 0 | L132: 0 | M132: 0 | N132: 0 | O132: 0 | P132: 0 | Q132: 0 | R132: 0 | S132: 0 | T132: 0 | U132: 0 | V132: 0 | W132: 0 | X132: 0
A133: 1 | F133: Public corporations and private enterprises | I133: 697848 | J133: 0 | K133: 0 | L133: 0 | M133: 0 | N133: 0 | O133: 0 | P133: 0 | Q133: 0 | R133: 0 | S133: 0 | T133: 0 | U133: 0 | V133: 0 | W133: 0 | X133: 697848
A134: 1 | F134: Public corporations | I134: 697848 | J134: 0 | K134: 0 | L134: 0 | M134: 0 | N134: 0 | O134: 0 | P134: 0 | Q134: 0 | R134: 0 | S134: 0 | T134: 0 | U134: 0 | V134: 0 | W134: 0 | X134: 697848
A135: =A134 -> 1 | F135: Subsidies on products and production (pc) | I135: 0 | J135: 0 | K135: 0 | L135: 0 | M135: 0 | N135: 0 | O135: 0 | P135: 0 | Q135: 0 | R135: 0 | S135: 0 | T135: 0 | U135: 0 | V135: 0 | W135: 0 | X135: 0
A136: =A134 -> 1 | F136: Other transfers to public corporations | I136: =SUMIF($F$284:$F$5020,$F136,I$284:I$5020) -> 697848 | J136: 0 | K136: 0 | L136: 0 | M136: 0 | N136: 0 | O136: 0 | P136: 0 | Q136: 0 | R136: 0 | S136: 0 | T136: 0 | U136: 0 | V136: 0 | W136: 0 | X136: =SUMIF($F$284:$F$5020,$F136,X$284:X$5020) -> 697848
A137: =IF(SUM(COUNTIF(I137:X137,"<>0")-COUNTBLANK(I137:X137))<>0,1,0) -> 0 | F137: Private enterprises | I137: 0 | J137: 0 | K137: 0 | L137: 0 | M137: 0 | N137: 0 | O137: 0 | P137: 0 | Q137: 0 | R137: 0 | S137: 0 | T137: 0 | U137: 0 | V137: 0 | W137: 0 | X137: =SUMIF($F$284:$F$5020,$F137,X$284:X$5020) -> 0
A138: =A137 -> 0 | F138: Subsidies on products and production (pe) | I138: 0 | J138: 0 | K138: 0 | L138: 0 | M138: 0 | N138: 0 | O138: 0 | P138: 0 | Q138: 0 | R138: 0 | S138: 0 | T138: 0 | U138: 0 | V138: 0 | W138: 0 | X138: 0
A139: =A137 -> 0 | F139: Other transfers to private enterprises | I139: 0 | J139: 0 | K139: 0 | L139: 0 | M139: 0 | N139: 0 | O139: 0 | P139: 0 | Q139: 0 | R139: 0 | S139: 0 | T139: 0 | U139: 0 | V139: 0 | W139: 0 | X139: 0
A140: =IF(A139=0,A133,IF(SUM(COUNTIF(I145:X145,"<>0")-COUNTBLANK(I145:X145))<>0,1,0)) -> 1 | F140: Non-profit institutions | I140: 0 | J140: 0 | K140: 0 | L140: 0 | M140: 0 | N140: 0 | O140: 0 | P140: 0 | Q140: 0 | R140: 0 | S140: 0 | T140: 0 | U140: 0 | V140: 0 | W140: 0 | X140: 0
A141: =IF(SUM(COUNTIF(I141:X141,"<>0")-COUNTBLANK(I141:X141))<>0,1,0) -> 0 | F141: Households | I141: 0 | J141: 0 | K141: 0 | L141: 0 | M141: 0 | N141: 0 | O141: 0 | P141: 0 | Q141: 0 | R141: 0 | S141: 0 | T141: 0 | U141: 0 | V141: 0 | W141: 0 | X141: 0
A142: =A141 -> 0 | F142: Social benefits | I142: 0 | J142: 0 | K142: 0 | L142: 0 | M142: 0 | N142: 0 | O142: 0 | P142: 0 | Q142: 0 | R142: 0 | S142: 0 | T142: 0 | U142: 0 | V142: 0 | W142: 0 | X142: 0
A143: =A141 -> 0 | F143: Other transfers to households | I143: 0 | J143: 0 | K143: 0 | L143: 0 | M143: 0 | N143: 0 | O143: 0 | P143: 0 | Q143: 0 | R143: 0 | S143: 0 | T143: 0 | U143: 0 | V143: 0 | W143: 0 | X143: 0
A144: 1 | F144: Payments for capital assets | I144: =SUM(I145,I148,I151:I155) -> 505 | J144: =SUM(J145,J148,J151:J155) -> 0 | K144: =SUM(K145,K148,K151:K155) -> 0 | L144: =SUM(L145,L148,L151:L155) -> 0 | M144: =SUM(M145,M148,M151:M155) -> 0 | N144: 0 | O144: 0 | P144: 0 | Q144: 0 | R144: 0 | S144: 0 | T144: =SUM(T145,T148,T151:T155) -> 0 | U144: =SUM(U145,U148,U151:U155) -> 0 | V144: =SUM(V145,V148,V151:V155) -> 0 | W144: 0 | X144: =SUM(X145,X148,X151:X155) -> 505
A145: =IF(SUM(COUNTIF(I145:X145,"<>0")-COUNTBLANK(I145:X145))<>0,1,0) -> 0 | F145: Buildings and other fixed structures | I145: =SUM(I146:I147) -> 0 | J145: =SUM(J146:J147) -> 0 | K145: =SUM(K146:K147) -> 0 | L145: =SUM(L146:L147) -> 0 | M145: 0 | N145: 0 | O145: 0 | P145: 0 | Q145: 0 | R145: 0 | S145: 0 | T145: 0 | U145: 0 | V145: 0 | W145: 0 | X145: 0
A146: =A145 -> 0 | F146: Buildings | I146: =SUMIF($F$284:$F$5020,$F146,I$284:I$5020) -> 0 | J146: 0 | K146: 0 | L146: 0 | M146: 0 | N146: 0 | O146: 0 | P146: 0 | Q146: 0 | R146: 0 | S146: 0 | T146: 0 | U146: 0 | V146: 0 | W146: 0 | X146: 0
A147: =A145 -> 0 | F147: Other fixed structures | I147: 0 | J147: 0 | K147: 0 | L147: 0 | M147: 0 | N147: 0 | O147: 0 | P147: 0 | Q147: 0 | R147: 0 | S147: 0 | T147: 0 | U147: 0 | V147: 0 | W147: 0 | X147: 0
A148: =IF(SUM(COUNTIF(I148:X148,"<>0")-COUNTBLANK(I148:X148))<>0,1,0) -> 1 | F148: Machinery and equipment | I148: =SUM(I149:I150) -> 505 | J148: =SUM(J149:J150) -> 0 | K148: =SUM(K149:K150) -> 0 | L148: =SUM(L149:L150) -> 0 | M148: 0 | N148: 0 | O148: 0 | P148: 0 | Q148: 0 | R148: 0 | S148: 0 | T148: 0 | U148: 0 | V148: 0 | W148: 0 | X148: 505
A149: =A148 -> 1 | F149: Transport equipment | I149: =SUMIF($F$284:$F$5020,$F149,I$284:I$5020) -> 0 | J149: 0 | K149: 0 | L149: 0 | M149: 0 | N149: 0 | O149: 0 | P149: 0 | Q149: 0 | R149: 0 | S149: 0 | T149: 0 | U149: 0 | V149: 0 | W149: 0 | X149: 0
A150: =A148 -> 1 | F150: Other machinery and equipment | I150: 505 | J150: 0 | K150: 0 | L150: 0 | M150: 0 | N150: 0 | O150: 0 | P150: 0 | Q150: 0 | R150: 0 | S150: 0 | T150: 0 | U150: 0 | V150: 0 | W150: 0 | X150: 505
A151: =IF(SUM(COUNTIF(I151:X151,"<>0")-COUNTBLANK(I151:X151))<>0,1,0) -> 0 | F151: Heritage assets | I151: 0 | J151: 0 | K151: 0 | L151: 0 | M151: 0 | N151: 0 | O151: 0 | P151: 0 | Q151: 0 | R151: 0 | S151: 0 | T151: 0 | U151: 0 | V151: 0 | W151: 0 | X151: 0
A152: 0 | F152: Specialised military assets | I152: 0 | J152: 0 | K152: 0 | L152: 0 | M152: 0 | N152: 0 | O152: 0 | P152: 0 | Q152: 0 | R152: 0 | S152: 0 | T152: 0 | U152: 0 | V152: 0 | W152: 0 | X152: 0
A153: 0 | F153: Biological assets | I153: 0 | J153: 0 | K153: 0 | L153: 0 | M153: 0 | N153: 0 | O153: 0 | P153: 0 | Q153: 0 | R153: 0 | S153: 0 | T153: 0 | U153: 0 | V153: 0 | W153: 0 | X153: 0
A154: 0 | F154: Land and sub-soil assets | I154: 0 | J154: 0 | K154: 0 | L154: 0 | M154: 0 | N154: 0 | O154: 0 | P154: 0 | Q154: 0 | R154: 0 | S154: 0 | T154: 0 | U154: 0 | V154: 0 | W154: 0 | X154: 0
A155: 0 | F155: Software and other intangible assets | I155: 0 | J155: 0 | K155: 0 | L155: 0 | M155: 0 | N155: 0 | O155: 0 | P155: 0 | Q155: 0 | R155: 0 | S155: 0 | T155: 0 | U155: 0 | V155: 0 | W155: 0 | X155: 0
A156: 1 | F156: Payments for financial assets | I156: 0 | J156: 0 | K156: 0 | L156: 0 | M156: 0 | N156: 0 | O156: 0 | P156: 0 | Q156: 0 | R156: 0 | S156: 0 | T156: 0 | U156: 0 | V156: 0 | W156: 0 | X156: 0
A157: 1
A158: 1 | F158: Total | I158: =SUM(I74,I120,I144,I156) -> 1750178 | J158: 0 | K158: 0 | L158: 0 | M158: 0 | N158: 0 | O158: 0 | P158: 0 | Q158: 0 | R158: 0 | S158: 0 | T158: 0 | U158: 0 | V158: 0 | W158: 0 | X158: 1750178
A159: 1
A160: 1
A161: 1
A162: 1 | F162: Check: Programmes less Economic classification | I162: =I72-I158 -> 0 | J162: =J72-J158 -> 0 | K162: =K72-K158 -> 0 | L162: 0 | M162: 0 | N162: 0 | O162: 0 | P162: 0 | Q162: 0 | R162: 0 | S162: 0 | T162: 0 | U162: 0 | V162: 0 | W162: 0 | X162: 0
A163: 1
A164: 1 | F164: Check: Detail of Transfers less Transfers Economic classification | I164: =I282-I120 -> 0 | J164: 0 | K164: 0 | L164: 0 | M164: 0 | N164: 0 | O164: 0 | P164: 0 | Q164: 0 | R164: 0 | S164: 0 | T164: 0 | U164: 0 | V164: 0 | W164: 0 | X164: 0
A165: 1
F166: Check: Payments for financial assets | I166: =+I156-SUM(I289:I301) -> 0 | J166: =+J156-SUM(J289:J301) -> 0 | K166: 0 | L166: 0 | M166: 0 | N166: 0 | O166: 0 | P166: 0 | Q166: 0 | R166: 0 | S166: 0 | T166: 0 | U166: 0 | V166: 0 | W166: 0 | X166: 0
F172: DETAIL OF TRANSFERS AND SUBSIDIES | I172: 1 | J172: 2 | K172: 3 | L172: 4 | M172: 5 | N172: 6 | O172: 7 | P172: 8 | Q172: 9 | R172: 10 | S172: 11 | T172: 12 | U172: 13 | V172: 14 | W172: 15 | X172: 16 | Y172: 17 | Z172: 18 | AA172: 19 | AB172: 20 | AC172: 21 | AD172: 22 | AE172: 23
A173: 1 | F173: Recipient | H173: =+$H$42 -> 2020/21 | Z173: 35 | AA173: 36 | AB173: 37 | AC173: 38 | AD173: 39 | AE173: 40
A174: 1 | K174: Adjustments appropriation | M174: Special Adjustments Appropriation
A175: 1 | I175: Voted (Main appropriation) | J175: Special appropriation | K175: Roll-overs | L175: Unforeseeable/ unavoidable | M175: Utilisation of unspend funds Virements & Shifts | N175: Significant and unforeseeable economic and financial events | P175: Shifting of funds following function shift | R175: Self-financing | S175: Declared unspent funds | T175: Unforeseeable and unavoidable expenditure | U175: Announced in the budget speech | V175: Section 16 of the PFMA | W175: Total special adjustments appropriation | X175: Adjusted appropriation
A176: 1 | F176: R thousand | N176: Suspension of funds | O176: Allocation of funds | P176: Within the vote | Q176: Between votes | Z176: Economic classification | AA176: Current/Capital | AB176: Subprogramme | AC176: Specifically and exclusively (S & E) appropriated | AD176: Purpose of transfer payment | AE176: Description of transfer payment
A177: 1 | B177: =IF(ISERROR(INDEX((MyTransfersEcon1),MATCH(Z185,MyTransfersEcon3,0))),0,AA185&" transfers: "&INDEX((MyTransfersEcon1),MATCH(Z185,MyTransfersEcon3,0))) -> Current transfers: Departmental agencies and accounts | E177: 1 | F177: South African Broadcasting Corporation: Channel Africa | I177: 63399 | W177: =SUM(K177:V177) -> 0 | X177: =I177+J177+W177 -> 63399 | Z177: Other transfers to public corporations | AA177: Current | AB177: Universal Services and Access | AC177: 0 | AD177: Operations | AE177: South African Broadcasting Corporation
A178: =IF(SUM(COUNTIF(F178:AD178,"<>0")-COUNTBLANK(F178:AD178))<>0,1,0) -> 1 | B178: =IF(ISERROR(INDEX((MyTransfersEcon1),MATCH(Z178,MyTransfersEcon3,0))),0,AA178&" transfers: "&INDEX((MyTransfersEcon1),MATCH(Z178,MyTransfersEcon3,0))) -> Current transfers: Public corporations and private enterprises | E178: 2 | F178: South African Broadcasting Corporation: Public broadcaster | I178: 127424 | W178: =SUM(K178:V178) -> 0 | X178: =I178+J178+W178 -> 127424 | Z178: Other transfers to public corporations | AA178: Current | AB178: Universal Services and Access | AC178: 0 | AD178: Operations | AE178: South African Broadcasting Corporation
A179: =IF(SUM(COUNTIF(F179:AD179,"<>0")-COUNTBLANK(F179:AD179))<>0,1,0) -> 1 | B179: Current transfers: Public corporations and private enterprises | E179: 3 | F179: South African Broadcasting Corporation: Community radio stations | I179: 0 | W179: 0 | X179: 0 | Z179: Other transfers to public corporations | AA179: Current | AB179: Universal Services and Access | AC179: 0 | AD179: Operations | AE179: South African Broadcasting Corporation
A180: 1 | B180: Current transfers: Public corporations and private enterprises | E180: 4 | F180: South African Broadcasting Corporation: Programme productions | I180: 14940 | W180: 0 | X180: 14940 | Z180: Other transfers to public corporations | AA180: Current | AB180: Universal Services and Access | AC180: 0 | AD180: Operations | AE180: South African Broadcasting Corporation
A181: 1 | B181: Current transfers: Public corporations and private enterprises | E181: 5 | F181: South African Broadcasting Corporation: Broadcasting digital migration | I181: 0 | W181: 0 | X181: 0 | Z181: Other transfers to public corporations | AA181: Current | AB181: Universal Services and Access | AC181: 0 | AD181: Operations | AE181: South African Broadcasting Corporation
A182: 1 | B182: Current transfers: Departmental agencies and accounts | E182: 6 | F182: Independent Communications Authority of South Africa | I182: 477721 | W182: 0 | X182: 477721 | Z182: Departmental agencies (non-business entities) | AA182: Current | AB182: Regulatory Institutions | AC182: 0 | AD182: Operations | AE182: Independent Communications Authority of South Africa
A183: 1 | B183: Current transfers: Departmental agencies and accounts | E183: 7 | F183: Film and Publication Board | I183: 103978 | W183: 0 | X183: 103978 | Z183: Departmental agencies (non-business entities) | AA183: Current | AB183: Regulatory Institutions | AC183: 0 | AD183: Operations | AE183: Film and Publication Board
A184: 1 | B184: Current transfers: Households | E184: 8 | F184: Households | I184: 0 | W184: 0 | X184: 0 | Z184: Social benefits | AA184: Current | AB184: Programme Management for ICT Enterprise and Public Entity Oversight | AC184: 0 | AD184: Operations | AE184: DDG Entity Oversight
A185: 1 | B185: Current transfers: Departmental agencies and accounts | E185: 9 | F185: National Electronic Media Institute of South Africa | I185: 99195 | W185: 0 | X185: 99195 | Z185: Departmental agencies (non-business entities) | AA185: Current | AB185: ICT Skills Development | AC185: 0 | AD185: Operations | AE185: NEMISA: Transfer Payment for the establishment of new entity iNeSI
A186: 1 | B186: Current transfers: Departmental agencies and accounts | E186: 10 | F186: Universal Service and Access Agency of South Africa | I186: 264881 | W186: 0 | X186: 264881 | Z186: Departmental agencies (non-business entities) | AA186: Current | AB186: Universal Services and Access | AC186: 0 | AD186: Operations | AE186: USAASA: Payment for the entity's operations
A187: 1 | B187: Current transfers: Departmental agencies and accounts | E187: 11 | F187: Universal Service and Access Fund | I187: 63086 | W187: 0 | X187: 63086 | Z187: Departmental agencies (non-business entities) | AA187: Current | AB187: Universal Services and Access | AC187: 0 | AD187: Operations | AE187: USAF: Payment for the entity's operations
A188: 1 | B188: Current transfers: Public corporations and private enterprises | E188: 12 | F188: South African Post Office | I188: 492085 | W188: 0 | X188: 492085 | Z188: Other transfers to public corporations | AA188: Current | AB188: Universal Services and Access | AC188: S&E | AD188: Subsisdy for Univesal Service obligations | AE188: South African Post Office: New Universal Service Obligations
A189: 1 | B189: Current transfers: Households | E189: 13 | F189: Households | I189: 0 | W189: 0 | X189: 0 | Z189: Other transfers to households | AA189: Current | AB189: Universal Services and Access | AC189: 0 | AD189: Funeral costs | AE189: Condolences/Act of Grace
A190: 1 | B190: Current transfers: Departmental agencies and accounts | E190: 14 | F190: Media Development and Diversity Agency | I190: 0 | W190: 0 | X190: 0 | Z190: Departmental agencies (non-business entities) | AA190: Current | AB190: Universal Services and Access | AC190: 0 | AD190: Operations | AE190: Media Development and Diversity Agency
A191: 1 | B191: Current transfers: Departmental agencies and accounts | E191: 15 | F191: Brand South Africa | I191: 0 | W191: 0 | X191: 0 | Z191: Departmental agencies (non-business entities) | AA191: Current | AB191: Universal Services and Access | AC191: 0 | AD191: Operations | AE191: Brand South Africa
A192: 0 | B192: 0 | E192: 16 | F192: 0 | I192: 0 | W192: 0 | X192: 0 | Z192: 0 | AA192: 0 | AB192: 0 | AC192: 0 | AD192: 0 | AE192: 0
A193: 0 | B193: 0 | E193: 17 | F193: 0 | I193: 0 | W193: 0 | X193: 0 | Z193: 0 | AA193: 0 | AB193: 0 | AC193: 0 | AD193: 0 | AE193: 0
A194: 0 | B194: 0 | E194: 18 | F194: 0 | I194: 0 | W194: 0 | X194: 0 | Z194: 0 | AA194: 0 | AB194: 0 | AC194: 0 | AD194: 0 | AE194: 0
A195: 0 | B195: 0 | E195: 19 | F195: 0 | I195: 0 | W195: 0 | X195: 0 | Z195: 0 | AA195: 0 | AB195: 0 | AC195: 0 | AD195: 0 | AE195: 0
A196: 0 | B196: 0 | E196: 20 | F196: 0 | I196: 0 | W196: 0 | X196: 0 | Z196: 0 | AA196: 0 | AB196: 0 | AC196: 0 | AD196: 0 | AE196: 0
A197: 0 | B197: 0 | E197: 21 | F197: 0 | I197: 0 | W197: 0 | X197: 0 | Z197: 0 | AA197: 0 | AB197: 0 | AC197: 0 | AD197: 0 | AE197: 0
A198: 0 | B198: 0 | E198: 22 | F198: 0 | I198: 0 | W198: 0 | X198: 0 | Z198: 0 | AA198: 0 | AB198: 0 | AC198: 0 | AD198: 0 | AE198: 0
A199: 0 | B199: 0 | E199: 23 | F199: 0 | I199: 0 | W199: 0 | X199: 0 | Z199: 0 | AA199: 0 | AB199: 0 | AC199: 0 | AD199: 0 | AE199: 0
A200: 0 | B200: 0 | E200: 24 | F200: 0 | I200: 0 | W200: 0 | X200: 0 | Z200: 0 | AA200: 0 | AB200: 0 | AC200: 0 | AD200: 0 | AE200: 0
A201: 0 | B201: 0 | E201: 25 | F201: 0 | I201: 0 | W201: 0 | X201: 0 | Z201: 0 | AA201: 0 | AB201: 0 | AC201: 0 | AD201: 0 | AE201: 0
A202: 0 | B202: 0 | E202: 26 | F202: 0 | I202: 0 | W202: 0 | X202: 0 | Z202: 0 | AA202: 0 | AB202: 0 | AC202: 0 | AD202: 0 | AE202: 0
A203: 0 | B203: 0 | E203: 27 | F203: 0 | I203: 0 | W203: 0 | X203: 0 | Z203: 0 | AA203: 0 | AB203: 0 | AC203: 0 | AD203: 0 | AE203: 0
A204: 0 | B204: 0 | E204: 28 | F204: 0 | I204: 0 | W204: 0 | X204: 0 | Z204: 0 | AA204: 0 | AB204: 0 | AC204: 0 | AD204: 0 | AE204: 0
A205: 0 | B205: 0 | E205: 29 | F205: 0 | I205: 0 | W205: 0 | X205: 0 | Z205: 0 | AA205: 0 | AB205: 0 | AC205: 0 | AD205: 0 | AE205: 0
A206: 0 | B206: 0 | E206: 30 | F206: 0 | I206: 0 | W206: 0 | X206: 0 | Z206: 0 | AA206: 0 | AB206: 0 | AC206: 0 | AD206: 0 | AE206: 0
A207: 0 | B207: 0 | E207: 31 | F207: 0 | I207: 0 | W207: 0 | X207: 0 | Z207: 0 | AA207: 0 | AB207: 0 | AC207: 0 | AD207: 0 | AE207: 0
... 630 more rows

Sheet 5
A1: Row of SP1 | B1: 300
A2: SPInterval | B2: 150
A3: SP's created | B3: =MAX(B284:B4497) -> 4
A4: SP's listed | B4: =COUNTA(F47:F71) -> 4
A5: SP'Var | B5: =B4-B3 -> 0 | F5: =IF(G5="","",IF($B$5>0,"No. of subprogramme units to create","No. of subprogramme units to delete")) ->  | G5: =IF(B4-B3=0,"",IF(B4-B3<0,B3-B4,B4-B3)) -> 
A6: Check | B6: =B4-MAX(B47:B71) -> 0 | F6: Vote no. | G6: =MyVoteNo -> 30
A7: SPFormula | B7: OFFSET(H$1,(B2*$E31)+$B$2+33,0) | F7: Department name | G7: =MyDeptName -> Communications and Digital Technologies
A8: Prog No. | B8: 5 | F8: Programme name | G8: =OFFSET(Summary!$F$30,$B$8,0) -> ICT Infrastructure Development and Support
F9: Programme manager | J9: Post:
F11: Programme purpose
F12: Promote investment in robust, reliable, secure and affordable ICT infrastructure that supports the provision of a multiplicity of applications and services.
A14: =IF(B14=0,0,1) -> 0 | B14: =IF(F14<>"",E14,0) -> 0
A15: 0 | B15: 0
A16: 0 | B16: 0
A17: =IF(B17=0,0,1) -> 0 | B17: 0
A18: =IF(B18=0,0,1) -> 0 | B18: 0
A19: =IF(B19=0,0,1) -> 0 | B19: 0
A20: 0 | B20: 0
A21: 0 | B21: 0
A22: 0 | B22: 0
A23: 0 | B23: 0
A24: 0 | B24: 0
A25: 0 | B25: 0
A26: 0 | B26: 0
A27: 0 | B27: 0
A28: 0 | B28: 0
A29: 0 | B29: 0
A30: 0 | B30: 0
A31: 0 | B31: 0
A32: 0 | B32: 0
A33: 0 | B33: 0
A34: 0 | B34: 0
A35: 0 | B35: 0
A36: 0 | B36: 0
A37: 0 | B37: 0
A38: 0 | B38: 0
A39: 0 | B39: 0 | U39: Hide | V39: Hide
A40: 0 | B40: =IF(ISERROR(INDEX(('S&E data'!$B$4:$B$100),MATCH($G$7,'S&E data'!$G$4:$G$100,0))&IF(LEN(B8)<2,"0"&B8,B8)),0,INDEX(('S&E data'!$B$4:$B$100),MATCH($G$7,'S&E data'!$G$4:$G$100,0))&IF(LEN(B8)<2,"0"&B8,B8)) -> 0
A41: =IF(COUNTA(F41:Y41)>0,1,0) -> 0
A42: 1 | H42: =+Summary!$H$26 -> 2020/21
A43: 1 | K43: Adjustments appropriation | M43: Special Adjustments Appropriation
A44: 1 | F44: =+IF(COUNTIF(I162:X162,">0.5")+COUNTIF(I162:X162,"<-0.49999")<>0,"Inconsistencies between Subprogrammes and Economic classification",IF(COUNTIF(I164:X164,">0.5")+COUNTIF(I164:X164,"<-0.49999")<>0,"Inconsistencies between Transfers Detail and Economic classification","")) ->  | I44: Voted (Main appropriation) | J44: Special appropriation | K44: Roll-overs | L44: Unforeseeable/ unavoidable | M44: Utilisation of unspend funds Virements & Shifts | N44: Significant and unforeseeable economic and financial events | P44: Shifting of funds following function shift | R44: Self-financing | S44: Declared unspent funds | T44: Unforeseeable and unavoidable expenditure | U44: Announced in the budget speech | V44: Section 16 of the PFMA | W44: Total special adjustments appropriation | X44: Adjusted appropriation
A45: 1 | F45: R thousand | N45: Suspension of funds | O45: Allocation of funds | P45: Within the vote | Q45: Between votes
A46: 1 | C46: Name | F46: Subprogrammes
A47: 1 | B47: =IF(F47<>"",E47,0) -> 1 | C47: =IF(LEN(F47)>2,1,0) -> 1 | E47: 1 | F47: Programme Management for ICT Infrastructure Development and Support | G47: =IF(AND(F47="",COUNTA(F48:F$71)>0),"Please fill Subprogrammes from the top","") ->  | I47: =IF(AND($B$6>=0,$B47<>0),OFFSET(I$1,($B$2*$E47)+($B$2+55),0),0) -> 3346 | J47: 0 | K47: 0 | L47: 0 | M47: 0 | N47: 0 | O47: 0 | P47: 0 | Q47: 0 | R47: 0 | S47: 0 | T47: 0 | U47: 0 | V47: 0 | W47: 0 | X47: 3346
A48: =IF(B48=0,0,1) -> 1 | B48: =IF(F48<>"",E48,0) -> 2 | C48: =IF(LEN(F48)>2,1,0) -> 1 | E48: 2 | F48: Broadband | G48: =IF(AND(F48="",COUNTA(F49:F$71)>0),"Please fill Subprogrammes from the top","") ->  | I48: 224942 | J48: 0 | K48: 0 | L48: 0 | M48: 0 | N48: 0 | O48: 0 | P48: 0 | Q48: 0 | R48: 0 | S48: 0 | T48: 0 | U48: 0 | V48: 0 | W48: 0 | X48: 224942
A49: =IF(B49=0,0,1) -> 1 | B49: 3 | C49: 1 | E49: 3 | F49: ICT Support | G49: =IF(AND(F49="",COUNTA(F50:F$71)>0),"Please fill Subprogrammes from the top","") ->  | I49: 9457 | J49: 0 | K49: 0 | L49: 0 | M49: 0 | N49: 0 | O49: 0 | P49: 0 | Q49: 0 | R49: 0 | S49: 0 | T49: 0 | U49: 0 | V49: 0 | W49: 0 | X49: 9457
A50: =IF(B50=0,0,1) -> 1 | B50: 4 | C50: 1 | E50: 4 | F50: Broadcasting Digital Migration | G50: =IF(AND(F50="",COUNTA(F51:F$71)>0),"Please fill Subprogrammes from the top","") ->  | I50: 889772 | J50: 0 | K50: 0 | L50: 0 | M50: 0 | N50: 0 | O50: 0 | P50: 0 | Q50: 0 | R50: 0 | S50: 0 | T50: 0 | U50: 0 | V50: 0 | W50: 0 | X50: 889772
A51: 0 | B51: 0 | C51: 0 | E51: 5 | G51: =IF(AND(F51="",COUNTA(F52:F$71)>0),"Please fill Subprogrammes from the top","") ->  | I51: 0 | J51: 0 | K51: 0 | L51: 0 | M51: 0 | N51: 0 | O51: 0 | P51: 0 | Q51: 0 | R51: 0 | S51: 0 | T51: 0 | U51: 0 | V51: 0 | W51: 0 | X51: 0
A52: 0 | B52: 0 | C52: 0 | E52: 6 | G52: =IF(AND(F52="",COUNTA(F53:F$71)>0),"Please fill Subprogrammes from the top","") ->  | I52: 0 | J52: 0 | K52: 0 | L52: 0 | M52: 0 | N52: 0 | O52: 0 | P52: 0 | Q52: 0 | R52: 0 | S52: 0 | T52: 0 | U52: 0 | V52: 0 | W52: 0 | X52: 0
A53: 0 | B53: 0 | C53: 0 | E53: 7 | G53: =IF(AND(F53="",COUNTA(F54:F$71)>0),"Please fill Subprogrammes from the top","") ->  | I53: 0 | J53: 0 | K53: 0 | L53: 0 | M53: 0 | N53: 0 | O53: 0 | P53: 0 | Q53: 0 | R53: 0 | S53: 0 | T53: 0 | U53: 0 | V53: 0 | W53: 0 | X53: 0
A54: 0 | B54: 0 | C54: 0 | E54: 8 | G54: =IF(AND(F54="",COUNTA(F55:F$71)>0),"Please fill Subprogrammes from the top","") ->  | I54: 0 | J54: 0 | K54: 0 | L54: 0 | M54: 0 | N54: 0 | O54: 0 | P54: 0 | Q54: 0 | R54: 0 | S54: 0 | T54: 0 | U54: 0 | V54: 0 | W54: 0 | X54: 0
A55: 0 | B55: 0 | C55: 0 | E55: 9 | G55: =IF(AND(F55="",COUNTA(F56:F$71)>0),"Please fill Subprogrammes from the top","") ->  | I55: 0 | J55: 0 | K55: 0 | L55: 0 | M55: 0 | N55: 0 | O55: 0 | P55: 0 | Q55: 0 | R55: 0 | S55: 0 | T55: 0 | U55: 0 | V55: 0 | W55: 0 | X55: 0
A56: 0 | B56: 0 | C56: 0 | E56: 10 | G56: =IF(AND(F56="",COUNTA(F57:F$71)>0),"Please fill Subprogrammes from the top","") ->  | I56: 0 | J56: 0 | K56: 0 | L56: 0 | M56: 0 | N56: 0 | O56: 0 | P56: 0 | Q56: 0 | R56: 0 | S56: 0 | T56: 0 | U56: 0 | V56: 0 | W56: 0 | X56: 0
A57: 0 | B57: 0 | C57: 0 | E57: 11 | G57: =IF(AND(F57="",COUNTA(F58:F$71)>0),"Please fill Subprogrammes from the top","") ->  | I57: =IF(AND($B$6>=0,$B57<>0),OFFSET(I$1,($B$2*$E57)+($B$2+55),0),0) -> 0 | J57: 0 | K57: 0 | L57: 0 | M57: 0 | N57: 0 | O57: 0 | P57: 0 | Q57: 0 | R57: 0 | S57: 0 | T57: 0 | U57: 0 | V57: 0 | W57: 0 | X57: 0
A58: 0 | B58: 0 | C58: 0 | E58: 12 | G58: =IF(AND(F58="",COUNTA(F59:F$71)>0),"Please fill Subprogrammes from the top","") ->  | I58: 0 | J58: 0 | K58: 0 | L58: 0 | M58: 0 | N58: 0 | O58: 0 | P58: 0 | Q58: 0 | R58: 0 | S58: 0 | T58: 0 | U58: 0 | V58: 0 | W58: 0 | X58: 0
A59: 0 | B59: 0 | C59: 0 | E59: 13 | G59: =IF(AND(F59="",COUNTA(F60:F$71)>0),"Please fill Subprogrammes from the top","") ->  | I59: 0 | J59: 0 | K59: 0 | L59: 0 | M59: 0 | N59: 0 | O59: 0 | P59: 0 | Q59: 0 | R59: 0 | S59: 0 | T59: 0 | U59: 0 | V59: 0 | W59: 0 | X59: 0
A60: 0 | B60: 0 | C60: 0 | E60: 14 | G60: =IF(AND(F60="",COUNTA(F61:F$71)>0),"Please fill Subprogrammes from the top","") ->  | I60: 0 | J60: 0 | K60: 0 | L60: 0 | M60: 0 | N60: 0 | O60: 0 | P60: 0 | Q60: 0 | R60: 0 | S60: 0 | T60: 0 | U60: 0 | V60: 0 | W60: 0 | X60: 0
A61: 0 | B61: 0 | C61: 0 | E61: 15 | G61: =IF(AND(F61="",COUNTA(F62:F$71)>0),"Please fill Subprogrammes from the top","") ->  | I61: 0 | J61: 0 | K61: 0 | L61: 0 | M61: 0 | N61: 0 | O61: 0 | P61: 0 | Q61: 0 | R61: 0 | S61: 0 | T61: 0 | U61: 0 | V61: 0 | W61: 0 | X61: 0
A62: 0 | B62: 0 | C62: 0 | E62: 16 | G62: =IF(AND(F62="",COUNTA(F63:F$71)>0),"Please fill Subprogrammes from the top","") ->  | I62: 0 | J62: 0 | K62: 0 | L62: 0 | M62: 0 | N62: 0 | O62: 0 | P62: 0 | Q62: 0 | R62: 0 | S62: 0 | T62: 0 | U62: 0 | V62: 0 | W62: 0 | X62: 0
A63: 0 | B63: 0 | C63: 0 | E63: 17 | G63: =IF(AND(F63="",COUNTA(F64:F$71)>0),"Please fill Subprogrammes from the top","") ->  | I63: 0 | J63: 0 | K63: 0 | L63: 0 | M63: 0 | N63: 0 | O63: 0 | P63: 0 | Q63: 0 | R63: 0 | S63: 0 | T63: 0 | U63: 0 | V63: 0 | W63: 0 | X63: 0
A64: 0 | B64: 0 | C64: 0 | E64: 18 | G64: =IF(AND(F64="",COUNTA(F65:F$71)>0),"Please fill Subprogrammes from the top","") ->  | I64: 0 | J64: 0 | K64: 0 | L64: 0 | M64: 0 | N64: 0 | O64: 0 | P64: 0 | Q64: 0 | R64: 0 | S64: 0 | T64: 0 | U64: 0 | V64: 0 | W64: 0 | X64: 0
A65: 0 | B65: 0 | C65: 0 | E65: 19 | G65: =IF(AND(F65="",COUNTA(F66:F$71)>0),"Please fill Subprogrammes from the top","") ->  | I65: 0 | J65: 0 | K65: 0 | L65: 0 | M65: 0 | N65: 0 | O65: 0 | P65: 0 | Q65: 0 | R65: 0 | S65: 0 | T65: 0 | U65: 0 | V65: 0 | W65: 0 | X65: 0
A66: 0 | B66: 0 | C66: 0 | E66: 20 | G66: =IF(AND(F66="",COUNTA(F67:F$71)>0),"Please fill Subprogrammes from the top","") ->  | I66: 0 | J66: 0 | K66: 0 | L66: 0 | M66: 0 | N66: 0 | O66: 0 | P66: 0 | Q66: 0 | R66: 0 | S66: 0 | T66: 0 | U66: 0 | V66: 0 | W66: 0 | X66: 0
A67: 0 | B67: 0 | C67: 0 | E67: 21 | G67: =IF(AND(F67="",COUNTA(F68:F$71)>0),"Please fill Subprogrammes from the top","") ->  | I67: 0 | J67: 0 | K67: 0 | L67: 0 | M67: 0 | N67: 0 | O67: 0 | P67: 0 | Q67: 0 | R67: 0 | S67: 0 | T67: 0 | U67: 0 | V67: 0 | W67: 0 | X67: 0
A68: 0 | B68: 0 | C68: 0 | E68: 22 | G68: =IF(AND(F68="",COUNTA(F69:F$71)>0),"Please fill Subprogrammes from the top","") ->  | I68: 0 | J68: 0 | K68: 0 | L68: 0 | M68: 0 | N68: 0 | O68: 0 | P68: 0 | Q68: 0 | R68: 0 | S68: 0 | T68: 0 | U68: 0 | V68: 0 | W68: 0 | X68: 0
A69: 0 | B69: 0 | C69: 0 | E69: 23 | G69: =IF(AND(F69="",COUNTA(F70:F$71)>0),"Please fill Subprogrammes from the top","") ->  | I69: 0 | J69: 0 | K69: 0 | L69: 0 | M69: 0 | N69: 0 | O69: 0 | P69: 0 | Q69: 0 | R69: 0 | S69: 0 | T69: 0 | U69: 0 | V69: 0 | W69: 0 | X69: 0
A70: 0 | B70: 0 | C70: 0 | E70: 24 | G70: =IF(AND(F70="",COUNTA(F71:F$71)>0),"Please fill Subprogrammes from the top","") ->  | I70: 0 | J70: 0 | K70: 0 | L70: 0 | M70: 0 | N70: 0 | O70: 0 | P70: 0 | Q70: 0 | R70: 0 | S70: 0 | T70: 0 | U70: 0 | V70: 0 | W70: 0 | X70: 0
A71: 0 | B71: 0 | C71: 0 | E71: 25 | I71: 0 | J71: 0 | K71: 0 | L71: 0 | M71: 0 | N71: 0 | O71: 0 | P71: 0 | Q71: 0 | R71: 0 | S71: 0 | T71: 0 | U71: 0 | V71: 0 | W71: 0 | X71: 0
A72: 1 | F72: Total | I72: =SUM(I47:I71) -> 1127517 | J72: =SUM(J47:J71) -> 0 | K72: =SUM(K47:K71) -> 0 | L72: 0 | M72: =SUM(M47:M71) -> 0 | N72: 0 | O72: 0 | P72: 0 | Q72: 0 | R72: 0 | S72: 0 | T72: 0 | U72: 0 | V72: 0 | W72: 0 | X72: 1127517
A73: 1 | F73: Economic classification
A74: 1 | F74: Current payments | I74: =+I75+I78+I117 -> 283809 | J74: =+J75+J78+J117 -> 0 | K74: =+K75+K78+K117 -> 0 | L74: =+L75+L78+L117 -> 0 | M74: =+M75+M78+M117 -> 0 | N74: =+N75+N78+N117 -> 0 | O74: 0 | P74: 0 | Q74: 0 | R74: 0 | S74: 0 | T74: 0 | U74: 0 | V74: 0 | W74: 0 | X74: 283809
A75: =IF(SUM(COUNTIF(I75:X75,"<>0")-COUNTBLANK(I75:X75))<>0,1,0) -> 1 | F75: Compensation of employees | I75: =SUM(I76:I77) -> 41853 | J75: =SUM(J76:J77) -> 0 | K75: =SUM(K76:K77) -> 0 | L75: =SUM(L76:L77) -> 0 | M75: =SUM(M76:M77) -> 0 | N75: =SUM(N76:N77) -> 0 | O75: 0 | P75: 0 | Q75: 0 | R75: 0 | S75: 0 | T75: 0 | U75: 0 | V75: 0 | W75: 0 | X75: 41853
A76: =A75 -> 1 | F76: Salaries and wages | I76: =SUMIF($F$284:$F$5020,$F76,I$284:I$5020) -> 37605 | J76: 0 | K76: 0 | L76: 0 | M76: 0 | N76: 0 | O76: 0 | P76: 0 | Q76: 0 | R76: 0 | S76: 0 | T76: 0 | U76: 0 | V76: 0 | W76: 0 | X76: 37605
A77: =A75 -> 1 | F77: Social contributions | I77: 4248 | J77: 0 | K77: 0 | L77: 0 | M77: 0 | N77: 0 | O77: 0 | P77: 0 | Q77: 0 | R77: 0 | S77: 0 | T77: 0 | U77: 0 | V77: 0 | W77: 0 | X77: 4248
